Workbook

Sheet RISICOAFSTANDEN
P2: -6 | Q2: -7 | R2: -8 | U2: -6 | V2: -7 | W2: -8
M3: ONDERDELEN VAN HET WATERSTOFTANKSTATION | P3: INDIVIDUELE RISICO-AFSTANDEN | U3: GECUMULEERDE RISICO-AFSTANDEN
B4: SET 1 | C4: SET 2 | D4: SET 3 | E4: SET 4 | F4: SET 5 | G4: SET 1 | H4: SET 2 | I4: SET 3 | J4: SET 4 | K4: SET 5 | L4: TYPE | M4: INSTALLATIE-ONDERDEEL | N4: AANTAL | O4: TIJDSFRACTIE | P4: AFST. 10-5/j | Q4: AFST. 10-6/j | R4: AFST. 10-7/j | U4: AFST. 10-5/j | V4: AFST. 10-6/j | W4: AFST. 10-7/j
G5: 1 | H5: 0 | I5: 0 | J5: 0 | K5: 0 | L5: H2_TRAILER | M5: TUBE-TRAILER 18x1220LITER (200BAR) | N5: 1 | O5: 1095 | P5: =IF(EXACT(INDIVIDUEEL!$AA$2,"n.b."),"n.b.",IFERROR(VLOOKUP(P$2,INDIVIDUEEL!$AA$2:$AZ$202,26,0),0)) -> 0 | Q5: =IF(EXACT(INDIVIDUEEL!$AA$2,"n.b."),"n.b.",IFERROR(VLOOKUP(Q$2,INDIVIDUEEL!$AA$2:$AZ$202,26,0),0)) -> 13 | R5: =IF(EXACT(INDIVIDUEEL!$AA$2,"n.b."),"n.b.",IFERROR(VLOOKUP(R$2,INDIVIDUEEL!$AA$2:$AZ$202,26,0),0)) -> 30 | T5: SET 1 | U5: =IFERROR(VLOOKUP(U$2,'SET1'!$AB$2:$AC$202,2,0),"n.b.") -> 6 | V5: =IFERROR(VLOOKUP(V$2,'SET1'!$AB$2:$AC$202,2,0),"n.b.") -> 21 | W5: =IFERROR(VLOOKUP(W$2,'SET1'!$AB$2:$AC$202,2,0),"n.b.") -> 34
G6: 1 | H6: 0 | I6: 0 | J6: 0 | K6: 0 | L6: LOSSLANG | M6: LOSSLANG 10MM MET TERUGSLAGKLEP (200BAR) | N6: 1 | O6: 730 | P6: =IF(EXACT(INDIVIDUEEL!$AB$2,"n.b."),"n.b.",IFERROR(VLOOKUP(P$2,INDIVIDUEEL!$AB$2:$AZ$202,25,0),0)) -> 5 | Q6: =IF(EXACT(INDIVIDUEEL!$AB$2,"n.b."),"n.b.",IFERROR(VLOOKUP(Q$2,INDIVIDUEEL!$AB$2:$AZ$202,25,0),0)) -> 20 | R6: =IF(EXACT(INDIVIDUEEL!$AB$2,"n.b."),"n.b.",IFERROR(VLOOKUP(R$2,INDIVIDUEEL!$AB$2:$AZ$202,25,0),0)) -> 29 | T6: SET 2 | U6: =IFERROR(VLOOKUP(U$2,'SET2'!$AB$2:$AC$202,2,0),"n.b.") -> 12 | V6: =IFERROR(VLOOKUP(V$2,'SET2'!$AB$2:$AC$202,2,0),"n.b.") -> 17 | W6: =IFERROR(VLOOKUP(W$2,'SET2'!$AB$2:$AC$202,2,0),"n.b.") -> 19
G7: 0 | H7: 1 | I7: 0 | J7: 0 | K7: 0 | L7: LEIDINGEN | M7: INTER-UNIT LEIDING 12MM - SECTIE 5M (200BAR) | N7: 2 | O7: 730 | P7: =IF(EXACT(INDIVIDUEEL!$AC$2,"n.b."),"n.b.",IFERROR(VLOOKUP(P$2,INDIVIDUEEL!$AC$2:$AZ$202,24,0),0)) -> 0 | Q7: =IF(EXACT(INDIVIDUEEL!$AC$2,"n.b."),"n.b.",IFERROR(VLOOKUP(Q$2,INDIVIDUEEL!$AC$2:$AZ$202,24,0),0)) -> 3 | R7: =IF(EXACT(INDIVIDUEEL!$AC$2,"n.b."),"n.b.",IFERROR(VLOOKUP(R$2,INDIVIDUEEL!$AC$2:$AZ$202,24,0),0)) -> 5 | T7: SET 3 | U7: =IFERROR(VLOOKUP(U$2,'SET3'!$AB$2:$AC$202,2,0),"n.b.") -> 6 | V7: =IFERROR(VLOOKUP(V$2,'SET3'!$AB$2:$AC$202,2,0),"n.b.") -> 14 | W7: =IFERROR(VLOOKUP(W$2,'SET3'!$AB$2:$AC$202,2,0),"n.b.") -> 22
G8: 0 | H8: 1 | I8: 0 | J8: 0 | K8: 0 | L8: LD_OPSLAG | M8: GASFLES 50LITER (200BAR) | N8: 272 | O8: 8760 | P8: =IF(EXACT(INDIVIDUEEL!$AD$2,"n.b."),"n.b.",IFERROR(VLOOKUP(P$2,INDIVIDUEEL!$AD$2:$AZ$202,23,0),0)) -> 11 | Q8: =IF(EXACT(INDIVIDUEEL!$AD$2,"n.b."),"n.b.",IFERROR(VLOOKUP(Q$2,INDIVIDUEEL!$AD$2:$AZ$202,23,0),0)) -> 17 | R8: =IF(EXACT(INDIVIDUEEL!$AD$2,"n.b."),"n.b.",IFERROR(VLOOKUP(R$2,INDIVIDUEEL!$AD$2:$AZ$202,23,0),0)) -> 18 | T8: SET 4 | U8: =IFERROR(VLOOKUP(U$2,'SET4'!$AB$2:$AC$202,2,0),"n.b.") -> 6 | V8: =IFERROR(VLOOKUP(V$2,'SET4'!$AB$2:$AC$202,2,0),"n.b.") -> 14 | W8: =IFERROR(VLOOKUP(W$2,'SET4'!$AB$2:$AC$202,2,0),"n.b.") -> 24
G9: 0 | H9: 0 | I9: 1 | J9: 0 | K9: 0 | L9: COMPRESSIE | M9: 10FT COMPRESSOR ZONDER DRUKONTLASTING | N9: 1 | O9: 3650 | P9: =IF(EXACT(INDIVIDUEEL!$AE$2,"n.b."),"n.b.",IFERROR(VLOOKUP(P$2,INDIVIDUEEL!$AE$2:$AZ$202,22,0),0)) -> 0 | Q9: =IF(EXACT(INDIVIDUEEL!$AE$2,"n.b."),"n.b.",IFERROR(VLOOKUP(Q$2,INDIVIDUEEL!$AE$2:$AZ$202,22,0),0)) -> 9 | R9: =IF(EXACT(INDIVIDUEEL!$AE$2,"n.b."),"n.b.",IFERROR(VLOOKUP(R$2,INDIVIDUEEL!$AE$2:$AZ$202,22,0),0)) -> 21 | T9: SET 5 | U9: =IFERROR(VLOOKUP(U$2,'SET5'!$AB$2:$AC$202,2,0),"n.b.") -> 4 | V9: =IFERROR(VLOOKUP(V$2,'SET5'!$AB$2:$AC$202,2,0),"n.b.") -> 13 | W9: =IFERROR(VLOOKUP(W$2,'SET5'!$AB$2:$AC$202,2,0),"n.b.") -> 22
G10: 0 | H10: 0 | I10: 1 | J10: 0 | K10: 0 | L10: LEIDINGEN | M10: INTER-UNIT LEIDING 6MM - SECTIE 5M (500BAR) | N10: 2 | O10: 3650 | P10: =IF(EXACT(INDIVIDUEEL!$AF$2,"n.b."),"n.b.",IFERROR(VLOOKUP(P$2,INDIVIDUEEL!$AF$2:$AZ$202,21,0),0)) -> 2 | Q10: =IF(EXACT(INDIVIDUEEL!$AF$2,"n.b."),"n.b.",IFERROR(VLOOKUP(Q$2,INDIVIDUEEL!$AF$2:$AZ$202,21,0),0)) -> 4 | R10: =IF(EXACT(INDIVIDUEEL!$AF$2,"n.b."),"n.b.",IFERROR(VLOOKUP(R$2,INDIVIDUEEL!$AF$2:$AZ$202,21,0),0)) -> 10 | T10: TOTAAL | U10: =IFERROR(VLOOKUP(U$2,INDIVIDUEEL!$BC$2:$BD$202,2,0),"n.b.") -> 15 | V10: =IFERROR(VLOOKUP(V$2,INDIVIDUEEL!$BC$2:$BD$202,2,0),"n.b.") -> 23 | W10: =IFERROR(VLOOKUP(W$2,INDIVIDUEEL!$BC$2:$BD$202,2,0),"n.b.") -> 34
G11: 0 | H11: 0 | I11: 1 | J11: 0 | K11: 0 | L11: MD_OPSLAG | M11: GASFLES 50LITER (500BAR) | N11: 16 | O11: 8760 | P11: =IF(EXACT(INDIVIDUEEL!$AG$2,"n.b."),"n.b.",IFERROR(VLOOKUP(P$2,INDIVIDUEEL!$AG$2:$AZ$202,20,0),0)) -> 6 | Q11: =IF(EXACT(INDIVIDUEEL!$AG$2,"n.b."),"n.b.",IFERROR(VLOOKUP(Q$2,INDIVIDUEEL!$AG$2:$AZ$202,20,0),0)) -> 11 | R11: =IF(EXACT(INDIVIDUEEL!$AG$2,"n.b."),"n.b.",IFERROR(VLOOKUP(R$2,INDIVIDUEEL!$AG$2:$AZ$202,20,0),0)) -> 22
G12: 0 | H12: 0 | I12: 0 | J12: 1 | K12: 0 | L12: COMPRESSIE | M12: 10FT COMPRESSOR ZONDER DRUKONTLASTING | N12: 1 | O12: 730 | P12: =IF(EXACT(INDIVIDUEEL!$AH$2,"n.b."),"n.b.",IFERROR(VLOOKUP(P$2,INDIVIDUEEL!$AH$2:$AZ$202,19,0),0)) -> 0 | Q12: =IF(EXACT(INDIVIDUEEL!$AH$2,"n.b."),"n.b.",IFERROR(VLOOKUP(Q$2,INDIVIDUEEL!$AH$2:$AZ$202,19,0),0)) -> 6 | R12: =IF(EXACT(INDIVIDUEEL!$AH$2,"n.b."),"n.b.",IFERROR(VLOOKUP(R$2,INDIVIDUEEL!$AH$2:$AZ$202,19,0),0)) -> 12
G13: 0 | H13: 0 | I13: 0 | J13: 1 | K13: 0 | L13: LEIDINGEN | M13: INTER-UNIT LEIDING 6MM - SECTIE 5M (1.000BAR) | N13: 1 | O13: 730 | P13: =IF(EXACT(INDIVIDUEEL!$AI$2,"n.b."),"n.b.",IFERROR(VLOOKUP(P$2,INDIVIDUEEL!$AI$2:$AZ$202,18,0),0)) -> 0 | Q13: =IF(EXACT(INDIVIDUEEL!$AI$2,"n.b."),"n.b.",IFERROR(VLOOKUP(Q$2,INDIVIDUEEL!$AI$2:$AZ$202,18,0),0)) -> 3 | R13: =IF(EXACT(INDIVIDUEEL!$AI$2,"n.b."),"n.b.",IFERROR(VLOOKUP(R$2,INDIVIDUEEL!$AI$2:$AZ$202,18,0),0)) -> 5
G14: 0 | H14: 0 | I14: 0 | J14: 1 | K14: 0 | L14: HD_OPSLAG | M14: GASFLES 50LITER (1.000BAR) | N14: 16 | O14: 8760 | P14: =IF(EXACT(INDIVIDUEEL!$AJ$2,"n.b."),"n.b.",IFERROR(VLOOKUP(P$2,INDIVIDUEEL!$AJ$2:$AZ$202,17,0),0)) -> 6 | Q14: =IF(EXACT(INDIVIDUEEL!$AJ$2,"n.b."),"n.b.",IFERROR(VLOOKUP(Q$2,INDIVIDUEEL!$AJ$2:$AZ$202,17,0),0)) -> 13 | R14: =IF(EXACT(INDIVIDUEEL!$AJ$2,"n.b."),"n.b.",IFERROR(VLOOKUP(R$2,INDIVIDUEEL!$AJ$2:$AZ$202,17,0),0)) -> 24
G15: 0 | H15: 0 | I15: 0 | J15: 0 | K15: 1 | L15: LEIDINGEN | M15: INTER-UNIT LEIDING 6MM - SECTIE 5M (1.000BAR) | N15: 1 | O15: 1095 | P15: =IF(EXACT(INDIVIDUEEL!$AK$2,"n.b."),"n.b.",IFERROR(VLOOKUP(P$2,INDIVIDUEEL!$AK$2:$AZ$202,16,0),0)) -> 0 | Q15: =IF(EXACT(INDIVIDUEEL!$AK$2,"n.b."),"n.b.",IFERROR(VLOOKUP(Q$2,INDIVIDUEEL!$AK$2:$AZ$202,16,0),0)) -> 3 | R15: =IF(EXACT(INDIVIDUEEL!$AK$2,"n.b."),"n.b.",IFERROR(VLOOKUP(R$2,INDIVIDUEEL!$AK$2:$AZ$202,16,0),0)) -> 6
G16: 0 | H16: 0 | I16: 0 | J16: 0 | K16: 1 | L16: AFLEVERING | M16: VERDEELSLANG 6MM (700BAR) | N16: 1 | O16: 1095 | P16: =IF(EXACT(INDIVIDUEEL!$AL$2,"n.b."),"n.b.",IFERROR(VLOOKUP(P$2,INDIVIDUEEL!$AL$2:$AZ$202,15,0),0)) -> 3 | Q16: =IF(EXACT(INDIVIDUEEL!$AL$2,"n.b."),"n.b.",IFERROR(VLOOKUP(Q$2,INDIVIDUEEL!$AL$2:$AZ$202,15,0),0)) -> 13 | R16: =IF(EXACT(INDIVIDUEEL!$AL$2,"n.b."),"n.b.",IFERROR(VLOOKUP(R$2,INDIVIDUEEL!$AL$2:$AZ$202,15,0),0)) -> 21
G17: 0 | H17: 0 | I17: 0 | J17: 0 | K17: 0 | L17: - | M17: - | N17: 1 | O17: 8760 | P17: =IF(EXACT(INDIVIDUEEL!$AM$2,"n.b."),"n.b.",IFERROR(VLOOKUP(P$2,INDIVIDUEEL!$AM$2:$AZ$202,14,0),0)) -> n.b. | Q17: =IF(EXACT(INDIVIDUEEL!$AM$2,"n.b."),"n.b.",IFERROR(VLOOKUP(Q$2,INDIVIDUEEL!$AM$2:$AZ$202,14,0),0)) -> n.b. | R17: =IF(EXACT(INDIVIDUEEL!$AM$2,"n.b."),"n.b.",IFERROR(VLOOKUP(R$2,INDIVIDUEEL!$AM$2:$AZ$202,14,0),0)) -> n.b.
G18: 0 | H18: 0 | I18: 0 | J18: 0 | K18: 0 | L18: - | M18: - | N18: 1 | O18: 8760 | P18: =IF(EXACT(INDIVIDUEEL!$AN$2,"n.b."),"n.b.",IFERROR(VLOOKUP(P$2,INDIVIDUEEL!$AN$2:$AZ$202,13,0),0)) -> n.b. | Q18: =IF(EXACT(INDIVIDUEEL!$AN$2,"n.b."),"n.b.",IFERROR(VLOOKUP(Q$2,INDIVIDUEEL!$AN$2:$AZ$202,13,0),0)) -> n.b. | R18: =IF(EXACT(INDIVIDUEEL!$AN$2,"n.b."),"n.b.",IFERROR(VLOOKUP(R$2,INDIVIDUEEL!$AN$2:$AZ$202,13,0),0)) -> n.b.
G19: 0 | H19: 0 | I19: 0 | J19: 0 | K19: 0 | L19: - | M19: - | N19: 1 | O19: 8760 | P19: =IF(EXACT(INDIVIDUEEL!$AO$2,"n.b."),"n.b.",IFERROR(VLOOKUP(P$2,INDIVIDUEEL!$AO$2:$AZ$202,12,0),0)) -> n.b. | Q19: =IF(EXACT(INDIVIDUEEL!$AO$2,"n.b."),"n.b.",IFERROR(VLOOKUP(Q$2,INDIVIDUEEL!$AO$2:$AZ$202,12,0),0)) -> n.b. | R19: =IF(EXACT(INDIVIDUEEL!$AO$2,"n.b."),"n.b.",IFERROR(VLOOKUP(R$2,INDIVIDUEEL!$AO$2:$AZ$202,12,0),0)) -> n.b.
G20: 0 | H20: 0 | I20: 0 | J20: 0 | K20: 0 | L20: - | M20: - | N20: 1 | O20: 8760 | P20: =IF(EXACT(INDIVIDUEEL!$AP$2,"n.b."),"n.b.",IFERROR(VLOOKUP(P$2,INDIVIDUEEL!$AP$2:$AZ$202,11,0),0)) -> n.b. | Q20: =IF(EXACT(INDIVIDUEEL!$AP$2,"n.b."),"n.b.",IFERROR(VLOOKUP(Q$2,INDIVIDUEEL!$AP$2:$AZ$202,11,0),0)) -> n.b. | R20: =IF(EXACT(INDIVIDUEEL!$AP$2,"n.b."),"n.b.",IFERROR(VLOOKUP(R$2,INDIVIDUEEL!$AP$2:$AZ$202,11,0),0)) -> n.b.
G21: 0 | H21: 0 | I21: 0 | J21: 0 | K21: 0 | L21: - | M21: - | N21: 1 | O21: 8760 | P21: =IF(EXACT(INDIVIDUEEL!$AQ$2,"n.b."),"n.b.",IFERROR(VLOOKUP(P$2,INDIVIDUEEL!$AQ$2:$AZ$202,10,0),0)) -> n.b. | Q21: =IF(EXACT(INDIVIDUEEL!$AQ$2,"n.b."),"n.b.",IFERROR(VLOOKUP(Q$2,INDIVIDUEEL!$AQ$2:$AZ$202,10,0),0)) -> n.b. | R21: =IF(EXACT(INDIVIDUEEL!$AQ$2,"n.b."),"n.b.",IFERROR(VLOOKUP(R$2,INDIVIDUEEL!$AQ$2:$AZ$202,10,0),0)) -> n.b.
G22: 0 | H22: 0 | I22: 0 | J22: 0 | K22: 0 | L22: - | M22: - | N22: 1 | O22: 8760 | P22: =IF(EXACT(INDIVIDUEEL!$AR$2,"n.b."),"n.b.",IFERROR(VLOOKUP(P$2,INDIVIDUEEL!$AR$2:$AZ$202,9,0),0)) -> n.b. | Q22: =IF(EXACT(INDIVIDUEEL!$AR$2,"n.b."),"n.b.",IFERROR(VLOOKUP(Q$2,INDIVIDUEEL!$AR$2:$AZ$202,9,0),0)) -> n.b. | R22: =IF(EXACT(INDIVIDUEEL!$AR$2,"n.b."),"n.b.",IFERROR(VLOOKUP(R$2,INDIVIDUEEL!$AR$2:$AZ$202,9,0),0)) -> n.b.
G23: 0 | H23: 0 | I23: 0 | J23: 0 | K23: 0 | L23: - | M23: - | N23: 1 | O23: 8760 | P23: =IF(EXACT(INDIVIDUEEL!$AS$2,"n.b."),"n.b.",IFERROR(VLOOKUP(P$2,INDIVIDUEEL!$AS$2:$AZ$202,8,0),0)) -> n.b. | Q23: =IF(EXACT(INDIVIDUEEL!$AS$2,"n.b."),"n.b.",IFERROR(VLOOKUP(Q$2,INDIVIDUEEL!$AS$2:$AZ$202,8,0),0)) -> n.b. | R23: =IF(EXACT(INDIVIDUEEL!$AS$2,"n.b."),"n.b.",IFERROR(VLOOKUP(R$2,INDIVIDUEEL!$AS$2:$AZ$202,8,0),0)) -> n.b.
G24: 0 | H24: 0 | I24: 0 | J24: 0 | K24: 0 | L24: - | M24: - | N24: 1 | O24: 8760 | P24: =IF(EXACT(INDIVIDUEEL!$AT$2,"n.b."),"n.b.",IFERROR(VLOOKUP(P$2,INDIVIDUEEL!$AT$2:$AZ$202,7,0),0)) -> n.b. | Q24: =IF(EXACT(INDIVIDUEEL!$AT$2,"n.b."),"n.b.",IFERROR(VLOOKUP(Q$2,INDIVIDUEEL!$AT$2:$AZ$202,7,0),0)) -> n.b. | R24: =IF(EXACT(INDIVIDUEEL!$AT$2,"n.b."),"n.b.",IFERROR(VLOOKUP(R$2,INDIVIDUEEL!$AT$2:$AZ$202,7,0),0)) -> n.b.
G25: 0 | H25: 0 | I25: 0 | J25: 0 | K25: 0 | L25: - | M25: - | N25: 1 | O25: 8760 | P25: =IF(EXACT(INDIVIDUEEL!$AU$2,"n.b."),"n.b.",IFERROR(VLOOKUP(P$2,INDIVIDUEEL!$AU$2:$AZ$202,6,0),0)) -> n.b. | Q25: =IF(EXACT(INDIVIDUEEL!$AU$2,"n.b."),"n.b.",IFERROR(VLOOKUP(Q$2,INDIVIDUEEL!$AU$2:$AZ$202,6,0),0)) -> n.b. | R25: =IF(EXACT(INDIVIDUEEL!$AU$2,"n.b."),"n.b.",IFERROR(VLOOKUP(R$2,INDIVIDUEEL!$AU$2:$AZ$202,6,0),0)) -> n.b.
G26: 0 | H26: 0 | I26: 0 | J26: 0 | K26: 0 | L26: - | M26: - | N26: 1 | O26: 8760 | P26: =IF(EXACT(INDIVIDUEEL!$AV$2,"n.b."),"n.b.",IFERROR(VLOOKUP(P$2,INDIVIDUEEL!$AV$2:$AZ$202,5,0),0)) -> n.b. | Q26: =IF(EXACT(INDIVIDUEEL!$AV$2,"n.b."),"n.b.",IFERROR(VLOOKUP(Q$2,INDIVIDUEEL!$AV$2:$AZ$202,5,0),0)) -> n.b. | R26: =IF(EXACT(INDIVIDUEEL!$AV$2,"n.b."),"n.b.",IFERROR(VLOOKUP(R$2,INDIVIDUEEL!$AV$2:$AZ$202,5,0),0)) -> n.b.
G27: 0 | H27: 0 | I27: 0 | J27: 0 | K27: 0 | L27: - | M27: - | N27: 1 | O27: 8760 | P27: =IF(EXACT(INDIVIDUEEL!$AW$2,"n.b."),"n.b.",IFERROR(VLOOKUP(P$2,INDIVIDUEEL!$AW$2:$AZ$202,4,0),0)) -> n.b. | Q27: =IF(EXACT(INDIVIDUEEL!$AW$2,"n.b."),"n.b.",IFERROR(VLOOKUP(Q$2,INDIVIDUEEL!$AW$2:$AZ$202,4,0),0)) -> n.b. | R27: =IF(EXACT(INDIVIDUEEL!$AW$2,"n.b."),"n.b.",IFERROR(VLOOKUP(R$2,INDIVIDUEEL!$AW$2:$AZ$202,4,0),0)) -> n.b.
G28: 0 | H28: 0 | I28: 0 | J28: 0 | K28: 0 | L28: - | M28: - | N28: 1 | O28: 8760 | P28: =IF(EXACT(INDIVIDUEEL!$AX$2,"n.b."),"n.b.",IFERROR(VLOOKUP(P$2,INDIVIDUEEL!$AX$2:$AZ$202,3,0),0)) -> n.b. | Q28: =IF(EXACT(INDIVIDUEEL!$AX$2,"n.b."),"n.b.",IFERROR(VLOOKUP(Q$2,INDIVIDUEEL!$AX$2:$AZ$202,3,0),0)) -> n.b. | R28: =IF(EXACT(INDIVIDUEEL!$AX$2,"n.b."),"n.b.",IFERROR(VLOOKUP(R$2,INDIVIDUEEL!$AX$2:$AZ$202,3,0),0)) -> n.b.
G29: 0 | H29: 0 | I29: 0 | J29: 0 | K29: 0 | L29: - | M29: - | N29: 1 | O29: 8760 | P29: =IF(EXACT(INDIVIDUEEL!$AY$2,"n.b."),"n.b.",IFERROR(VLOOKUP(P$2,INDIVIDUEEL!$AY$2:$AZ$202,2,0),0)) -> n.b. | Q29: =IF(EXACT(INDIVIDUEEL!$AY$2,"n.b."),"n.b.",IFERROR(VLOOKUP(Q$2,INDIVIDUEEL!$AY$2:$AZ$202,2,0),0)) -> n.b. | R29: =IF(EXACT(INDIVIDUEEL!$AY$2,"n.b."),"n.b.",IFERROR(VLOOKUP(R$2,INDIVIDUEEL!$AY$2:$AZ$202,2,0),0)) -> n.b.

Sheet GROEPSRISICO
C2: ONDERDELEN VAN HET WATERSTOFTANKSTATION | F2: VOORWAARDEN GROEPSRISICO
B3: TYPE | C3: INSTALLATIE-ONDERDEEL | D3: AANTAL | E3: TIJDSFRACTIE | F3: PERIMETER | G3: MAX. PERSONEN | H3: MAX. POPULATIEDICHTHEID
B4: =RISICOAFSTANDEN!L5 -> H2_TRAILER | C4: =RISICOAFSTANDEN!M5 -> TUBE-TRAILER 18x1220LITER (200BAR) | D4: =RISICOAFSTANDEN!N5 -> 1 | E4: =RISICOAFSTANDEN!O5 -> 1095 | F4: =IFERROR(VLOOKUP($C4,'DATA GR'!$B$2:$M$88,10,FALSE),"") -> 46 | G4: =IFERROR(VLOOKUP($C4,'DATA GR'!$B$2:$M$88,11,FALSE),"") -> 672.8500526 | H4: =IFERROR(VLOOKUP($C4,'DATA GR'!$B$2:$M$88,12,FALSE),"") -> 1012.168354
B5: =RISICOAFSTANDEN!L6 -> LOSSLANG | C5: =RISICOAFSTANDEN!M6 -> LOSSLANG 10MM MET TERUGSLAGKLEP (200BAR) | D5: =RISICOAFSTANDEN!N6 -> 1 | E5: =RISICOAFSTANDEN!O6 -> 730 | F5: =IFERROR(VLOOKUP(C5,'DATA GR'!B3:M89,10,FALSE),"") ->  | G5: =IFERROR(VLOOKUP($C5,'DATA GR'!B3:M89,11,FALSE),"") ->  | H5: =IFERROR(VLOOKUP($C5,'DATA GR'!$B$2:$M$88,12,FALSE),"") -> 
B6: =RISICOAFSTANDEN!L7 -> LEIDINGEN | C6: =RISICOAFSTANDEN!M7 -> INTER-UNIT LEIDING 12MM - SECTIE 5M (200BAR) | D6: =RISICOAFSTANDEN!N7 -> 2 | E6: =RISICOAFSTANDEN!O7 -> 730 | F6: =IFERROR(VLOOKUP(C6,'DATA GR'!B10:M90,10,FALSE),"") ->  | G6: =IFERROR(VLOOKUP($C6,'DATA GR'!B10:M90,11,FALSE),"") ->  | H6: =IFERROR(VLOOKUP($C6,'DATA GR'!$B$2:$M$88,12,FALSE),"") -> 
B7: =RISICOAFSTANDEN!L8 -> LD_OPSLAG | C7: =RISICOAFSTANDEN!M8 -> GASFLES 50LITER (200BAR) | D7: =RISICOAFSTANDEN!N8 -> 272 | E7: =RISICOAFSTANDEN!O8 -> 8760 | F7: =IFERROR(VLOOKUP(C7,'DATA GR'!B11:M91,10,FALSE),"") -> 16 | G7: =IFERROR(VLOOKUP($C7,'DATA GR'!B11:M91,11,FALSE),"") -> 107.952714 | H7: =IFERROR(VLOOKUP($C7,'DATA GR'!$B$2:$M$88,12,FALSE),"") -> 1342.281879
B8: =RISICOAFSTANDEN!L9 -> COMPRESSIE | C8: =RISICOAFSTANDEN!M9 -> 10FT COMPRESSOR ZONDER DRUKONTLASTING | D8: =RISICOAFSTANDEN!N9 -> 1 | E8: =RISICOAFSTANDEN!O9 -> 3650 | F8: =IFERROR(VLOOKUP(C8,'DATA GR'!B16:M92,10,FALSE),"") ->  | G8: =IFERROR(VLOOKUP($C8,'DATA GR'!B16:M92,11,FALSE),"") ->  | H8: =IFERROR(VLOOKUP($C8,'DATA GR'!$B$2:$M$88,12,FALSE),"") -> 
B9: =RISICOAFSTANDEN!L10 -> LEIDINGEN | C9: =RISICOAFSTANDEN!M10 -> INTER-UNIT LEIDING 6MM - SECTIE 5M (500BAR) | D9: =RISICOAFSTANDEN!N10 -> 2 | E9: =RISICOAFSTANDEN!O10 -> 3650 | F9: =IFERROR(VLOOKUP(C9,'DATA GR'!B17:M93,10,FALSE),"") ->  | G9: =IFERROR(VLOOKUP($C9,'DATA GR'!B17:M93,11,FALSE),"") ->  | H9: =IFERROR(VLOOKUP($C9,'DATA GR'!$B$2:$M$88,12,FALSE),"") -> 
B10: =RISICOAFSTANDEN!L11 -> MD_OPSLAG | C10: =RISICOAFSTANDEN!M11 -> GASFLES 50LITER (500BAR) | D10: =RISICOAFSTANDEN!N11 -> 16 | E10: =RISICOAFSTANDEN!O11 -> 8760 | F10: =IFERROR(VLOOKUP(C10,'DATA GR'!B18:M94,10,FALSE),"") -> 22 | G10: =IFERROR(VLOOKUP($C10,'DATA GR'!B18:M94,11,FALSE),"") -> 193.5346067 | H10: =IFERROR(VLOOKUP($C10,'DATA GR'!$B$2:$M$88,12,FALSE),"") -> 1272.809476
B11: =RISICOAFSTANDEN!L12 -> COMPRESSIE | C11: =RISICOAFSTANDEN!M12 -> 10FT COMPRESSOR ZONDER DRUKONTLASTING | D11: =RISICOAFSTANDEN!N12 -> 1 | E11: =RISICOAFSTANDEN!O12 -> 730 | F11: =IFERROR(VLOOKUP(C11,'DATA GR'!B19:M95,10,FALSE),"") ->  | G11: =IFERROR(VLOOKUP($C11,'DATA GR'!B19:M95,11,FALSE),"") ->  | H11: =IFERROR(VLOOKUP($C11,'DATA GR'!$B$2:$M$88,12,FALSE),"") -> 
B12: =RISICOAFSTANDEN!L13 -> LEIDINGEN | C12: =RISICOAFSTANDEN!M13 -> INTER-UNIT LEIDING 6MM - SECTIE 5M (1.000BAR) | D12: =RISICOAFSTANDEN!N13 -> 1 | E12: =RISICOAFSTANDEN!O13 -> 730 | F12: =IFERROR(VLOOKUP(C12,'DATA GR'!B20:M96,10,FALSE),"") ->  | G12: =IFERROR(VLOOKUP($C12,'DATA GR'!B20:M96,11,FALSE),"") ->  | H12: =IFERROR(VLOOKUP($C12,'DATA GR'!$B$2:$M$88,12,FALSE),"") -> 
B13: =RISICOAFSTANDEN!L14 -> HD_OPSLAG | C13: =RISICOAFSTANDEN!M14 -> GASFLES 50LITER (1.000BAR) | D13: =RISICOAFSTANDEN!N14 -> 16 | E13: =RISICOAFSTANDEN!O14 -> 8760 | F13: =IFERROR(VLOOKUP(C13,'DATA GR'!B21:M97,10,FALSE),"") -> 24 | G13: =IFERROR(VLOOKUP($C13,'DATA GR'!B21:M97,11,FALSE),"") -> 245.5153651 | H13: =IFERROR(VLOOKUP($C13,'DATA GR'!$B$2:$M$88,12,FALSE),"") -> 1356.770277
B14: =RISICOAFSTANDEN!L15 -> LEIDINGEN | C14: =RISICOAFSTANDEN!M15 -> INTER-UNIT LEIDING 6MM - SECTIE 5M (1.000BAR) | D14: =RISICOAFSTANDEN!N15 -> 1 | E14: =RISICOAFSTANDEN!O15 -> 1095 | F14: =IFERROR(VLOOKUP(C14,'DATA GR'!B22:M98,10,FALSE),"") ->  | G14: =IFERROR(VLOOKUP($C14,'DATA GR'!B22:M98,11,FALSE),"") ->  | H14: =IFERROR(VLOOKUP($C14,'DATA GR'!$B$2:$M$88,12,FALSE),"") -> 
B15: =RISICOAFSTANDEN!L16 -> AFLEVERING | C15: =RISICOAFSTANDEN!M16 -> VERDEELSLANG 6MM (700BAR) | D15: =RISICOAFSTANDEN!N16 -> 1 | E15: =RISICOAFSTANDEN!O16 -> 1095 | F15: =IFERROR(VLOOKUP(C15,'DATA GR'!B23:M99,10,FALSE),"") ->  | G15: =IFERROR(VLOOKUP($C15,'DATA GR'!B23:M99,11,FALSE),"") ->  | H15: =IFERROR(VLOOKUP($C15,'DATA GR'!$B$2:$M$88,12,FALSE),"") -> 
B16: =RISICOAFSTANDEN!L17 -> - | C16: =RISICOAFSTANDEN!M17 -> - | D16: =RISICOAFSTANDEN!N17 -> 1 | E16: =RISICOAFSTANDEN!O17 -> 8760 | F16: =IFERROR(VLOOKUP(C16,'DATA GR'!B24:M100,10,FALSE),"") ->  | G16: =IFERROR(VLOOKUP($C16,'DATA GR'!B24:M100,11,FALSE),"") ->  | H16: =IFERROR(VLOOKUP($C16,'DATA GR'!$B$2:$M$88,12,FALSE),"") -> 
B17: =RISICOAFSTANDEN!L18 -> - | C17: =RISICOAFSTANDEN!M18 -> - | D17: =RISICOAFSTANDEN!N18 -> 1 | E17: =RISICOAFSTANDEN!O18 -> 8760 | F17: =IFERROR(VLOOKUP(C17,'DATA GR'!B25:M101,10,FALSE),"") ->  | G17: =IFERROR(VLOOKUP($C17,'DATA GR'!B25:M101,11,FALSE),"") ->  | H17: =IFERROR(VLOOKUP($C17,'DATA GR'!$B$2:$M$88,12,FALSE),"") -> 
B18: =RISICOAFSTANDEN!L19 -> - | C18: =RISICOAFSTANDEN!M19 -> - | D18: =RISICOAFSTANDEN!N19 -> 1 | E18: =RISICOAFSTANDEN!O19 -> 8760 | F18: =IFERROR(VLOOKUP(C18,'DATA GR'!B26:M102,10,FALSE),"") ->  | G18: =IFERROR(VLOOKUP($C18,'DATA GR'!B26:M102,11,FALSE),"") ->  | H18: =IFERROR(VLOOKUP($C18,'DATA GR'!$B$2:$M$88,12,FALSE),"") -> 
B19: =RISICOAFSTANDEN!L20 -> - | C19: =RISICOAFSTANDEN!M20 -> - | D19: =RISICOAFSTANDEN!N20 -> 1 | E19: =RISICOAFSTANDEN!O20 -> 8760 | F19: =IFERROR(VLOOKUP(C19,'DATA GR'!B27:M103,10,FALSE),"") ->  | G19: =IFERROR(VLOOKUP($C19,'DATA GR'!B27:M103,11,FALSE),"") ->  | H19: =IFERROR(VLOOKUP($C19,'DATA GR'!$B$2:$M$88,12,FALSE),"") -> 
B20: =RISICOAFSTANDEN!L21 -> - | C20: =RISICOAFSTANDEN!M21 -> - | D20: =RISICOAFSTANDEN!N21 -> 1 | E20: =RISICOAFSTANDEN!O21 -> 8760 | F20: =IFERROR(VLOOKUP(C20,'DATA GR'!B28:M104,10,FALSE),"") ->  | G20: =IFERROR(VLOOKUP($C20,'DATA GR'!B28:M104,11,FALSE),"") ->  | H20: =IFERROR(VLOOKUP($C20,'DATA GR'!$B$2:$M$88,12,FALSE),"") -> 
B21: =RISICOAFSTANDEN!L22 -> - | C21: =RISICOAFSTANDEN!M22 -> - | D21: =RISICOAFSTANDEN!N22 -> 1 | E21: =RISICOAFSTANDEN!O22 -> 8760 | F21: =IFERROR(VLOOKUP(C21,'DATA GR'!B29:M105,10,FALSE),"") ->  | G21: =IFERROR(VLOOKUP($C21,'DATA GR'!B29:M105,11,FALSE),"") ->  | H21: =IFERROR(VLOOKUP($C21,'DATA GR'!$B$2:$M$88,12,FALSE),"") -> 
B22: =RISICOAFSTANDEN!L23 -> - | C22: =RISICOAFSTANDEN!M23 -> - | D22: =RISICOAFSTANDEN!N23 -> 1 | E22: =RISICOAFSTANDEN!O23 -> 8760 | F22: =IFERROR(VLOOKUP(C22,'DATA GR'!B30:M106,10,FALSE),"") ->  | G22: =IFERROR(VLOOKUP($C22,'DATA GR'!B30:M106,11,FALSE),"") ->  | H22: =IFERROR(VLOOKUP($C22,'DATA GR'!$B$2:$M$88,12,FALSE),"") -> 
B23: =RISICOAFSTANDEN!L24 -> - | C23: =RISICOAFSTANDEN!M24 -> - | D23: =RISICOAFSTANDEN!N24 -> 1 | E23: =RISICOAFSTANDEN!O24 -> 8760 | F23: =IFERROR(VLOOKUP(C23,'DATA GR'!B31:M107,10,FALSE),"") ->  | G23: =IFERROR(VLOOKUP($C23,'DATA GR'!B31:M107,11,FALSE),"") ->  | H23: =IFERROR(VLOOKUP($C23,'DATA GR'!$B$2:$M$88,12,FALSE),"") -> 
B24: =RISICOAFSTANDEN!L25 -> - | C24: =RISICOAFSTANDEN!M25 -> - | D24: =RISICOAFSTANDEN!N25 -> 1 | E24: =RISICOAFSTANDEN!O25 -> 8760 | F24: =IFERROR(VLOOKUP(C24,'DATA GR'!B32:M108,10,FALSE),"") ->  | G24: =IFERROR(VLOOKUP($C24,'DATA GR'!B32:M108,11,FALSE),"") ->  | H24: =IFERROR(VLOOKUP($C24,'DATA GR'!$B$2:$M$88,12,FALSE),"") -> 
B25: =RISICOAFSTANDEN!L26 -> - | C25: =RISICOAFSTANDEN!M26 -> - | D25: =RISICOAFSTANDEN!N26 -> 1 | E25: =RISICOAFSTANDEN!O26 -> 8760 | F25: =IFERROR(VLOOKUP(C25,'DATA GR'!B33:M109,10,FALSE),"") ->  | G25: =IFERROR(VLOOKUP($C25,'DATA GR'!B33:M109,11,FALSE),"") ->  | H25: =IFERROR(VLOOKUP($C25,'DATA GR'!$B$2:$M$88,12,FALSE),"") -> 
B26: =RISICOAFSTANDEN!L27 -> - | C26: =RISICOAFSTANDEN!M27 -> - | D26: =RISICOAFSTANDEN!N27 -> 1 | E26: =RISICOAFSTANDEN!O27 -> 8760 | F26: =IFERROR(VLOOKUP(C26,'DATA GR'!B34:M110,10,FALSE),"") ->  | G26: =IFERROR(VLOOKUP($C26,'DATA GR'!B34:M110,11,FALSE),"") ->  | H26: =IFERROR(VLOOKUP($C26,'DATA GR'!$B$2:$M$88,12,FALSE),"") -> 
B27: =RISICOAFSTANDEN!L28 -> - | C27: =RISICOAFSTANDEN!M28 -> - | D27: =RISICOAFSTANDEN!N28 -> 1 | E27: =RISICOAFSTANDEN!O28 -> 8760 | F27: =IFERROR(VLOOKUP(C27,'DATA GR'!B35:M111,10,FALSE),"") ->  | G27: =IFERROR(VLOOKUP($C27,'DATA GR'!B35:M111,11,FALSE),"") ->  | H27: =IFERROR(VLOOKUP($C27,'DATA GR'!$B$2:$M$88,12,FALSE),"") -> 
B28: =RISICOAFSTANDEN!L29 -> - | C28: =RISICOAFSTANDEN!M29 -> - | D28: =RISICOAFSTANDEN!N29 -> 1 | E28: =RISICOAFSTANDEN!O29 -> 8760 | F28: =IFERROR(VLOOKUP(C28,'DATA GR'!B36:M112,10,FALSE),"") ->  | G28: =IFERROR(VLOOKUP($C28,'DATA GR'!B36:M112,11,FALSE),"") ->  | H28: =IFERROR(VLOOKUP($C28,'DATA GR'!$B$2:$M$88,12,FALSE),"") -> 

Sheet INTERNE VEILIGHEIDSAFSTANDEN
A1: 1. INSTALLATIES IN OPENLUCHT
B3: AFSTANDEN TOT LOCATIES WAAR FREQUENT PERSONEN AANWEZIG ZIJN | P3: AFSTANDEN TOT NABURIGE INSTALLATIES MET GEVAARLIJKE STOFFEN
A37: 2. INSTALLATIES OPGESTELD IN EEN BESLOTEN RUIMTE

Sheet INDIVIDUEEL (hidden)
B1: INSTAL 1 | C1: INSTAL 2 | D1: INSTAL 3 | E1: INSTAL 4 | F1: INSTAL 5 | G1: INSTAL 6 | H1: INSTAL 7 | I1: INSTAL 8 | J1: INSTAL 9 | K1: INSTAL 10 | L1: INSTAL 11 | M1: INSTAL 12 | N1: INSTAL 13 | O1: INSTAL 14 | P1: INSTAL 15 | Q1: INSTAL 16 | R1: INSTAL 17 | S1: INSTAL 18 | T1: INSTAL 19 | U1: INSTAL 20 | V1: INSTAL 21 | W1: INSTAL 22 | X1: INSTAL 23 | Y1: INSTAL 24 | Z1: INSTAL 25 | AA1: INSTAL 1 | AB1: INSTAL 2 | AC1: INSTAL 3 | AD1: INSTAL 4 | AE1: INSTAL 5 | AF1: INSTAL 6 | AG1: INSTAL 7 | AH1: INSTAL 8 | AI1: INSTAL 9 | AJ1: INSTAL 10 | AK1: INSTAL 11 | AL1: INSTAL 12 | AM1: INSTAL 13 | AN1: INSTAL 14 | AO1: INSTAL 15 | AP1: INSTAL 16 | AQ1: INSTAL 17 | AR1: INSTAL 18 | AS1: INSTAL 19 | AT1: INSTAL 20 | AU1: INSTAL 21 | AV1: INSTAL 22 | AW1: INSTAL 23 | AX1: INSTAL 24 | AY1: INSTAL 25 | AZ1: X | BB1: TOT | BC1: LOG(TOT) | BD1: X
A2: 3 | B2: =IFERROR(IF(ISNUMBER(SEARCH("KOPPEL",RISICOAFSTANDEN!$M$5,1)),RISICOAFSTANDEN!$N$5*HLOOKUP(SUBSTITUTE(RISICOAFSTANDEN!$M$5,"SLANG","LEIDING"),'DATA PMR - ANTWERPEN'!$B$1:$GI$203,$A2,FALSE)+RISICOAFSTANDEN!$N$5*RISICOAFSTANDEN!$O$5/8760*HLOOKUP(SUBSTITUTE(RISICOAFSTANDEN!$M$5,"KOPPEL","LOS"),'DATA PMR - ANTWERPEN'!$B$1:$GI$203,$A2,FALSE),RISICOAFSTANDEN!$N$5*RISICOAFSTANDEN!$O$5/8760*HLOOKUP(RISICOAFSTANDEN!$M$5,'DATA PMR - ANTWERPEN'!$B$1:$GI$203,$A2,FALSE)),"") -> 5.706273868e-06 | C2: =IFERROR(IF(ISNUMBER(SEARCH("KOPPEL",RISICOAFSTANDEN!$M$6,1)),RISICOAFSTANDEN!$N$6*HLOOKUP(SUBSTITUTE(RISICOAFSTANDEN!$M$6,"SLANG","LEIDING"),'DATA PMR - ANTWERPEN'!$B$1:$GI$203,$A2,FALSE)+RISICOAFSTANDEN!$N$6*RISICOAFSTANDEN!$O$6/8760*HLOOKUP(SUBSTITUTE(RISICOAFSTANDEN!$M$6,"KOPPEL","LOS"),'DATA PMR - ANTWERPEN'!$B$1:$GI$203,$A2,FALSE),RISICOAFSTANDEN!$N$6*RISICOAFSTANDEN!$O$6/8760*HLOOKUP(RISICOAFSTANDEN!$M$6,'DATA PMR - ANTWERPEN'!$B$1:$GI$203,$A2,FALSE)),"") -> 0.0007887191986 | D2: =IFERROR(IF(ISNUMBER(SEARCH("KOPPEL",RISICOAFSTANDEN!$M$7,1)),RISICOAFSTANDEN!$N$7*HLOOKUP(SUBSTITUTE(RISICOAFSTANDEN!$M$7,"SLANG","LEIDING"),'DATA PMR - ANTWERPEN'!$B$1:$GI$203,$A2,FALSE)+RISICOAFSTANDEN!$N$7*RISICOAFSTANDEN!$O$7/8760*HLOOKUP(SUBSTITUTE(RISICOAFSTANDEN!$M$7,"KOPPEL","LOS"),'DATA PMR - ANTWERPEN'!$B$1:$GI$203,$A2,FALSE),RISICOAFSTANDEN!$N$7*RISICOAFSTANDEN!$O$7/8760*HLOOKUP(RISICOAFSTANDEN!$M$7,'DATA PMR - ANTWERPEN'!$B$1:$GI$203,$A2,FALSE)),"") -> 6.251173058e-06 | E2: =IFERROR(IF(ISNUMBER(SEARCH("KOPPEL",RISICOAFSTANDEN!$M$8,1)),RISICOAFSTANDEN!$N$8*HLOOKUP(SUBSTITUTE(RISICOAFSTANDEN!$M$8,"SLANG","LEIDING"),'DATA PMR - ANTWERPEN'!$B$1:$GI$203,$A2,FALSE)+RISICOAFSTANDEN!$N$8*RISICOAFSTANDEN!$O$8/8760*HLOOKUP(SUBSTITUTE(RISICOAFSTANDEN!$M$8,"KOPPEL","LOS"),'DATA PMR - ANTWERPEN'!$B$1:$GI$203,$A2,FALSE),RISICOAFSTANDEN!$N$8*RISICOAFSTANDEN!$O$8/8760*HLOOKUP(RISICOAFSTANDEN!$M$8,'DATA PMR - ANTWERPEN'!$B$1:$GI$203,$A2,FALSE)),"") -> 0.0003627572832 | F2: =IFERROR(IF(ISNUMBER(SEARCH("KOPPEL",RISICOAFSTANDEN!$M$9,1)),RISICOAFSTANDEN!$N$9*HLOOKUP(SUBSTITUTE(RISICOAFSTANDEN!$M$9,"SLANG","LEIDING"),'DATA PMR - ANTWERPEN'!$B$1:$GI$203,$A2,FALSE)+RISICOAFSTANDEN!$N$9*RISICOAFSTANDEN!$O$9/8760*HLOOKUP(SUBSTITUTE(RISICOAFSTANDEN!$M$9,"KOPPEL","LOS"),'DATA PMR - ANTWERPEN'!$B$1:$GI$203,$A2,FALSE),RISICOAFSTANDEN!$N$9*RISICOAFSTANDEN!$O$9/8760*HLOOKUP(RISICOAFSTANDEN!$M$9,'DATA PMR - ANTWERPEN'!$B$1:$GI$203,$A2,FALSE)),"") -> 9.108e-06 | G2: =IFERROR(IF(ISNUMBER(SEARCH("KOPPEL",RISICOAFSTANDEN!$M$10,1)),RISICOAFSTANDEN!$N$10*HLOOKUP(SUBSTITUTE(RISICOAFSTANDEN!$M$10,"SLANG","LEIDING"),'DATA PMR - ANTWERPEN'!$B$1:$GI$203,$A2,FALSE)+RISICOAFSTANDEN!$N$10*RISICOAFSTANDEN!$O$10/8760*HLOOKUP(SUBSTITUTE(RISICOAFSTANDEN!$M$10,"KOPPEL","LOS"),'DATA PMR - ANTWERPEN'!$B$1:$GI$203,$A2,FALSE),RISICOAFSTANDEN!$N$10*RISICOAFSTANDEN!$O$10/8760*HLOOKUP(RISICOAFSTANDEN!$M$10,'DATA PMR - ANTWERPEN'!$B$1:$GI$203,$A2,FALSE)),"") -> 6.295406335e-05 | H2: =IFERROR(IF(ISNUMBER(SEARCH("KOPPEL",RISICOAFSTANDEN!$M$11,1)),RISICOAFSTANDEN!$N$11*HLOOKUP(SUBSTITUTE(RISICOAFSTANDEN!$M$11,"SLANG","LEIDING"),'DATA PMR - ANTWERPEN'!$B$1:$GI$203,$A2,FALSE)+RISICOAFSTANDEN!$N$11*RISICOAFSTANDEN!$O$11/8760*HLOOKUP(SUBSTITUTE(RISICOAFSTANDEN!$M$11,"KOPPEL","LOS"),'DATA PMR - ANTWERPEN'!$B$1:$GI$203,$A2,FALSE),RISICOAFSTANDEN!$N$11*RISICOAFSTANDEN!$O$11/8760*HLOOKUP(RISICOAFSTANDEN!$M$11,'DATA PMR - ANTWERPEN'!$B$1:$GI$203,$A2,FALSE)),"") -> 2.144361849e-05 | I2: =IFERROR(IF(ISNUMBER(SEARCH("KOPPEL",RISICOAFSTANDEN!$M$12,1)),RISICOAFSTANDEN!$N$12*HLOOKUP(SUBSTITUTE(RISICOAFSTANDEN!$M$12,"SLANG","LEIDING"),'DATA PMR - ANTWERPEN'!$B$1:$GI$203,$A2,FALSE)+RISICOAFSTANDEN!$N$12*RISICOAFSTANDEN!$O$12/8760*HLOOKUP(SUBSTITUTE(RISICOAFSTANDEN!$M$12,"KOPPEL","LOS"),'DATA PMR - ANTWERPEN'!$B$1:$GI$203,$A2,FALSE),RISICOAFSTANDEN!$N$12*RISICOAFSTANDEN!$O$12/8760*HLOOKUP(RISICOAFSTANDEN!$M$12,'DATA PMR - ANTWERPEN'!$B$1:$GI$203,$A2,FALSE)),"") -> 1.8216e-06 | J2: =IFERROR(IF(ISNUMBER(SEARCH("KOPPEL",RISICOAFSTANDEN!$M$13,1)),RISICOAFSTANDEN!$N$13*HLOOKUP(SUBSTITUTE(RISICOAFSTANDEN!$M$13,"SLANG","LEIDING"),'DATA PMR - ANTWERPEN'!$B$1:$GI$203,$A2,FALSE)+RISICOAFSTANDEN!$N$13*RISICOAFSTANDEN!$O$13/8760*HLOOKUP(SUBSTITUTE(RISICOAFSTANDEN!$M$13,"KOPPEL","LOS"),'DATA PMR - ANTWERPEN'!$B$1:$GI$203,$A2,FALSE),RISICOAFSTANDEN!$N$13*RISICOAFSTANDEN!$O$13/8760*HLOOKUP(RISICOAFSTANDEN!$M$13,'DATA PMR - ANTWERPEN'!$B$1:$GI$203,$A2,FALSE)),"") -> 6.251194863e-06 | K2: =IFERROR(IF(ISNUMBER(SEARCH("KOPPEL",RISICOAFSTANDEN!$M$14,1)),RISICOAFSTANDEN!$N$14*HLOOKUP(SUBSTITUTE(RISICOAFSTANDEN!$M$14,"SLANG","LEIDING"),'DATA PMR - ANTWERPEN'!$B$1:$GI$203,$A2,FALSE)+RISICOAFSTANDEN!$N$14*RISICOAFSTANDEN!$O$14/8760*HLOOKUP(SUBSTITUTE(RISICOAFSTANDEN!$M$14,"KOPPEL","LOS"),'DATA PMR - ANTWERPEN'!$B$1:$GI$203,$A2,FALSE),RISICOAFSTANDEN!$N$14*RISICOAFSTANDEN!$O$14/8760*HLOOKUP(RISICOAFSTANDEN!$M$14,'DATA PMR - ANTWERPEN'!$B$1:$GI$203,$A2,FALSE)),"") -> 2.148351344e-05 | L2: =IFERROR(IF(ISNUMBER(SEARCH("KOPPEL",RISICOAFSTANDEN!$M$15,1)),RISICOAFSTANDEN!$N$15*HLOOKUP(SUBSTITUTE(RISICOAFSTANDEN!$M$15,"SLANG","LEIDING"),'DATA PMR - ANTWERPEN'!$B$1:$GI$203,$A2,FALSE)+RISICOAFSTANDEN!$N$15*RISICOAFSTANDEN!$O$15/8760*HLOOKUP(SUBSTITUTE(RISICOAFSTANDEN!$M$15,"KOPPEL","LOS"),'DATA PMR - ANTWERPEN'!$B$1:$GI$203,$A2,FALSE),RISICOAFSTANDEN!$N$15*RISICOAFSTANDEN!$O$15/8760*HLOOKUP(RISICOAFSTANDEN!$M$15,'DATA PMR - ANTWERPEN'!$B$1:$GI$203,$A2,FALSE)),"") -> 9.376792294e-06 | M2: =IFERROR(IF(ISNUMBER(SEARCH("KOPPEL",RISICOAFSTANDEN!$M$16,1)),RISICOAFSTANDEN!$N$16*HLOOKUP(SUBSTITUTE(RISICOAFSTANDEN!$M$16,"SLANG","LEIDING"),'DATA PMR - ANTWERPEN'!$B$1:$GI$203,$A2,FALSE)+RISICOAFSTANDEN!$N$16*RISICOAFSTANDEN!$O$16/8760*HLOOKUP(SUBSTITUTE(RISICOAFSTANDEN!$M$16,"KOPPEL","LOS"),'DATA PMR - ANTWERPEN'!$B$1:$GI$203,$A2,FALSE),RISICOAFSTANDEN!$N$16*RISICOAFSTANDEN!$O$16/8760*HLOOKUP(RISICOAFSTANDEN!$M$16,'DATA PMR - ANTWERPEN'!$B$1:$GI$203,$A2,FALSE)),"") -> 0.00120839954 | N2: =IFERROR(IF(ISNUMBER(SEARCH("KOPPEL",RISICOAFSTANDEN!$M$17,1)),RISICOAFSTANDEN!$N$17*HLOOKUP(SUBSTITUTE(RISICOAFSTANDEN!$M$17,"SLANG","LEIDING"),'DATA PMR - ANTWERPEN'!$B$1:$GI$203,$A2,FALSE)+RISICOAFSTANDEN!$N$17*RISICOAFSTANDEN!$O$17/8760*HLOOKUP(SUBSTITUTE(RISICOAFSTANDEN!$M$17,"KOPPEL","LOS"),'DATA PMR - ANTWERPEN'!$B$1:$GI$203,$A2,FALSE),RISICOAFSTANDEN!$N$17*RISICOAFSTANDEN!$O$17/8760*HLOOKUP(RISICOAFSTANDEN!$M$17,'DATA PMR - ANTWERPEN'!$B$1:$GI$203,$A2,FALSE)),"") ->  | O2: =IFERROR(IF(ISNUMBER(SEARCH("KOPPEL",RISICOAFSTANDEN!$M$18,1)),RISICOAFSTANDEN!$N$18*HLOOKUP(SUBSTITUTE(RISICOAFSTANDEN!$M$18,"SLANG","LEIDING"),'DATA PMR - ANTWERPEN'!$B$1:$GI$203,$A2,FALSE)+RISICOAFSTANDEN!$N$18*RISICOAFSTANDEN!$O$18/8760*HLOOKUP(SUBSTITUTE(RISICOAFSTANDEN!$M$18,"KOPPEL","LOS"),'DATA PMR - ANTWERPEN'!$B$1:$GI$203,$A2,FALSE),RISICOAFSTANDEN!$N$18*RISICOAFSTANDEN!$O$18/8760*HLOOKUP(RISICOAFSTANDEN!$M$18,'DATA PMR - ANTWERPEN'!$B$1:$GI$203,$A2,FALSE)),"") ->  | P2: =IFERROR(IF(ISNUMBER(SEARCH("KOPPEL",RISICOAFSTANDEN!$M$19,1)),RISICOAFSTANDEN!$N$19*HLOOKUP(SUBSTITUTE(RISICOAFSTANDEN!$M$19,"SLANG","LEIDING"),'DATA PMR - ANTWERPEN'!$B$1:$GI$203,$A2,FALSE)+RISICOAFSTANDEN!$N$19*RISICOAFSTANDEN!$O$19/8760*HLOOKUP(SUBSTITUTE(RISICOAFSTANDEN!$M$19,"KOPPEL","LOS"),'DATA PMR - ANTWERPEN'!$B$1:$GI$203,$A2,FALSE),RISICOAFSTANDEN!$N$19*RISICOAFSTANDEN!$O$19/8760*HLOOKUP(RISICOAFSTANDEN!$M$19,'DATA PMR - ANTWERPEN'!$B$1:$GI$203,$A2,FALSE)),"") ->  | Q2: =IFERROR(IF(ISNUMBER(SEARCH("KOPPEL",RISICOAFSTANDEN!$M$20,1)),RISICOAFSTANDEN!$N$20*HLOOKUP(SUBSTITUTE(RISICOAFSTANDEN!$M$20,"SLANG","LEIDING"),'DATA PMR - ANTWERPEN'!$B$1:$GI$203,$A2,FALSE)+RISICOAFSTANDEN!$N$20*RISICOAFSTANDEN!$O$20/8760*HLOOKUP(SUBSTITUTE(RISICOAFSTANDEN!$M$20,"KOPPEL","LOS"),'DATA PMR - ANTWERPEN'!$B$1:$GI$203,$A2,FALSE),RISICOAFSTANDEN!$N$20*RISICOAFSTANDEN!$O$20/8760*HLOOKUP(RISICOAFSTANDEN!$M$20,'DATA PMR - ANTWERPEN'!$B$1:$GI$203,$A2,FALSE)),"") ->  | R2: =IFERROR(IF(ISNUMBER(SEARCH("KOPPEL",RISICOAFSTANDEN!$M$21,1)),RISICOAFSTANDEN!$N$21*HLOOKUP(SUBSTITUTE(RISICOAFSTANDEN!$M$21,"SLANG","LEIDING"),'DATA PMR - ANTWERPEN'!$B$1:$GI$203,$A2,FALSE)+RISICOAFSTANDEN!$N$21*RISICOAFSTANDEN!$O$21/8760*HLOOKUP(SUBSTITUTE(RISICOAFSTANDEN!$M$21,"KOPPEL","LOS"),'DATA PMR - ANTWERPEN'!$B$1:$GI$203,$A2,FALSE),RISICOAFSTANDEN!$N$21*RISICOAFSTANDEN!$O$21/8760*HLOOKUP(RISICOAFSTANDEN!$M$21,'DATA PMR - ANTWERPEN'!$B$1:$GI$203,$A2,FALSE)),"") ->  | S2: =IFERROR(IF(ISNUMBER(SEARCH("KOPPEL",RISICOAFSTANDEN!$M$22,1)),RISICOAFSTANDEN!$N$22*HLOOKUP(SUBSTITUTE(RISICOAFSTANDEN!$M$22,"SLANG","LEIDING"),'DATA PMR - ANTWERPEN'!$B$1:$GI$203,$A2,FALSE)+RISICOAFSTANDEN!$N$22*RISICOAFSTANDEN!$O$22/8760*HLOOKUP(SUBSTITUTE(RISICOAFSTANDEN!$M$22,"KOPPEL","LOS"),'DATA PMR - ANTWERPEN'!$B$1:$GI$203,$A2,FALSE),RISICOAFSTANDEN!$N$22*RISICOAFSTANDEN!$O$22/8760*HLOOKUP(RISICOAFSTANDEN!$M$22,'DATA PMR - ANTWERPEN'!$B$1:$GI$203,$A2,FALSE)),"") ->  | T2: =IFERROR(IF(ISNUMBER(SEARCH("KOPPEL",RISICOAFSTANDEN!$M$23,1)),RISICOAFSTANDEN!$N$23*HLOOKUP(SUBSTITUTE(RISICOAFSTANDEN!$M$23,"SLANG","LEIDING"),'DATA PMR - ANTWERPEN'!$B$1:$GI$203,$A2,FALSE)+RISICOAFSTANDEN!$N$23*RISICOAFSTANDEN!$O$23/8760*HLOOKUP(SUBSTITUTE(RISICOAFSTANDEN!$M$23,"KOPPEL","LOS"),'DATA PMR - ANTWERPEN'!$B$1:$GI$203,$A2,FALSE),RISICOAFSTANDEN!$N$23*RISICOAFSTANDEN!$O$23/8760*HLOOKUP(RISICOAFSTANDEN!$M$23,'DATA PMR - ANTWERPEN'!$B$1:$GI$203,$A2,FALSE)),"") ->  | U2: =IFERROR(IF(ISNUMBER(SEARCH("KOPPEL",RISICOAFSTANDEN!$M$24,1)),RISICOAFSTANDEN!$N$24*HLOOKUP(SUBSTITUTE(RISICOAFSTANDEN!$M$24,"SLANG","LEIDING"),'DATA PMR - ANTWERPEN'!$B$1:$GI$203,$A2,FALSE)+RISICOAFSTANDEN!$N$24*RISICOAFSTANDEN!$O$24/8760*HLOOKUP(SUBSTITUTE(RISICOAFSTANDEN!$M$24,"KOPPEL","LOS"),'DATA PMR - ANTWERPEN'!$B$1:$GI$203,$A2,FALSE),RISICOAFSTANDEN!$N$24*RISICOAFSTANDEN!$O$24/8760*HLOOKUP(RISICOAFSTANDEN!$M$24,'DATA PMR - ANTWERPEN'!$B$1:$GI$203,$A2,FALSE)),"") ->  | V2: =IFERROR(IF(ISNUMBER(SEARCH("KOPPEL",RISICOAFSTANDEN!$M$25,1)),RISICOAFSTANDEN!$N$25*HLOOKUP(SUBSTITUTE(RISICOAFSTANDEN!$M$25,"SLANG","LEIDING"),'DATA PMR - ANTWERPEN'!$B$1:$GI$203,$A2,FALSE)+RISICOAFSTANDEN!$N$25*RISICOAFSTANDEN!$O$25/8760*HLOOKUP(SUBSTITUTE(RISICOAFSTANDEN!$M$25,"KOPPEL","LOS"),'DATA PMR - ANTWERPEN'!$B$1:$GI$203,$A2,FALSE),RISICOAFSTANDEN!$N$25*RISICOAFSTANDEN!$O$25/8760*HLOOKUP(RISICOAFSTANDEN!$M$25,'DATA PMR - ANTWERPEN'!$B$1:$GI$203,$A2,FALSE)),"") ->  | W2: =IFERROR(IF(ISNUMBER(SEARCH("KOPPEL",RISICOAFSTANDEN!$M$26,1)),RISICOAFSTANDEN!$N$26*HLOOKUP(SUBSTITUTE(RISICOAFSTANDEN!$M$26,"SLANG","LEIDING"),'DATA PMR - ANTWERPEN'!$B$1:$GI$203,$A2,FALSE)+RISICOAFSTANDEN!$N$26*RISICOAFSTANDEN!$O$26/8760*HLOOKUP(SUBSTITUTE(RISICOAFSTANDEN!$M$26,"KOPPEL","LOS"),'DATA PMR - ANTWERPEN'!$B$1:$GI$203,$A2,FALSE),RISICOAFSTANDEN!$N$26*RISICOAFSTANDEN!$O$26/8760*HLOOKUP(RISICOAFSTANDEN!$M$26,'DATA PMR - ANTWERPEN'!$B$1:$GI$203,$A2,FALSE)),"") ->  | X2: =IFERROR(IF(ISNUMBER(SEARCH("KOPPEL",RISICOAFSTANDEN!$M$27,1)),RISICOAFSTANDEN!$N$27*HLOOKUP(SUBSTITUTE(RISICOAFSTANDEN!$M$27,"SLANG","LEIDING"),'DATA PMR - ANTWERPEN'!$B$1:$GI$203,$A2,FALSE)+RISICOAFSTANDEN!$N$27*RISICOAFSTANDEN!$O$27/8760*HLOOKUP(SUBSTITUTE(RISICOAFSTANDEN!$M$27,"KOPPEL","LOS"),'DATA PMR - ANTWERPEN'!$B$1:$GI$203,$A2,FALSE),RISICOAFSTANDEN!$N$27*RISICOAFSTANDEN!$O$27/8760*HLOOKUP(RISICOAFSTANDEN!$M$27,'DATA PMR - ANTWERPEN'!$B$1:$GI$203,$A2,FALSE)),"") ->  | Y2: =IFERROR(IF(ISNUMBER(SEARCH("KOPPEL",RISICOAFSTANDEN!$M$28,1)),RISICOAFSTANDEN!$N$28*HLOOKUP(SUBSTITUTE(RISICOAFSTANDEN!$M$28,"SLANG","LEIDING"),'DATA PMR - ANTWERPEN'!$B$1:$GI$203,$A2,FALSE)+RISICOAFSTANDEN!$N$28*RISICOAFSTANDEN!$O$28/8760*HLOOKUP(SUBSTITUTE(RISICOAFSTANDEN!$M$28,"KOPPEL","LOS"),'DATA PMR - ANTWERPEN'!$B$1:$GI$203,$A2,FALSE),RISICOAFSTANDEN!$N$28*RISICOAFSTANDEN!$O$28/8760*HLOOKUP(RISICOAFSTANDEN!$M$28,'DATA PMR - ANTWERPEN'!$B$1:$GI$203,$A2,FALSE)),"") ->  | Z2: =IFERROR(IF(ISNUMBER(SEARCH("KOPPEL",RISICOAFSTANDEN!$M$29,1)),RISICOAFSTANDEN!$N$29*HLOOKUP(SUBSTITUTE(RISICOAFSTANDEN!$M$29,"SLANG","LEIDING"),'DATA PMR - ANTWERPEN'!$B$1:$GI$203,$A2,FALSE)+RISICOAFSTANDEN!$N$29*RISICOAFSTANDEN!$O$29/8760*HLOOKUP(SUBSTITUTE(RISICOAFSTANDEN!$M$29,"KOPPEL","LOS"),'DATA PMR - ANTWERPEN'!$B$1:$GI$203,$A2,FALSE),RISICOAFSTANDEN!$N$29*RISICOAFSTANDEN!$O$29/8760*HLOOKUP(RISICOAFSTANDEN!$M$29,'DATA PMR - ANTWERPEN'!$B$1:$GI$203,$A2,FALSE)),"") ->  | AA2: =IFERROR(FLOOR(LOG(B2),1),"n.b.") -> -6 | AB2: =IFERROR(FLOOR(LOG(C2),1),"n.b.") -> -4 | AC2: -6 | AD2: -4 | AE2: -6 | AF2: -5 | AG2: -5 | AH2: -6 | AI2: -6 | AJ2: -5 | AK2: -6 | AL2: -3 | AM2: n.b. | AN2: n.b. | AO2: n.b. | AP2: n.b. | AQ2: n.b. | AR2: n.b. | AS2: n.b. | AT2: n.b. | AU2: n.b. | AV2: n.b. | AW2: n.b. | AX2: n.b. | AY2: n.b. | AZ2: 0 | BB2: =MAX(SUM(B2:Z2),1E-50) -> 0.002504272251 | BC2: =FLOOR(LOG(BB2),1) -> -3 | BD2: 0
A3: 4 | B3: =IFERROR(IF(ISNUMBER(SEARCH("KOPPEL",RISICOAFSTANDEN!$M$5,1)),RISICOAFSTANDEN!$N$5*HLOOKUP(SUBSTITUTE(RISICOAFSTANDEN!$M$5,"SLANG","LEIDING"),'DATA PMR - ANTWERPEN'!$B$1:$GI$203,$A3,FALSE)+RISICOAFSTANDEN!$N$5*RISICOAFSTANDEN!$O$5/8760*HLOOKUP(SUBSTITUTE(RISICOAFSTANDEN!$M$5,"KOPPEL","LOS"),'DATA PMR - ANTWERPEN'!$B$1:$GI$203,$A3,FALSE),RISICOAFSTANDEN!$N$5*RISICOAFSTANDEN!$O$5/8760*HLOOKUP(RISICOAFSTANDEN!$M$5,'DATA PMR - ANTWERPEN'!$B$1:$GI$203,$A3,FALSE)),"") -> 5.706273868e-06 | C3: =IFERROR(IF(ISNUMBER(SEARCH("KOPPEL",RISICOAFSTANDEN!$M$6,1)),RISICOAFSTANDEN!$N$6*HLOOKUP(SUBSTITUTE(RISICOAFSTANDEN!$M$6,"SLANG","LEIDING"),'DATA PMR - ANTWERPEN'!$B$1:$GI$203,$A3,FALSE)+RISICOAFSTANDEN!$N$6*RISICOAFSTANDEN!$O$6/8760*HLOOKUP(SUBSTITUTE(RISICOAFSTANDEN!$M$6,"KOPPEL","LOS"),'DATA PMR - ANTWERPEN'!$B$1:$GI$203,$A3,FALSE),RISICOAFSTANDEN!$N$6*RISICOAFSTANDEN!$O$6/8760*HLOOKUP(RISICOAFSTANDEN!$M$6,'DATA PMR - ANTWERPEN'!$B$1:$GI$203,$A3,FALSE)),"") -> 0.0004134810659 | D3: =IFERROR(IF(ISNUMBER(SEARCH("KOPPEL",RISICOAFSTANDEN!$M$7,1)),RISICOAFSTANDEN!$N$7*HLOOKUP(SUBSTITUTE(RISICOAFSTANDEN!$M$7,"SLANG","LEIDING"),'DATA PMR - ANTWERPEN'!$B$1:$GI$203,$A3,FALSE)+RISICOAFSTANDEN!$N$7*RISICOAFSTANDEN!$O$7/8760*HLOOKUP(SUBSTITUTE(RISICOAFSTANDEN!$M$7,"KOPPEL","LOS"),'DATA PMR - ANTWERPEN'!$B$1:$GI$203,$A3,FALSE),RISICOAFSTANDEN!$N$7*RISICOAFSTANDEN!$O$7/8760*HLOOKUP(RISICOAFSTANDEN!$M$7,'DATA PMR - ANTWERPEN'!$B$1:$GI$203,$A3,FALSE)),"") -> 3.54000339e-06 | E3: =IFERROR(IF(ISNUMBER(SEARCH("KOPPEL",RISICOAFSTANDEN!$M$8,1)),RISICOAFSTANDEN!$N$8*HLOOKUP(SUBSTITUTE(RISICOAFSTANDEN!$M$8,"SLANG","LEIDING"),'DATA PMR - ANTWERPEN'!$B$1:$GI$203,$A3,FALSE)+RISICOAFSTANDEN!$N$8*RISICOAFSTANDEN!$O$8/8760*HLOOKUP(SUBSTITUTE(RISICOAFSTANDEN!$M$8,"KOPPEL","LOS"),'DATA PMR - ANTWERPEN'!$B$1:$GI$203,$A3,FALSE),RISICOAFSTANDEN!$N$8*RISICOAFSTANDEN!$O$8/8760*HLOOKUP(RISICOAFSTANDEN!$M$8,'DATA PMR - ANTWERPEN'!$B$1:$GI$203,$A3,FALSE)),"") -> 0.0003627840131 | F3: =IFERROR(IF(ISNUMBER(SEARCH("KOPPEL",RISICOAFSTANDEN!$M$9,1)),RISICOAFSTANDEN!$N$9*HLOOKUP(SUBSTITUTE(RISICOAFSTANDEN!$M$9,"SLANG","LEIDING"),'DATA PMR - ANTWERPEN'!$B$1:$GI$203,$A3,FALSE)+RISICOAFSTANDEN!$N$9*RISICOAFSTANDEN!$O$9/8760*HLOOKUP(SUBSTITUTE(RISICOAFSTANDEN!$M$9,"KOPPEL","LOS"),'DATA PMR - ANTWERPEN'!$B$1:$GI$203,$A3,FALSE),RISICOAFSTANDEN!$N$9*RISICOAFSTANDEN!$O$9/8760*HLOOKUP(RISICOAFSTANDEN!$M$9,'DATA PMR - ANTWERPEN'!$B$1:$GI$203,$A3,FALSE)),"") -> 9.108e-06 | G3: =IFERROR(IF(ISNUMBER(SEARCH("KOPPEL",RISICOAFSTANDEN!$M$10,1)),RISICOAFSTANDEN!$N$10*HLOOKUP(SUBSTITUTE(RISICOAFSTANDEN!$M$10,"SLANG","LEIDING"),'DATA PMR - ANTWERPEN'!$B$1:$GI$203,$A3,FALSE)+RISICOAFSTANDEN!$N$10*RISICOAFSTANDEN!$O$10/8760*HLOOKUP(SUBSTITUTE(RISICOAFSTANDEN!$M$10,"KOPPEL","LOS"),'DATA PMR - ANTWERPEN'!$B$1:$GI$203,$A3,FALSE),RISICOAFSTANDEN!$N$10*RISICOAFSTANDEN!$O$10/8760*HLOOKUP(RISICOAFSTANDEN!$M$10,'DATA PMR - ANTWERPEN'!$B$1:$GI$203,$A3,FALSE)),"") -> 3.448202614e-05 | H3: =IFERROR(IF(ISNUMBER(SEARCH("KOPPEL",RISICOAFSTANDEN!$M$11,1)),RISICOAFSTANDEN!$N$11*HLOOKUP(SUBSTITUTE(RISICOAFSTANDEN!$M$11,"SLANG","LEIDING"),'DATA PMR - ANTWERPEN'!$B$1:$GI$203,$A3,FALSE)+RISICOAFSTANDEN!$N$11*RISICOAFSTANDEN!$O$11/8760*HLOOKUP(SUBSTITUTE(RISICOAFSTANDEN!$M$11,"KOPPEL","LOS"),'DATA PMR - ANTWERPEN'!$B$1:$GI$203,$A3,FALSE),RISICOAFSTANDEN!$N$11*RISICOAFSTANDEN!$O$11/8760*HLOOKUP(RISICOAFSTANDEN!$M$11,'DATA PMR - ANTWERPEN'!$B$1:$GI$203,$A3,FALSE)),"") -> 2.138874346e-05 | I3: =IFERROR(IF(ISNUMBER(SEARCH("KOPPEL",RISICOAFSTANDEN!$M$12,1)),RISICOAFSTANDEN!$N$12*HLOOKUP(SUBSTITUTE(RISICOAFSTANDEN!$M$12,"SLANG","LEIDING"),'DATA PMR - ANTWERPEN'!$B$1:$GI$203,$A3,FALSE)+RISICOAFSTANDEN!$N$12*RISICOAFSTANDEN!$O$12/8760*HLOOKUP(SUBSTITUTE(RISICOAFSTANDEN!$M$12,"KOPPEL","LOS"),'DATA PMR - ANTWERPEN'!$B$1:$GI$203,$A3,FALSE),RISICOAFSTANDEN!$N$12*RISICOAFSTANDEN!$O$12/8760*HLOOKUP(RISICOAFSTANDEN!$M$12,'DATA PMR - ANTWERPEN'!$B$1:$GI$203,$A3,FALSE)),"") -> 1.8216e-06 | J3: =IFERROR(IF(ISNUMBER(SEARCH("KOPPEL",RISICOAFSTANDEN!$M$13,1)),RISICOAFSTANDEN!$N$13*HLOOKUP(SUBSTITUTE(RISICOAFSTANDEN!$M$13,"SLANG","LEIDING"),'DATA PMR - ANTWERPEN'!$B$1:$GI$203,$A3,FALSE)+RISICOAFSTANDEN!$N$13*RISICOAFSTANDEN!$O$13/8760*HLOOKUP(SUBSTITUTE(RISICOAFSTANDEN!$M$13,"KOPPEL","LOS"),'DATA PMR - ANTWERPEN'!$B$1:$GI$203,$A3,FALSE),RISICOAFSTANDEN!$N$13*RISICOAFSTANDEN!$O$13/8760*HLOOKUP(RISICOAFSTANDEN!$M$13,'DATA PMR - ANTWERPEN'!$B$1:$GI$203,$A3,FALSE)),"") -> 3.567951104e-06 | K3: =IFERROR(IF(ISNUMBER(SEARCH("KOPPEL",RISICOAFSTANDEN!$M$14,1)),RISICOAFSTANDEN!$N$14*HLOOKUP(SUBSTITUTE(RISICOAFSTANDEN!$M$14,"SLANG","LEIDING"),'DATA PMR - ANTWERPEN'!$B$1:$GI$203,$A3,FALSE)+RISICOAFSTANDEN!$N$14*RISICOAFSTANDEN!$O$14/8760*HLOOKUP(SUBSTITUTE(RISICOAFSTANDEN!$M$14,"KOPPEL","LOS"),'DATA PMR - ANTWERPEN'!$B$1:$GI$203,$A3,FALSE),RISICOAFSTANDEN!$N$14*RISICOAFSTANDEN!$O$14/8760*HLOOKUP(RISICOAFSTANDEN!$M$14,'DATA PMR - ANTWERPEN'!$B$1:$GI$203,$A3,FALSE)),"") -> 2.141179057e-05 | L3: =IFERROR(IF(ISNUMBER(SEARCH("KOPPEL",RISICOAFSTANDEN!$M$15,1)),RISICOAFSTANDEN!$N$15*HLOOKUP(SUBSTITUTE(RISICOAFSTANDEN!$M$15,"SLANG","LEIDING"),'DATA PMR - ANTWERPEN'!$B$1:$GI$203,$A3,FALSE)+RISICOAFSTANDEN!$N$15*RISICOAFSTANDEN!$O$15/8760*HLOOKUP(SUBSTITUTE(RISICOAFSTANDEN!$M$15,"KOPPEL","LOS"),'DATA PMR - ANTWERPEN'!$B$1:$GI$203,$A3,FALSE),RISICOAFSTANDEN!$N$15*RISICOAFSTANDEN!$O$15/8760*HLOOKUP(RISICOAFSTANDEN!$M$15,'DATA PMR - ANTWERPEN'!$B$1:$GI$203,$A3,FALSE)),"") -> 5.351926655e-06 | M3: =IFERROR(IF(ISNUMBER(SEARCH("KOPPEL",RISICOAFSTANDEN!$M$16,1)),RISICOAFSTANDEN!$N$16*HLOOKUP(SUBSTITUTE(RISICOAFSTANDEN!$M$16,"SLANG","LEIDING"),'DATA PMR - ANTWERPEN'!$B$1:$GI$203,$A3,FALSE)+RISICOAFSTANDEN!$N$16*RISICOAFSTANDEN!$O$16/8760*HLOOKUP(SUBSTITUTE(RISICOAFSTANDEN!$M$16,"KOPPEL","LOS"),'DATA PMR - ANTWERPEN'!$B$1:$GI$203,$A3,FALSE),RISICOAFSTANDEN!$N$16*RISICOAFSTANDEN!$O$16/8760*HLOOKUP(RISICOAFSTANDEN!$M$16,'DATA PMR - ANTWERPEN'!$B$1:$GI$203,$A3,FALSE)),"") -> 0.0006085927061 | N3: =IFERROR(IF(ISNUMBER(SEARCH("KOPPEL",RISICOAFSTANDEN!$M$17,1)),RISICOAFSTANDEN!$N$17*HLOOKUP(SUBSTITUTE(RISICOAFSTANDEN!$M$17,"SLANG","LEIDING"),'DATA PMR - ANTWERPEN'!$B$1:$GI$203,$A3,FALSE)+RISICOAFSTANDEN!$N$17*RISICOAFSTANDEN!$O$17/8760*HLOOKUP(SUBSTITUTE(RISICOAFSTANDEN!$M$17,"KOPPEL","LOS"),'DATA PMR - ANTWERPEN'!$B$1:$GI$203,$A3,FALSE),RISICOAFSTANDEN!$N$17*RISICOAFSTANDEN!$O$17/8760*HLOOKUP(RISICOAFSTANDEN!$M$17,'DATA PMR - ANTWERPEN'!$B$1:$GI$203,$A3,FALSE)),"") ->  | O3: =IFERROR(IF(ISNUMBER(SEARCH("KOPPEL",RISICOAFSTANDEN!$M$18,1)),RISICOAFSTANDEN!$N$18*HLOOKUP(SUBSTITUTE(RISICOAFSTANDEN!$M$18,"SLANG","LEIDING"),'DATA PMR - ANTWERPEN'!$B$1:$GI$203,$A3,FALSE)+RISICOAFSTANDEN!$N$18*RISICOAFSTANDEN!$O$18/8760*HLOOKUP(SUBSTITUTE(RISICOAFSTANDEN!$M$18,"KOPPEL","LOS"),'DATA PMR - ANTWERPEN'!$B$1:$GI$203,$A3,FALSE),RISICOAFSTANDEN!$N$18*RISICOAFSTANDEN!$O$18/8760*HLOOKUP(RISICOAFSTANDEN!$M$18,'DATA PMR - ANTWERPEN'!$B$1:$GI$203,$A3,FALSE)),"") ->  | P3: =IFERROR(IF(ISNUMBER(SEARCH("KOPPEL",RISICOAFSTANDEN!$M$19,1)),RISICOAFSTANDEN!$N$19*HLOOKUP(SUBSTITUTE(RISICOAFSTANDEN!$M$19,"SLANG","LEIDING"),'DATA PMR - ANTWERPEN'!$B$1:$GI$203,$A3,FALSE)+RISICOAFSTANDEN!$N$19*RISICOAFSTANDEN!$O$19/8760*HLOOKUP(SUBSTITUTE(RISICOAFSTANDEN!$M$19,"KOPPEL","LOS"),'DATA PMR - ANTWERPEN'!$B$1:$GI$203,$A3,FALSE),RISICOAFSTANDEN!$N$19*RISICOAFSTANDEN!$O$19/8760*HLOOKUP(RISICOAFSTANDEN!$M$19,'DATA PMR - ANTWERPEN'!$B$1:$GI$203,$A3,FALSE)),"") ->  | Q3: =IFERROR(IF(ISNUMBER(SEARCH("KOPPEL",RISICOAFSTANDEN!$M$20,1)),RISICOAFSTANDEN!$N$20*HLOOKUP(SUBSTITUTE(RISICOAFSTANDEN!$M$20,"SLANG","LEIDING"),'DATA PMR - ANTWERPEN'!$B$1:$GI$203,$A3,FALSE)+RISICOAFSTANDEN!$N$20*RISICOAFSTANDEN!$O$20/8760*HLOOKUP(SUBSTITUTE(RISICOAFSTANDEN!$M$20,"KOPPEL","LOS"),'DATA PMR - ANTWERPEN'!$B$1:$GI$203,$A3,FALSE),RISICOAFSTANDEN!$N$20*RISICOAFSTANDEN!$O$20/8760*HLOOKUP(RISICOAFSTANDEN!$M$20,'DATA PMR - ANTWERPEN'!$B$1:$GI$203,$A3,FALSE)),"") ->  | R3: =IFERROR(IF(ISNUMBER(SEARCH("KOPPEL",RISICOAFSTANDEN!$M$21,1)),RISICOAFSTANDEN!$N$21*HLOOKUP(SUBSTITUTE(RISICOAFSTANDEN!$M$21,"SLANG","LEIDING"),'DATA PMR - ANTWERPEN'!$B$1:$GI$203,$A3,FALSE)+RISICOAFSTANDEN!$N$21*RISICOAFSTANDEN!$O$21/8760*HLOOKUP(SUBSTITUTE(RISICOAFSTANDEN!$M$21,"KOPPEL","LOS"),'DATA PMR - ANTWERPEN'!$B$1:$GI$203,$A3,FALSE),RISICOAFSTANDEN!$N$21*RISICOAFSTANDEN!$O$21/8760*HLOOKUP(RISICOAFSTANDEN!$M$21,'DATA PMR - ANTWERPEN'!$B$1:$GI$203,$A3,FALSE)),"") ->  | S3: =IFERROR(IF(ISNUMBER(SEARCH("KOPPEL",RISICOAFSTANDEN!$M$22,1)),RISICOAFSTANDEN!$N$22*HLOOKUP(SUBSTITUTE(RISICOAFSTANDEN!$M$22,"SLANG","LEIDING"),'DATA PMR - ANTWERPEN'!$B$1:$GI$203,$A3,FALSE)+RISICOAFSTANDEN!$N$22*RISICOAFSTANDEN!$O$22/8760*HLOOKUP(SUBSTITUTE(RISICOAFSTANDEN!$M$22,"KOPPEL","LOS"),'DATA PMR - ANTWERPEN'!$B$1:$GI$203,$A3,FALSE),RISICOAFSTANDEN!$N$22*RISICOAFSTANDEN!$O$22/8760*HLOOKUP(RISICOAFSTANDEN!$M$22,'DATA PMR - ANTWERPEN'!$B$1:$GI$203,$A3,FALSE)),"") ->  | T3: =IFERROR(IF(ISNUMBER(SEARCH("KOPPEL",RISICOAFSTANDEN!$M$23,1)),RISICOAFSTANDEN!$N$23*HLOOKUP(SUBSTITUTE(RISICOAFSTANDEN!$M$23,"SLANG","LEIDING"),'DATA PMR - ANTWERPEN'!$B$1:$GI$203,$A3,FALSE)+RISICOAFSTANDEN!$N$23*RISICOAFSTANDEN!$O$23/8760*HLOOKUP(SUBSTITUTE(RISICOAFSTANDEN!$M$23,"KOPPEL","LOS"),'DATA PMR - ANTWERPEN'!$B$1:$GI$203,$A3,FALSE),RISICOAFSTANDEN!$N$23*RISICOAFSTANDEN!$O$23/8760*HLOOKUP(RISICOAFSTANDEN!$M$23,'DATA PMR - ANTWERPEN'!$B$1:$GI$203,$A3,FALSE)),"") ->  | U3: =IFERROR(IF(ISNUMBER(SEARCH("KOPPEL",RISICOAFSTANDEN!$M$24,1)),RISICOAFSTANDEN!$N$24*HLOOKUP(SUBSTITUTE(RISICOAFSTANDEN!$M$24,"SLANG","LEIDING"),'DATA PMR - ANTWERPEN'!$B$1:$GI$203,$A3,FALSE)+RISICOAFSTANDEN!$N$24*RISICOAFSTANDEN!$O$24/8760*HLOOKUP(SUBSTITUTE(RISICOAFSTANDEN!$M$24,"KOPPEL","LOS"),'DATA PMR - ANTWERPEN'!$B$1:$GI$203,$A3,FALSE),RISICOAFSTANDEN!$N$24*RISICOAFSTANDEN!$O$24/8760*HLOOKUP(RISICOAFSTANDEN!$M$24,'DATA PMR - ANTWERPEN'!$B$1:$GI$203,$A3,FALSE)),"") ->  | V3: =IFERROR(IF(ISNUMBER(SEARCH("KOPPEL",RISICOAFSTANDEN!$M$25,1)),RISICOAFSTANDEN!$N$25*HLOOKUP(SUBSTITUTE(RISICOAFSTANDEN!$M$25,"SLANG","LEIDING"),'DATA PMR - ANTWERPEN'!$B$1:$GI$203,$A3,FALSE)+RISICOAFSTANDEN!$N$25*RISICOAFSTANDEN!$O$25/8760*HLOOKUP(SUBSTITUTE(RISICOAFSTANDEN!$M$25,"KOPPEL","LOS"),'DATA PMR - ANTWERPEN'!$B$1:$GI$203,$A3,FALSE),RISICOAFSTANDEN!$N$25*RISICOAFSTANDEN!$O$25/8760*HLOOKUP(RISICOAFSTANDEN!$M$25,'DATA PMR - ANTWERPEN'!$B$1:$GI$203,$A3,FALSE)),"") ->  | W3: =IFERROR(IF(ISNUMBER(SEARCH("KOPPEL",RISICOAFSTANDEN!$M$26,1)),RISICOAFSTANDEN!$N$26*HLOOKUP(SUBSTITUTE(RISICOAFSTANDEN!$M$26,"SLANG","LEIDING"),'DATA PMR - ANTWERPEN'!$B$1:$GI$203,$A3,FALSE)+RISICOAFSTANDEN!$N$26*RISICOAFSTANDEN!$O$26/8760*HLOOKUP(SUBSTITUTE(RISICOAFSTANDEN!$M$26,"KOPPEL","LOS"),'DATA PMR - ANTWERPEN'!$B$1:$GI$203,$A3,FALSE),RISICOAFSTANDEN!$N$26*RISICOAFSTANDEN!$O$26/8760*HLOOKUP(RISICOAFSTANDEN!$M$26,'DATA PMR - ANTWERPEN'!$B$1:$GI$203,$A3,FALSE)),"") ->  | X3: =IFERROR(IF(ISNUMBER(SEARCH("KOPPEL",RISICOAFSTANDEN!$M$27,1)),RISICOAFSTANDEN!$N$27*HLOOKUP(SUBSTITUTE(RISICOAFSTANDEN!$M$27,"SLANG","LEIDING"),'DATA PMR - ANTWERPEN'!$B$1:$GI$203,$A3,FALSE)+RISICOAFSTANDEN!$N$27*RISICOAFSTANDEN!$O$27/8760*HLOOKUP(SUBSTITUTE(RISICOAFSTANDEN!$M$27,"KOPPEL","LOS"),'DATA PMR - ANTWERPEN'!$B$1:$GI$203,$A3,FALSE),RISICOAFSTANDEN!$N$27*RISICOAFSTANDEN!$O$27/8760*HLOOKUP(RISICOAFSTANDEN!$M$27,'DATA PMR - ANTWERPEN'!$B$1:$GI$203,$A3,FALSE)),"") ->  | Y3: =IFERROR(IF(ISNUMBER(SEARCH("KOPPEL",RISICOAFSTANDEN!$M$28,1)),RISICOAFSTANDEN!$N$28*HLOOKUP(SUBSTITUTE(RISICOAFSTANDEN!$M$28,"SLANG","LEIDING"),'DATA PMR - ANTWERPEN'!$B$1:$GI$203,$A3,FALSE)+RISICOAFSTANDEN!$N$28*RISICOAFSTANDEN!$O$28/8760*HLOOKUP(SUBSTITUTE(RISICOAFSTANDEN!$M$28,"KOPPEL","LOS"),'DATA PMR - ANTWERPEN'!$B$1:$GI$203,$A3,FALSE),RISICOAFSTANDEN!$N$28*RISICOAFSTANDEN!$O$28/8760*HLOOKUP(RISICOAFSTANDEN!$M$28,'DATA PMR - ANTWERPEN'!$B$1:$GI$203,$A3,FALSE)),"") ->  | Z3: =IFERROR(IF(ISNUMBER(SEARCH("KOPPEL",RISICOAFSTANDEN!$M$29,1)),RISICOAFSTANDEN!$N$29*HLOOKUP(SUBSTITUTE(RISICOAFSTANDEN!$M$29,"SLANG","LEIDING"),'DATA PMR - ANTWERPEN'!$B$1:$GI$203,$A3,FALSE)+RISICOAFSTANDEN!$N$29*RISICOAFSTANDEN!$O$29/8760*HLOOKUP(SUBSTITUTE(RISICOAFSTANDEN!$M$29,"KOPPEL","LOS"),'DATA PMR - ANTWERPEN'!$B$1:$GI$203,$A3,FALSE),RISICOAFSTANDEN!$N$29*RISICOAFSTANDEN!$O$29/8760*HLOOKUP(RISICOAFSTANDEN!$M$29,'DATA PMR - ANTWERPEN'!$B$1:$GI$203,$A3,FALSE)),"") ->  | AA3: =IFERROR(FLOOR(LOG(B3),1),"n.b.") -> -6 | AB3: =IFERROR(FLOOR(LOG(C3),1),"n.b.") -> -4 | AC3: =IFERROR(FLOOR(LOG(D3),1),"n.b.") -> -6 | AD3: =IFERROR(FLOOR(LOG(E3),1),"n.b.") -> -4 | AE3: =IFERROR(FLOOR(LOG(F3),1),"n.b.") -> -6 | AF3: =IFERROR(FLOOR(LOG(G3),1),"n.b.") -> -5 | AG3: =IFERROR(FLOOR(LOG(H3),1),"n.b.") -> -5 | AH3: =IFERROR(FLOOR(LOG(I3),1),"n.b.") -> -6 | AI3: =IFERROR(FLOOR(LOG(J3),1),"n.b.") -> -6 | AJ3: =IFERROR(FLOOR(LOG(K3),1),"n.b.") -> -5 | AK3: =IFERROR(FLOOR(LOG(L3),1),"n.b.") -> -6 | AL3: =IFERROR(FLOOR(LOG(M3),1),"n.b.") -> -4 | AM3: =IFERROR(FLOOR(LOG(N3),1),"n.b.") -> n.b. | AN3: =IFERROR(FLOOR(LOG(O3),1),"n.b.") -> n.b. | AO3: =IFERROR(FLOOR(LOG(P3),1),"n.b.") -> n.b. | AP3: =IFERROR(FLOOR(LOG(Q3),1),"n.b.") -> n.b. | AQ3: =IFERROR(FLOOR(LOG(R3),1),"n.b.") -> n.b. | AR3: =IFERROR(FLOOR(LOG(S3),1),"n.b.") -> n.b. | AS3: =IFERROR(FLOOR(LOG(T3),1),"n.b.") -> n.b. | AT3: =IFERROR(FLOOR(LOG(U3),1),"n.b.") -> n.b. | AU3: =IFERROR(FLOOR(LOG(V3),1),"n.b.") -> n.b. | AV3: =IFERROR(FLOOR(LOG(W3),1),"n.b.") -> n.b. | AW3: =IFERROR(FLOOR(LOG(X3),1),"n.b.") -> n.b. | AX3: =IFERROR(FLOOR(LOG(Y3),1),"n.b.") -> n.b. | AY3: =IFERROR(FLOOR(LOG(Z3),1),"n.b.") -> n.b. | AZ3: 1 | BB3: =MAX(SUM(B3:Z3),1E-50) -> 0.0014912361 | BC3: =FLOOR(LOG(BB3),1) -> -3 | BD3: 1
A4: 5 | B4: =IFERROR(IF(ISNUMBER(SEARCH("KOPPEL",RISICOAFSTANDEN!$M$5,1)),RISICOAFSTANDEN!$N$5*HLOOKUP(SUBSTITUTE(RISICOAFSTANDEN!$M$5,"SLANG","LEIDING"),'DATA PMR - ANTWERPEN'!$B$1:$GI$203,$A4,FALSE)+RISICOAFSTANDEN!$N$5*RISICOAFSTANDEN!$O$5/8760*HLOOKUP(SUBSTITUTE(RISICOAFSTANDEN!$M$5,"KOPPEL","LOS"),'DATA PMR - ANTWERPEN'!$B$1:$GI$203,$A4,FALSE),RISICOAFSTANDEN!$N$5*RISICOAFSTANDEN!$O$5/8760*HLOOKUP(RISICOAFSTANDEN!$M$5,'DATA PMR - ANTWERPEN'!$B$1:$GI$203,$A4,FALSE)),"") -> 5.706273868e-06 | C4: =IFERROR(IF(ISNUMBER(SEARCH("KOPPEL",RISICOAFSTANDEN!$M$6,1)),RISICOAFSTANDEN!$N$6*HLOOKUP(SUBSTITUTE(RISICOAFSTANDEN!$M$6,"SLANG","LEIDING"),'DATA PMR - ANTWERPEN'!$B$1:$GI$203,$A4,FALSE)+RISICOAFSTANDEN!$N$6*RISICOAFSTANDEN!$O$6/8760*HLOOKUP(SUBSTITUTE(RISICOAFSTANDEN!$M$6,"KOPPEL","LOS"),'DATA PMR - ANTWERPEN'!$B$1:$GI$203,$A4,FALSE),RISICOAFSTANDEN!$N$6*RISICOAFSTANDEN!$O$6/8760*HLOOKUP(RISICOAFSTANDEN!$M$6,'DATA PMR - ANTWERPEN'!$B$1:$GI$203,$A4,FALSE)),"") -> 9.813626986e-05 | D4: =IFERROR(IF(ISNUMBER(SEARCH("KOPPEL",RISICOAFSTANDEN!$M$7,1)),RISICOAFSTANDEN!$N$7*HLOOKUP(SUBSTITUTE(RISICOAFSTANDEN!$M$7,"SLANG","LEIDING"),'DATA PMR - ANTWERPEN'!$B$1:$GI$203,$A4,FALSE)+RISICOAFSTANDEN!$N$7*RISICOAFSTANDEN!$O$7/8760*HLOOKUP(SUBSTITUTE(RISICOAFSTANDEN!$M$7,"KOPPEL","LOS"),'DATA PMR - ANTWERPEN'!$B$1:$GI$203,$A4,FALSE),RISICOAFSTANDEN!$N$7*RISICOAFSTANDEN!$O$7/8760*HLOOKUP(RISICOAFSTANDEN!$M$7,'DATA PMR - ANTWERPEN'!$B$1:$GI$203,$A4,FALSE)),"") -> 1.101818704e-06 | E4: =IFERROR(IF(ISNUMBER(SEARCH("KOPPEL",RISICOAFSTANDEN!$M$8,1)),RISICOAFSTANDEN!$N$8*HLOOKUP(SUBSTITUTE(RISICOAFSTANDEN!$M$8,"SLANG","LEIDING"),'DATA PMR - ANTWERPEN'!$B$1:$GI$203,$A4,FALSE)+RISICOAFSTANDEN!$N$8*RISICOAFSTANDEN!$O$8/8760*HLOOKUP(SUBSTITUTE(RISICOAFSTANDEN!$M$8,"KOPPEL","LOS"),'DATA PMR - ANTWERPEN'!$B$1:$GI$203,$A4,FALSE),RISICOAFSTANDEN!$N$8*RISICOAFSTANDEN!$O$8/8760*HLOOKUP(RISICOAFSTANDEN!$M$8,'DATA PMR - ANTWERPEN'!$B$1:$GI$203,$A4,FALSE)),"") -> 0.000362810743 | F4: =IFERROR(IF(ISNUMBER(SEARCH("KOPPEL",RISICOAFSTANDEN!$M$9,1)),RISICOAFSTANDEN!$N$9*HLOOKUP(SUBSTITUTE(RISICOAFSTANDEN!$M$9,"SLANG","LEIDING"),'DATA PMR - ANTWERPEN'!$B$1:$GI$203,$A4,FALSE)+RISICOAFSTANDEN!$N$9*RISICOAFSTANDEN!$O$9/8760*HLOOKUP(SUBSTITUTE(RISICOAFSTANDEN!$M$9,"KOPPEL","LOS"),'DATA PMR - ANTWERPEN'!$B$1:$GI$203,$A4,FALSE),RISICOAFSTANDEN!$N$9*RISICOAFSTANDEN!$O$9/8760*HLOOKUP(RISICOAFSTANDEN!$M$9,'DATA PMR - ANTWERPEN'!$B$1:$GI$203,$A4,FALSE)),"") -> 9.108e-06 | G4: =IFERROR(IF(ISNUMBER(SEARCH("KOPPEL",RISICOAFSTANDEN!$M$10,1)),RISICOAFSTANDEN!$N$10*HLOOKUP(SUBSTITUTE(RISICOAFSTANDEN!$M$10,"SLANG","LEIDING"),'DATA PMR - ANTWERPEN'!$B$1:$GI$203,$A4,FALSE)+RISICOAFSTANDEN!$N$10*RISICOAFSTANDEN!$O$10/8760*HLOOKUP(SUBSTITUTE(RISICOAFSTANDEN!$M$10,"KOPPEL","LOS"),'DATA PMR - ANTWERPEN'!$B$1:$GI$203,$A4,FALSE),RISICOAFSTANDEN!$N$10*RISICOAFSTANDEN!$O$10/8760*HLOOKUP(RISICOAFSTANDEN!$M$10,'DATA PMR - ANTWERPEN'!$B$1:$GI$203,$A4,FALSE)),"") -> 8.650498952e-06 | H4: =IFERROR(IF(ISNUMBER(SEARCH("KOPPEL",RISICOAFSTANDEN!$M$11,1)),RISICOAFSTANDEN!$N$11*HLOOKUP(SUBSTITUTE(RISICOAFSTANDEN!$M$11,"SLANG","LEIDING"),'DATA PMR - ANTWERPEN'!$B$1:$GI$203,$A4,FALSE)+RISICOAFSTANDEN!$N$11*RISICOAFSTANDEN!$O$11/8760*HLOOKUP(SUBSTITUTE(RISICOAFSTANDEN!$M$11,"KOPPEL","LOS"),'DATA PMR - ANTWERPEN'!$B$1:$GI$203,$A4,FALSE),RISICOAFSTANDEN!$N$11*RISICOAFSTANDEN!$O$11/8760*HLOOKUP(RISICOAFSTANDEN!$M$11,'DATA PMR - ANTWERPEN'!$B$1:$GI$203,$A4,FALSE)),"") -> 2.133386843e-05 | I4: =IFERROR(IF(ISNUMBER(SEARCH("KOPPEL",RISICOAFSTANDEN!$M$12,1)),RISICOAFSTANDEN!$N$12*HLOOKUP(SUBSTITUTE(RISICOAFSTANDEN!$M$12,"SLANG","LEIDING"),'DATA PMR - ANTWERPEN'!$B$1:$GI$203,$A4,FALSE)+RISICOAFSTANDEN!$N$12*RISICOAFSTANDEN!$O$12/8760*HLOOKUP(SUBSTITUTE(RISICOAFSTANDEN!$M$12,"KOPPEL","LOS"),'DATA PMR - ANTWERPEN'!$B$1:$GI$203,$A4,FALSE),RISICOAFSTANDEN!$N$12*RISICOAFSTANDEN!$O$12/8760*HLOOKUP(RISICOAFSTANDEN!$M$12,'DATA PMR - ANTWERPEN'!$B$1:$GI$203,$A4,FALSE)),"") -> 1.8216e-06 | J4: =IFERROR(IF(ISNUMBER(SEARCH("KOPPEL",RISICOAFSTANDEN!$M$13,1)),RISICOAFSTANDEN!$N$13*HLOOKUP(SUBSTITUTE(RISICOAFSTANDEN!$M$13,"SLANG","LEIDING"),'DATA PMR - ANTWERPEN'!$B$1:$GI$203,$A4,FALSE)+RISICOAFSTANDEN!$N$13*RISICOAFSTANDEN!$O$13/8760*HLOOKUP(SUBSTITUTE(RISICOAFSTANDEN!$M$13,"KOPPEL","LOS"),'DATA PMR - ANTWERPEN'!$B$1:$GI$203,$A4,FALSE),RISICOAFSTANDEN!$N$13*RISICOAFSTANDEN!$O$13/8760*HLOOKUP(RISICOAFSTANDEN!$M$13,'DATA PMR - ANTWERPEN'!$B$1:$GI$203,$A4,FALSE)),"") -> 1.15791622e-06 | K4: =IFERROR(IF(ISNUMBER(SEARCH("KOPPEL",RISICOAFSTANDEN!$M$14,1)),RISICOAFSTANDEN!$N$14*HLOOKUP(SUBSTITUTE(RISICOAFSTANDEN!$M$14,"SLANG","LEIDING"),'DATA PMR - ANTWERPEN'!$B$1:$GI$203,$A4,FALSE)+RISICOAFSTANDEN!$N$14*RISICOAFSTANDEN!$O$14/8760*HLOOKUP(SUBSTITUTE(RISICOAFSTANDEN!$M$14,"KOPPEL","LOS"),'DATA PMR - ANTWERPEN'!$B$1:$GI$203,$A4,FALSE),RISICOAFSTANDEN!$N$14*RISICOAFSTANDEN!$O$14/8760*HLOOKUP(RISICOAFSTANDEN!$M$14,'DATA PMR - ANTWERPEN'!$B$1:$GI$203,$A4,FALSE)),"") -> 2.134103127e-05 | L4: =IFERROR(IF(ISNUMBER(SEARCH("KOPPEL",RISICOAFSTANDEN!$M$15,1)),RISICOAFSTANDEN!$N$15*HLOOKUP(SUBSTITUTE(RISICOAFSTANDEN!$M$15,"SLANG","LEIDING"),'DATA PMR - ANTWERPEN'!$B$1:$GI$203,$A4,FALSE)+RISICOAFSTANDEN!$N$15*RISICOAFSTANDEN!$O$15/8760*HLOOKUP(SUBSTITUTE(RISICOAFSTANDEN!$M$15,"KOPPEL","LOS"),'DATA PMR - ANTWERPEN'!$B$1:$GI$203,$A4,FALSE),RISICOAFSTANDEN!$N$15*RISICOAFSTANDEN!$O$15/8760*HLOOKUP(RISICOAFSTANDEN!$M$15,'DATA PMR - ANTWERPEN'!$B$1:$GI$203,$A4,FALSE)),"") -> 1.736874329e-06 | M4: =IFERROR(IF(ISNUMBER(SEARCH("KOPPEL",RISICOAFSTANDEN!$M$16,1)),RISICOAFSTANDEN!$N$16*HLOOKUP(SUBSTITUTE(RISICOAFSTANDEN!$M$16,"SLANG","LEIDING"),'DATA PMR - ANTWERPEN'!$B$1:$GI$203,$A4,FALSE)+RISICOAFSTANDEN!$N$16*RISICOAFSTANDEN!$O$16/8760*HLOOKUP(SUBSTITUTE(RISICOAFSTANDEN!$M$16,"KOPPEL","LOS"),'DATA PMR - ANTWERPEN'!$B$1:$GI$203,$A4,FALSE),RISICOAFSTANDEN!$N$16*RISICOAFSTANDEN!$O$16/8760*HLOOKUP(RISICOAFSTANDEN!$M$16,'DATA PMR - ANTWERPEN'!$B$1:$GI$203,$A4,FALSE)),"") -> 0.0001118198107 | N4: =IFERROR(IF(ISNUMBER(SEARCH("KOPPEL",RISICOAFSTANDEN!$M$17,1)),RISICOAFSTANDEN!$N$17*HLOOKUP(SUBSTITUTE(RISICOAFSTANDEN!$M$17,"SLANG","LEIDING"),'DATA PMR - ANTWERPEN'!$B$1:$GI$203,$A4,FALSE)+RISICOAFSTANDEN!$N$17*RISICOAFSTANDEN!$O$17/8760*HLOOKUP(SUBSTITUTE(RISICOAFSTANDEN!$M$17,"KOPPEL","LOS"),'DATA PMR - ANTWERPEN'!$B$1:$GI$203,$A4,FALSE),RISICOAFSTANDEN!$N$17*RISICOAFSTANDEN!$O$17/8760*HLOOKUP(RISICOAFSTANDEN!$M$17,'DATA PMR - ANTWERPEN'!$B$1:$GI$203,$A4,FALSE)),"") ->  | O4: =IFERROR(IF(ISNUMBER(SEARCH("KOPPEL",RISICOAFSTANDEN!$M$18,1)),RISICOAFSTANDEN!$N$18*HLOOKUP(SUBSTITUTE(RISICOAFSTANDEN!$M$18,"SLANG","LEIDING"),'DATA PMR - ANTWERPEN'!$B$1:$GI$203,$A4,FALSE)+RISICOAFSTANDEN!$N$18*RISICOAFSTANDEN!$O$18/8760*HLOOKUP(SUBSTITUTE(RISICOAFSTANDEN!$M$18,"KOPPEL","LOS"),'DATA PMR - ANTWERPEN'!$B$1:$GI$203,$A4,FALSE),RISICOAFSTANDEN!$N$18*RISICOAFSTANDEN!$O$18/8760*HLOOKUP(RISICOAFSTANDEN!$M$18,'DATA PMR - ANTWERPEN'!$B$1:$GI$203,$A4,FALSE)),"") ->  | P4: =IFERROR(IF(ISNUMBER(SEARCH("KOPPEL",RISICOAFSTANDEN!$M$19,1)),RISICOAFSTANDEN!$N$19*HLOOKUP(SUBSTITUTE(RISICOAFSTANDEN!$M$19,"SLANG","LEIDING"),'DATA PMR - ANTWERPEN'!$B$1:$GI$203,$A4,FALSE)+RISICOAFSTANDEN!$N$19*RISICOAFSTANDEN!$O$19/8760*HLOOKUP(SUBSTITUTE(RISICOAFSTANDEN!$M$19,"KOPPEL","LOS"),'DATA PMR - ANTWERPEN'!$B$1:$GI$203,$A4,FALSE),RISICOAFSTANDEN!$N$19*RISICOAFSTANDEN!$O$19/8760*HLOOKUP(RISICOAFSTANDEN!$M$19,'DATA PMR - ANTWERPEN'!$B$1:$GI$203,$A4,FALSE)),"") ->  | Q4: =IFERROR(IF(ISNUMBER(SEARCH("KOPPEL",RISICOAFSTANDEN!$M$20,1)),RISICOAFSTANDEN!$N$20*HLOOKUP(SUBSTITUTE(RISICOAFSTANDEN!$M$20,"SLANG","LEIDING"),'DATA PMR - ANTWERPEN'!$B$1:$GI$203,$A4,FALSE)+RISICOAFSTANDEN!$N$20*RISICOAFSTANDEN!$O$20/8760*HLOOKUP(SUBSTITUTE(RISICOAFSTANDEN!$M$20,"KOPPEL","LOS"),'DATA PMR - ANTWERPEN'!$B$1:$GI$203,$A4,FALSE),RISICOAFSTANDEN!$N$20*RISICOAFSTANDEN!$O$20/8760*HLOOKUP(RISICOAFSTANDEN!$M$20,'DATA PMR - ANTWERPEN'!$B$1:$GI$203,$A4,FALSE)),"") ->  | R4: =IFERROR(IF(ISNUMBER(SEARCH("KOPPEL",RISICOAFSTANDEN!$M$21,1)),RISICOAFSTANDEN!$N$21*HLOOKUP(SUBSTITUTE(RISICOAFSTANDEN!$M$21,"SLANG","LEIDING"),'DATA PMR - ANTWERPEN'!$B$1:$GI$203,$A4,FALSE)+RISICOAFSTANDEN!$N$21*RISICOAFSTANDEN!$O$21/8760*HLOOKUP(SUBSTITUTE(RISICOAFSTANDEN!$M$21,"KOPPEL","LOS"),'DATA PMR - ANTWERPEN'!$B$1:$GI$203,$A4,FALSE),RISICOAFSTANDEN!$N$21*RISICOAFSTANDEN!$O$21/8760*HLOOKUP(RISICOAFSTANDEN!$M$21,'DATA PMR - ANTWERPEN'!$B$1:$GI$203,$A4,FALSE)),"") ->  | S4: =IFERROR(IF(ISNUMBER(SEARCH("KOPPEL",RISICOAFSTANDEN!$M$22,1)),RISICOAFSTANDEN!$N$22*HLOOKUP(SUBSTITUTE(RISICOAFSTANDEN!$M$22,"SLANG","LEIDING"),'DATA PMR - ANTWERPEN'!$B$1:$GI$203,$A4,FALSE)+RISICOAFSTANDEN!$N$22*RISICOAFSTANDEN!$O$22/8760*HLOOKUP(SUBSTITUTE(RISICOAFSTANDEN!$M$22,"KOPPEL","LOS"),'DATA PMR - ANTWERPEN'!$B$1:$GI$203,$A4,FALSE),RISICOAFSTANDEN!$N$22*RISICOAFSTANDEN!$O$22/8760*HLOOKUP(RISICOAFSTANDEN!$M$22,'DATA PMR - ANTWERPEN'!$B$1:$GI$203,$A4,FALSE)),"") ->  | T4: =IFERROR(IF(ISNUMBER(SEARCH("KOPPEL",RISICOAFSTANDEN!$M$23,1)),RISICOAFSTANDEN!$N$23*HLOOKUP(SUBSTITUTE(RISICOAFSTANDEN!$M$23,"SLANG","LEIDING"),'DATA PMR - ANTWERPEN'!$B$1:$GI$203,$A4,FALSE)+RISICOAFSTANDEN!$N$23*RISICOAFSTANDEN!$O$23/8760*HLOOKUP(SUBSTITUTE(RISICOAFSTANDEN!$M$23,"KOPPEL","LOS"),'DATA PMR - ANTWERPEN'!$B$1:$GI$203,$A4,FALSE),RISICOAFSTANDEN!$N$23*RISICOAFSTANDEN!$O$23/8760*HLOOKUP(RISICOAFSTANDEN!$M$23,'DATA PMR - ANTWERPEN'!$B$1:$GI$203,$A4,FALSE)),"") ->  | U4: =IFERROR(IF(ISNUMBER(SEARCH("KOPPEL",RISICOAFSTANDEN!$M$24,1)),RISICOAFSTANDEN!$N$24*HLOOKUP(SUBSTITUTE(RISICOAFSTANDEN!$M$24,"SLANG","LEIDING"),'DATA PMR - ANTWERPEN'!$B$1:$GI$203,$A4,FALSE)+RISICOAFSTANDEN!$N$24*RISICOAFSTANDEN!$O$24/8760*HLOOKUP(SUBSTITUTE(RISICOAFSTANDEN!$M$24,"KOPPEL","LOS"),'DATA PMR - ANTWERPEN'!$B$1:$GI$203,$A4,FALSE),RISICOAFSTANDEN!$N$24*RISICOAFSTANDEN!$O$24/8760*HLOOKUP(RISICOAFSTANDEN!$M$24,'DATA PMR - ANTWERPEN'!$B$1:$GI$203,$A4,FALSE)),"") ->  | V4: =IFERROR(IF(ISNUMBER(SEARCH("KOPPEL",RISICOAFSTANDEN!$M$25,1)),RISICOAFSTANDEN!$N$25*HLOOKUP(SUBSTITUTE(RISICOAFSTANDEN!$M$25,"SLANG","LEIDING"),'DATA PMR - ANTWERPEN'!$B$1:$GI$203,$A4,FALSE)+RISICOAFSTANDEN!$N$25*RISICOAFSTANDEN!$O$25/8760*HLOOKUP(SUBSTITUTE(RISICOAFSTANDEN!$M$25,"KOPPEL","LOS"),'DATA PMR - ANTWERPEN'!$B$1:$GI$203,$A4,FALSE),RISICOAFSTANDEN!$N$25*RISICOAFSTANDEN!$O$25/8760*HLOOKUP(RISICOAFSTANDEN!$M$25,'DATA PMR - ANTWERPEN'!$B$1:$GI$203,$A4,FALSE)),"") ->  | W4: =IFERROR(IF(ISNUMBER(SEARCH("KOPPEL",RISICOAFSTANDEN!$M$26,1)),RISICOAFSTANDEN!$N$26*HLOOKUP(SUBSTITUTE(RISICOAFSTANDEN!$M$26,"SLANG","LEIDING"),'DATA PMR - ANTWERPEN'!$B$1:$GI$203,$A4,FALSE)+RISICOAFSTANDEN!$N$26*RISICOAFSTANDEN!$O$26/8760*HLOOKUP(SUBSTITUTE(RISICOAFSTANDEN!$M$26,"KOPPEL","LOS"),'DATA PMR - ANTWERPEN'!$B$1:$GI$203,$A4,FALSE),RISICOAFSTANDEN!$N$26*RISICOAFSTANDEN!$O$26/8760*HLOOKUP(RISICOAFSTANDEN!$M$26,'DATA PMR - ANTWERPEN'!$B$1:$GI$203,$A4,FALSE)),"") ->  | X4: =IFERROR(IF(ISNUMBER(SEARCH("KOPPEL",RISICOAFSTANDEN!$M$27,1)),RISICOAFSTANDEN!$N$27*HLOOKUP(SUBSTITUTE(RISICOAFSTANDEN!$M$27,"SLANG","LEIDING"),'DATA PMR - ANTWERPEN'!$B$1:$GI$203,$A4,FALSE)+RISICOAFSTANDEN!$N$27*RISICOAFSTANDEN!$O$27/8760*HLOOKUP(SUBSTITUTE(RISICOAFSTANDEN!$M$27,"KOPPEL","LOS"),'DATA PMR - ANTWERPEN'!$B$1:$GI$203,$A4,FALSE),RISICOAFSTANDEN!$N$27*RISICOAFSTANDEN!$O$27/8760*HLOOKUP(RISICOAFSTANDEN!$M$27,'DATA PMR - ANTWERPEN'!$B$1:$GI$203,$A4,FALSE)),"") ->  | Y4: =IFERROR(IF(ISNUMBER(SEARCH("KOPPEL",RISICOAFSTANDEN!$M$28,1)),RISICOAFSTANDEN!$N$28*HLOOKUP(SUBSTITUTE(RISICOAFSTANDEN!$M$28,"SLANG","LEIDING"),'DATA PMR - ANTWERPEN'!$B$1:$GI$203,$A4,FALSE)+RISICOAFSTANDEN!$N$28*RISICOAFSTANDEN!$O$28/8760*HLOOKUP(SUBSTITUTE(RISICOAFSTANDEN!$M$28,"KOPPEL","LOS"),'DATA PMR - ANTWERPEN'!$B$1:$GI$203,$A4,FALSE),RISICOAFSTANDEN!$N$28*RISICOAFSTANDEN!$O$28/8760*HLOOKUP(RISICOAFSTANDEN!$M$28,'DATA PMR - ANTWERPEN'!$B$1:$GI$203,$A4,FALSE)),"") ->  | Z4: =IFERROR(IF(ISNUMBER(SEARCH("KOPPEL",RISICOAFSTANDEN!$M$29,1)),RISICOAFSTANDEN!$N$29*HLOOKUP(SUBSTITUTE(RISICOAFSTANDEN!$M$29,"SLANG","LEIDING"),'DATA PMR - ANTWERPEN'!$B$1:$GI$203,$A4,FALSE)+RISICOAFSTANDEN!$N$29*RISICOAFSTANDEN!$O$29/8760*HLOOKUP(SUBSTITUTE(RISICOAFSTANDEN!$M$29,"KOPPEL","LOS"),'DATA PMR - ANTWERPEN'!$B$1:$GI$203,$A4,FALSE),RISICOAFSTANDEN!$N$29*RISICOAFSTANDEN!$O$29/8760*HLOOKUP(RISICOAFSTANDEN!$M$29,'DATA PMR - ANTWERPEN'!$B$1:$GI$203,$A4,FALSE)),"") ->  | AA4: -6 | AB4: -5 | AC4: -6 | AD4: -4 | AE4: -6 | AF4: -6 | AG4: -5 | AH4: -6 | AI4: -6 | AJ4: -5 | AK4: -6 | AL4: -4 | AM4: n.b. | AN4: n.b. | AO4: n.b. | AP4: n.b. | AQ4: n.b. | AR4: n.b. | AS4: n.b. | AT4: n.b. | AU4: n.b. | AV4: n.b. | AW4: n.b. | AX4: n.b. | AY4: n.b. | AZ4: 2 | BB4: 0.0006447247054 | BC4: -4 | BD4: 2
A5: 6 | B5: =IFERROR(IF(ISNUMBER(SEARCH("KOPPEL",RISICOAFSTANDEN!$M$5,1)),RISICOAFSTANDEN!$N$5*HLOOKUP(SUBSTITUTE(RISICOAFSTANDEN!$M$5,"SLANG","LEIDING"),'DATA PMR - ANTWERPEN'!$B$1:$GI$203,$A5,FALSE)+RISICOAFSTANDEN!$N$5*RISICOAFSTANDEN!$O$5/8760*HLOOKUP(SUBSTITUTE(RISICOAFSTANDEN!$M$5,"KOPPEL","LOS"),'DATA PMR - ANTWERPEN'!$B$1:$GI$203,$A5,FALSE),RISICOAFSTANDEN!$N$5*RISICOAFSTANDEN!$O$5/8760*HLOOKUP(RISICOAFSTANDEN!$M$5,'DATA PMR - ANTWERPEN'!$B$1:$GI$203,$A5,FALSE)),"") -> 5.145797357e-06 | C5: =IFERROR(IF(ISNUMBER(SEARCH("KOPPEL",RISICOAFSTANDEN!$M$6,1)),RISICOAFSTANDEN!$N$6*HLOOKUP(SUBSTITUTE(RISICOAFSTANDEN!$M$6,"SLANG","LEIDING"),'DATA PMR - ANTWERPEN'!$B$1:$GI$203,$A5,FALSE)+RISICOAFSTANDEN!$N$6*RISICOAFSTANDEN!$O$6/8760*HLOOKUP(SUBSTITUTE(RISICOAFSTANDEN!$M$6,"KOPPEL","LOS"),'DATA PMR - ANTWERPEN'!$B$1:$GI$203,$A5,FALSE),RISICOAFSTANDEN!$N$6*RISICOAFSTANDEN!$O$6/8760*HLOOKUP(RISICOAFSTANDEN!$M$6,'DATA PMR - ANTWERPEN'!$B$1:$GI$203,$A5,FALSE)),"") -> 2.778875925e-05 | D5: =IFERROR(IF(ISNUMBER(SEARCH("KOPPEL",RISICOAFSTANDEN!$M$7,1)),RISICOAFSTANDEN!$N$7*HLOOKUP(SUBSTITUTE(RISICOAFSTANDEN!$M$7,"SLANG","LEIDING"),'DATA PMR - ANTWERPEN'!$B$1:$GI$203,$A5,FALSE)+RISICOAFSTANDEN!$N$7*RISICOAFSTANDEN!$O$7/8760*HLOOKUP(SUBSTITUTE(RISICOAFSTANDEN!$M$7,"KOPPEL","LOS"),'DATA PMR - ANTWERPEN'!$B$1:$GI$203,$A5,FALSE),RISICOAFSTANDEN!$N$7*RISICOAFSTANDEN!$O$7/8760*HLOOKUP(RISICOAFSTANDEN!$M$7,'DATA PMR - ANTWERPEN'!$B$1:$GI$203,$A5,FALSE)),"") -> 4.698932518e-07 | E5: =IFERROR(IF(ISNUMBER(SEARCH("KOPPEL",RISICOAFSTANDEN!$M$8,1)),RISICOAFSTANDEN!$N$8*HLOOKUP(SUBSTITUTE(RISICOAFSTANDEN!$M$8,"SLANG","LEIDING"),'DATA PMR - ANTWERPEN'!$B$1:$GI$203,$A5,FALSE)+RISICOAFSTANDEN!$N$8*RISICOAFSTANDEN!$O$8/8760*HLOOKUP(SUBSTITUTE(RISICOAFSTANDEN!$M$8,"KOPPEL","LOS"),'DATA PMR - ANTWERPEN'!$B$1:$GI$203,$A5,FALSE),RISICOAFSTANDEN!$N$8*RISICOAFSTANDEN!$O$8/8760*HLOOKUP(RISICOAFSTANDEN!$M$8,'DATA PMR - ANTWERPEN'!$B$1:$GI$203,$A5,FALSE)),"") -> 0.0002944286788 | F5: =IFERROR(IF(ISNUMBER(SEARCH("KOPPEL",RISICOAFSTANDEN!$M$9,1)),RISICOAFSTANDEN!$N$9*HLOOKUP(SUBSTITUTE(RISICOAFSTANDEN!$M$9,"SLANG","LEIDING"),'DATA PMR - ANTWERPEN'!$B$1:$GI$203,$A5,FALSE)+RISICOAFSTANDEN!$N$9*RISICOAFSTANDEN!$O$9/8760*HLOOKUP(SUBSTITUTE(RISICOAFSTANDEN!$M$9,"KOPPEL","LOS"),'DATA PMR - ANTWERPEN'!$B$1:$GI$203,$A5,FALSE),RISICOAFSTANDEN!$N$9*RISICOAFSTANDEN!$O$9/8760*HLOOKUP(RISICOAFSTANDEN!$M$9,'DATA PMR - ANTWERPEN'!$B$1:$GI$203,$A5,FALSE)),"") -> 9.108e-06 | G5: =IFERROR(IF(ISNUMBER(SEARCH("KOPPEL",RISICOAFSTANDEN!$M$10,1)),RISICOAFSTANDEN!$N$10*HLOOKUP(SUBSTITUTE(RISICOAFSTANDEN!$M$10,"SLANG","LEIDING"),'DATA PMR - ANTWERPEN'!$B$1:$GI$203,$A5,FALSE)+RISICOAFSTANDEN!$N$10*RISICOAFSTANDEN!$O$10/8760*HLOOKUP(SUBSTITUTE(RISICOAFSTANDEN!$M$10,"KOPPEL","LOS"),'DATA PMR - ANTWERPEN'!$B$1:$GI$203,$A5,FALSE),RISICOAFSTANDEN!$N$10*RISICOAFSTANDEN!$O$10/8760*HLOOKUP(RISICOAFSTANDEN!$M$10,'DATA PMR - ANTWERPEN'!$B$1:$GI$203,$A5,FALSE)),"") -> 3.219711797e-06 | H5: =IFERROR(IF(ISNUMBER(SEARCH("KOPPEL",RISICOAFSTANDEN!$M$11,1)),RISICOAFSTANDEN!$N$11*HLOOKUP(SUBSTITUTE(RISICOAFSTANDEN!$M$11,"SLANG","LEIDING"),'DATA PMR - ANTWERPEN'!$B$1:$GI$203,$A5,FALSE)+RISICOAFSTANDEN!$N$11*RISICOAFSTANDEN!$O$11/8760*HLOOKUP(SUBSTITUTE(RISICOAFSTANDEN!$M$11,"KOPPEL","LOS"),'DATA PMR - ANTWERPEN'!$B$1:$GI$203,$A5,FALSE),RISICOAFSTANDEN!$N$11*RISICOAFSTANDEN!$O$11/8760*HLOOKUP(RISICOAFSTANDEN!$M$11,'DATA PMR - ANTWERPEN'!$B$1:$GI$203,$A5,FALSE)),"") -> 2.032089172e-05 | I5: =IFERROR(IF(ISNUMBER(SEARCH("KOPPEL",RISICOAFSTANDEN!$M$12,1)),RISICOAFSTANDEN!$N$12*HLOOKUP(SUBSTITUTE(RISICOAFSTANDEN!$M$12,"SLANG","LEIDING"),'DATA PMR - ANTWERPEN'!$B$1:$GI$203,$A5,FALSE)+RISICOAFSTANDEN!$N$12*RISICOAFSTANDEN!$O$12/8760*HLOOKUP(SUBSTITUTE(RISICOAFSTANDEN!$M$12,"KOPPEL","LOS"),'DATA PMR - ANTWERPEN'!$B$1:$GI$203,$A5,FALSE),RISICOAFSTANDEN!$N$12*RISICOAFSTANDEN!$O$12/8760*HLOOKUP(RISICOAFSTANDEN!$M$12,'DATA PMR - ANTWERPEN'!$B$1:$GI$203,$A5,FALSE)),"") -> 1.8216e-06 | J5: =IFERROR(IF(ISNUMBER(SEARCH("KOPPEL",RISICOAFSTANDEN!$M$13,1)),RISICOAFSTANDEN!$N$13*HLOOKUP(SUBSTITUTE(RISICOAFSTANDEN!$M$13,"SLANG","LEIDING"),'DATA PMR - ANTWERPEN'!$B$1:$GI$203,$A5,FALSE)+RISICOAFSTANDEN!$N$13*RISICOAFSTANDEN!$O$13/8760*HLOOKUP(SUBSTITUTE(RISICOAFSTANDEN!$M$13,"KOPPEL","LOS"),'DATA PMR - ANTWERPEN'!$B$1:$GI$203,$A5,FALSE),RISICOAFSTANDEN!$N$13*RISICOAFSTANDEN!$O$13/8760*HLOOKUP(RISICOAFSTANDEN!$M$13,'DATA PMR - ANTWERPEN'!$B$1:$GI$203,$A5,FALSE)),"") -> 5.047842722e-07 | K5: =IFERROR(IF(ISNUMBER(SEARCH("KOPPEL",RISICOAFSTANDEN!$M$14,1)),RISICOAFSTANDEN!$N$14*HLOOKUP(SUBSTITUTE(RISICOAFSTANDEN!$M$14,"SLANG","LEIDING"),'DATA PMR - ANTWERPEN'!$B$1:$GI$203,$A5,FALSE)+RISICOAFSTANDEN!$N$14*RISICOAFSTANDEN!$O$14/8760*HLOOKUP(SUBSTITUTE(RISICOAFSTANDEN!$M$14,"KOPPEL","LOS"),'DATA PMR - ANTWERPEN'!$B$1:$GI$203,$A5,FALSE),RISICOAFSTANDEN!$N$14*RISICOAFSTANDEN!$O$14/8760*HLOOKUP(RISICOAFSTANDEN!$M$14,'DATA PMR - ANTWERPEN'!$B$1:$GI$203,$A5,FALSE)),"") -> 2.070687541e-05 | L5: =IFERROR(IF(ISNUMBER(SEARCH("KOPPEL",RISICOAFSTANDEN!$M$15,1)),RISICOAFSTANDEN!$N$15*HLOOKUP(SUBSTITUTE(RISICOAFSTANDEN!$M$15,"SLANG","LEIDING"),'DATA PMR - ANTWERPEN'!$B$1:$GI$203,$A5,FALSE)+RISICOAFSTANDEN!$N$15*RISICOAFSTANDEN!$O$15/8760*HLOOKUP(SUBSTITUTE(RISICOAFSTANDEN!$M$15,"KOPPEL","LOS"),'DATA PMR - ANTWERPEN'!$B$1:$GI$203,$A5,FALSE),RISICOAFSTANDEN!$N$15*RISICOAFSTANDEN!$O$15/8760*HLOOKUP(RISICOAFSTANDEN!$M$15,'DATA PMR - ANTWERPEN'!$B$1:$GI$203,$A5,FALSE)),"") -> 7.571764082e-07 | M5: =IFERROR(IF(ISNUMBER(SEARCH("KOPPEL",RISICOAFSTANDEN!$M$16,1)),RISICOAFSTANDEN!$N$16*HLOOKUP(SUBSTITUTE(RISICOAFSTANDEN!$M$16,"SLANG","LEIDING"),'DATA PMR - ANTWERPEN'!$B$1:$GI$203,$A5,FALSE)+RISICOAFSTANDEN!$N$16*RISICOAFSTANDEN!$O$16/8760*HLOOKUP(SUBSTITUTE(RISICOAFSTANDEN!$M$16,"KOPPEL","LOS"),'DATA PMR - ANTWERPEN'!$B$1:$GI$203,$A5,FALSE),RISICOAFSTANDEN!$N$16*RISICOAFSTANDEN!$O$16/8760*HLOOKUP(RISICOAFSTANDEN!$M$16,'DATA PMR - ANTWERPEN'!$B$1:$GI$203,$A5,FALSE)),"") -> 9.253595765e-06 | N5: =IFERROR(IF(ISNUMBER(SEARCH("KOPPEL",RISICOAFSTANDEN!$M$17,1)),RISICOAFSTANDEN!$N$17*HLOOKUP(SUBSTITUTE(RISICOAFSTANDEN!$M$17,"SLANG","LEIDING"),'DATA PMR - ANTWERPEN'!$B$1:$GI$203,$A5,FALSE)+RISICOAFSTANDEN!$N$17*RISICOAFSTANDEN!$O$17/8760*HLOOKUP(SUBSTITUTE(RISICOAFSTANDEN!$M$17,"KOPPEL","LOS"),'DATA PMR - ANTWERPEN'!$B$1:$GI$203,$A5,FALSE),RISICOAFSTANDEN!$N$17*RISICOAFSTANDEN!$O$17/8760*HLOOKUP(RISICOAFSTANDEN!$M$17,'DATA PMR - ANTWERPEN'!$B$1:$GI$203,$A5,FALSE)),"") ->  | O5: =IFERROR(IF(ISNUMBER(SEARCH("KOPPEL",RISICOAFSTANDEN!$M$18,1)),RISICOAFSTANDEN!$N$18*HLOOKUP(SUBSTITUTE(RISICOAFSTANDEN!$M$18,"SLANG","LEIDING"),'DATA PMR - ANTWERPEN'!$B$1:$GI$203,$A5,FALSE)+RISICOAFSTANDEN!$N$18*RISICOAFSTANDEN!$O$18/8760*HLOOKUP(SUBSTITUTE(RISICOAFSTANDEN!$M$18,"KOPPEL","LOS"),'DATA PMR - ANTWERPEN'!$B$1:$GI$203,$A5,FALSE),RISICOAFSTANDEN!$N$18*RISICOAFSTANDEN!$O$18/8760*HLOOKUP(RISICOAFSTANDEN!$M$18,'DATA PMR - ANTWERPEN'!$B$1:$GI$203,$A5,FALSE)),"") ->  | P5: =IFERROR(IF(ISNUMBER(SEARCH("KOPPEL",RISICOAFSTANDEN!$M$19,1)),RISICOAFSTANDEN!$N$19*HLOOKUP(SUBSTITUTE(RISICOAFSTANDEN!$M$19,"SLANG","LEIDING"),'DATA PMR - ANTWERPEN'!$B$1:$GI$203,$A5,FALSE)+RISICOAFSTANDEN!$N$19*RISICOAFSTANDEN!$O$19/8760*HLOOKUP(SUBSTITUTE(RISICOAFSTANDEN!$M$19,"KOPPEL","LOS"),'DATA PMR - ANTWERPEN'!$B$1:$GI$203,$A5,FALSE),RISICOAFSTANDEN!$N$19*RISICOAFSTANDEN!$O$19/8760*HLOOKUP(RISICOAFSTANDEN!$M$19,'DATA PMR - ANTWERPEN'!$B$1:$GI$203,$A5,FALSE)),"") ->  | Q5: =IFERROR(IF(ISNUMBER(SEARCH("KOPPEL",RISICOAFSTANDEN!$M$20,1)),RISICOAFSTANDEN!$N$20*HLOOKUP(SUBSTITUTE(RISICOAFSTANDEN!$M$20,"SLANG","LEIDING"),'DATA PMR - ANTWERPEN'!$B$1:$GI$203,$A5,FALSE)+RISICOAFSTANDEN!$N$20*RISICOAFSTANDEN!$O$20/8760*HLOOKUP(SUBSTITUTE(RISICOAFSTANDEN!$M$20,"KOPPEL","LOS"),'DATA PMR - ANTWERPEN'!$B$1:$GI$203,$A5,FALSE),RISICOAFSTANDEN!$N$20*RISICOAFSTANDEN!$O$20/8760*HLOOKUP(RISICOAFSTANDEN!$M$20,'DATA PMR - ANTWERPEN'!$B$1:$GI$203,$A5,FALSE)),"") ->  | R5: =IFERROR(IF(ISNUMBER(SEARCH("KOPPEL",RISICOAFSTANDEN!$M$21,1)),RISICOAFSTANDEN!$N$21*HLOOKUP(SUBSTITUTE(RISICOAFSTANDEN!$M$21,"SLANG","LEIDING"),'DATA PMR - ANTWERPEN'!$B$1:$GI$203,$A5,FALSE)+RISICOAFSTANDEN!$N$21*RISICOAFSTANDEN!$O$21/8760*HLOOKUP(SUBSTITUTE(RISICOAFSTANDEN!$M$21,"KOPPEL","LOS"),'DATA PMR - ANTWERPEN'!$B$1:$GI$203,$A5,FALSE),RISICOAFSTANDEN!$N$21*RISICOAFSTANDEN!$O$21/8760*HLOOKUP(RISICOAFSTANDEN!$M$21,'DATA PMR - ANTWERPEN'!$B$1:$GI$203,$A5,FALSE)),"") ->  | S5: =IFERROR(IF(ISNUMBER(SEARCH("KOPPEL",RISICOAFSTANDEN!$M$22,1)),RISICOAFSTANDEN!$N$22*HLOOKUP(SUBSTITUTE(RISICOAFSTANDEN!$M$22,"SLANG","LEIDING"),'DATA PMR - ANTWERPEN'!$B$1:$GI$203,$A5,FALSE)+RISICOAFSTANDEN!$N$22*RISICOAFSTANDEN!$O$22/8760*HLOOKUP(SUBSTITUTE(RISICOAFSTANDEN!$M$22,"KOPPEL","LOS"),'DATA PMR - ANTWERPEN'!$B$1:$GI$203,$A5,FALSE),RISICOAFSTANDEN!$N$22*RISICOAFSTANDEN!$O$22/8760*HLOOKUP(RISICOAFSTANDEN!$M$22,'DATA PMR - ANTWERPEN'!$B$1:$GI$203,$A5,FALSE)),"") ->  | T5: =IFERROR(IF(ISNUMBER(SEARCH("KOPPEL",RISICOAFSTANDEN!$M$23,1)),RISICOAFSTANDEN!$N$23*HLOOKUP(SUBSTITUTE(RISICOAFSTANDEN!$M$23,"SLANG","LEIDING"),'DATA PMR - ANTWERPEN'!$B$1:$GI$203,$A5,FALSE)+RISICOAFSTANDEN!$N$23*RISICOAFSTANDEN!$O$23/8760*HLOOKUP(SUBSTITUTE(RISICOAFSTANDEN!$M$23,"KOPPEL","LOS"),'DATA PMR - ANTWERPEN'!$B$1:$GI$203,$A5,FALSE),RISICOAFSTANDEN!$N$23*RISICOAFSTANDEN!$O$23/8760*HLOOKUP(RISICOAFSTANDEN!$M$23,'DATA PMR - ANTWERPEN'!$B$1:$GI$203,$A5,FALSE)),"") ->  | U5: =IFERROR(IF(ISNUMBER(SEARCH("KOPPEL",RISICOAFSTANDEN!$M$24,1)),RISICOAFSTANDEN!$N$24*HLOOKUP(SUBSTITUTE(RISICOAFSTANDEN!$M$24,"SLANG","LEIDING"),'DATA PMR - ANTWERPEN'!$B$1:$GI$203,$A5,FALSE)+RISICOAFSTANDEN!$N$24*RISICOAFSTANDEN!$O$24/8760*HLOOKUP(SUBSTITUTE(RISICOAFSTANDEN!$M$24,"KOPPEL","LOS"),'DATA PMR - ANTWERPEN'!$B$1:$GI$203,$A5,FALSE),RISICOAFSTANDEN!$N$24*RISICOAFSTANDEN!$O$24/8760*HLOOKUP(RISICOAFSTANDEN!$M$24,'DATA PMR - ANTWERPEN'!$B$1:$GI$203,$A5,FALSE)),"") ->  | V5: =IFERROR(IF(ISNUMBER(SEARCH("KOPPEL",RISICOAFSTANDEN!$M$25,1)),RISICOAFSTANDEN!$N$25*HLOOKUP(SUBSTITUTE(RISICOAFSTANDEN!$M$25,"SLANG","LEIDING"),'DATA PMR - ANTWERPEN'!$B$1:$GI$203,$A5,FALSE)+RISICOAFSTANDEN!$N$25*RISICOAFSTANDEN!$O$25/8760*HLOOKUP(SUBSTITUTE(RISICOAFSTANDEN!$M$25,"KOPPEL","LOS"),'DATA PMR - ANTWERPEN'!$B$1:$GI$203,$A5,FALSE),RISICOAFSTANDEN!$N$25*RISICOAFSTANDEN!$O$25/8760*HLOOKUP(RISICOAFSTANDEN!$M$25,'DATA PMR - ANTWERPEN'!$B$1:$GI$203,$A5,FALSE)),"") ->  | W5: =IFERROR(IF(ISNUMBER(SEARCH("KOPPEL",RISICOAFSTANDEN!$M$26,1)),RISICOAFSTANDEN!$N$26*HLOOKUP(SUBSTITUTE(RISICOAFSTANDEN!$M$26,"SLANG","LEIDING"),'DATA PMR - ANTWERPEN'!$B$1:$GI$203,$A5,FALSE)+RISICOAFSTANDEN!$N$26*RISICOAFSTANDEN!$O$26/8760*HLOOKUP(SUBSTITUTE(RISICOAFSTANDEN!$M$26,"KOPPEL","LOS"),'DATA PMR - ANTWERPEN'!$B$1:$GI$203,$A5,FALSE),RISICOAFSTANDEN!$N$26*RISICOAFSTANDEN!$O$26/8760*HLOOKUP(RISICOAFSTANDEN!$M$26,'DATA PMR - ANTWERPEN'!$B$1:$GI$203,$A5,FALSE)),"") ->  | X5: =IFERROR(IF(ISNUMBER(SEARCH("KOPPEL",RISICOAFSTANDEN!$M$27,1)),RISICOAFSTANDEN!$N$27*HLOOKUP(SUBSTITUTE(RISICOAFSTANDEN!$M$27,"SLANG","LEIDING"),'DATA PMR - ANTWERPEN'!$B$1:$GI$203,$A5,FALSE)+RISICOAFSTANDEN!$N$27*RISICOAFSTANDEN!$O$27/8760*HLOOKUP(SUBSTITUTE(RISICOAFSTANDEN!$M$27,"KOPPEL","LOS"),'DATA PMR - ANTWERPEN'!$B$1:$GI$203,$A5,FALSE),RISICOAFSTANDEN!$N$27*RISICOAFSTANDEN!$O$27/8760*HLOOKUP(RISICOAFSTANDEN!$M$27,'DATA PMR - ANTWERPEN'!$B$1:$GI$203,$A5,FALSE)),"") ->  | Y5: =IFERROR(IF(ISNUMBER(SEARCH("KOPPEL",RISICOAFSTANDEN!$M$28,1)),RISICOAFSTANDEN!$N$28*HLOOKUP(SUBSTITUTE(RISICOAFSTANDEN!$M$28,"SLANG","LEIDING"),'DATA PMR - ANTWERPEN'!$B$1:$GI$203,$A5,FALSE)+RISICOAFSTANDEN!$N$28*RISICOAFSTANDEN!$O$28/8760*HLOOKUP(SUBSTITUTE(RISICOAFSTANDEN!$M$28,"KOPPEL","LOS"),'DATA PMR - ANTWERPEN'!$B$1:$GI$203,$A5,FALSE),RISICOAFSTANDEN!$N$28*RISICOAFSTANDEN!$O$28/8760*HLOOKUP(RISICOAFSTANDEN!$M$28,'DATA PMR - ANTWERPEN'!$B$1:$GI$203,$A5,FALSE)),"") ->  | Z5: =IFERROR(IF(ISNUMBER(SEARCH("KOPPEL",RISICOAFSTANDEN!$M$29,1)),RISICOAFSTANDEN!$N$29*HLOOKUP(SUBSTITUTE(RISICOAFSTANDEN!$M$29,"SLANG","LEIDING"),'DATA PMR - ANTWERPEN'!$B$1:$GI$203,$A5,FALSE)+RISICOAFSTANDEN!$N$29*RISICOAFSTANDEN!$O$29/8760*HLOOKUP(SUBSTITUTE(RISICOAFSTANDEN!$M$29,"KOPPEL","LOS"),'DATA PMR - ANTWERPEN'!$B$1:$GI$203,$A5,FALSE),RISICOAFSTANDEN!$N$29*RISICOAFSTANDEN!$O$29/8760*HLOOKUP(RISICOAFSTANDEN!$M$29,'DATA PMR - ANTWERPEN'!$B$1:$GI$203,$A5,FALSE)),"") ->  | AA5: -6 | AB5: -5 | AC5: -7 | AD5: -4 | AE5: -6 | AF5: -6 | AG5: -5 | AH5: -6 | AI5: -7 | AJ5: -5 | AK5: -7 | AL5: -6 | AM5: n.b. | AN5: n.b. | AO5: n.b. | AP5: n.b. | AQ5: n.b. | AR5: n.b. | AS5: n.b. | AT5: n.b. | AU5: n.b. | AV5: n.b. | AW5: n.b. | AX5: n.b. | AY5: n.b. | AZ5: 3 | BB5: 0.0003935257641 | BC5: -4 | BD5: 3
A6: 7 | B6: =IFERROR(IF(ISNUMBER(SEARCH("KOPPEL",RISICOAFSTANDEN!$M$5,1)),RISICOAFSTANDEN!$N$5*HLOOKUP(SUBSTITUTE(RISICOAFSTANDEN!$M$5,"SLANG","LEIDING"),'DATA PMR - ANTWERPEN'!$B$1:$GI$203,$A6,FALSE)+RISICOAFSTANDEN!$N$5*RISICOAFSTANDEN!$O$5/8760*HLOOKUP(SUBSTITUTE(RISICOAFSTANDEN!$M$5,"KOPPEL","LOS"),'DATA PMR - ANTWERPEN'!$B$1:$GI$203,$A6,FALSE),RISICOAFSTANDEN!$N$5*RISICOAFSTANDEN!$O$5/8760*HLOOKUP(RISICOAFSTANDEN!$M$5,'DATA PMR - ANTWERPEN'!$B$1:$GI$203,$A6,FALSE)),"") -> 4.392156522e-06 | C6: =IFERROR(IF(ISNUMBER(SEARCH("KOPPEL",RISICOAFSTANDEN!$M$6,1)),RISICOAFSTANDEN!$N$6*HLOOKUP(SUBSTITUTE(RISICOAFSTANDEN!$M$6,"SLANG","LEIDING"),'DATA PMR - ANTWERPEN'!$B$1:$GI$203,$A6,FALSE)+RISICOAFSTANDEN!$N$6*RISICOAFSTANDEN!$O$6/8760*HLOOKUP(SUBSTITUTE(RISICOAFSTANDEN!$M$6,"KOPPEL","LOS"),'DATA PMR - ANTWERPEN'!$B$1:$GI$203,$A6,FALSE),RISICOAFSTANDEN!$N$6*RISICOAFSTANDEN!$O$6/8760*HLOOKUP(RISICOAFSTANDEN!$M$6,'DATA PMR - ANTWERPEN'!$B$1:$GI$203,$A6,FALSE)),"") -> 1.641950994e-05 | D6: =IFERROR(IF(ISNUMBER(SEARCH("KOPPEL",RISICOAFSTANDEN!$M$7,1)),RISICOAFSTANDEN!$N$7*HLOOKUP(SUBSTITUTE(RISICOAFSTANDEN!$M$7,"SLANG","LEIDING"),'DATA PMR - ANTWERPEN'!$B$1:$GI$203,$A6,FALSE)+RISICOAFSTANDEN!$N$7*RISICOAFSTANDEN!$O$7/8760*HLOOKUP(SUBSTITUTE(RISICOAFSTANDEN!$M$7,"KOPPEL","LOS"),'DATA PMR - ANTWERPEN'!$B$1:$GI$203,$A6,FALSE),RISICOAFSTANDEN!$N$7*RISICOAFSTANDEN!$O$7/8760*HLOOKUP(RISICOAFSTANDEN!$M$7,'DATA PMR - ANTWERPEN'!$B$1:$GI$203,$A6,FALSE)),"") -> 2.115316913e-07 | E6: =IFERROR(IF(ISNUMBER(SEARCH("KOPPEL",RISICOAFSTANDEN!$M$8,1)),RISICOAFSTANDEN!$N$8*HLOOKUP(SUBSTITUTE(RISICOAFSTANDEN!$M$8,"SLANG","LEIDING"),'DATA PMR - ANTWERPEN'!$B$1:$GI$203,$A6,FALSE)+RISICOAFSTANDEN!$N$8*RISICOAFSTANDEN!$O$8/8760*HLOOKUP(SUBSTITUTE(RISICOAFSTANDEN!$M$8,"KOPPEL","LOS"),'DATA PMR - ANTWERPEN'!$B$1:$GI$203,$A6,FALSE),RISICOAFSTANDEN!$N$8*RISICOAFSTANDEN!$O$8/8760*HLOOKUP(RISICOAFSTANDEN!$M$8,'DATA PMR - ANTWERPEN'!$B$1:$GI$203,$A6,FALSE)),"") -> 0.0001595935556 | F6: =IFERROR(IF(ISNUMBER(SEARCH("KOPPEL",RISICOAFSTANDEN!$M$9,1)),RISICOAFSTANDEN!$N$9*HLOOKUP(SUBSTITUTE(RISICOAFSTANDEN!$M$9,"SLANG","LEIDING"),'DATA PMR - ANTWERPEN'!$B$1:$GI$203,$A6,FALSE)+RISICOAFSTANDEN!$N$9*RISICOAFSTANDEN!$O$9/8760*HLOOKUP(SUBSTITUTE(RISICOAFSTANDEN!$M$9,"KOPPEL","LOS"),'DATA PMR - ANTWERPEN'!$B$1:$GI$203,$A6,FALSE),RISICOAFSTANDEN!$N$9*RISICOAFSTANDEN!$O$9/8760*HLOOKUP(RISICOAFSTANDEN!$M$9,'DATA PMR - ANTWERPEN'!$B$1:$GI$203,$A6,FALSE)),"") -> 9.108e-06 | G6: =IFERROR(IF(ISNUMBER(SEARCH("KOPPEL",RISICOAFSTANDEN!$M$10,1)),RISICOAFSTANDEN!$N$10*HLOOKUP(SUBSTITUTE(RISICOAFSTANDEN!$M$10,"SLANG","LEIDING"),'DATA PMR - ANTWERPEN'!$B$1:$GI$203,$A6,FALSE)+RISICOAFSTANDEN!$N$10*RISICOAFSTANDEN!$O$10/8760*HLOOKUP(SUBSTITUTE(RISICOAFSTANDEN!$M$10,"KOPPEL","LOS"),'DATA PMR - ANTWERPEN'!$B$1:$GI$203,$A6,FALSE),RISICOAFSTANDEN!$N$10*RISICOAFSTANDEN!$O$10/8760*HLOOKUP(RISICOAFSTANDEN!$M$10,'DATA PMR - ANTWERPEN'!$B$1:$GI$203,$A6,FALSE)),"") -> 8.033277587e-07 | H6: =IFERROR(IF(ISNUMBER(SEARCH("KOPPEL",RISICOAFSTANDEN!$M$11,1)),RISICOAFSTANDEN!$N$11*HLOOKUP(SUBSTITUTE(RISICOAFSTANDEN!$M$11,"SLANG","LEIDING"),'DATA PMR - ANTWERPEN'!$B$1:$GI$203,$A6,FALSE)+RISICOAFSTANDEN!$N$11*RISICOAFSTANDEN!$O$11/8760*HLOOKUP(SUBSTITUTE(RISICOAFSTANDEN!$M$11,"KOPPEL","LOS"),'DATA PMR - ANTWERPEN'!$B$1:$GI$203,$A6,FALSE),RISICOAFSTANDEN!$N$11*RISICOAFSTANDEN!$O$11/8760*HLOOKUP(RISICOAFSTANDEN!$M$11,'DATA PMR - ANTWERPEN'!$B$1:$GI$203,$A6,FALSE)),"") -> 1.779695461e-05 | I6: =IFERROR(IF(ISNUMBER(SEARCH("KOPPEL",RISICOAFSTANDEN!$M$12,1)),RISICOAFSTANDEN!$N$12*HLOOKUP(SUBSTITUTE(RISICOAFSTANDEN!$M$12,"SLANG","LEIDING"),'DATA PMR - ANTWERPEN'!$B$1:$GI$203,$A6,FALSE)+RISICOAFSTANDEN!$N$12*RISICOAFSTANDEN!$O$12/8760*HLOOKUP(SUBSTITUTE(RISICOAFSTANDEN!$M$12,"KOPPEL","LOS"),'DATA PMR - ANTWERPEN'!$B$1:$GI$203,$A6,FALSE),RISICOAFSTANDEN!$N$12*RISICOAFSTANDEN!$O$12/8760*HLOOKUP(RISICOAFSTANDEN!$M$12,'DATA PMR - ANTWERPEN'!$B$1:$GI$203,$A6,FALSE)),"") -> 1.8216e-06 | J6: =IFERROR(IF(ISNUMBER(SEARCH("KOPPEL",RISICOAFSTANDEN!$M$13,1)),RISICOAFSTANDEN!$N$13*HLOOKUP(SUBSTITUTE(RISICOAFSTANDEN!$M$13,"SLANG","LEIDING"),'DATA PMR - ANTWERPEN'!$B$1:$GI$203,$A6,FALSE)+RISICOAFSTANDEN!$N$13*RISICOAFSTANDEN!$O$13/8760*HLOOKUP(SUBSTITUTE(RISICOAFSTANDEN!$M$13,"KOPPEL","LOS"),'DATA PMR - ANTWERPEN'!$B$1:$GI$203,$A6,FALSE),RISICOAFSTANDEN!$N$13*RISICOAFSTANDEN!$O$13/8760*HLOOKUP(RISICOAFSTANDEN!$M$13,'DATA PMR - ANTWERPEN'!$B$1:$GI$203,$A6,FALSE)),"") -> 2.337473723e-07 | K6: =IFERROR(IF(ISNUMBER(SEARCH("KOPPEL",RISICOAFSTANDEN!$M$14,1)),RISICOAFSTANDEN!$N$14*HLOOKUP(SUBSTITUTE(RISICOAFSTANDEN!$M$14,"SLANG","LEIDING"),'DATA PMR - ANTWERPEN'!$B$1:$GI$203,$A6,FALSE)+RISICOAFSTANDEN!$N$14*RISICOAFSTANDEN!$O$14/8760*HLOOKUP(SUBSTITUTE(RISICOAFSTANDEN!$M$14,"KOPPEL","LOS"),'DATA PMR - ANTWERPEN'!$B$1:$GI$203,$A6,FALSE),RISICOAFSTANDEN!$N$14*RISICOAFSTANDEN!$O$14/8760*HLOOKUP(RISICOAFSTANDEN!$M$14,'DATA PMR - ANTWERPEN'!$B$1:$GI$203,$A6,FALSE)),"") -> 1.78214548e-05 | L6: =IFERROR(IF(ISNUMBER(SEARCH("KOPPEL",RISICOAFSTANDEN!$M$15,1)),RISICOAFSTANDEN!$N$15*HLOOKUP(SUBSTITUTE(RISICOAFSTANDEN!$M$15,"SLANG","LEIDING"),'DATA PMR - ANTWERPEN'!$B$1:$GI$203,$A6,FALSE)+RISICOAFSTANDEN!$N$15*RISICOAFSTANDEN!$O$15/8760*HLOOKUP(SUBSTITUTE(RISICOAFSTANDEN!$M$15,"KOPPEL","LOS"),'DATA PMR - ANTWERPEN'!$B$1:$GI$203,$A6,FALSE),RISICOAFSTANDEN!$N$15*RISICOAFSTANDEN!$O$15/8760*HLOOKUP(RISICOAFSTANDEN!$M$15,'DATA PMR - ANTWERPEN'!$B$1:$GI$203,$A6,FALSE)),"") -> 3.506210585e-07 | M6: =IFERROR(IF(ISNUMBER(SEARCH("KOPPEL",RISICOAFSTANDEN!$M$16,1)),RISICOAFSTANDEN!$N$16*HLOOKUP(SUBSTITUTE(RISICOAFSTANDEN!$M$16,"SLANG","LEIDING"),'DATA PMR - ANTWERPEN'!$B$1:$GI$203,$A6,FALSE)+RISICOAFSTANDEN!$N$16*RISICOAFSTANDEN!$O$16/8760*HLOOKUP(SUBSTITUTE(RISICOAFSTANDEN!$M$16,"KOPPEL","LOS"),'DATA PMR - ANTWERPEN'!$B$1:$GI$203,$A6,FALSE),RISICOAFSTANDEN!$N$16*RISICOAFSTANDEN!$O$16/8760*HLOOKUP(RISICOAFSTANDEN!$M$16,'DATA PMR - ANTWERPEN'!$B$1:$GI$203,$A6,FALSE)),"") -> 7.626205991e-06 | N6: =IFERROR(IF(ISNUMBER(SEARCH("KOPPEL",RISICOAFSTANDEN!$M$17,1)),RISICOAFSTANDEN!$N$17*HLOOKUP(SUBSTITUTE(RISICOAFSTANDEN!$M$17,"SLANG","LEIDING"),'DATA PMR - ANTWERPEN'!$B$1:$GI$203,$A6,FALSE)+RISICOAFSTANDEN!$N$17*RISICOAFSTANDEN!$O$17/8760*HLOOKUP(SUBSTITUTE(RISICOAFSTANDEN!$M$17,"KOPPEL","LOS"),'DATA PMR - ANTWERPEN'!$B$1:$GI$203,$A6,FALSE),RISICOAFSTANDEN!$N$17*RISICOAFSTANDEN!$O$17/8760*HLOOKUP(RISICOAFSTANDEN!$M$17,'DATA PMR - ANTWERPEN'!$B$1:$GI$203,$A6,FALSE)),"") ->  | O6: =IFERROR(IF(ISNUMBER(SEARCH("KOPPEL",RISICOAFSTANDEN!$M$18,1)),RISICOAFSTANDEN!$N$18*HLOOKUP(SUBSTITUTE(RISICOAFSTANDEN!$M$18,"SLANG","LEIDING"),'DATA PMR - ANTWERPEN'!$B$1:$GI$203,$A6,FALSE)+RISICOAFSTANDEN!$N$18*RISICOAFSTANDEN!$O$18/8760*HLOOKUP(SUBSTITUTE(RISICOAFSTANDEN!$M$18,"KOPPEL","LOS"),'DATA PMR - ANTWERPEN'!$B$1:$GI$203,$A6,FALSE),RISICOAFSTANDEN!$N$18*RISICOAFSTANDEN!$O$18/8760*HLOOKUP(RISICOAFSTANDEN!$M$18,'DATA PMR - ANTWERPEN'!$B$1:$GI$203,$A6,FALSE)),"") ->  | P6: =IFERROR(IF(ISNUMBER(SEARCH("KOPPEL",RISICOAFSTANDEN!$M$19,1)),RISICOAFSTANDEN!$N$19*HLOOKUP(SUBSTITUTE(RISICOAFSTANDEN!$M$19,"SLANG","LEIDING"),'DATA PMR - ANTWERPEN'!$B$1:$GI$203,$A6,FALSE)+RISICOAFSTANDEN!$N$19*RISICOAFSTANDEN!$O$19/8760*HLOOKUP(SUBSTITUTE(RISICOAFSTANDEN!$M$19,"KOPPEL","LOS"),'DATA PMR - ANTWERPEN'!$B$1:$GI$203,$A6,FALSE),RISICOAFSTANDEN!$N$19*RISICOAFSTANDEN!$O$19/8760*HLOOKUP(RISICOAFSTANDEN!$M$19,'DATA PMR - ANTWERPEN'!$B$1:$GI$203,$A6,FALSE)),"") ->  | Q6: =IFERROR(IF(ISNUMBER(SEARCH("KOPPEL",RISICOAFSTANDEN!$M$20,1)),RISICOAFSTANDEN!$N$20*HLOOKUP(SUBSTITUTE(RISICOAFSTANDEN!$M$20,"SLANG","LEIDING"),'DATA PMR - ANTWERPEN'!$B$1:$GI$203,$A6,FALSE)+RISICOAFSTANDEN!$N$20*RISICOAFSTANDEN!$O$20/8760*HLOOKUP(SUBSTITUTE(RISICOAFSTANDEN!$M$20,"KOPPEL","LOS"),'DATA PMR - ANTWERPEN'!$B$1:$GI$203,$A6,FALSE),RISICOAFSTANDEN!$N$20*RISICOAFSTANDEN!$O$20/8760*HLOOKUP(RISICOAFSTANDEN!$M$20,'DATA PMR - ANTWERPEN'!$B$1:$GI$203,$A6,FALSE)),"") ->  | R6: =IFERROR(IF(ISNUMBER(SEARCH("KOPPEL",RISICOAFSTANDEN!$M$21,1)),RISICOAFSTANDEN!$N$21*HLOOKUP(SUBSTITUTE(RISICOAFSTANDEN!$M$21,"SLANG","LEIDING"),'DATA PMR - ANTWERPEN'!$B$1:$GI$203,$A6,FALSE)+RISICOAFSTANDEN!$N$21*RISICOAFSTANDEN!$O$21/8760*HLOOKUP(SUBSTITUTE(RISICOAFSTANDEN!$M$21,"KOPPEL","LOS"),'DATA PMR - ANTWERPEN'!$B$1:$GI$203,$A6,FALSE),RISICOAFSTANDEN!$N$21*RISICOAFSTANDEN!$O$21/8760*HLOOKUP(RISICOAFSTANDEN!$M$21,'DATA PMR - ANTWERPEN'!$B$1:$GI$203,$A6,FALSE)),"") ->  | S6: =IFERROR(IF(ISNUMBER(SEARCH("KOPPEL",RISICOAFSTANDEN!$M$22,1)),RISICOAFSTANDEN!$N$22*HLOOKUP(SUBSTITUTE(RISICOAFSTANDEN!$M$22,"SLANG","LEIDING"),'DATA PMR - ANTWERPEN'!$B$1:$GI$203,$A6,FALSE)+RISICOAFSTANDEN!$N$22*RISICOAFSTANDEN!$O$22/8760*HLOOKUP(SUBSTITUTE(RISICOAFSTANDEN!$M$22,"KOPPEL","LOS"),'DATA PMR - ANTWERPEN'!$B$1:$GI$203,$A6,FALSE),RISICOAFSTANDEN!$N$22*RISICOAFSTANDEN!$O$22/8760*HLOOKUP(RISICOAFSTANDEN!$M$22,'DATA PMR - ANTWERPEN'!$B$1:$GI$203,$A6,FALSE)),"") ->  | T6: =IFERROR(IF(ISNUMBER(SEARCH("KOPPEL",RISICOAFSTANDEN!$M$23,1)),RISICOAFSTANDEN!$N$23*HLOOKUP(SUBSTITUTE(RISICOAFSTANDEN!$M$23,"SLANG","LEIDING"),'DATA PMR - ANTWERPEN'!$B$1:$GI$203,$A6,FALSE)+RISICOAFSTANDEN!$N$23*RISICOAFSTANDEN!$O$23/8760*HLOOKUP(SUBSTITUTE(RISICOAFSTANDEN!$M$23,"KOPPEL","LOS"),'DATA PMR - ANTWERPEN'!$B$1:$GI$203,$A6,FALSE),RISICOAFSTANDEN!$N$23*RISICOAFSTANDEN!$O$23/8760*HLOOKUP(RISICOAFSTANDEN!$M$23,'DATA PMR - ANTWERPEN'!$B$1:$GI$203,$A6,FALSE)),"") ->  | U6: =IFERROR(IF(ISNUMBER(SEARCH("KOPPEL",RISICOAFSTANDEN!$M$24,1)),RISICOAFSTANDEN!$N$24*HLOOKUP(SUBSTITUTE(RISICOAFSTANDEN!$M$24,"SLANG","LEIDING"),'DATA PMR - ANTWERPEN'!$B$1:$GI$203,$A6,FALSE)+RISICOAFSTANDEN!$N$24*RISICOAFSTANDEN!$O$24/8760*HLOOKUP(SUBSTITUTE(RISICOAFSTANDEN!$M$24,"KOPPEL","LOS"),'DATA PMR - ANTWERPEN'!$B$1:$GI$203,$A6,FALSE),RISICOAFSTANDEN!$N$24*RISICOAFSTANDEN!$O$24/8760*HLOOKUP(RISICOAFSTANDEN!$M$24,'DATA PMR - ANTWERPEN'!$B$1:$GI$203,$A6,FALSE)),"") ->  | V6: =IFERROR(IF(ISNUMBER(SEARCH("KOPPEL",RISICOAFSTANDEN!$M$25,1)),RISICOAFSTANDEN!$N$25*HLOOKUP(SUBSTITUTE(RISICOAFSTANDEN!$M$25,"SLANG","LEIDING"),'DATA PMR - ANTWERPEN'!$B$1:$GI$203,$A6,FALSE)+RISICOAFSTANDEN!$N$25*RISICOAFSTANDEN!$O$25/8760*HLOOKUP(SUBSTITUTE(RISICOAFSTANDEN!$M$25,"KOPPEL","LOS"),'DATA PMR - ANTWERPEN'!$B$1:$GI$203,$A6,FALSE),RISICOAFSTANDEN!$N$25*RISICOAFSTANDEN!$O$25/8760*HLOOKUP(RISICOAFSTANDEN!$M$25,'DATA PMR - ANTWERPEN'!$B$1:$GI$203,$A6,FALSE)),"") ->  | W6: =IFERROR(IF(ISNUMBER(SEARCH("KOPPEL",RISICOAFSTANDEN!$M$26,1)),RISICOAFSTANDEN!$N$26*HLOOKUP(SUBSTITUTE(RISICOAFSTANDEN!$M$26,"SLANG","LEIDING"),'DATA PMR - ANTWERPEN'!$B$1:$GI$203,$A6,FALSE)+RISICOAFSTANDEN!$N$26*RISICOAFSTANDEN!$O$26/8760*HLOOKUP(SUBSTITUTE(RISICOAFSTANDEN!$M$26,"KOPPEL","LOS"),'DATA PMR - ANTWERPEN'!$B$1:$GI$203,$A6,FALSE),RISICOAFSTANDEN!$N$26*RISICOAFSTANDEN!$O$26/8760*HLOOKUP(RISICOAFSTANDEN!$M$26,'DATA PMR - ANTWERPEN'!$B$1:$GI$203,$A6,FALSE)),"") ->  | X6: =IFERROR(IF(ISNUMBER(SEARCH("KOPPEL",RISICOAFSTANDEN!$M$27,1)),RISICOAFSTANDEN!$N$27*HLOOKUP(SUBSTITUTE(RISICOAFSTANDEN!$M$27,"SLANG","LEIDING"),'DATA PMR - ANTWERPEN'!$B$1:$GI$203,$A6,FALSE)+RISICOAFSTANDEN!$N$27*RISICOAFSTANDEN!$O$27/8760*HLOOKUP(SUBSTITUTE(RISICOAFSTANDEN!$M$27,"KOPPEL","LOS"),'DATA PMR - ANTWERPEN'!$B$1:$GI$203,$A6,FALSE),RISICOAFSTANDEN!$N$27*RISICOAFSTANDEN!$O$27/8760*HLOOKUP(RISICOAFSTANDEN!$M$27,'DATA PMR - ANTWERPEN'!$B$1:$GI$203,$A6,FALSE)),"") ->  | Y6: =IFERROR(IF(ISNUMBER(SEARCH("KOPPEL",RISICOAFSTANDEN!$M$28,1)),RISICOAFSTANDEN!$N$28*HLOOKUP(SUBSTITUTE(RISICOAFSTANDEN!$M$28,"SLANG","LEIDING"),'DATA PMR - ANTWERPEN'!$B$1:$GI$203,$A6,FALSE)+RISICOAFSTANDEN!$N$28*RISICOAFSTANDEN!$O$28/8760*HLOOKUP(SUBSTITUTE(RISICOAFSTANDEN!$M$28,"KOPPEL","LOS"),'DATA PMR - ANTWERPEN'!$B$1:$GI$203,$A6,FALSE),RISICOAFSTANDEN!$N$28*RISICOAFSTANDEN!$O$28/8760*HLOOKUP(RISICOAFSTANDEN!$M$28,'DATA PMR - ANTWERPEN'!$B$1:$GI$203,$A6,FALSE)),"") ->  | Z6: =IFERROR(IF(ISNUMBER(SEARCH("KOPPEL",RISICOAFSTANDEN!$M$29,1)),RISICOAFSTANDEN!$N$29*HLOOKUP(SUBSTITUTE(RISICOAFSTANDEN!$M$29,"SLANG","LEIDING"),'DATA PMR - ANTWERPEN'!$B$1:$GI$203,$A6,FALSE)+RISICOAFSTANDEN!$N$29*RISICOAFSTANDEN!$O$29/8760*HLOOKUP(SUBSTITUTE(RISICOAFSTANDEN!$M$29,"KOPPEL","LOS"),'DATA PMR - ANTWERPEN'!$B$1:$GI$203,$A6,FALSE),RISICOAFSTANDEN!$N$29*RISICOAFSTANDEN!$O$29/8760*HLOOKUP(RISICOAFSTANDEN!$M$29,'DATA PMR - ANTWERPEN'!$B$1:$GI$203,$A6,FALSE)),"") ->  | AA6: -6 | AB6: -5 | AC6: -7 | AD6: -4 | AE6: -6 | AF6: -7 | AG6: -5 | AH6: -6 | AI6: -7 | AJ6: -5 | AK6: -7 | AL6: -6 | AM6: n.b. | AN6: n.b. | AO6: n.b. | AP6: n.b. | AQ6: n.b. | AR6: n.b. | AS6: n.b. | AT6: n.b. | AU6: n.b. | AV6: n.b. | AW6: n.b. | AX6: n.b. | AY6: n.b. | AZ6: 4 | BB6: 0.0002361786654 | BC6: -4 | BD6: 4
A7: 8 | B7: =IFERROR(IF(ISNUMBER(SEARCH("KOPPEL",RISICOAFSTANDEN!$M$5,1)),RISICOAFSTANDEN!$N$5*HLOOKUP(SUBSTITUTE(RISICOAFSTANDEN!$M$5,"SLANG","LEIDING"),'DATA PMR - ANTWERPEN'!$B$1:$GI$203,$A7,FALSE)+RISICOAFSTANDEN!$N$5*RISICOAFSTANDEN!$O$5/8760*HLOOKUP(SUBSTITUTE(RISICOAFSTANDEN!$M$5,"KOPPEL","LOS"),'DATA PMR - ANTWERPEN'!$B$1:$GI$203,$A7,FALSE),RISICOAFSTANDEN!$N$5*RISICOAFSTANDEN!$O$5/8760*HLOOKUP(RISICOAFSTANDEN!$M$5,'DATA PMR - ANTWERPEN'!$B$1:$GI$203,$A7,FALSE)),"") -> 3.842744166e-06 | C7: =IFERROR(IF(ISNUMBER(SEARCH("KOPPEL",RISICOAFSTANDEN!$M$6,1)),RISICOAFSTANDEN!$N$6*HLOOKUP(SUBSTITUTE(RISICOAFSTANDEN!$M$6,"SLANG","LEIDING"),'DATA PMR - ANTWERPEN'!$B$1:$GI$203,$A7,FALSE)+RISICOAFSTANDEN!$N$6*RISICOAFSTANDEN!$O$6/8760*HLOOKUP(SUBSTITUTE(RISICOAFSTANDEN!$M$6,"KOPPEL","LOS"),'DATA PMR - ANTWERPEN'!$B$1:$GI$203,$A7,FALSE),RISICOAFSTANDEN!$N$6*RISICOAFSTANDEN!$O$6/8760*HLOOKUP(RISICOAFSTANDEN!$M$6,'DATA PMR - ANTWERPEN'!$B$1:$GI$203,$A7,FALSE)),"") -> 8.865569969e-06 | D7: =IFERROR(IF(ISNUMBER(SEARCH("KOPPEL",RISICOAFSTANDEN!$M$7,1)),RISICOAFSTANDEN!$N$7*HLOOKUP(SUBSTITUTE(RISICOAFSTANDEN!$M$7,"SLANG","LEIDING"),'DATA PMR - ANTWERPEN'!$B$1:$GI$203,$A7,FALSE)+RISICOAFSTANDEN!$N$7*RISICOAFSTANDEN!$O$7/8760*HLOOKUP(SUBSTITUTE(RISICOAFSTANDEN!$M$7,"KOPPEL","LOS"),'DATA PMR - ANTWERPEN'!$B$1:$GI$203,$A7,FALSE),RISICOAFSTANDEN!$N$7*RISICOAFSTANDEN!$O$7/8760*HLOOKUP(RISICOAFSTANDEN!$M$7,'DATA PMR - ANTWERPEN'!$B$1:$GI$203,$A7,FALSE)),"") -> 9.063997549e-08 | E7: =IFERROR(IF(ISNUMBER(SEARCH("KOPPEL",RISICOAFSTANDEN!$M$8,1)),RISICOAFSTANDEN!$N$8*HLOOKUP(SUBSTITUTE(RISICOAFSTANDEN!$M$8,"SLANG","LEIDING"),'DATA PMR - ANTWERPEN'!$B$1:$GI$203,$A7,FALSE)+RISICOAFSTANDEN!$N$8*RISICOAFSTANDEN!$O$8/8760*HLOOKUP(SUBSTITUTE(RISICOAFSTANDEN!$M$8,"KOPPEL","LOS"),'DATA PMR - ANTWERPEN'!$B$1:$GI$203,$A7,FALSE),RISICOAFSTANDEN!$N$8*RISICOAFSTANDEN!$O$8/8760*HLOOKUP(RISICOAFSTANDEN!$M$8,'DATA PMR - ANTWERPEN'!$B$1:$GI$203,$A7,FALSE)),"") -> 7.408500203e-05 | F7: =IFERROR(IF(ISNUMBER(SEARCH("KOPPEL",RISICOAFSTANDEN!$M$9,1)),RISICOAFSTANDEN!$N$9*HLOOKUP(SUBSTITUTE(RISICOAFSTANDEN!$M$9,"SLANG","LEIDING"),'DATA PMR - ANTWERPEN'!$B$1:$GI$203,$A7,FALSE)+RISICOAFSTANDEN!$N$9*RISICOAFSTANDEN!$O$9/8760*HLOOKUP(SUBSTITUTE(RISICOAFSTANDEN!$M$9,"KOPPEL","LOS"),'DATA PMR - ANTWERPEN'!$B$1:$GI$203,$A7,FALSE),RISICOAFSTANDEN!$N$9*RISICOAFSTANDEN!$O$9/8760*HLOOKUP(RISICOAFSTANDEN!$M$9,'DATA PMR - ANTWERPEN'!$B$1:$GI$203,$A7,FALSE)),"") -> 6.134507312e-06 | G7: =IFERROR(IF(ISNUMBER(SEARCH("KOPPEL",RISICOAFSTANDEN!$M$10,1)),RISICOAFSTANDEN!$N$10*HLOOKUP(SUBSTITUTE(RISICOAFSTANDEN!$M$10,"SLANG","LEIDING"),'DATA PMR - ANTWERPEN'!$B$1:$GI$203,$A7,FALSE)+RISICOAFSTANDEN!$N$10*RISICOAFSTANDEN!$O$10/8760*HLOOKUP(SUBSTITUTE(RISICOAFSTANDEN!$M$10,"KOPPEL","LOS"),'DATA PMR - ANTWERPEN'!$B$1:$GI$203,$A7,FALSE),RISICOAFSTANDEN!$N$10*RISICOAFSTANDEN!$O$10/8760*HLOOKUP(RISICOAFSTANDEN!$M$10,'DATA PMR - ANTWERPEN'!$B$1:$GI$203,$A7,FALSE)),"") -> 3.896849821e-07 | H7: =IFERROR(IF(ISNUMBER(SEARCH("KOPPEL",RISICOAFSTANDEN!$M$11,1)),RISICOAFSTANDEN!$N$11*HLOOKUP(SUBSTITUTE(RISICOAFSTANDEN!$M$11,"SLANG","LEIDING"),'DATA PMR - ANTWERPEN'!$B$1:$GI$203,$A7,FALSE)+RISICOAFSTANDEN!$N$11*RISICOAFSTANDEN!$O$11/8760*HLOOKUP(SUBSTITUTE(RISICOAFSTANDEN!$M$11,"KOPPEL","LOS"),'DATA PMR - ANTWERPEN'!$B$1:$GI$203,$A7,FALSE),RISICOAFSTANDEN!$N$11*RISICOAFSTANDEN!$O$11/8760*HLOOKUP(RISICOAFSTANDEN!$M$11,'DATA PMR - ANTWERPEN'!$B$1:$GI$203,$A7,FALSE)),"") -> 1.078863648e-05 | I7: =IFERROR(IF(ISNUMBER(SEARCH("KOPPEL",RISICOAFSTANDEN!$M$12,1)),RISICOAFSTANDEN!$N$12*HLOOKUP(SUBSTITUTE(RISICOAFSTANDEN!$M$12,"SLANG","LEIDING"),'DATA PMR - ANTWERPEN'!$B$1:$GI$203,$A7,FALSE)+RISICOAFSTANDEN!$N$12*RISICOAFSTANDEN!$O$12/8760*HLOOKUP(SUBSTITUTE(RISICOAFSTANDEN!$M$12,"KOPPEL","LOS"),'DATA PMR - ANTWERPEN'!$B$1:$GI$203,$A7,FALSE),RISICOAFSTANDEN!$N$12*RISICOAFSTANDEN!$O$12/8760*HLOOKUP(RISICOAFSTANDEN!$M$12,'DATA PMR - ANTWERPEN'!$B$1:$GI$203,$A7,FALSE)),"") -> 1.226901462e-06 | J7: =IFERROR(IF(ISNUMBER(SEARCH("KOPPEL",RISICOAFSTANDEN!$M$13,1)),RISICOAFSTANDEN!$N$13*HLOOKUP(SUBSTITUTE(RISICOAFSTANDEN!$M$13,"SLANG","LEIDING"),'DATA PMR - ANTWERPEN'!$B$1:$GI$203,$A7,FALSE)+RISICOAFSTANDEN!$N$13*RISICOAFSTANDEN!$O$13/8760*HLOOKUP(SUBSTITUTE(RISICOAFSTANDEN!$M$13,"KOPPEL","LOS"),'DATA PMR - ANTWERPEN'!$B$1:$GI$203,$A7,FALSE),RISICOAFSTANDEN!$N$13*RISICOAFSTANDEN!$O$13/8760*HLOOKUP(RISICOAFSTANDEN!$M$13,'DATA PMR - ANTWERPEN'!$B$1:$GI$203,$A7,FALSE)),"") -> 9.379269658e-08 | K7: =IFERROR(IF(ISNUMBER(SEARCH("KOPPEL",RISICOAFSTANDEN!$M$14,1)),RISICOAFSTANDEN!$N$14*HLOOKUP(SUBSTITUTE(RISICOAFSTANDEN!$M$14,"SLANG","LEIDING"),'DATA PMR - ANTWERPEN'!$B$1:$GI$203,$A7,FALSE)+RISICOAFSTANDEN!$N$14*RISICOAFSTANDEN!$O$14/8760*HLOOKUP(SUBSTITUTE(RISICOAFSTANDEN!$M$14,"KOPPEL","LOS"),'DATA PMR - ANTWERPEN'!$B$1:$GI$203,$A7,FALSE),RISICOAFSTANDEN!$N$14*RISICOAFSTANDEN!$O$14/8760*HLOOKUP(RISICOAFSTANDEN!$M$14,'DATA PMR - ANTWERPEN'!$B$1:$GI$203,$A7,FALSE)),"") -> 1.317704105e-05 | L7: =IFERROR(IF(ISNUMBER(SEARCH("KOPPEL",RISICOAFSTANDEN!$M$15,1)),RISICOAFSTANDEN!$N$15*HLOOKUP(SUBSTITUTE(RISICOAFSTANDEN!$M$15,"SLANG","LEIDING"),'DATA PMR - ANTWERPEN'!$B$1:$GI$203,$A7,FALSE)+RISICOAFSTANDEN!$N$15*RISICOAFSTANDEN!$O$15/8760*HLOOKUP(SUBSTITUTE(RISICOAFSTANDEN!$M$15,"KOPPEL","LOS"),'DATA PMR - ANTWERPEN'!$B$1:$GI$203,$A7,FALSE),RISICOAFSTANDEN!$N$15*RISICOAFSTANDEN!$O$15/8760*HLOOKUP(RISICOAFSTANDEN!$M$15,'DATA PMR - ANTWERPEN'!$B$1:$GI$203,$A7,FALSE)),"") -> 1.406890449e-07 | M7: =IFERROR(IF(ISNUMBER(SEARCH("KOPPEL",RISICOAFSTANDEN!$M$16,1)),RISICOAFSTANDEN!$N$16*HLOOKUP(SUBSTITUTE(RISICOAFSTANDEN!$M$16,"SLANG","LEIDING"),'DATA PMR - ANTWERPEN'!$B$1:$GI$203,$A7,FALSE)+RISICOAFSTANDEN!$N$16*RISICOAFSTANDEN!$O$16/8760*HLOOKUP(SUBSTITUTE(RISICOAFSTANDEN!$M$16,"KOPPEL","LOS"),'DATA PMR - ANTWERPEN'!$B$1:$GI$203,$A7,FALSE),RISICOAFSTANDEN!$N$16*RISICOAFSTANDEN!$O$16/8760*HLOOKUP(RISICOAFSTANDEN!$M$16,'DATA PMR - ANTWERPEN'!$B$1:$GI$203,$A7,FALSE)),"") -> 6.755823499e-06 | N7: =IFERROR(IF(ISNUMBER(SEARCH("KOPPEL",RISICOAFSTANDEN!$M$17,1)),RISICOAFSTANDEN!$N$17*HLOOKUP(SUBSTITUTE(RISICOAFSTANDEN!$M$17,"SLANG","LEIDING"),'DATA PMR - ANTWERPEN'!$B$1:$GI$203,$A7,FALSE)+RISICOAFSTANDEN!$N$17*RISICOAFSTANDEN!$O$17/8760*HLOOKUP(SUBSTITUTE(RISICOAFSTANDEN!$M$17,"KOPPEL","LOS"),'DATA PMR - ANTWERPEN'!$B$1:$GI$203,$A7,FALSE),RISICOAFSTANDEN!$N$17*RISICOAFSTANDEN!$O$17/8760*HLOOKUP(RISICOAFSTANDEN!$M$17,'DATA PMR - ANTWERPEN'!$B$1:$GI$203,$A7,FALSE)),"") ->  | O7: =IFERROR(IF(ISNUMBER(SEARCH("KOPPEL",RISICOAFSTANDEN!$M$18,1)),RISICOAFSTANDEN!$N$18*HLOOKUP(SUBSTITUTE(RISICOAFSTANDEN!$M$18,"SLANG","LEIDING"),'DATA PMR - ANTWERPEN'!$B$1:$GI$203,$A7,FALSE)+RISICOAFSTANDEN!$N$18*RISICOAFSTANDEN!$O$18/8760*HLOOKUP(SUBSTITUTE(RISICOAFSTANDEN!$M$18,"KOPPEL","LOS"),'DATA PMR - ANTWERPEN'!$B$1:$GI$203,$A7,FALSE),RISICOAFSTANDEN!$N$18*RISICOAFSTANDEN!$O$18/8760*HLOOKUP(RISICOAFSTANDEN!$M$18,'DATA PMR - ANTWERPEN'!$B$1:$GI$203,$A7,FALSE)),"") ->  | P7: =IFERROR(IF(ISNUMBER(SEARCH("KOPPEL",RISICOAFSTANDEN!$M$19,1)),RISICOAFSTANDEN!$N$19*HLOOKUP(SUBSTITUTE(RISICOAFSTANDEN!$M$19,"SLANG","LEIDING"),'DATA PMR - ANTWERPEN'!$B$1:$GI$203,$A7,FALSE)+RISICOAFSTANDEN!$N$19*RISICOAFSTANDEN!$O$19/8760*HLOOKUP(SUBSTITUTE(RISICOAFSTANDEN!$M$19,"KOPPEL","LOS"),'DATA PMR - ANTWERPEN'!$B$1:$GI$203,$A7,FALSE),RISICOAFSTANDEN!$N$19*RISICOAFSTANDEN!$O$19/8760*HLOOKUP(RISICOAFSTANDEN!$M$19,'DATA PMR - ANTWERPEN'!$B$1:$GI$203,$A7,FALSE)),"") ->  | Q7: =IFERROR(IF(ISNUMBER(SEARCH("KOPPEL",RISICOAFSTANDEN!$M$20,1)),RISICOAFSTANDEN!$N$20*HLOOKUP(SUBSTITUTE(RISICOAFSTANDEN!$M$20,"SLANG","LEIDING"),'DATA PMR - ANTWERPEN'!$B$1:$GI$203,$A7,FALSE)+RISICOAFSTANDEN!$N$20*RISICOAFSTANDEN!$O$20/8760*HLOOKUP(SUBSTITUTE(RISICOAFSTANDEN!$M$20,"KOPPEL","LOS"),'DATA PMR - ANTWERPEN'!$B$1:$GI$203,$A7,FALSE),RISICOAFSTANDEN!$N$20*RISICOAFSTANDEN!$O$20/8760*HLOOKUP(RISICOAFSTANDEN!$M$20,'DATA PMR - ANTWERPEN'!$B$1:$GI$203,$A7,FALSE)),"") ->  | R7: =IFERROR(IF(ISNUMBER(SEARCH("KOPPEL",RISICOAFSTANDEN!$M$21,1)),RISICOAFSTANDEN!$N$21*HLOOKUP(SUBSTITUTE(RISICOAFSTANDEN!$M$21,"SLANG","LEIDING"),'DATA PMR - ANTWERPEN'!$B$1:$GI$203,$A7,FALSE)+RISICOAFSTANDEN!$N$21*RISICOAFSTANDEN!$O$21/8760*HLOOKUP(SUBSTITUTE(RISICOAFSTANDEN!$M$21,"KOPPEL","LOS"),'DATA PMR - ANTWERPEN'!$B$1:$GI$203,$A7,FALSE),RISICOAFSTANDEN!$N$21*RISICOAFSTANDEN!$O$21/8760*HLOOKUP(RISICOAFSTANDEN!$M$21,'DATA PMR - ANTWERPEN'!$B$1:$GI$203,$A7,FALSE)),"") ->  | S7: =IFERROR(IF(ISNUMBER(SEARCH("KOPPEL",RISICOAFSTANDEN!$M$22,1)),RISICOAFSTANDEN!$N$22*HLOOKUP(SUBSTITUTE(RISICOAFSTANDEN!$M$22,"SLANG","LEIDING"),'DATA PMR - ANTWERPEN'!$B$1:$GI$203,$A7,FALSE)+RISICOAFSTANDEN!$N$22*RISICOAFSTANDEN!$O$22/8760*HLOOKUP(SUBSTITUTE(RISICOAFSTANDEN!$M$22,"KOPPEL","LOS"),'DATA PMR - ANTWERPEN'!$B$1:$GI$203,$A7,FALSE),RISICOAFSTANDEN!$N$22*RISICOAFSTANDEN!$O$22/8760*HLOOKUP(RISICOAFSTANDEN!$M$22,'DATA PMR - ANTWERPEN'!$B$1:$GI$203,$A7,FALSE)),"") ->  | T7: =IFERROR(IF(ISNUMBER(SEARCH("KOPPEL",RISICOAFSTANDEN!$M$23,1)),RISICOAFSTANDEN!$N$23*HLOOKUP(SUBSTITUTE(RISICOAFSTANDEN!$M$23,"SLANG","LEIDING"),'DATA PMR - ANTWERPEN'!$B$1:$GI$203,$A7,FALSE)+RISICOAFSTANDEN!$N$23*RISICOAFSTANDEN!$O$23/8760*HLOOKUP(SUBSTITUTE(RISICOAFSTANDEN!$M$23,"KOPPEL","LOS"),'DATA PMR - ANTWERPEN'!$B$1:$GI$203,$A7,FALSE),RISICOAFSTANDEN!$N$23*RISICOAFSTANDEN!$O$23/8760*HLOOKUP(RISICOAFSTANDEN!$M$23,'DATA PMR - ANTWERPEN'!$B$1:$GI$203,$A7,FALSE)),"") ->  | U7: =IFERROR(IF(ISNUMBER(SEARCH("KOPPEL",RISICOAFSTANDEN!$M$24,1)),RISICOAFSTANDEN!$N$24*HLOOKUP(SUBSTITUTE(RISICOAFSTANDEN!$M$24,"SLANG","LEIDING"),'DATA PMR - ANTWERPEN'!$B$1:$GI$203,$A7,FALSE)+RISICOAFSTANDEN!$N$24*RISICOAFSTANDEN!$O$24/8760*HLOOKUP(SUBSTITUTE(RISICOAFSTANDEN!$M$24,"KOPPEL","LOS"),'DATA PMR - ANTWERPEN'!$B$1:$GI$203,$A7,FALSE),RISICOAFSTANDEN!$N$24*RISICOAFSTANDEN!$O$24/8760*HLOOKUP(RISICOAFSTANDEN!$M$24,'DATA PMR - ANTWERPEN'!$B$1:$GI$203,$A7,FALSE)),"") ->  | V7: =IFERROR(IF(ISNUMBER(SEARCH("KOPPEL",RISICOAFSTANDEN!$M$25,1)),RISICOAFSTANDEN!$N$25*HLOOKUP(SUBSTITUTE(RISICOAFSTANDEN!$M$25,"SLANG","LEIDING"),'DATA PMR - ANTWERPEN'!$B$1:$GI$203,$A7,FALSE)+RISICOAFSTANDEN!$N$25*RISICOAFSTANDEN!$O$25/8760*HLOOKUP(SUBSTITUTE(RISICOAFSTANDEN!$M$25,"KOPPEL","LOS"),'DATA PMR - ANTWERPEN'!$B$1:$GI$203,$A7,FALSE),RISICOAFSTANDEN!$N$25*RISICOAFSTANDEN!$O$25/8760*HLOOKUP(RISICOAFSTANDEN!$M$25,'DATA PMR - ANTWERPEN'!$B$1:$GI$203,$A7,FALSE)),"") ->  | W7: =IFERROR(IF(ISNUMBER(SEARCH("KOPPEL",RISICOAFSTANDEN!$M$26,1)),RISICOAFSTANDEN!$N$26*HLOOKUP(SUBSTITUTE(RISICOAFSTANDEN!$M$26,"SLANG","LEIDING"),'DATA PMR - ANTWERPEN'!$B$1:$GI$203,$A7,FALSE)+RISICOAFSTANDEN!$N$26*RISICOAFSTANDEN!$O$26/8760*HLOOKUP(SUBSTITUTE(RISICOAFSTANDEN!$M$26,"KOPPEL","LOS"),'DATA PMR - ANTWERPEN'!$B$1:$GI$203,$A7,FALSE),RISICOAFSTANDEN!$N$26*RISICOAFSTANDEN!$O$26/8760*HLOOKUP(RISICOAFSTANDEN!$M$26,'DATA PMR - ANTWERPEN'!$B$1:$GI$203,$A7,FALSE)),"") ->  | X7: =IFERROR(IF(ISNUMBER(SEARCH("KOPPEL",RISICOAFSTANDEN!$M$27,1)),RISICOAFSTANDEN!$N$27*HLOOKUP(SUBSTITUTE(RISICOAFSTANDEN!$M$27,"SLANG","LEIDING"),'DATA PMR - ANTWERPEN'!$B$1:$GI$203,$A7,FALSE)+RISICOAFSTANDEN!$N$27*RISICOAFSTANDEN!$O$27/8760*HLOOKUP(SUBSTITUTE(RISICOAFSTANDEN!$M$27,"KOPPEL","LOS"),'DATA PMR - ANTWERPEN'!$B$1:$GI$203,$A7,FALSE),RISICOAFSTANDEN!$N$27*RISICOAFSTANDEN!$O$27/8760*HLOOKUP(RISICOAFSTANDEN!$M$27,'DATA PMR - ANTWERPEN'!$B$1:$GI$203,$A7,FALSE)),"") ->  | Y7: =IFERROR(IF(ISNUMBER(SEARCH("KOPPEL",RISICOAFSTANDEN!$M$28,1)),RISICOAFSTANDEN!$N$28*HLOOKUP(SUBSTITUTE(RISICOAFSTANDEN!$M$28,"SLANG","LEIDING"),'DATA PMR - ANTWERPEN'!$B$1:$GI$203,$A7,FALSE)+RISICOAFSTANDEN!$N$28*RISICOAFSTANDEN!$O$28/8760*HLOOKUP(SUBSTITUTE(RISICOAFSTANDEN!$M$28,"KOPPEL","LOS"),'DATA PMR - ANTWERPEN'!$B$1:$GI$203,$A7,FALSE),RISICOAFSTANDEN!$N$28*RISICOAFSTANDEN!$O$28/8760*HLOOKUP(RISICOAFSTANDEN!$M$28,'DATA PMR - ANTWERPEN'!$B$1:$GI$203,$A7,FALSE)),"") ->  | Z7: =IFERROR(IF(ISNUMBER(SEARCH("KOPPEL",RISICOAFSTANDEN!$M$29,1)),RISICOAFSTANDEN!$N$29*HLOOKUP(SUBSTITUTE(RISICOAFSTANDEN!$M$29,"SLANG","LEIDING"),'DATA PMR - ANTWERPEN'!$B$1:$GI$203,$A7,FALSE)+RISICOAFSTANDEN!$N$29*RISICOAFSTANDEN!$O$29/8760*HLOOKUP(SUBSTITUTE(RISICOAFSTANDEN!$M$29,"KOPPEL","LOS"),'DATA PMR - ANTWERPEN'!$B$1:$GI$203,$A7,FALSE),RISICOAFSTANDEN!$N$29*RISICOAFSTANDEN!$O$29/8760*HLOOKUP(RISICOAFSTANDEN!$M$29,'DATA PMR - ANTWERPEN'!$B$1:$GI$203,$A7,FALSE)),"") ->  | AA7: -6 | AB7: -6 | AC7: -8 | AD7: -5 | AE7: -6 | AF7: -7 | AG7: -5 | AH7: -6 | AI7: -8 | AJ7: -5 | AK7: -7 | AL7: -6 | AM7: n.b. | AN7: n.b. | AO7: n.b. | AP7: n.b. | AQ7: n.b. | AR7: n.b. | AS7: n.b. | AT7: n.b. | AU7: n.b. | AV7: n.b. | AW7: n.b. | AX7: n.b. | AY7: n.b. | AZ7: 5 | BB7: 0.0001255910327 | BC7: -4 | BD7: 5
A8: 9 | B8: =IFERROR(IF(ISNUMBER(SEARCH("KOPPEL",RISICOAFSTANDEN!$M$5,1)),RISICOAFSTANDEN!$N$5*HLOOKUP(SUBSTITUTE(RISICOAFSTANDEN!$M$5,"SLANG","LEIDING"),'DATA PMR - ANTWERPEN'!$B$1:$GI$203,$A8,FALSE)+RISICOAFSTANDEN!$N$5*RISICOAFSTANDEN!$O$5/8760*HLOOKUP(SUBSTITUTE(RISICOAFSTANDEN!$M$5,"KOPPEL","LOS"),'DATA PMR - ANTWERPEN'!$B$1:$GI$203,$A8,FALSE),RISICOAFSTANDEN!$N$5*RISICOAFSTANDEN!$O$5/8760*HLOOKUP(RISICOAFSTANDEN!$M$5,'DATA PMR - ANTWERPEN'!$B$1:$GI$203,$A8,FALSE)),"") -> 3.48912302e-06 | C8: =IFERROR(IF(ISNUMBER(SEARCH("KOPPEL",RISICOAFSTANDEN!$M$6,1)),RISICOAFSTANDEN!$N$6*HLOOKUP(SUBSTITUTE(RISICOAFSTANDEN!$M$6,"SLANG","LEIDING"),'DATA PMR - ANTWERPEN'!$B$1:$GI$203,$A8,FALSE)+RISICOAFSTANDEN!$N$6*RISICOAFSTANDEN!$O$6/8760*HLOOKUP(SUBSTITUTE(RISICOAFSTANDEN!$M$6,"KOPPEL","LOS"),'DATA PMR - ANTWERPEN'!$B$1:$GI$203,$A8,FALSE),RISICOAFSTANDEN!$N$6*RISICOAFSTANDEN!$O$6/8760*HLOOKUP(RISICOAFSTANDEN!$M$6,'DATA PMR - ANTWERPEN'!$B$1:$GI$203,$A8,FALSE)),"") -> 5.626867437e-06 | D8: =IFERROR(IF(ISNUMBER(SEARCH("KOPPEL",RISICOAFSTANDEN!$M$7,1)),RISICOAFSTANDEN!$N$7*HLOOKUP(SUBSTITUTE(RISICOAFSTANDEN!$M$7,"SLANG","LEIDING"),'DATA PMR - ANTWERPEN'!$B$1:$GI$203,$A8,FALSE)+RISICOAFSTANDEN!$N$7*RISICOAFSTANDEN!$O$7/8760*HLOOKUP(SUBSTITUTE(RISICOAFSTANDEN!$M$7,"KOPPEL","LOS"),'DATA PMR - ANTWERPEN'!$B$1:$GI$203,$A8,FALSE),RISICOAFSTANDEN!$N$7*RISICOAFSTANDEN!$O$7/8760*HLOOKUP(RISICOAFSTANDEN!$M$7,'DATA PMR - ANTWERPEN'!$B$1:$GI$203,$A8,FALSE)),"") -> 5.261907238e-08 | E8: =IFERROR(IF(ISNUMBER(SEARCH("KOPPEL",RISICOAFSTANDEN!$M$8,1)),RISICOAFSTANDEN!$N$8*HLOOKUP(SUBSTITUTE(RISICOAFSTANDEN!$M$8,"SLANG","LEIDING"),'DATA PMR - ANTWERPEN'!$B$1:$GI$203,$A8,FALSE)+RISICOAFSTANDEN!$N$8*RISICOAFSTANDEN!$O$8/8760*HLOOKUP(SUBSTITUTE(RISICOAFSTANDEN!$M$8,"KOPPEL","LOS"),'DATA PMR - ANTWERPEN'!$B$1:$GI$203,$A8,FALSE),RISICOAFSTANDEN!$N$8*RISICOAFSTANDEN!$O$8/8760*HLOOKUP(RISICOAFSTANDEN!$M$8,'DATA PMR - ANTWERPEN'!$B$1:$GI$203,$A8,FALSE)),"") -> 4.061463119e-05 | F8: =IFERROR(IF(ISNUMBER(SEARCH("KOPPEL",RISICOAFSTANDEN!$M$9,1)),RISICOAFSTANDEN!$N$9*HLOOKUP(SUBSTITUTE(RISICOAFSTANDEN!$M$9,"SLANG","LEIDING"),'DATA PMR - ANTWERPEN'!$B$1:$GI$203,$A8,FALSE)+RISICOAFSTANDEN!$N$9*RISICOAFSTANDEN!$O$9/8760*HLOOKUP(SUBSTITUTE(RISICOAFSTANDEN!$M$9,"KOPPEL","LOS"),'DATA PMR - ANTWERPEN'!$B$1:$GI$203,$A8,FALSE),RISICOAFSTANDEN!$N$9*RISICOAFSTANDEN!$O$9/8760*HLOOKUP(RISICOAFSTANDEN!$M$9,'DATA PMR - ANTWERPEN'!$B$1:$GI$203,$A8,FALSE)),"") -> 3.580372938e-06 | G8: =IFERROR(IF(ISNUMBER(SEARCH("KOPPEL",RISICOAFSTANDEN!$M$10,1)),RISICOAFSTANDEN!$N$10*HLOOKUP(SUBSTITUTE(RISICOAFSTANDEN!$M$10,"SLANG","LEIDING"),'DATA PMR - ANTWERPEN'!$B$1:$GI$203,$A8,FALSE)+RISICOAFSTANDEN!$N$10*RISICOAFSTANDEN!$O$10/8760*HLOOKUP(SUBSTITUTE(RISICOAFSTANDEN!$M$10,"KOPPEL","LOS"),'DATA PMR - ANTWERPEN'!$B$1:$GI$203,$A8,FALSE),RISICOAFSTANDEN!$N$10*RISICOAFSTANDEN!$O$10/8760*HLOOKUP(RISICOAFSTANDEN!$M$10,'DATA PMR - ANTWERPEN'!$B$1:$GI$203,$A8,FALSE)),"") -> 2.597820259e-07 | H8: =IFERROR(IF(ISNUMBER(SEARCH("KOPPEL",RISICOAFSTANDEN!$M$11,1)),RISICOAFSTANDEN!$N$11*HLOOKUP(SUBSTITUTE(RISICOAFSTANDEN!$M$11,"SLANG","LEIDING"),'DATA PMR - ANTWERPEN'!$B$1:$GI$203,$A8,FALSE)+RISICOAFSTANDEN!$N$11*RISICOAFSTANDEN!$O$11/8760*HLOOKUP(SUBSTITUTE(RISICOAFSTANDEN!$M$11,"KOPPEL","LOS"),'DATA PMR - ANTWERPEN'!$B$1:$GI$203,$A8,FALSE),RISICOAFSTANDEN!$N$11*RISICOAFSTANDEN!$O$11/8760*HLOOKUP(RISICOAFSTANDEN!$M$11,'DATA PMR - ANTWERPEN'!$B$1:$GI$203,$A8,FALSE)),"") -> 5.324253253e-06 | I8: =IFERROR(IF(ISNUMBER(SEARCH("KOPPEL",RISICOAFSTANDEN!$M$12,1)),RISICOAFSTANDEN!$N$12*HLOOKUP(SUBSTITUTE(RISICOAFSTANDEN!$M$12,"SLANG","LEIDING"),'DATA PMR - ANTWERPEN'!$B$1:$GI$203,$A8,FALSE)+RISICOAFSTANDEN!$N$12*RISICOAFSTANDEN!$O$12/8760*HLOOKUP(SUBSTITUTE(RISICOAFSTANDEN!$M$12,"KOPPEL","LOS"),'DATA PMR - ANTWERPEN'!$B$1:$GI$203,$A8,FALSE),RISICOAFSTANDEN!$N$12*RISICOAFSTANDEN!$O$12/8760*HLOOKUP(RISICOAFSTANDEN!$M$12,'DATA PMR - ANTWERPEN'!$B$1:$GI$203,$A8,FALSE)),"") -> 7.160745877e-07 | J8: =IFERROR(IF(ISNUMBER(SEARCH("KOPPEL",RISICOAFSTANDEN!$M$13,1)),RISICOAFSTANDEN!$N$13*HLOOKUP(SUBSTITUTE(RISICOAFSTANDEN!$M$13,"SLANG","LEIDING"),'DATA PMR - ANTWERPEN'!$B$1:$GI$203,$A8,FALSE)+RISICOAFSTANDEN!$N$13*RISICOAFSTANDEN!$O$13/8760*HLOOKUP(SUBSTITUTE(RISICOAFSTANDEN!$M$13,"KOPPEL","LOS"),'DATA PMR - ANTWERPEN'!$B$1:$GI$203,$A8,FALSE),RISICOAFSTANDEN!$N$13*RISICOAFSTANDEN!$O$13/8760*HLOOKUP(RISICOAFSTANDEN!$M$13,'DATA PMR - ANTWERPEN'!$B$1:$GI$203,$A8,FALSE)),"") -> 5.204848404e-08 | K8: =IFERROR(IF(ISNUMBER(SEARCH("KOPPEL",RISICOAFSTANDEN!$M$14,1)),RISICOAFSTANDEN!$N$14*HLOOKUP(SUBSTITUTE(RISICOAFSTANDEN!$M$14,"SLANG","LEIDING"),'DATA PMR - ANTWERPEN'!$B$1:$GI$203,$A8,FALSE)+RISICOAFSTANDEN!$N$14*RISICOAFSTANDEN!$O$14/8760*HLOOKUP(SUBSTITUTE(RISICOAFSTANDEN!$M$14,"KOPPEL","LOS"),'DATA PMR - ANTWERPEN'!$B$1:$GI$203,$A8,FALSE),RISICOAFSTANDEN!$N$14*RISICOAFSTANDEN!$O$14/8760*HLOOKUP(RISICOAFSTANDEN!$M$14,'DATA PMR - ANTWERPEN'!$B$1:$GI$203,$A8,FALSE)),"") -> 8.013095496e-06 | L8: =IFERROR(IF(ISNUMBER(SEARCH("KOPPEL",RISICOAFSTANDEN!$M$15,1)),RISICOAFSTANDEN!$N$15*HLOOKUP(SUBSTITUTE(RISICOAFSTANDEN!$M$15,"SLANG","LEIDING"),'DATA PMR - ANTWERPEN'!$B$1:$GI$203,$A8,FALSE)+RISICOAFSTANDEN!$N$15*RISICOAFSTANDEN!$O$15/8760*HLOOKUP(SUBSTITUTE(RISICOAFSTANDEN!$M$15,"KOPPEL","LOS"),'DATA PMR - ANTWERPEN'!$B$1:$GI$203,$A8,FALSE),RISICOAFSTANDEN!$N$15*RISICOAFSTANDEN!$O$15/8760*HLOOKUP(RISICOAFSTANDEN!$M$15,'DATA PMR - ANTWERPEN'!$B$1:$GI$203,$A8,FALSE)),"") -> 7.807272606e-08 | M8: =IFERROR(IF(ISNUMBER(SEARCH("KOPPEL",RISICOAFSTANDEN!$M$16,1)),RISICOAFSTANDEN!$N$16*HLOOKUP(SUBSTITUTE(RISICOAFSTANDEN!$M$16,"SLANG","LEIDING"),'DATA PMR - ANTWERPEN'!$B$1:$GI$203,$A8,FALSE)+RISICOAFSTANDEN!$N$16*RISICOAFSTANDEN!$O$16/8760*HLOOKUP(SUBSTITUTE(RISICOAFSTANDEN!$M$16,"KOPPEL","LOS"),'DATA PMR - ANTWERPEN'!$B$1:$GI$203,$A8,FALSE),RISICOAFSTANDEN!$N$16*RISICOAFSTANDEN!$O$16/8760*HLOOKUP(RISICOAFSTANDEN!$M$16,'DATA PMR - ANTWERPEN'!$B$1:$GI$203,$A8,FALSE)),"") -> 6.321428778e-06 | N8: =IFERROR(IF(ISNUMBER(SEARCH("KOPPEL",RISICOAFSTANDEN!$M$17,1)),RISICOAFSTANDEN!$N$17*HLOOKUP(SUBSTITUTE(RISICOAFSTANDEN!$M$17,"SLANG","LEIDING"),'DATA PMR - ANTWERPEN'!$B$1:$GI$203,$A8,FALSE)+RISICOAFSTANDEN!$N$17*RISICOAFSTANDEN!$O$17/8760*HLOOKUP(SUBSTITUTE(RISICOAFSTANDEN!$M$17,"KOPPEL","LOS"),'DATA PMR - ANTWERPEN'!$B$1:$GI$203,$A8,FALSE),RISICOAFSTANDEN!$N$17*RISICOAFSTANDEN!$O$17/8760*HLOOKUP(RISICOAFSTANDEN!$M$17,'DATA PMR - ANTWERPEN'!$B$1:$GI$203,$A8,FALSE)),"") ->  | O8: =IFERROR(IF(ISNUMBER(SEARCH("KOPPEL",RISICOAFSTANDEN!$M$18,1)),RISICOAFSTANDEN!$N$18*HLOOKUP(SUBSTITUTE(RISICOAFSTANDEN!$M$18,"SLANG","LEIDING"),'DATA PMR - ANTWERPEN'!$B$1:$GI$203,$A8,FALSE)+RISICOAFSTANDEN!$N$18*RISICOAFSTANDEN!$O$18/8760*HLOOKUP(SUBSTITUTE(RISICOAFSTANDEN!$M$18,"KOPPEL","LOS"),'DATA PMR - ANTWERPEN'!$B$1:$GI$203,$A8,FALSE),RISICOAFSTANDEN!$N$18*RISICOAFSTANDEN!$O$18/8760*HLOOKUP(RISICOAFSTANDEN!$M$18,'DATA PMR - ANTWERPEN'!$B$1:$GI$203,$A8,FALSE)),"") ->  | P8: =IFERROR(IF(ISNUMBER(SEARCH("KOPPEL",RISICOAFSTANDEN!$M$19,1)),RISICOAFSTANDEN!$N$19*HLOOKUP(SUBSTITUTE(RISICOAFSTANDEN!$M$19,"SLANG","LEIDING"),'DATA PMR - ANTWERPEN'!$B$1:$GI$203,$A8,FALSE)+RISICOAFSTANDEN!$N$19*RISICOAFSTANDEN!$O$19/8760*HLOOKUP(SUBSTITUTE(RISICOAFSTANDEN!$M$19,"KOPPEL","LOS"),'DATA PMR - ANTWERPEN'!$B$1:$GI$203,$A8,FALSE),RISICOAFSTANDEN!$N$19*RISICOAFSTANDEN!$O$19/8760*HLOOKUP(RISICOAFSTANDEN!$M$19,'DATA PMR - ANTWERPEN'!$B$1:$GI$203,$A8,FALSE)),"") ->  | Q8: =IFERROR(IF(ISNUMBER(SEARCH("KOPPEL",RISICOAFSTANDEN!$M$20,1)),RISICOAFSTANDEN!$N$20*HLOOKUP(SUBSTITUTE(RISICOAFSTANDEN!$M$20,"SLANG","LEIDING"),'DATA PMR - ANTWERPEN'!$B$1:$GI$203,$A8,FALSE)+RISICOAFSTANDEN!$N$20*RISICOAFSTANDEN!$O$20/8760*HLOOKUP(SUBSTITUTE(RISICOAFSTANDEN!$M$20,"KOPPEL","LOS"),'DATA PMR - ANTWERPEN'!$B$1:$GI$203,$A8,FALSE),RISICOAFSTANDEN!$N$20*RISICOAFSTANDEN!$O$20/8760*HLOOKUP(RISICOAFSTANDEN!$M$20,'DATA PMR - ANTWERPEN'!$B$1:$GI$203,$A8,FALSE)),"") ->  | R8: =IFERROR(IF(ISNUMBER(SEARCH("KOPPEL",RISICOAFSTANDEN!$M$21,1)),RISICOAFSTANDEN!$N$21*HLOOKUP(SUBSTITUTE(RISICOAFSTANDEN!$M$21,"SLANG","LEIDING"),'DATA PMR - ANTWERPEN'!$B$1:$GI$203,$A8,FALSE)+RISICOAFSTANDEN!$N$21*RISICOAFSTANDEN!$O$21/8760*HLOOKUP(SUBSTITUTE(RISICOAFSTANDEN!$M$21,"KOPPEL","LOS"),'DATA PMR - ANTWERPEN'!$B$1:$GI$203,$A8,FALSE),RISICOAFSTANDEN!$N$21*RISICOAFSTANDEN!$O$21/8760*HLOOKUP(RISICOAFSTANDEN!$M$21,'DATA PMR - ANTWERPEN'!$B$1:$GI$203,$A8,FALSE)),"") ->  | S8: =IFERROR(IF(ISNUMBER(SEARCH("KOPPEL",RISICOAFSTANDEN!$M$22,1)),RISICOAFSTANDEN!$N$22*HLOOKUP(SUBSTITUTE(RISICOAFSTANDEN!$M$22,"SLANG","LEIDING"),'DATA PMR - ANTWERPEN'!$B$1:$GI$203,$A8,FALSE)+RISICOAFSTANDEN!$N$22*RISICOAFSTANDEN!$O$22/8760*HLOOKUP(SUBSTITUTE(RISICOAFSTANDEN!$M$22,"KOPPEL","LOS"),'DATA PMR - ANTWERPEN'!$B$1:$GI$203,$A8,FALSE),RISICOAFSTANDEN!$N$22*RISICOAFSTANDEN!$O$22/8760*HLOOKUP(RISICOAFSTANDEN!$M$22,'DATA PMR - ANTWERPEN'!$B$1:$GI$203,$A8,FALSE)),"") ->  | T8: =IFERROR(IF(ISNUMBER(SEARCH("KOPPEL",RISICOAFSTANDEN!$M$23,1)),RISICOAFSTANDEN!$N$23*HLOOKUP(SUBSTITUTE(RISICOAFSTANDEN!$M$23,"SLANG","LEIDING"),'DATA PMR - ANTWERPEN'!$B$1:$GI$203,$A8,FALSE)+RISICOAFSTANDEN!$N$23*RISICOAFSTANDEN!$O$23/8760*HLOOKUP(SUBSTITUTE(RISICOAFSTANDEN!$M$23,"KOPPEL","LOS"),'DATA PMR - ANTWERPEN'!$B$1:$GI$203,$A8,FALSE),RISICOAFSTANDEN!$N$23*RISICOAFSTANDEN!$O$23/8760*HLOOKUP(RISICOAFSTANDEN!$M$23,'DATA PMR - ANTWERPEN'!$B$1:$GI$203,$A8,FALSE)),"") ->  | U8: =IFERROR(IF(ISNUMBER(SEARCH("KOPPEL",RISICOAFSTANDEN!$M$24,1)),RISICOAFSTANDEN!$N$24*HLOOKUP(SUBSTITUTE(RISICOAFSTANDEN!$M$24,"SLANG","LEIDING"),'DATA PMR - ANTWERPEN'!$B$1:$GI$203,$A8,FALSE)+RISICOAFSTANDEN!$N$24*RISICOAFSTANDEN!$O$24/8760*HLOOKUP(SUBSTITUTE(RISICOAFSTANDEN!$M$24,"KOPPEL","LOS"),'DATA PMR - ANTWERPEN'!$B$1:$GI$203,$A8,FALSE),RISICOAFSTANDEN!$N$24*RISICOAFSTANDEN!$O$24/8760*HLOOKUP(RISICOAFSTANDEN!$M$24,'DATA PMR - ANTWERPEN'!$B$1:$GI$203,$A8,FALSE)),"") ->  | V8: =IFERROR(IF(ISNUMBER(SEARCH("KOPPEL",RISICOAFSTANDEN!$M$25,1)),RISICOAFSTANDEN!$N$25*HLOOKUP(SUBSTITUTE(RISICOAFSTANDEN!$M$25,"SLANG","LEIDING"),'DATA PMR - ANTWERPEN'!$B$1:$GI$203,$A8,FALSE)+RISICOAFSTANDEN!$N$25*RISICOAFSTANDEN!$O$25/8760*HLOOKUP(SUBSTITUTE(RISICOAFSTANDEN!$M$25,"KOPPEL","LOS"),'DATA PMR - ANTWERPEN'!$B$1:$GI$203,$A8,FALSE),RISICOAFSTANDEN!$N$25*RISICOAFSTANDEN!$O$25/8760*HLOOKUP(RISICOAFSTANDEN!$M$25,'DATA PMR - ANTWERPEN'!$B$1:$GI$203,$A8,FALSE)),"") ->  | W8: =IFERROR(IF(ISNUMBER(SEARCH("KOPPEL",RISICOAFSTANDEN!$M$26,1)),RISICOAFSTANDEN!$N$26*HLOOKUP(SUBSTITUTE(RISICOAFSTANDEN!$M$26,"SLANG","LEIDING"),'DATA PMR - ANTWERPEN'!$B$1:$GI$203,$A8,FALSE)+RISICOAFSTANDEN!$N$26*RISICOAFSTANDEN!$O$26/8760*HLOOKUP(SUBSTITUTE(RISICOAFSTANDEN!$M$26,"KOPPEL","LOS"),'DATA PMR - ANTWERPEN'!$B$1:$GI$203,$A8,FALSE),RISICOAFSTANDEN!$N$26*RISICOAFSTANDEN!$O$26/8760*HLOOKUP(RISICOAFSTANDEN!$M$26,'DATA PMR - ANTWERPEN'!$B$1:$GI$203,$A8,FALSE)),"") ->  | X8: =IFERROR(IF(ISNUMBER(SEARCH("KOPPEL",RISICOAFSTANDEN!$M$27,1)),RISICOAFSTANDEN!$N$27*HLOOKUP(SUBSTITUTE(RISICOAFSTANDEN!$M$27,"SLANG","LEIDING"),'DATA PMR - ANTWERPEN'!$B$1:$GI$203,$A8,FALSE)+RISICOAFSTANDEN!$N$27*RISICOAFSTANDEN!$O$27/8760*HLOOKUP(SUBSTITUTE(RISICOAFSTANDEN!$M$27,"KOPPEL","LOS"),'DATA PMR - ANTWERPEN'!$B$1:$GI$203,$A8,FALSE),RISICOAFSTANDEN!$N$27*RISICOAFSTANDEN!$O$27/8760*HLOOKUP(RISICOAFSTANDEN!$M$27,'DATA PMR - ANTWERPEN'!$B$1:$GI$203,$A8,FALSE)),"") ->  | Y8: =IFERROR(IF(ISNUMBER(SEARCH("KOPPEL",RISICOAFSTANDEN!$M$28,1)),RISICOAFSTANDEN!$N$28*HLOOKUP(SUBSTITUTE(RISICOAFSTANDEN!$M$28,"SLANG","LEIDING"),'DATA PMR - ANTWERPEN'!$B$1:$GI$203,$A8,FALSE)+RISICOAFSTANDEN!$N$28*RISICOAFSTANDEN!$O$28/8760*HLOOKUP(SUBSTITUTE(RISICOAFSTANDEN!$M$28,"KOPPEL","LOS"),'DATA PMR - ANTWERPEN'!$B$1:$GI$203,$A8,FALSE),RISICOAFSTANDEN!$N$28*RISICOAFSTANDEN!$O$28/8760*HLOOKUP(RISICOAFSTANDEN!$M$28,'DATA PMR - ANTWERPEN'!$B$1:$GI$203,$A8,FALSE)),"") ->  | Z8: =IFERROR(IF(ISNUMBER(SEARCH("KOPPEL",RISICOAFSTANDEN!$M$29,1)),RISICOAFSTANDEN!$N$29*HLOOKUP(SUBSTITUTE(RISICOAFSTANDEN!$M$29,"SLANG","LEIDING"),'DATA PMR - ANTWERPEN'!$B$1:$GI$203,$A8,FALSE)+RISICOAFSTANDEN!$N$29*RISICOAFSTANDEN!$O$29/8760*HLOOKUP(SUBSTITUTE(RISICOAFSTANDEN!$M$29,"KOPPEL","LOS"),'DATA PMR - ANTWERPEN'!$B$1:$GI$203,$A8,FALSE),RISICOAFSTANDEN!$N$29*RISICOAFSTANDEN!$O$29/8760*HLOOKUP(RISICOAFSTANDEN!$M$29,'DATA PMR - ANTWERPEN'!$B$1:$GI$203,$A8,FALSE)),"") ->  | AA8: -6 | AB8: -6 | AC8: -8 | AD8: -5 | AE8: -6 | AF8: -7 | AG8: -6 | AH8: -7 | AI8: -8 | AJ8: -6 | AK8: -8 | AL8: -6 | AM8: n.b. | AN8: n.b. | AO8: n.b. | AP8: n.b. | AQ8: n.b. | AR8: n.b. | AS8: n.b. | AT8: n.b. | AU8: n.b. | AV8: n.b. | AW8: n.b. | AX8: n.b. | AY8: n.b. | AZ8: 6 | BB8: 7.412836901e-05 | BC8: -5 | BD8: 6
A9: 10 | B9: =IFERROR(IF(ISNUMBER(SEARCH("KOPPEL",RISICOAFSTANDEN!$M$5,1)),RISICOAFSTANDEN!$N$5*HLOOKUP(SUBSTITUTE(RISICOAFSTANDEN!$M$5,"SLANG","LEIDING"),'DATA PMR - ANTWERPEN'!$B$1:$GI$203,$A9,FALSE)+RISICOAFSTANDEN!$N$5*RISICOAFSTANDEN!$O$5/8760*HLOOKUP(SUBSTITUTE(RISICOAFSTANDEN!$M$5,"KOPPEL","LOS"),'DATA PMR - ANTWERPEN'!$B$1:$GI$203,$A9,FALSE),RISICOAFSTANDEN!$N$5*RISICOAFSTANDEN!$O$5/8760*HLOOKUP(RISICOAFSTANDEN!$M$5,'DATA PMR - ANTWERPEN'!$B$1:$GI$203,$A9,FALSE)),"") -> 3.275414386e-06 | C9: =IFERROR(IF(ISNUMBER(SEARCH("KOPPEL",RISICOAFSTANDEN!$M$6,1)),RISICOAFSTANDEN!$N$6*HLOOKUP(SUBSTITUTE(RISICOAFSTANDEN!$M$6,"SLANG","LEIDING"),'DATA PMR - ANTWERPEN'!$B$1:$GI$203,$A9,FALSE)+RISICOAFSTANDEN!$N$6*RISICOAFSTANDEN!$O$6/8760*HLOOKUP(SUBSTITUTE(RISICOAFSTANDEN!$M$6,"KOPPEL","LOS"),'DATA PMR - ANTWERPEN'!$B$1:$GI$203,$A9,FALSE),RISICOAFSTANDEN!$N$6*RISICOAFSTANDEN!$O$6/8760*HLOOKUP(RISICOAFSTANDEN!$M$6,'DATA PMR - ANTWERPEN'!$B$1:$GI$203,$A9,FALSE)),"") -> 4.139946303e-06 | D9: =IFERROR(IF(ISNUMBER(SEARCH("KOPPEL",RISICOAFSTANDEN!$M$7,1)),RISICOAFSTANDEN!$N$7*HLOOKUP(SUBSTITUTE(RISICOAFSTANDEN!$M$7,"SLANG","LEIDING"),'DATA PMR - ANTWERPEN'!$B$1:$GI$203,$A9,FALSE)+RISICOAFSTANDEN!$N$7*RISICOAFSTANDEN!$O$7/8760*HLOOKUP(SUBSTITUTE(RISICOAFSTANDEN!$M$7,"KOPPEL","LOS"),'DATA PMR - ANTWERPEN'!$B$1:$GI$203,$A9,FALSE),RISICOAFSTANDEN!$N$7*RISICOAFSTANDEN!$O$7/8760*HLOOKUP(RISICOAFSTANDEN!$M$7,'DATA PMR - ANTWERPEN'!$B$1:$GI$203,$A9,FALSE)),"") -> 3.820251582e-08 | E9: =IFERROR(IF(ISNUMBER(SEARCH("KOPPEL",RISICOAFSTANDEN!$M$8,1)),RISICOAFSTANDEN!$N$8*HLOOKUP(SUBSTITUTE(RISICOAFSTANDEN!$M$8,"SLANG","LEIDING"),'DATA PMR - ANTWERPEN'!$B$1:$GI$203,$A9,FALSE)+RISICOAFSTANDEN!$N$8*RISICOAFSTANDEN!$O$8/8760*HLOOKUP(SUBSTITUTE(RISICOAFSTANDEN!$M$8,"KOPPEL","LOS"),'DATA PMR - ANTWERPEN'!$B$1:$GI$203,$A9,FALSE),RISICOAFSTANDEN!$N$8*RISICOAFSTANDEN!$O$8/8760*HLOOKUP(RISICOAFSTANDEN!$M$8,'DATA PMR - ANTWERPEN'!$B$1:$GI$203,$A9,FALSE)),"") -> 2.592492257e-05 | F9: =IFERROR(IF(ISNUMBER(SEARCH("KOPPEL",RISICOAFSTANDEN!$M$9,1)),RISICOAFSTANDEN!$N$9*HLOOKUP(SUBSTITUTE(RISICOAFSTANDEN!$M$9,"SLANG","LEIDING"),'DATA PMR - ANTWERPEN'!$B$1:$GI$203,$A9,FALSE)+RISICOAFSTANDEN!$N$9*RISICOAFSTANDEN!$O$9/8760*HLOOKUP(SUBSTITUTE(RISICOAFSTANDEN!$M$9,"KOPPEL","LOS"),'DATA PMR - ANTWERPEN'!$B$1:$GI$203,$A9,FALSE),RISICOAFSTANDEN!$N$9*RISICOAFSTANDEN!$O$9/8760*HLOOKUP(RISICOAFSTANDEN!$M$9,'DATA PMR - ANTWERPEN'!$B$1:$GI$203,$A9,FALSE)),"") -> 2.139091403e-06 | G9: =IFERROR(IF(ISNUMBER(SEARCH("KOPPEL",RISICOAFSTANDEN!$M$10,1)),RISICOAFSTANDEN!$N$10*HLOOKUP(SUBSTITUTE(RISICOAFSTANDEN!$M$10,"SLANG","LEIDING"),'DATA PMR - ANTWERPEN'!$B$1:$GI$203,$A9,FALSE)+RISICOAFSTANDEN!$N$10*RISICOAFSTANDEN!$O$10/8760*HLOOKUP(SUBSTITUTE(RISICOAFSTANDEN!$M$10,"KOPPEL","LOS"),'DATA PMR - ANTWERPEN'!$B$1:$GI$203,$A9,FALSE),RISICOAFSTANDEN!$N$10*RISICOAFSTANDEN!$O$10/8760*HLOOKUP(RISICOAFSTANDEN!$M$10,'DATA PMR - ANTWERPEN'!$B$1:$GI$203,$A9,FALSE)),"") -> 1.92758098e-07 | H9: =IFERROR(IF(ISNUMBER(SEARCH("KOPPEL",RISICOAFSTANDEN!$M$11,1)),RISICOAFSTANDEN!$N$11*HLOOKUP(SUBSTITUTE(RISICOAFSTANDEN!$M$11,"SLANG","LEIDING"),'DATA PMR - ANTWERPEN'!$B$1:$GI$203,$A9,FALSE)+RISICOAFSTANDEN!$N$11*RISICOAFSTANDEN!$O$11/8760*HLOOKUP(SUBSTITUTE(RISICOAFSTANDEN!$M$11,"KOPPEL","LOS"),'DATA PMR - ANTWERPEN'!$B$1:$GI$203,$A9,FALSE),RISICOAFSTANDEN!$N$11*RISICOAFSTANDEN!$O$11/8760*HLOOKUP(RISICOAFSTANDEN!$M$11,'DATA PMR - ANTWERPEN'!$B$1:$GI$203,$A9,FALSE)),"") -> 2.873254237e-06 | I9: =IFERROR(IF(ISNUMBER(SEARCH("KOPPEL",RISICOAFSTANDEN!$M$12,1)),RISICOAFSTANDEN!$N$12*HLOOKUP(SUBSTITUTE(RISICOAFSTANDEN!$M$12,"SLANG","LEIDING"),'DATA PMR - ANTWERPEN'!$B$1:$GI$203,$A9,FALSE)+RISICOAFSTANDEN!$N$12*RISICOAFSTANDEN!$O$12/8760*HLOOKUP(SUBSTITUTE(RISICOAFSTANDEN!$M$12,"KOPPEL","LOS"),'DATA PMR - ANTWERPEN'!$B$1:$GI$203,$A9,FALSE),RISICOAFSTANDEN!$N$12*RISICOAFSTANDEN!$O$12/8760*HLOOKUP(RISICOAFSTANDEN!$M$12,'DATA PMR - ANTWERPEN'!$B$1:$GI$203,$A9,FALSE)),"") -> 4.278182806e-07 | J9: =IFERROR(IF(ISNUMBER(SEARCH("KOPPEL",RISICOAFSTANDEN!$M$13,1)),RISICOAFSTANDEN!$N$13*HLOOKUP(SUBSTITUTE(RISICOAFSTANDEN!$M$13,"SLANG","LEIDING"),'DATA PMR - ANTWERPEN'!$B$1:$GI$203,$A9,FALSE)+RISICOAFSTANDEN!$N$13*RISICOAFSTANDEN!$O$13/8760*HLOOKUP(SUBSTITUTE(RISICOAFSTANDEN!$M$13,"KOPPEL","LOS"),'DATA PMR - ANTWERPEN'!$B$1:$GI$203,$A9,FALSE),RISICOAFSTANDEN!$N$13*RISICOAFSTANDEN!$O$13/8760*HLOOKUP(RISICOAFSTANDEN!$M$13,'DATA PMR - ANTWERPEN'!$B$1:$GI$203,$A9,FALSE)),"") -> 3.733844678e-08 | K9: =IFERROR(IF(ISNUMBER(SEARCH("KOPPEL",RISICOAFSTANDEN!$M$14,1)),RISICOAFSTANDEN!$N$14*HLOOKUP(SUBSTITUTE(RISICOAFSTANDEN!$M$14,"SLANG","LEIDING"),'DATA PMR - ANTWERPEN'!$B$1:$GI$203,$A9,FALSE)+RISICOAFSTANDEN!$N$14*RISICOAFSTANDEN!$O$14/8760*HLOOKUP(SUBSTITUTE(RISICOAFSTANDEN!$M$14,"KOPPEL","LOS"),'DATA PMR - ANTWERPEN'!$B$1:$GI$203,$A9,FALSE),RISICOAFSTANDEN!$N$14*RISICOAFSTANDEN!$O$14/8760*HLOOKUP(RISICOAFSTANDEN!$M$14,'DATA PMR - ANTWERPEN'!$B$1:$GI$203,$A9,FALSE)),"") -> 4.785469986e-06 | L9: =IFERROR(IF(ISNUMBER(SEARCH("KOPPEL",RISICOAFSTANDEN!$M$15,1)),RISICOAFSTANDEN!$N$15*HLOOKUP(SUBSTITUTE(RISICOAFSTANDEN!$M$15,"SLANG","LEIDING"),'DATA PMR - ANTWERPEN'!$B$1:$GI$203,$A9,FALSE)+RISICOAFSTANDEN!$N$15*RISICOAFSTANDEN!$O$15/8760*HLOOKUP(SUBSTITUTE(RISICOAFSTANDEN!$M$15,"KOPPEL","LOS"),'DATA PMR - ANTWERPEN'!$B$1:$GI$203,$A9,FALSE),RISICOAFSTANDEN!$N$15*RISICOAFSTANDEN!$O$15/8760*HLOOKUP(RISICOAFSTANDEN!$M$15,'DATA PMR - ANTWERPEN'!$B$1:$GI$203,$A9,FALSE)),"") -> 5.600767017e-08 | M9: =IFERROR(IF(ISNUMBER(SEARCH("KOPPEL",RISICOAFSTANDEN!$M$16,1)),RISICOAFSTANDEN!$N$16*HLOOKUP(SUBSTITUTE(RISICOAFSTANDEN!$M$16,"SLANG","LEIDING"),'DATA PMR - ANTWERPEN'!$B$1:$GI$203,$A9,FALSE)+RISICOAFSTANDEN!$N$16*RISICOAFSTANDEN!$O$16/8760*HLOOKUP(SUBSTITUTE(RISICOAFSTANDEN!$M$16,"KOPPEL","LOS"),'DATA PMR - ANTWERPEN'!$B$1:$GI$203,$A9,FALSE),RISICOAFSTANDEN!$N$16*RISICOAFSTANDEN!$O$16/8760*HLOOKUP(RISICOAFSTANDEN!$M$16,'DATA PMR - ANTWERPEN'!$B$1:$GI$203,$A9,FALSE)),"") -> 5.631399929e-06 | N9: =IFERROR(IF(ISNUMBER(SEARCH("KOPPEL",RISICOAFSTANDEN!$M$17,1)),RISICOAFSTANDEN!$N$17*HLOOKUP(SUBSTITUTE(RISICOAFSTANDEN!$M$17,"SLANG","LEIDING"),'DATA PMR - ANTWERPEN'!$B$1:$GI$203,$A9,FALSE)+RISICOAFSTANDEN!$N$17*RISICOAFSTANDEN!$O$17/8760*HLOOKUP(SUBSTITUTE(RISICOAFSTANDEN!$M$17,"KOPPEL","LOS"),'DATA PMR - ANTWERPEN'!$B$1:$GI$203,$A9,FALSE),RISICOAFSTANDEN!$N$17*RISICOAFSTANDEN!$O$17/8760*HLOOKUP(RISICOAFSTANDEN!$M$17,'DATA PMR - ANTWERPEN'!$B$1:$GI$203,$A9,FALSE)),"") ->  | O9: =IFERROR(IF(ISNUMBER(SEARCH("KOPPEL",RISICOAFSTANDEN!$M$18,1)),RISICOAFSTANDEN!$N$18*HLOOKUP(SUBSTITUTE(RISICOAFSTANDEN!$M$18,"SLANG","LEIDING"),'DATA PMR - ANTWERPEN'!$B$1:$GI$203,$A9,FALSE)+RISICOAFSTANDEN!$N$18*RISICOAFSTANDEN!$O$18/8760*HLOOKUP(SUBSTITUTE(RISICOAFSTANDEN!$M$18,"KOPPEL","LOS"),'DATA PMR - ANTWERPEN'!$B$1:$GI$203,$A9,FALSE),RISICOAFSTANDEN!$N$18*RISICOAFSTANDEN!$O$18/8760*HLOOKUP(RISICOAFSTANDEN!$M$18,'DATA PMR - ANTWERPEN'!$B$1:$GI$203,$A9,FALSE)),"") ->  | P9: =IFERROR(IF(ISNUMBER(SEARCH("KOPPEL",RISICOAFSTANDEN!$M$19,1)),RISICOAFSTANDEN!$N$19*HLOOKUP(SUBSTITUTE(RISICOAFSTANDEN!$M$19,"SLANG","LEIDING"),'DATA PMR - ANTWERPEN'!$B$1:$GI$203,$A9,FALSE)+RISICOAFSTANDEN!$N$19*RISICOAFSTANDEN!$O$19/8760*HLOOKUP(SUBSTITUTE(RISICOAFSTANDEN!$M$19,"KOPPEL","LOS"),'DATA PMR - ANTWERPEN'!$B$1:$GI$203,$A9,FALSE),RISICOAFSTANDEN!$N$19*RISICOAFSTANDEN!$O$19/8760*HLOOKUP(RISICOAFSTANDEN!$M$19,'DATA PMR - ANTWERPEN'!$B$1:$GI$203,$A9,FALSE)),"") ->  | Q9: =IFERROR(IF(ISNUMBER(SEARCH("KOPPEL",RISICOAFSTANDEN!$M$20,1)),RISICOAFSTANDEN!$N$20*HLOOKUP(SUBSTITUTE(RISICOAFSTANDEN!$M$20,"SLANG","LEIDING"),'DATA PMR - ANTWERPEN'!$B$1:$GI$203,$A9,FALSE)+RISICOAFSTANDEN!$N$20*RISICOAFSTANDEN!$O$20/8760*HLOOKUP(SUBSTITUTE(RISICOAFSTANDEN!$M$20,"KOPPEL","LOS"),'DATA PMR - ANTWERPEN'!$B$1:$GI$203,$A9,FALSE),RISICOAFSTANDEN!$N$20*RISICOAFSTANDEN!$O$20/8760*HLOOKUP(RISICOAFSTANDEN!$M$20,'DATA PMR - ANTWERPEN'!$B$1:$GI$203,$A9,FALSE)),"") ->  | R9: =IFERROR(IF(ISNUMBER(SEARCH("KOPPEL",RISICOAFSTANDEN!$M$21,1)),RISICOAFSTANDEN!$N$21*HLOOKUP(SUBSTITUTE(RISICOAFSTANDEN!$M$21,"SLANG","LEIDING"),'DATA PMR - ANTWERPEN'!$B$1:$GI$203,$A9,FALSE)+RISICOAFSTANDEN!$N$21*RISICOAFSTANDEN!$O$21/8760*HLOOKUP(SUBSTITUTE(RISICOAFSTANDEN!$M$21,"KOPPEL","LOS"),'DATA PMR - ANTWERPEN'!$B$1:$GI$203,$A9,FALSE),RISICOAFSTANDEN!$N$21*RISICOAFSTANDEN!$O$21/8760*HLOOKUP(RISICOAFSTANDEN!$M$21,'DATA PMR - ANTWERPEN'!$B$1:$GI$203,$A9,FALSE)),"") ->  | S9: =IFERROR(IF(ISNUMBER(SEARCH("KOPPEL",RISICOAFSTANDEN!$M$22,1)),RISICOAFSTANDEN!$N$22*HLOOKUP(SUBSTITUTE(RISICOAFSTANDEN!$M$22,"SLANG","LEIDING"),'DATA PMR - ANTWERPEN'!$B$1:$GI$203,$A9,FALSE)+RISICOAFSTANDEN!$N$22*RISICOAFSTANDEN!$O$22/8760*HLOOKUP(SUBSTITUTE(RISICOAFSTANDEN!$M$22,"KOPPEL","LOS"),'DATA PMR - ANTWERPEN'!$B$1:$GI$203,$A9,FALSE),RISICOAFSTANDEN!$N$22*RISICOAFSTANDEN!$O$22/8760*HLOOKUP(RISICOAFSTANDEN!$M$22,'DATA PMR - ANTWERPEN'!$B$1:$GI$203,$A9,FALSE)),"") ->  | T9: =IFERROR(IF(ISNUMBER(SEARCH("KOPPEL",RISICOAFSTANDEN!$M$23,1)),RISICOAFSTANDEN!$N$23*HLOOKUP(SUBSTITUTE(RISICOAFSTANDEN!$M$23,"SLANG","LEIDING"),'DATA PMR - ANTWERPEN'!$B$1:$GI$203,$A9,FALSE)+RISICOAFSTANDEN!$N$23*RISICOAFSTANDEN!$O$23/8760*HLOOKUP(SUBSTITUTE(RISICOAFSTANDEN!$M$23,"KOPPEL","LOS"),'DATA PMR - ANTWERPEN'!$B$1:$GI$203,$A9,FALSE),RISICOAFSTANDEN!$N$23*RISICOAFSTANDEN!$O$23/8760*HLOOKUP(RISICOAFSTANDEN!$M$23,'DATA PMR - ANTWERPEN'!$B$1:$GI$203,$A9,FALSE)),"") ->  | U9: =IFERROR(IF(ISNUMBER(SEARCH("KOPPEL",RISICOAFSTANDEN!$M$24,1)),RISICOAFSTANDEN!$N$24*HLOOKUP(SUBSTITUTE(RISICOAFSTANDEN!$M$24,"SLANG","LEIDING"),'DATA PMR - ANTWERPEN'!$B$1:$GI$203,$A9,FALSE)+RISICOAFSTANDEN!$N$24*RISICOAFSTANDEN!$O$24/8760*HLOOKUP(SUBSTITUTE(RISICOAFSTANDEN!$M$24,"KOPPEL","LOS"),'DATA PMR - ANTWERPEN'!$B$1:$GI$203,$A9,FALSE),RISICOAFSTANDEN!$N$24*RISICOAFSTANDEN!$O$24/8760*HLOOKUP(RISICOAFSTANDEN!$M$24,'DATA PMR - ANTWERPEN'!$B$1:$GI$203,$A9,FALSE)),"") ->  | V9: =IFERROR(IF(ISNUMBER(SEARCH("KOPPEL",RISICOAFSTANDEN!$M$25,1)),RISICOAFSTANDEN!$N$25*HLOOKUP(SUBSTITUTE(RISICOAFSTANDEN!$M$25,"SLANG","LEIDING"),'DATA PMR - ANTWERPEN'!$B$1:$GI$203,$A9,FALSE)+RISICOAFSTANDEN!$N$25*RISICOAFSTANDEN!$O$25/8760*HLOOKUP(SUBSTITUTE(RISICOAFSTANDEN!$M$25,"KOPPEL","LOS"),'DATA PMR - ANTWERPEN'!$B$1:$GI$203,$A9,FALSE),RISICOAFSTANDEN!$N$25*RISICOAFSTANDEN!$O$25/8760*HLOOKUP(RISICOAFSTANDEN!$M$25,'DATA PMR - ANTWERPEN'!$B$1:$GI$203,$A9,FALSE)),"") ->  | W9: =IFERROR(IF(ISNUMBER(SEARCH("KOPPEL",RISICOAFSTANDEN!$M$26,1)),RISICOAFSTANDEN!$N$26*HLOOKUP(SUBSTITUTE(RISICOAFSTANDEN!$M$26,"SLANG","LEIDING"),'DATA PMR - ANTWERPEN'!$B$1:$GI$203,$A9,FALSE)+RISICOAFSTANDEN!$N$26*RISICOAFSTANDEN!$O$26/8760*HLOOKUP(SUBSTITUTE(RISICOAFSTANDEN!$M$26,"KOPPEL","LOS"),'DATA PMR - ANTWERPEN'!$B$1:$GI$203,$A9,FALSE),RISICOAFSTANDEN!$N$26*RISICOAFSTANDEN!$O$26/8760*HLOOKUP(RISICOAFSTANDEN!$M$26,'DATA PMR - ANTWERPEN'!$B$1:$GI$203,$A9,FALSE)),"") ->  | X9: =IFERROR(IF(ISNUMBER(SEARCH("KOPPEL",RISICOAFSTANDEN!$M$27,1)),RISICOAFSTANDEN!$N$27*HLOOKUP(SUBSTITUTE(RISICOAFSTANDEN!$M$27,"SLANG","LEIDING"),'DATA PMR - ANTWERPEN'!$B$1:$GI$203,$A9,FALSE)+RISICOAFSTANDEN!$N$27*RISICOAFSTANDEN!$O$27/8760*HLOOKUP(SUBSTITUTE(RISICOAFSTANDEN!$M$27,"KOPPEL","LOS"),'DATA PMR - ANTWERPEN'!$B$1:$GI$203,$A9,FALSE),RISICOAFSTANDEN!$N$27*RISICOAFSTANDEN!$O$27/8760*HLOOKUP(RISICOAFSTANDEN!$M$27,'DATA PMR - ANTWERPEN'!$B$1:$GI$203,$A9,FALSE)),"") ->  | Y9: =IFERROR(IF(ISNUMBER(SEARCH("KOPPEL",RISICOAFSTANDEN!$M$28,1)),RISICOAFSTANDEN!$N$28*HLOOKUP(SUBSTITUTE(RISICOAFSTANDEN!$M$28,"SLANG","LEIDING"),'DATA PMR - ANTWERPEN'!$B$1:$GI$203,$A9,FALSE)+RISICOAFSTANDEN!$N$28*RISICOAFSTANDEN!$O$28/8760*HLOOKUP(SUBSTITUTE(RISICOAFSTANDEN!$M$28,"KOPPEL","LOS"),'DATA PMR - ANTWERPEN'!$B$1:$GI$203,$A9,FALSE),RISICOAFSTANDEN!$N$28*RISICOAFSTANDEN!$O$28/8760*HLOOKUP(RISICOAFSTANDEN!$M$28,'DATA PMR - ANTWERPEN'!$B$1:$GI$203,$A9,FALSE)),"") ->  | Z9: =IFERROR(IF(ISNUMBER(SEARCH("KOPPEL",RISICOAFSTANDEN!$M$29,1)),RISICOAFSTANDEN!$N$29*HLOOKUP(SUBSTITUTE(RISICOAFSTANDEN!$M$29,"SLANG","LEIDING"),'DATA PMR - ANTWERPEN'!$B$1:$GI$203,$A9,FALSE)+RISICOAFSTANDEN!$N$29*RISICOAFSTANDEN!$O$29/8760*HLOOKUP(SUBSTITUTE(RISICOAFSTANDEN!$M$29,"KOPPEL","LOS"),'DATA PMR - ANTWERPEN'!$B$1:$GI$203,$A9,FALSE),RISICOAFSTANDEN!$N$29*RISICOAFSTANDEN!$O$29/8760*HLOOKUP(RISICOAFSTANDEN!$M$29,'DATA PMR - ANTWERPEN'!$B$1:$GI$203,$A9,FALSE)),"") ->  | AA9: -6 | AB9: -6 | AC9: -8 | AD9: -5 | AE9: -6 | AF9: -7 | AG9: -6 | AH9: -7 | AI9: -8 | AJ9: -6 | AK9: -8 | AL9: -6 | AM9: n.b. | AN9: n.b. | AO9: n.b. | AP9: n.b. | AQ9: n.b. | AR9: n.b. | AS9: n.b. | AT9: n.b. | AU9: n.b. | AV9: n.b. | AW9: n.b. | AX9: n.b. | AY9: n.b. | AZ9: 7 | BB9: 4.952162382e-05 | BC9: -5 | BD9: 7
A10: 11 | B10: =IFERROR(IF(ISNUMBER(SEARCH("KOPPEL",RISICOAFSTANDEN!$M$5,1)),RISICOAFSTANDEN!$N$5*HLOOKUP(SUBSTITUTE(RISICOAFSTANDEN!$M$5,"SLANG","LEIDING"),'DATA PMR - ANTWERPEN'!$B$1:$GI$203,$A10,FALSE)+RISICOAFSTANDEN!$N$5*RISICOAFSTANDEN!$O$5/8760*HLOOKUP(SUBSTITUTE(RISICOAFSTANDEN!$M$5,"KOPPEL","LOS"),'DATA PMR - ANTWERPEN'!$B$1:$GI$203,$A10,FALSE),RISICOAFSTANDEN!$N$5*RISICOAFSTANDEN!$O$5/8760*HLOOKUP(RISICOAFSTANDEN!$M$5,'DATA PMR - ANTWERPEN'!$B$1:$GI$203,$A10,FALSE)),"") -> 3.006635047e-06 | C10: =IFERROR(IF(ISNUMBER(SEARCH("KOPPEL",RISICOAFSTANDEN!$M$6,1)),RISICOAFSTANDEN!$N$6*HLOOKUP(SUBSTITUTE(RISICOAFSTANDEN!$M$6,"SLANG","LEIDING"),'DATA PMR - ANTWERPEN'!$B$1:$GI$203,$A10,FALSE)+RISICOAFSTANDEN!$N$6*RISICOAFSTANDEN!$O$6/8760*HLOOKUP(SUBSTITUTE(RISICOAFSTANDEN!$M$6,"KOPPEL","LOS"),'DATA PMR - ANTWERPEN'!$B$1:$GI$203,$A10,FALSE),RISICOAFSTANDEN!$N$6*RISICOAFSTANDEN!$O$6/8760*HLOOKUP(RISICOAFSTANDEN!$M$6,'DATA PMR - ANTWERPEN'!$B$1:$GI$203,$A10,FALSE)),"") -> 3.617065374e-06 | D10: =IFERROR(IF(ISNUMBER(SEARCH("KOPPEL",RISICOAFSTANDEN!$M$7,1)),RISICOAFSTANDEN!$N$7*HLOOKUP(SUBSTITUTE(RISICOAFSTANDEN!$M$7,"SLANG","LEIDING"),'DATA PMR - ANTWERPEN'!$B$1:$GI$203,$A10,FALSE)+RISICOAFSTANDEN!$N$7*RISICOAFSTANDEN!$O$7/8760*HLOOKUP(SUBSTITUTE(RISICOAFSTANDEN!$M$7,"KOPPEL","LOS"),'DATA PMR - ANTWERPEN'!$B$1:$GI$203,$A10,FALSE),RISICOAFSTANDEN!$N$7*RISICOAFSTANDEN!$O$7/8760*HLOOKUP(RISICOAFSTANDEN!$M$7,'DATA PMR - ANTWERPEN'!$B$1:$GI$203,$A10,FALSE)),"") -> 2.895219662e-08 | E10: =IFERROR(IF(ISNUMBER(SEARCH("KOPPEL",RISICOAFSTANDEN!$M$8,1)),RISICOAFSTANDEN!$N$8*HLOOKUP(SUBSTITUTE(RISICOAFSTANDEN!$M$8,"SLANG","LEIDING"),'DATA PMR - ANTWERPEN'!$B$1:$GI$203,$A10,FALSE)+RISICOAFSTANDEN!$N$8*RISICOAFSTANDEN!$O$8/8760*HLOOKUP(SUBSTITUTE(RISICOAFSTANDEN!$M$8,"KOPPEL","LOS"),'DATA PMR - ANTWERPEN'!$B$1:$GI$203,$A10,FALSE),RISICOAFSTANDEN!$N$8*RISICOAFSTANDEN!$O$8/8760*HLOOKUP(RISICOAFSTANDEN!$M$8,'DATA PMR - ANTWERPEN'!$B$1:$GI$203,$A10,FALSE)),"") -> 1.953466887e-05 | F10: =IFERROR(IF(ISNUMBER(SEARCH("KOPPEL",RISICOAFSTANDEN!$M$9,1)),RISICOAFSTANDEN!$N$9*HLOOKUP(SUBSTITUTE(RISICOAFSTANDEN!$M$9,"SLANG","LEIDING"),'DATA PMR - ANTWERPEN'!$B$1:$GI$203,$A10,FALSE)+RISICOAFSTANDEN!$N$9*RISICOAFSTANDEN!$O$9/8760*HLOOKUP(SUBSTITUTE(RISICOAFSTANDEN!$M$9,"KOPPEL","LOS"),'DATA PMR - ANTWERPEN'!$B$1:$GI$203,$A10,FALSE),RISICOAFSTANDEN!$N$9*RISICOAFSTANDEN!$O$9/8760*HLOOKUP(RISICOAFSTANDEN!$M$9,'DATA PMR - ANTWERPEN'!$B$1:$GI$203,$A10,FALSE)),"") -> 1.309799123e-06 | G10: =IFERROR(IF(ISNUMBER(SEARCH("KOPPEL",RISICOAFSTANDEN!$M$10,1)),RISICOAFSTANDEN!$N$10*HLOOKUP(SUBSTITUTE(RISICOAFSTANDEN!$M$10,"SLANG","LEIDING"),'DATA PMR - ANTWERPEN'!$B$1:$GI$203,$A10,FALSE)+RISICOAFSTANDEN!$N$10*RISICOAFSTANDEN!$O$10/8760*HLOOKUP(SUBSTITUTE(RISICOAFSTANDEN!$M$10,"KOPPEL","LOS"),'DATA PMR - ANTWERPEN'!$B$1:$GI$203,$A10,FALSE),RISICOAFSTANDEN!$N$10*RISICOAFSTANDEN!$O$10/8760*HLOOKUP(RISICOAFSTANDEN!$M$10,'DATA PMR - ANTWERPEN'!$B$1:$GI$203,$A10,FALSE)),"") -> 1.441337247e-07 | H10: =IFERROR(IF(ISNUMBER(SEARCH("KOPPEL",RISICOAFSTANDEN!$M$11,1)),RISICOAFSTANDEN!$N$11*HLOOKUP(SUBSTITUTE(RISICOAFSTANDEN!$M$11,"SLANG","LEIDING"),'DATA PMR - ANTWERPEN'!$B$1:$GI$203,$A10,FALSE)+RISICOAFSTANDEN!$N$11*RISICOAFSTANDEN!$O$11/8760*HLOOKUP(SUBSTITUTE(RISICOAFSTANDEN!$M$11,"KOPPEL","LOS"),'DATA PMR - ANTWERPEN'!$B$1:$GI$203,$A10,FALSE),RISICOAFSTANDEN!$N$11*RISICOAFSTANDEN!$O$11/8760*HLOOKUP(RISICOAFSTANDEN!$M$11,'DATA PMR - ANTWERPEN'!$B$1:$GI$203,$A10,FALSE)),"") -> 1.86669277e-06 | I10: =IFERROR(IF(ISNUMBER(SEARCH("KOPPEL",RISICOAFSTANDEN!$M$12,1)),RISICOAFSTANDEN!$N$12*HLOOKUP(SUBSTITUTE(RISICOAFSTANDEN!$M$12,"SLANG","LEIDING"),'DATA PMR - ANTWERPEN'!$B$1:$GI$203,$A10,FALSE)+RISICOAFSTANDEN!$N$12*RISICOAFSTANDEN!$O$12/8760*HLOOKUP(SUBSTITUTE(RISICOAFSTANDEN!$M$12,"KOPPEL","LOS"),'DATA PMR - ANTWERPEN'!$B$1:$GI$203,$A10,FALSE),RISICOAFSTANDEN!$N$12*RISICOAFSTANDEN!$O$12/8760*HLOOKUP(RISICOAFSTANDEN!$M$12,'DATA PMR - ANTWERPEN'!$B$1:$GI$203,$A10,FALSE)),"") -> 2.619598246e-07 | J10: =IFERROR(IF(ISNUMBER(SEARCH("KOPPEL",RISICOAFSTANDEN!$M$13,1)),RISICOAFSTANDEN!$N$13*HLOOKUP(SUBSTITUTE(RISICOAFSTANDEN!$M$13,"SLANG","LEIDING"),'DATA PMR - ANTWERPEN'!$B$1:$GI$203,$A10,FALSE)+RISICOAFSTANDEN!$N$13*RISICOAFSTANDEN!$O$13/8760*HLOOKUP(SUBSTITUTE(RISICOAFSTANDEN!$M$13,"KOPPEL","LOS"),'DATA PMR - ANTWERPEN'!$B$1:$GI$203,$A10,FALSE),RISICOAFSTANDEN!$N$13*RISICOAFSTANDEN!$O$13/8760*HLOOKUP(RISICOAFSTANDEN!$M$13,'DATA PMR - ANTWERPEN'!$B$1:$GI$203,$A10,FALSE)),"") -> 2.822174495e-08 | K10: =IFERROR(IF(ISNUMBER(SEARCH("KOPPEL",RISICOAFSTANDEN!$M$14,1)),RISICOAFSTANDEN!$N$14*HLOOKUP(SUBSTITUTE(RISICOAFSTANDEN!$M$14,"SLANG","LEIDING"),'DATA PMR - ANTWERPEN'!$B$1:$GI$203,$A10,FALSE)+RISICOAFSTANDEN!$N$14*RISICOAFSTANDEN!$O$14/8760*HLOOKUP(SUBSTITUTE(RISICOAFSTANDEN!$M$14,"KOPPEL","LOS"),'DATA PMR - ANTWERPEN'!$B$1:$GI$203,$A10,FALSE),RISICOAFSTANDEN!$N$14*RISICOAFSTANDEN!$O$14/8760*HLOOKUP(RISICOAFSTANDEN!$M$14,'DATA PMR - ANTWERPEN'!$B$1:$GI$203,$A10,FALSE)),"") -> 2.764526774e-06 | L10: =IFERROR(IF(ISNUMBER(SEARCH("KOPPEL",RISICOAFSTANDEN!$M$15,1)),RISICOAFSTANDEN!$N$15*HLOOKUP(SUBSTITUTE(RISICOAFSTANDEN!$M$15,"SLANG","LEIDING"),'DATA PMR - ANTWERPEN'!$B$1:$GI$203,$A10,FALSE)+RISICOAFSTANDEN!$N$15*RISICOAFSTANDEN!$O$15/8760*HLOOKUP(SUBSTITUTE(RISICOAFSTANDEN!$M$15,"KOPPEL","LOS"),'DATA PMR - ANTWERPEN'!$B$1:$GI$203,$A10,FALSE),RISICOAFSTANDEN!$N$15*RISICOAFSTANDEN!$O$15/8760*HLOOKUP(RISICOAFSTANDEN!$M$15,'DATA PMR - ANTWERPEN'!$B$1:$GI$203,$A10,FALSE)),"") -> 4.233261743e-08 | M10: =IFERROR(IF(ISNUMBER(SEARCH("KOPPEL",RISICOAFSTANDEN!$M$16,1)),RISICOAFSTANDEN!$N$16*HLOOKUP(SUBSTITUTE(RISICOAFSTANDEN!$M$16,"SLANG","LEIDING"),'DATA PMR - ANTWERPEN'!$B$1:$GI$203,$A10,FALSE)+RISICOAFSTANDEN!$N$16*RISICOAFSTANDEN!$O$16/8760*HLOOKUP(SUBSTITUTE(RISICOAFSTANDEN!$M$16,"KOPPEL","LOS"),'DATA PMR - ANTWERPEN'!$B$1:$GI$203,$A10,FALSE),RISICOAFSTANDEN!$N$16*RISICOAFSTANDEN!$O$16/8760*HLOOKUP(RISICOAFSTANDEN!$M$16,'DATA PMR - ANTWERPEN'!$B$1:$GI$203,$A10,FALSE)),"") -> 5.076617569e-06 | N10: =IFERROR(IF(ISNUMBER(SEARCH("KOPPEL",RISICOAFSTANDEN!$M$17,1)),RISICOAFSTANDEN!$N$17*HLOOKUP(SUBSTITUTE(RISICOAFSTANDEN!$M$17,"SLANG","LEIDING"),'DATA PMR - ANTWERPEN'!$B$1:$GI$203,$A10,FALSE)+RISICOAFSTANDEN!$N$17*RISICOAFSTANDEN!$O$17/8760*HLOOKUP(SUBSTITUTE(RISICOAFSTANDEN!$M$17,"KOPPEL","LOS"),'DATA PMR - ANTWERPEN'!$B$1:$GI$203,$A10,FALSE),RISICOAFSTANDEN!$N$17*RISICOAFSTANDEN!$O$17/8760*HLOOKUP(RISICOAFSTANDEN!$M$17,'DATA PMR - ANTWERPEN'!$B$1:$GI$203,$A10,FALSE)),"") ->  | O10: =IFERROR(IF(ISNUMBER(SEARCH("KOPPEL",RISICOAFSTANDEN!$M$18,1)),RISICOAFSTANDEN!$N$18*HLOOKUP(SUBSTITUTE(RISICOAFSTANDEN!$M$18,"SLANG","LEIDING"),'DATA PMR - ANTWERPEN'!$B$1:$GI$203,$A10,FALSE)+RISICOAFSTANDEN!$N$18*RISICOAFSTANDEN!$O$18/8760*HLOOKUP(SUBSTITUTE(RISICOAFSTANDEN!$M$18,"KOPPEL","LOS"),'DATA PMR - ANTWERPEN'!$B$1:$GI$203,$A10,FALSE),RISICOAFSTANDEN!$N$18*RISICOAFSTANDEN!$O$18/8760*HLOOKUP(RISICOAFSTANDEN!$M$18,'DATA PMR - ANTWERPEN'!$B$1:$GI$203,$A10,FALSE)),"") ->  | P10: =IFERROR(IF(ISNUMBER(SEARCH("KOPPEL",RISICOAFSTANDEN!$M$19,1)),RISICOAFSTANDEN!$N$19*HLOOKUP(SUBSTITUTE(RISICOAFSTANDEN!$M$19,"SLANG","LEIDING"),'DATA PMR - ANTWERPEN'!$B$1:$GI$203,$A10,FALSE)+RISICOAFSTANDEN!$N$19*RISICOAFSTANDEN!$O$19/8760*HLOOKUP(SUBSTITUTE(RISICOAFSTANDEN!$M$19,"KOPPEL","LOS"),'DATA PMR - ANTWERPEN'!$B$1:$GI$203,$A10,FALSE),RISICOAFSTANDEN!$N$19*RISICOAFSTANDEN!$O$19/8760*HLOOKUP(RISICOAFSTANDEN!$M$19,'DATA PMR - ANTWERPEN'!$B$1:$GI$203,$A10,FALSE)),"") ->  | Q10: =IFERROR(IF(ISNUMBER(SEARCH("KOPPEL",RISICOAFSTANDEN!$M$20,1)),RISICOAFSTANDEN!$N$20*HLOOKUP(SUBSTITUTE(RISICOAFSTANDEN!$M$20,"SLANG","LEIDING"),'DATA PMR - ANTWERPEN'!$B$1:$GI$203,$A10,FALSE)+RISICOAFSTANDEN!$N$20*RISICOAFSTANDEN!$O$20/8760*HLOOKUP(SUBSTITUTE(RISICOAFSTANDEN!$M$20,"KOPPEL","LOS"),'DATA PMR - ANTWERPEN'!$B$1:$GI$203,$A10,FALSE),RISICOAFSTANDEN!$N$20*RISICOAFSTANDEN!$O$20/8760*HLOOKUP(RISICOAFSTANDEN!$M$20,'DATA PMR - ANTWERPEN'!$B$1:$GI$203,$A10,FALSE)),"") ->  | R10: =IFERROR(IF(ISNUMBER(SEARCH("KOPPEL",RISICOAFSTANDEN!$M$21,1)),RISICOAFSTANDEN!$N$21*HLOOKUP(SUBSTITUTE(RISICOAFSTANDEN!$M$21,"SLANG","LEIDING"),'DATA PMR - ANTWERPEN'!$B$1:$GI$203,$A10,FALSE)+RISICOAFSTANDEN!$N$21*RISICOAFSTANDEN!$O$21/8760*HLOOKUP(SUBSTITUTE(RISICOAFSTANDEN!$M$21,"KOPPEL","LOS"),'DATA PMR - ANTWERPEN'!$B$1:$GI$203,$A10,FALSE),RISICOAFSTANDEN!$N$21*RISICOAFSTANDEN!$O$21/8760*HLOOKUP(RISICOAFSTANDEN!$M$21,'DATA PMR - ANTWERPEN'!$B$1:$GI$203,$A10,FALSE)),"") ->  | S10: =IFERROR(IF(ISNUMBER(SEARCH("KOPPEL",RISICOAFSTANDEN!$M$22,1)),RISICOAFSTANDEN!$N$22*HLOOKUP(SUBSTITUTE(RISICOAFSTANDEN!$M$22,"SLANG","LEIDING"),'DATA PMR - ANTWERPEN'!$B$1:$GI$203,$A10,FALSE)+RISICOAFSTANDEN!$N$22*RISICOAFSTANDEN!$O$22/8760*HLOOKUP(SUBSTITUTE(RISICOAFSTANDEN!$M$22,"KOPPEL","LOS"),'DATA PMR - ANTWERPEN'!$B$1:$GI$203,$A10,FALSE),RISICOAFSTANDEN!$N$22*RISICOAFSTANDEN!$O$22/8760*HLOOKUP(RISICOAFSTANDEN!$M$22,'DATA PMR - ANTWERPEN'!$B$1:$GI$203,$A10,FALSE)),"") ->  | T10: =IFERROR(IF(ISNUMBER(SEARCH("KOPPEL",RISICOAFSTANDEN!$M$23,1)),RISICOAFSTANDEN!$N$23*HLOOKUP(SUBSTITUTE(RISICOAFSTANDEN!$M$23,"SLANG","LEIDING"),'DATA PMR - ANTWERPEN'!$B$1:$GI$203,$A10,FALSE)+RISICOAFSTANDEN!$N$23*RISICOAFSTANDEN!$O$23/8760*HLOOKUP(SUBSTITUTE(RISICOAFSTANDEN!$M$23,"KOPPEL","LOS"),'DATA PMR - ANTWERPEN'!$B$1:$GI$203,$A10,FALSE),RISICOAFSTANDEN!$N$23*RISICOAFSTANDEN!$O$23/8760*HLOOKUP(RISICOAFSTANDEN!$M$23,'DATA PMR - ANTWERPEN'!$B$1:$GI$203,$A10,FALSE)),"") ->  | U10: =IFERROR(IF(ISNUMBER(SEARCH("KOPPEL",RISICOAFSTANDEN!$M$24,1)),RISICOAFSTANDEN!$N$24*HLOOKUP(SUBSTITUTE(RISICOAFSTANDEN!$M$24,"SLANG","LEIDING"),'DATA PMR - ANTWERPEN'!$B$1:$GI$203,$A10,FALSE)+RISICOAFSTANDEN!$N$24*RISICOAFSTANDEN!$O$24/8760*HLOOKUP(SUBSTITUTE(RISICOAFSTANDEN!$M$24,"KOPPEL","LOS"),'DATA PMR - ANTWERPEN'!$B$1:$GI$203,$A10,FALSE),RISICOAFSTANDEN!$N$24*RISICOAFSTANDEN!$O$24/8760*HLOOKUP(RISICOAFSTANDEN!$M$24,'DATA PMR - ANTWERPEN'!$B$1:$GI$203,$A10,FALSE)),"") ->  | V10: =IFERROR(IF(ISNUMBER(SEARCH("KOPPEL",RISICOAFSTANDEN!$M$25,1)),RISICOAFSTANDEN!$N$25*HLOOKUP(SUBSTITUTE(RISICOAFSTANDEN!$M$25,"SLANG","LEIDING"),'DATA PMR - ANTWERPEN'!$B$1:$GI$203,$A10,FALSE)+RISICOAFSTANDEN!$N$25*RISICOAFSTANDEN!$O$25/8760*HLOOKUP(SUBSTITUTE(RISICOAFSTANDEN!$M$25,"KOPPEL","LOS"),'DATA PMR - ANTWERPEN'!$B$1:$GI$203,$A10,FALSE),RISICOAFSTANDEN!$N$25*RISICOAFSTANDEN!$O$25/8760*HLOOKUP(RISICOAFSTANDEN!$M$25,'DATA PMR - ANTWERPEN'!$B$1:$GI$203,$A10,FALSE)),"") ->  | W10: =IFERROR(IF(ISNUMBER(SEARCH("KOPPEL",RISICOAFSTANDEN!$M$26,1)),RISICOAFSTANDEN!$N$26*HLOOKUP(SUBSTITUTE(RISICOAFSTANDEN!$M$26,"SLANG","LEIDING"),'DATA PMR - ANTWERPEN'!$B$1:$GI$203,$A10,FALSE)+RISICOAFSTANDEN!$N$26*RISICOAFSTANDEN!$O$26/8760*HLOOKUP(SUBSTITUTE(RISICOAFSTANDEN!$M$26,"KOPPEL","LOS"),'DATA PMR - ANTWERPEN'!$B$1:$GI$203,$A10,FALSE),RISICOAFSTANDEN!$N$26*RISICOAFSTANDEN!$O$26/8760*HLOOKUP(RISICOAFSTANDEN!$M$26,'DATA PMR - ANTWERPEN'!$B$1:$GI$203,$A10,FALSE)),"") ->  | X10: =IFERROR(IF(ISNUMBER(SEARCH("KOPPEL",RISICOAFSTANDEN!$M$27,1)),RISICOAFSTANDEN!$N$27*HLOOKUP(SUBSTITUTE(RISICOAFSTANDEN!$M$27,"SLANG","LEIDING"),'DATA PMR - ANTWERPEN'!$B$1:$GI$203,$A10,FALSE)+RISICOAFSTANDEN!$N$27*RISICOAFSTANDEN!$O$27/8760*HLOOKUP(SUBSTITUTE(RISICOAFSTANDEN!$M$27,"KOPPEL","LOS"),'DATA PMR - ANTWERPEN'!$B$1:$GI$203,$A10,FALSE),RISICOAFSTANDEN!$N$27*RISICOAFSTANDEN!$O$27/8760*HLOOKUP(RISICOAFSTANDEN!$M$27,'DATA PMR - ANTWERPEN'!$B$1:$GI$203,$A10,FALSE)),"") ->  | Y10: =IFERROR(IF(ISNUMBER(SEARCH("KOPPEL",RISICOAFSTANDEN!$M$28,1)),RISICOAFSTANDEN!$N$28*HLOOKUP(SUBSTITUTE(RISICOAFSTANDEN!$M$28,"SLANG","LEIDING"),'DATA PMR - ANTWERPEN'!$B$1:$GI$203,$A10,FALSE)+RISICOAFSTANDEN!$N$28*RISICOAFSTANDEN!$O$28/8760*HLOOKUP(SUBSTITUTE(RISICOAFSTANDEN!$M$28,"KOPPEL","LOS"),'DATA PMR - ANTWERPEN'!$B$1:$GI$203,$A10,FALSE),RISICOAFSTANDEN!$N$28*RISICOAFSTANDEN!$O$28/8760*HLOOKUP(RISICOAFSTANDEN!$M$28,'DATA PMR - ANTWERPEN'!$B$1:$GI$203,$A10,FALSE)),"") ->  | Z10: =IFERROR(IF(ISNUMBER(SEARCH("KOPPEL",RISICOAFSTANDEN!$M$29,1)),RISICOAFSTANDEN!$N$29*HLOOKUP(SUBSTITUTE(RISICOAFSTANDEN!$M$29,"SLANG","LEIDING"),'DATA PMR - ANTWERPEN'!$B$1:$GI$203,$A10,FALSE)+RISICOAFSTANDEN!$N$29*RISICOAFSTANDEN!$O$29/8760*HLOOKUP(SUBSTITUTE(RISICOAFSTANDEN!$M$29,"KOPPEL","LOS"),'DATA PMR - ANTWERPEN'!$B$1:$GI$203,$A10,FALSE),RISICOAFSTANDEN!$N$29*RISICOAFSTANDEN!$O$29/8760*HLOOKUP(RISICOAFSTANDEN!$M$29,'DATA PMR - ANTWERPEN'!$B$1:$GI$203,$A10,FALSE)),"") ->  | AA10: -6 | AB10: -6 | AC10: -8 | AD10: -5 | AE10: -6 | AF10: -7 | AG10: -6 | AH10: -7 | AI10: -8 | AJ10: -6 | AK10: -8 | AL10: -6 | AM10: n.b. | AN10: n.b. | AO10: n.b. | AP10: n.b. | AQ10: n.b. | AR10: n.b. | AS10: n.b. | AT10: n.b. | AU10: n.b. | AV10: n.b. | AW10: n.b. | AX10: n.b. | AY10: n.b. | AZ10: 8 | BB10: 3.768160564e-05 | BC10: -5 | BD10: 8
A11: 12 | B11: =IFERROR(IF(ISNUMBER(SEARCH("KOPPEL",RISICOAFSTANDEN!$M$5,1)),RISICOAFSTANDEN!$N$5*HLOOKUP(SUBSTITUTE(RISICOAFSTANDEN!$M$5,"SLANG","LEIDING"),'DATA PMR - ANTWERPEN'!$B$1:$GI$203,$A11,FALSE)+RISICOAFSTANDEN!$N$5*RISICOAFSTANDEN!$O$5/8760*HLOOKUP(SUBSTITUTE(RISICOAFSTANDEN!$M$5,"KOPPEL","LOS"),'DATA PMR - ANTWERPEN'!$B$1:$GI$203,$A11,FALSE),RISICOAFSTANDEN!$N$5*RISICOAFSTANDEN!$O$5/8760*HLOOKUP(RISICOAFSTANDEN!$M$5,'DATA PMR - ANTWERPEN'!$B$1:$GI$203,$A11,FALSE)),"") -> 2.650024167e-06 | C11: =IFERROR(IF(ISNUMBER(SEARCH("KOPPEL",RISICOAFSTANDEN!$M$6,1)),RISICOAFSTANDEN!$N$6*HLOOKUP(SUBSTITUTE(RISICOAFSTANDEN!$M$6,"SLANG","LEIDING"),'DATA PMR - ANTWERPEN'!$B$1:$GI$203,$A11,FALSE)+RISICOAFSTANDEN!$N$6*RISICOAFSTANDEN!$O$6/8760*HLOOKUP(SUBSTITUTE(RISICOAFSTANDEN!$M$6,"KOPPEL","LOS"),'DATA PMR - ANTWERPEN'!$B$1:$GI$203,$A11,FALSE),RISICOAFSTANDEN!$N$6*RISICOAFSTANDEN!$O$6/8760*HLOOKUP(RISICOAFSTANDEN!$M$6,'DATA PMR - ANTWERPEN'!$B$1:$GI$203,$A11,FALSE)),"") -> 3.37333501e-06 | D11: =IFERROR(IF(ISNUMBER(SEARCH("KOPPEL",RISICOAFSTANDEN!$M$7,1)),RISICOAFSTANDEN!$N$7*HLOOKUP(SUBSTITUTE(RISICOAFSTANDEN!$M$7,"SLANG","LEIDING"),'DATA PMR - ANTWERPEN'!$B$1:$GI$203,$A11,FALSE)+RISICOAFSTANDEN!$N$7*RISICOAFSTANDEN!$O$7/8760*HLOOKUP(SUBSTITUTE(RISICOAFSTANDEN!$M$7,"KOPPEL","LOS"),'DATA PMR - ANTWERPEN'!$B$1:$GI$203,$A11,FALSE),RISICOAFSTANDEN!$N$7*RISICOAFSTANDEN!$O$7/8760*HLOOKUP(RISICOAFSTANDEN!$M$7,'DATA PMR - ANTWERPEN'!$B$1:$GI$203,$A11,FALSE)),"") -> 2.421113663e-08 | E11: =IFERROR(IF(ISNUMBER(SEARCH("KOPPEL",RISICOAFSTANDEN!$M$8,1)),RISICOAFSTANDEN!$N$8*HLOOKUP(SUBSTITUTE(RISICOAFSTANDEN!$M$8,"SLANG","LEIDING"),'DATA PMR - ANTWERPEN'!$B$1:$GI$203,$A11,FALSE)+RISICOAFSTANDEN!$N$8*RISICOAFSTANDEN!$O$8/8760*HLOOKUP(SUBSTITUTE(RISICOAFSTANDEN!$M$8,"KOPPEL","LOS"),'DATA PMR - ANTWERPEN'!$B$1:$GI$203,$A11,FALSE),RISICOAFSTANDEN!$N$8*RISICOAFSTANDEN!$O$8/8760*HLOOKUP(RISICOAFSTANDEN!$M$8,'DATA PMR - ANTWERPEN'!$B$1:$GI$203,$A11,FALSE)),"") -> 1.551448326e-05 | F11: =IFERROR(IF(ISNUMBER(SEARCH("KOPPEL",RISICOAFSTANDEN!$M$9,1)),RISICOAFSTANDEN!$N$9*HLOOKUP(SUBSTITUTE(RISICOAFSTANDEN!$M$9,"SLANG","LEIDING"),'DATA PMR - ANTWERPEN'!$B$1:$GI$203,$A11,FALSE)+RISICOAFSTANDEN!$N$9*RISICOAFSTANDEN!$O$9/8760*HLOOKUP(SUBSTITUTE(RISICOAFSTANDEN!$M$9,"KOPPEL","LOS"),'DATA PMR - ANTWERPEN'!$B$1:$GI$203,$A11,FALSE),RISICOAFSTANDEN!$N$9*RISICOAFSTANDEN!$O$9/8760*HLOOKUP(RISICOAFSTANDEN!$M$9,'DATA PMR - ANTWERPEN'!$B$1:$GI$203,$A11,FALSE)),"") -> 8.913904034e-07 | G11: =IFERROR(IF(ISNUMBER(SEARCH("KOPPEL",RISICOAFSTANDEN!$M$10,1)),RISICOAFSTANDEN!$N$10*HLOOKUP(SUBSTITUTE(RISICOAFSTANDEN!$M$10,"SLANG","LEIDING"),'DATA PMR - ANTWERPEN'!$B$1:$GI$203,$A11,FALSE)+RISICOAFSTANDEN!$N$10*RISICOAFSTANDEN!$O$10/8760*HLOOKUP(SUBSTITUTE(RISICOAFSTANDEN!$M$10,"KOPPEL","LOS"),'DATA PMR - ANTWERPEN'!$B$1:$GI$203,$A11,FALSE),RISICOAFSTANDEN!$N$10*RISICOAFSTANDEN!$O$10/8760*HLOOKUP(RISICOAFSTANDEN!$M$10,'DATA PMR - ANTWERPEN'!$B$1:$GI$203,$A11,FALSE)),"") -> 1.144653866e-07 | H11: =IFERROR(IF(ISNUMBER(SEARCH("KOPPEL",RISICOAFSTANDEN!$M$11,1)),RISICOAFSTANDEN!$N$11*HLOOKUP(SUBSTITUTE(RISICOAFSTANDEN!$M$11,"SLANG","LEIDING"),'DATA PMR - ANTWERPEN'!$B$1:$GI$203,$A11,FALSE)+RISICOAFSTANDEN!$N$11*RISICOAFSTANDEN!$O$11/8760*HLOOKUP(SUBSTITUTE(RISICOAFSTANDEN!$M$11,"KOPPEL","LOS"),'DATA PMR - ANTWERPEN'!$B$1:$GI$203,$A11,FALSE),RISICOAFSTANDEN!$N$11*RISICOAFSTANDEN!$O$11/8760*HLOOKUP(RISICOAFSTANDEN!$M$11,'DATA PMR - ANTWERPEN'!$B$1:$GI$203,$A11,FALSE)),"") -> 1.44123969e-06 | I11: =IFERROR(IF(ISNUMBER(SEARCH("KOPPEL",RISICOAFSTANDEN!$M$12,1)),RISICOAFSTANDEN!$N$12*HLOOKUP(SUBSTITUTE(RISICOAFSTANDEN!$M$12,"SLANG","LEIDING"),'DATA PMR - ANTWERPEN'!$B$1:$GI$203,$A11,FALSE)+RISICOAFSTANDEN!$N$12*RISICOAFSTANDEN!$O$12/8760*HLOOKUP(SUBSTITUTE(RISICOAFSTANDEN!$M$12,"KOPPEL","LOS"),'DATA PMR - ANTWERPEN'!$B$1:$GI$203,$A11,FALSE),RISICOAFSTANDEN!$N$12*RISICOAFSTANDEN!$O$12/8760*HLOOKUP(RISICOAFSTANDEN!$M$12,'DATA PMR - ANTWERPEN'!$B$1:$GI$203,$A11,FALSE)),"") -> 1.782780807e-07 | J11: =IFERROR(IF(ISNUMBER(SEARCH("KOPPEL",RISICOAFSTANDEN!$M$13,1)),RISICOAFSTANDEN!$N$13*HLOOKUP(SUBSTITUTE(RISICOAFSTANDEN!$M$13,"SLANG","LEIDING"),'DATA PMR - ANTWERPEN'!$B$1:$GI$203,$A11,FALSE)+RISICOAFSTANDEN!$N$13*RISICOAFSTANDEN!$O$13/8760*HLOOKUP(SUBSTITUTE(RISICOAFSTANDEN!$M$13,"KOPPEL","LOS"),'DATA PMR - ANTWERPEN'!$B$1:$GI$203,$A11,FALSE),RISICOAFSTANDEN!$N$13*RISICOAFSTANDEN!$O$13/8760*HLOOKUP(RISICOAFSTANDEN!$M$13,'DATA PMR - ANTWERPEN'!$B$1:$GI$203,$A11,FALSE)),"") -> 2.338275101e-08 | K11: =IFERROR(IF(ISNUMBER(SEARCH("KOPPEL",RISICOAFSTANDEN!$M$14,1)),RISICOAFSTANDEN!$N$14*HLOOKUP(SUBSTITUTE(RISICOAFSTANDEN!$M$14,"SLANG","LEIDING"),'DATA PMR - ANTWERPEN'!$B$1:$GI$203,$A11,FALSE)+RISICOAFSTANDEN!$N$14*RISICOAFSTANDEN!$O$14/8760*HLOOKUP(SUBSTITUTE(RISICOAFSTANDEN!$M$14,"KOPPEL","LOS"),'DATA PMR - ANTWERPEN'!$B$1:$GI$203,$A11,FALSE),RISICOAFSTANDEN!$N$14*RISICOAFSTANDEN!$O$14/8760*HLOOKUP(RISICOAFSTANDEN!$M$14,'DATA PMR - ANTWERPEN'!$B$1:$GI$203,$A11,FALSE)),"") -> 1.954432625e-06 | L11: =IFERROR(IF(ISNUMBER(SEARCH("KOPPEL",RISICOAFSTANDEN!$M$15,1)),RISICOAFSTANDEN!$N$15*HLOOKUP(SUBSTITUTE(RISICOAFSTANDEN!$M$15,"SLANG","LEIDING"),'DATA PMR - ANTWERPEN'!$B$1:$GI$203,$A11,FALSE)+RISICOAFSTANDEN!$N$15*RISICOAFSTANDEN!$O$15/8760*HLOOKUP(SUBSTITUTE(RISICOAFSTANDEN!$M$15,"KOPPEL","LOS"),'DATA PMR - ANTWERPEN'!$B$1:$GI$203,$A11,FALSE),RISICOAFSTANDEN!$N$15*RISICOAFSTANDEN!$O$15/8760*HLOOKUP(RISICOAFSTANDEN!$M$15,'DATA PMR - ANTWERPEN'!$B$1:$GI$203,$A11,FALSE)),"") -> 3.507412651e-08 | M11: =IFERROR(IF(ISNUMBER(SEARCH("KOPPEL",RISICOAFSTANDEN!$M$16,1)),RISICOAFSTANDEN!$N$16*HLOOKUP(SUBSTITUTE(RISICOAFSTANDEN!$M$16,"SLANG","LEIDING"),'DATA PMR - ANTWERPEN'!$B$1:$GI$203,$A11,FALSE)+RISICOAFSTANDEN!$N$16*RISICOAFSTANDEN!$O$16/8760*HLOOKUP(SUBSTITUTE(RISICOAFSTANDEN!$M$16,"KOPPEL","LOS"),'DATA PMR - ANTWERPEN'!$B$1:$GI$203,$A11,FALSE),RISICOAFSTANDEN!$N$16*RISICOAFSTANDEN!$O$16/8760*HLOOKUP(RISICOAFSTANDEN!$M$16,'DATA PMR - ANTWERPEN'!$B$1:$GI$203,$A11,FALSE)),"") -> 4.510887875e-06 | N11: =IFERROR(IF(ISNUMBER(SEARCH("KOPPEL",RISICOAFSTANDEN!$M$17,1)),RISICOAFSTANDEN!$N$17*HLOOKUP(SUBSTITUTE(RISICOAFSTANDEN!$M$17,"SLANG","LEIDING"),'DATA PMR - ANTWERPEN'!$B$1:$GI$203,$A11,FALSE)+RISICOAFSTANDEN!$N$17*RISICOAFSTANDEN!$O$17/8760*HLOOKUP(SUBSTITUTE(RISICOAFSTANDEN!$M$17,"KOPPEL","LOS"),'DATA PMR - ANTWERPEN'!$B$1:$GI$203,$A11,FALSE),RISICOAFSTANDEN!$N$17*RISICOAFSTANDEN!$O$17/8760*HLOOKUP(RISICOAFSTANDEN!$M$17,'DATA PMR - ANTWERPEN'!$B$1:$GI$203,$A11,FALSE)),"") ->  | O11: =IFERROR(IF(ISNUMBER(SEARCH("KOPPEL",RISICOAFSTANDEN!$M$18,1)),RISICOAFSTANDEN!$N$18*HLOOKUP(SUBSTITUTE(RISICOAFSTANDEN!$M$18,"SLANG","LEIDING"),'DATA PMR - ANTWERPEN'!$B$1:$GI$203,$A11,FALSE)+RISICOAFSTANDEN!$N$18*RISICOAFSTANDEN!$O$18/8760*HLOOKUP(SUBSTITUTE(RISICOAFSTANDEN!$M$18,"KOPPEL","LOS"),'DATA PMR - ANTWERPEN'!$B$1:$GI$203,$A11,FALSE),RISICOAFSTANDEN!$N$18*RISICOAFSTANDEN!$O$18/8760*HLOOKUP(RISICOAFSTANDEN!$M$18,'DATA PMR - ANTWERPEN'!$B$1:$GI$203,$A11,FALSE)),"") ->  | P11: =IFERROR(IF(ISNUMBER(SEARCH("KOPPEL",RISICOAFSTANDEN!$M$19,1)),RISICOAFSTANDEN!$N$19*HLOOKUP(SUBSTITUTE(RISICOAFSTANDEN!$M$19,"SLANG","LEIDING"),'DATA PMR - ANTWERPEN'!$B$1:$GI$203,$A11,FALSE)+RISICOAFSTANDEN!$N$19*RISICOAFSTANDEN!$O$19/8760*HLOOKUP(SUBSTITUTE(RISICOAFSTANDEN!$M$19,"KOPPEL","LOS"),'DATA PMR - ANTWERPEN'!$B$1:$GI$203,$A11,FALSE),RISICOAFSTANDEN!$N$19*RISICOAFSTANDEN!$O$19/8760*HLOOKUP(RISICOAFSTANDEN!$M$19,'DATA PMR - ANTWERPEN'!$B$1:$GI$203,$A11,FALSE)),"") ->  | Q11: =IFERROR(IF(ISNUMBER(SEARCH("KOPPEL",RISICOAFSTANDEN!$M$20,1)),RISICOAFSTANDEN!$N$20*HLOOKUP(SUBSTITUTE(RISICOAFSTANDEN!$M$20,"SLANG","LEIDING"),'DATA PMR - ANTWERPEN'!$B$1:$GI$203,$A11,FALSE)+RISICOAFSTANDEN!$N$20*RISICOAFSTANDEN!$O$20/8760*HLOOKUP(SUBSTITUTE(RISICOAFSTANDEN!$M$20,"KOPPEL","LOS"),'DATA PMR - ANTWERPEN'!$B$1:$GI$203,$A11,FALSE),RISICOAFSTANDEN!$N$20*RISICOAFSTANDEN!$O$20/8760*HLOOKUP(RISICOAFSTANDEN!$M$20,'DATA PMR - ANTWERPEN'!$B$1:$GI$203,$A11,FALSE)),"") ->  | R11: =IFERROR(IF(ISNUMBER(SEARCH("KOPPEL",RISICOAFSTANDEN!$M$21,1)),RISICOAFSTANDEN!$N$21*HLOOKUP(SUBSTITUTE(RISICOAFSTANDEN!$M$21,"SLANG","LEIDING"),'DATA PMR - ANTWERPEN'!$B$1:$GI$203,$A11,FALSE)+RISICOAFSTANDEN!$N$21*RISICOAFSTANDEN!$O$21/8760*HLOOKUP(SUBSTITUTE(RISICOAFSTANDEN!$M$21,"KOPPEL","LOS"),'DATA PMR - ANTWERPEN'!$B$1:$GI$203,$A11,FALSE),RISICOAFSTANDEN!$N$21*RISICOAFSTANDEN!$O$21/8760*HLOOKUP(RISICOAFSTANDEN!$M$21,'DATA PMR - ANTWERPEN'!$B$1:$GI$203,$A11,FALSE)),"") ->  | S11: =IFERROR(IF(ISNUMBER(SEARCH("KOPPEL",RISICOAFSTANDEN!$M$22,1)),RISICOAFSTANDEN!$N$22*HLOOKUP(SUBSTITUTE(RISICOAFSTANDEN!$M$22,"SLANG","LEIDING"),'DATA PMR - ANTWERPEN'!$B$1:$GI$203,$A11,FALSE)+RISICOAFSTANDEN!$N$22*RISICOAFSTANDEN!$O$22/8760*HLOOKUP(SUBSTITUTE(RISICOAFSTANDEN!$M$22,"KOPPEL","LOS"),'DATA PMR - ANTWERPEN'!$B$1:$GI$203,$A11,FALSE),RISICOAFSTANDEN!$N$22*RISICOAFSTANDEN!$O$22/8760*HLOOKUP(RISICOAFSTANDEN!$M$22,'DATA PMR - ANTWERPEN'!$B$1:$GI$203,$A11,FALSE)),"") ->  | T11: =IFERROR(IF(ISNUMBER(SEARCH("KOPPEL",RISICOAFSTANDEN!$M$23,1)),RISICOAFSTANDEN!$N$23*HLOOKUP(SUBSTITUTE(RISICOAFSTANDEN!$M$23,"SLANG","LEIDING"),'DATA PMR - ANTWERPEN'!$B$1:$GI$203,$A11,FALSE)+RISICOAFSTANDEN!$N$23*RISICOAFSTANDEN!$O$23/8760*HLOOKUP(SUBSTITUTE(RISICOAFSTANDEN!$M$23,"KOPPEL","LOS"),'DATA PMR - ANTWERPEN'!$B$1:$GI$203,$A11,FALSE),RISICOAFSTANDEN!$N$23*RISICOAFSTANDEN!$O$23/8760*HLOOKUP(RISICOAFSTANDEN!$M$23,'DATA PMR - ANTWERPEN'!$B$1:$GI$203,$A11,FALSE)),"") ->  | U11: =IFERROR(IF(ISNUMBER(SEARCH("KOPPEL",RISICOAFSTANDEN!$M$24,1)),RISICOAFSTANDEN!$N$24*HLOOKUP(SUBSTITUTE(RISICOAFSTANDEN!$M$24,"SLANG","LEIDING"),'DATA PMR - ANTWERPEN'!$B$1:$GI$203,$A11,FALSE)+RISICOAFSTANDEN!$N$24*RISICOAFSTANDEN!$O$24/8760*HLOOKUP(SUBSTITUTE(RISICOAFSTANDEN!$M$24,"KOPPEL","LOS"),'DATA PMR - ANTWERPEN'!$B$1:$GI$203,$A11,FALSE),RISICOAFSTANDEN!$N$24*RISICOAFSTANDEN!$O$24/8760*HLOOKUP(RISICOAFSTANDEN!$M$24,'DATA PMR - ANTWERPEN'!$B$1:$GI$203,$A11,FALSE)),"") ->  | V11: =IFERROR(IF(ISNUMBER(SEARCH("KOPPEL",RISICOAFSTANDEN!$M$25,1)),RISICOAFSTANDEN!$N$25*HLOOKUP(SUBSTITUTE(RISICOAFSTANDEN!$M$25,"SLANG","LEIDING"),'DATA PMR - ANTWERPEN'!$B$1:$GI$203,$A11,FALSE)+RISICOAFSTANDEN!$N$25*RISICOAFSTANDEN!$O$25/8760*HLOOKUP(SUBSTITUTE(RISICOAFSTANDEN!$M$25,"KOPPEL","LOS"),'DATA PMR - ANTWERPEN'!$B$1:$GI$203,$A11,FALSE),RISICOAFSTANDEN!$N$25*RISICOAFSTANDEN!$O$25/8760*HLOOKUP(RISICOAFSTANDEN!$M$25,'DATA PMR - ANTWERPEN'!$B$1:$GI$203,$A11,FALSE)),"") ->  | W11: =IFERROR(IF(ISNUMBER(SEARCH("KOPPEL",RISICOAFSTANDEN!$M$26,1)),RISICOAFSTANDEN!$N$26*HLOOKUP(SUBSTITUTE(RISICOAFSTANDEN!$M$26,"SLANG","LEIDING"),'DATA PMR - ANTWERPEN'!$B$1:$GI$203,$A11,FALSE)+RISICOAFSTANDEN!$N$26*RISICOAFSTANDEN!$O$26/8760*HLOOKUP(SUBSTITUTE(RISICOAFSTANDEN!$M$26,"KOPPEL","LOS"),'DATA PMR - ANTWERPEN'!$B$1:$GI$203,$A11,FALSE),RISICOAFSTANDEN!$N$26*RISICOAFSTANDEN!$O$26/8760*HLOOKUP(RISICOAFSTANDEN!$M$26,'DATA PMR - ANTWERPEN'!$B$1:$GI$203,$A11,FALSE)),"") ->  | X11: =IFERROR(IF(ISNUMBER(SEARCH("KOPPEL",RISICOAFSTANDEN!$M$27,1)),RISICOAFSTANDEN!$N$27*HLOOKUP(SUBSTITUTE(RISICOAFSTANDEN!$M$27,"SLANG","LEIDING"),'DATA PMR - ANTWERPEN'!$B$1:$GI$203,$A11,FALSE)+RISICOAFSTANDEN!$N$27*RISICOAFSTANDEN!$O$27/8760*HLOOKUP(SUBSTITUTE(RISICOAFSTANDEN!$M$27,"KOPPEL","LOS"),'DATA PMR - ANTWERPEN'!$B$1:$GI$203,$A11,FALSE),RISICOAFSTANDEN!$N$27*RISICOAFSTANDEN!$O$27/8760*HLOOKUP(RISICOAFSTANDEN!$M$27,'DATA PMR - ANTWERPEN'!$B$1:$GI$203,$A11,FALSE)),"") ->  | Y11: =IFERROR(IF(ISNUMBER(SEARCH("KOPPEL",RISICOAFSTANDEN!$M$28,1)),RISICOAFSTANDEN!$N$28*HLOOKUP(SUBSTITUTE(RISICOAFSTANDEN!$M$28,"SLANG","LEIDING"),'DATA PMR - ANTWERPEN'!$B$1:$GI$203,$A11,FALSE)+RISICOAFSTANDEN!$N$28*RISICOAFSTANDEN!$O$28/8760*HLOOKUP(SUBSTITUTE(RISICOAFSTANDEN!$M$28,"KOPPEL","LOS"),'DATA PMR - ANTWERPEN'!$B$1:$GI$203,$A11,FALSE),RISICOAFSTANDEN!$N$28*RISICOAFSTANDEN!$O$28/8760*HLOOKUP(RISICOAFSTANDEN!$M$28,'DATA PMR - ANTWERPEN'!$B$1:$GI$203,$A11,FALSE)),"") ->  | Z11: =IFERROR(IF(ISNUMBER(SEARCH("KOPPEL",RISICOAFSTANDEN!$M$29,1)),RISICOAFSTANDEN!$N$29*HLOOKUP(SUBSTITUTE(RISICOAFSTANDEN!$M$29,"SLANG","LEIDING"),'DATA PMR - ANTWERPEN'!$B$1:$GI$203,$A11,FALSE)+RISICOAFSTANDEN!$N$29*RISICOAFSTANDEN!$O$29/8760*HLOOKUP(SUBSTITUTE(RISICOAFSTANDEN!$M$29,"KOPPEL","LOS"),'DATA PMR - ANTWERPEN'!$B$1:$GI$203,$A11,FALSE),RISICOAFSTANDEN!$N$29*RISICOAFSTANDEN!$O$29/8760*HLOOKUP(RISICOAFSTANDEN!$M$29,'DATA PMR - ANTWERPEN'!$B$1:$GI$203,$A11,FALSE)),"") ->  | AA11: -6 | AB11: -6 | AC11: -8 | AD11: -5 | AE11: -7 | AF11: -7 | AG11: -6 | AH11: -7 | AI11: -8 | AJ11: -6 | AK11: -8 | AL11: -6 | AM11: n.b. | AN11: n.b. | AO11: n.b. | AP11: n.b. | AQ11: n.b. | AR11: n.b. | AS11: n.b. | AT11: n.b. | AU11: n.b. | AV11: n.b. | AW11: n.b. | AX11: n.b. | AY11: n.b. | AZ11: 9 | BB11: 3.071120451e-05 | BC11: -5 | BD11: 9
A12: 13 | B12: =IFERROR(IF(ISNUMBER(SEARCH("KOPPEL",RISICOAFSTANDEN!$M$5,1)),RISICOAFSTANDEN!$N$5*HLOOKUP(SUBSTITUTE(RISICOAFSTANDEN!$M$5,"SLANG","LEIDING"),'DATA PMR - ANTWERPEN'!$B$1:$GI$203,$A12,FALSE)+RISICOAFSTANDEN!$N$5*RISICOAFSTANDEN!$O$5/8760*HLOOKUP(SUBSTITUTE(RISICOAFSTANDEN!$M$5,"KOPPEL","LOS"),'DATA PMR - ANTWERPEN'!$B$1:$GI$203,$A12,FALSE),RISICOAFSTANDEN!$N$5*RISICOAFSTANDEN!$O$5/8760*HLOOKUP(RISICOAFSTANDEN!$M$5,'DATA PMR - ANTWERPEN'!$B$1:$GI$203,$A12,FALSE)),"") -> 2.081235731e-06 | C12: =IFERROR(IF(ISNUMBER(SEARCH("KOPPEL",RISICOAFSTANDEN!$M$6,1)),RISICOAFSTANDEN!$N$6*HLOOKUP(SUBSTITUTE(RISICOAFSTANDEN!$M$6,"SLANG","LEIDING"),'DATA PMR - ANTWERPEN'!$B$1:$GI$203,$A12,FALSE)+RISICOAFSTANDEN!$N$6*RISICOAFSTANDEN!$O$6/8760*HLOOKUP(SUBSTITUTE(RISICOAFSTANDEN!$M$6,"KOPPEL","LOS"),'DATA PMR - ANTWERPEN'!$B$1:$GI$203,$A12,FALSE),RISICOAFSTANDEN!$N$6*RISICOAFSTANDEN!$O$6/8760*HLOOKUP(RISICOAFSTANDEN!$M$6,'DATA PMR - ANTWERPEN'!$B$1:$GI$203,$A12,FALSE)),"") -> 3.147215929e-06 | D12: =IFERROR(IF(ISNUMBER(SEARCH("KOPPEL",RISICOAFSTANDEN!$M$7,1)),RISICOAFSTANDEN!$N$7*HLOOKUP(SUBSTITUTE(RISICOAFSTANDEN!$M$7,"SLANG","LEIDING"),'DATA PMR - ANTWERPEN'!$B$1:$GI$203,$A12,FALSE)+RISICOAFSTANDEN!$N$7*RISICOAFSTANDEN!$O$7/8760*HLOOKUP(SUBSTITUTE(RISICOAFSTANDEN!$M$7,"KOPPEL","LOS"),'DATA PMR - ANTWERPEN'!$B$1:$GI$203,$A12,FALSE),RISICOAFSTANDEN!$N$7*RISICOAFSTANDEN!$O$7/8760*HLOOKUP(RISICOAFSTANDEN!$M$7,'DATA PMR - ANTWERPEN'!$B$1:$GI$203,$A12,FALSE)),"") -> 2.057430848e-08 | E12: =IFERROR(IF(ISNUMBER(SEARCH("KOPPEL",RISICOAFSTANDEN!$M$8,1)),RISICOAFSTANDEN!$N$8*HLOOKUP(SUBSTITUTE(RISICOAFSTANDEN!$M$8,"SLANG","LEIDING"),'DATA PMR - ANTWERPEN'!$B$1:$GI$203,$A12,FALSE)+RISICOAFSTANDEN!$N$8*RISICOAFSTANDEN!$O$8/8760*HLOOKUP(SUBSTITUTE(RISICOAFSTANDEN!$M$8,"KOPPEL","LOS"),'DATA PMR - ANTWERPEN'!$B$1:$GI$203,$A12,FALSE),RISICOAFSTANDEN!$N$8*RISICOAFSTANDEN!$O$8/8760*HLOOKUP(RISICOAFSTANDEN!$M$8,'DATA PMR - ANTWERPEN'!$B$1:$GI$203,$A12,FALSE)),"") -> 1.24670644e-05 | F12: =IFERROR(IF(ISNUMBER(SEARCH("KOPPEL",RISICOAFSTANDEN!$M$9,1)),RISICOAFSTANDEN!$N$9*HLOOKUP(SUBSTITUTE(RISICOAFSTANDEN!$M$9,"SLANG","LEIDING"),'DATA PMR - ANTWERPEN'!$B$1:$GI$203,$A12,FALSE)+RISICOAFSTANDEN!$N$9*RISICOAFSTANDEN!$O$9/8760*HLOOKUP(SUBSTITUTE(RISICOAFSTANDEN!$M$9,"KOPPEL","LOS"),'DATA PMR - ANTWERPEN'!$B$1:$GI$203,$A12,FALSE),RISICOAFSTANDEN!$N$9*RISICOAFSTANDEN!$O$9/8760*HLOOKUP(RISICOAFSTANDEN!$M$9,'DATA PMR - ANTWERPEN'!$B$1:$GI$203,$A12,FALSE)),"") -> 6.739573675e-07 | G12: =IFERROR(IF(ISNUMBER(SEARCH("KOPPEL",RISICOAFSTANDEN!$M$10,1)),RISICOAFSTANDEN!$N$10*HLOOKUP(SUBSTITUTE(RISICOAFSTANDEN!$M$10,"SLANG","LEIDING"),'DATA PMR - ANTWERPEN'!$B$1:$GI$203,$A12,FALSE)+RISICOAFSTANDEN!$N$10*RISICOAFSTANDEN!$O$10/8760*HLOOKUP(SUBSTITUTE(RISICOAFSTANDEN!$M$10,"KOPPEL","LOS"),'DATA PMR - ANTWERPEN'!$B$1:$GI$203,$A12,FALSE),RISICOAFSTANDEN!$N$10*RISICOAFSTANDEN!$O$10/8760*HLOOKUP(RISICOAFSTANDEN!$M$10,'DATA PMR - ANTWERPEN'!$B$1:$GI$203,$A12,FALSE)),"") -> 9.599127159e-08 | H12: =IFERROR(IF(ISNUMBER(SEARCH("KOPPEL",RISICOAFSTANDEN!$M$11,1)),RISICOAFSTANDEN!$N$11*HLOOKUP(SUBSTITUTE(RISICOAFSTANDEN!$M$11,"SLANG","LEIDING"),'DATA PMR - ANTWERPEN'!$B$1:$GI$203,$A12,FALSE)+RISICOAFSTANDEN!$N$11*RISICOAFSTANDEN!$O$11/8760*HLOOKUP(SUBSTITUTE(RISICOAFSTANDEN!$M$11,"KOPPEL","LOS"),'DATA PMR - ANTWERPEN'!$B$1:$GI$203,$A12,FALSE),RISICOAFSTANDEN!$N$11*RISICOAFSTANDEN!$O$11/8760*HLOOKUP(RISICOAFSTANDEN!$M$11,'DATA PMR - ANTWERPEN'!$B$1:$GI$203,$A12,FALSE)),"") -> 1.184868921e-06 | I12: =IFERROR(IF(ISNUMBER(SEARCH("KOPPEL",RISICOAFSTANDEN!$M$12,1)),RISICOAFSTANDEN!$N$12*HLOOKUP(SUBSTITUTE(RISICOAFSTANDEN!$M$12,"SLANG","LEIDING"),'DATA PMR - ANTWERPEN'!$B$1:$GI$203,$A12,FALSE)+RISICOAFSTANDEN!$N$12*RISICOAFSTANDEN!$O$12/8760*HLOOKUP(SUBSTITUTE(RISICOAFSTANDEN!$M$12,"KOPPEL","LOS"),'DATA PMR - ANTWERPEN'!$B$1:$GI$203,$A12,FALSE),RISICOAFSTANDEN!$N$12*RISICOAFSTANDEN!$O$12/8760*HLOOKUP(RISICOAFSTANDEN!$M$12,'DATA PMR - ANTWERPEN'!$B$1:$GI$203,$A12,FALSE)),"") -> 1.347914735e-07 | J12: =IFERROR(IF(ISNUMBER(SEARCH("KOPPEL",RISICOAFSTANDEN!$M$13,1)),RISICOAFSTANDEN!$N$13*HLOOKUP(SUBSTITUTE(RISICOAFSTANDEN!$M$13,"SLANG","LEIDING"),'DATA PMR - ANTWERPEN'!$B$1:$GI$203,$A12,FALSE)+RISICOAFSTANDEN!$N$13*RISICOAFSTANDEN!$O$13/8760*HLOOKUP(SUBSTITUTE(RISICOAFSTANDEN!$M$13,"KOPPEL","LOS"),'DATA PMR - ANTWERPEN'!$B$1:$GI$203,$A12,FALSE),RISICOAFSTANDEN!$N$13*RISICOAFSTANDEN!$O$13/8760*HLOOKUP(RISICOAFSTANDEN!$M$13,'DATA PMR - ANTWERPEN'!$B$1:$GI$203,$A12,FALSE)),"") -> 1.955339445e-08 | K12: =IFERROR(IF(ISNUMBER(SEARCH("KOPPEL",RISICOAFSTANDEN!$M$14,1)),RISICOAFSTANDEN!$N$14*HLOOKUP(SUBSTITUTE(RISICOAFSTANDEN!$M$14,"SLANG","LEIDING"),'DATA PMR - ANTWERPEN'!$B$1:$GI$203,$A12,FALSE)+RISICOAFSTANDEN!$N$14*RISICOAFSTANDEN!$O$14/8760*HLOOKUP(SUBSTITUTE(RISICOAFSTANDEN!$M$14,"KOPPEL","LOS"),'DATA PMR - ANTWERPEN'!$B$1:$GI$203,$A12,FALSE),RISICOAFSTANDEN!$N$14*RISICOAFSTANDEN!$O$14/8760*HLOOKUP(RISICOAFSTANDEN!$M$14,'DATA PMR - ANTWERPEN'!$B$1:$GI$203,$A12,FALSE)),"") -> 1.556450755e-06 | L12: =IFERROR(IF(ISNUMBER(SEARCH("KOPPEL",RISICOAFSTANDEN!$M$15,1)),RISICOAFSTANDEN!$N$15*HLOOKUP(SUBSTITUTE(RISICOAFSTANDEN!$M$15,"SLANG","LEIDING"),'DATA PMR - ANTWERPEN'!$B$1:$GI$203,$A12,FALSE)+RISICOAFSTANDEN!$N$15*RISICOAFSTANDEN!$O$15/8760*HLOOKUP(SUBSTITUTE(RISICOAFSTANDEN!$M$15,"KOPPEL","LOS"),'DATA PMR - ANTWERPEN'!$B$1:$GI$203,$A12,FALSE),RISICOAFSTANDEN!$N$15*RISICOAFSTANDEN!$O$15/8760*HLOOKUP(RISICOAFSTANDEN!$M$15,'DATA PMR - ANTWERPEN'!$B$1:$GI$203,$A12,FALSE)),"") -> 2.933009167e-08 | M12: =IFERROR(IF(ISNUMBER(SEARCH("KOPPEL",RISICOAFSTANDEN!$M$16,1)),RISICOAFSTANDEN!$N$16*HLOOKUP(SUBSTITUTE(RISICOAFSTANDEN!$M$16,"SLANG","LEIDING"),'DATA PMR - ANTWERPEN'!$B$1:$GI$203,$A12,FALSE)+RISICOAFSTANDEN!$N$16*RISICOAFSTANDEN!$O$16/8760*HLOOKUP(SUBSTITUTE(RISICOAFSTANDEN!$M$16,"KOPPEL","LOS"),'DATA PMR - ANTWERPEN'!$B$1:$GI$203,$A12,FALSE),RISICOAFSTANDEN!$N$16*RISICOAFSTANDEN!$O$16/8760*HLOOKUP(RISICOAFSTANDEN!$M$16,'DATA PMR - ANTWERPEN'!$B$1:$GI$203,$A12,FALSE)),"") -> 3.733855234e-06 | N12: =IFERROR(IF(ISNUMBER(SEARCH("KOPPEL",RISICOAFSTANDEN!$M$17,1)),RISICOAFSTANDEN!$N$17*HLOOKUP(SUBSTITUTE(RISICOAFSTANDEN!$M$17,"SLANG","LEIDING"),'DATA PMR - ANTWERPEN'!$B$1:$GI$203,$A12,FALSE)+RISICOAFSTANDEN!$N$17*RISICOAFSTANDEN!$O$17/8760*HLOOKUP(SUBSTITUTE(RISICOAFSTANDEN!$M$17,"KOPPEL","LOS"),'DATA PMR - ANTWERPEN'!$B$1:$GI$203,$A12,FALSE),RISICOAFSTANDEN!$N$17*RISICOAFSTANDEN!$O$17/8760*HLOOKUP(RISICOAFSTANDEN!$M$17,'DATA PMR - ANTWERPEN'!$B$1:$GI$203,$A12,FALSE)),"") ->  | O12: =IFERROR(IF(ISNUMBER(SEARCH("KOPPEL",RISICOAFSTANDEN!$M$18,1)),RISICOAFSTANDEN!$N$18*HLOOKUP(SUBSTITUTE(RISICOAFSTANDEN!$M$18,"SLANG","LEIDING"),'DATA PMR - ANTWERPEN'!$B$1:$GI$203,$A12,FALSE)+RISICOAFSTANDEN!$N$18*RISICOAFSTANDEN!$O$18/8760*HLOOKUP(SUBSTITUTE(RISICOAFSTANDEN!$M$18,"KOPPEL","LOS"),'DATA PMR - ANTWERPEN'!$B$1:$GI$203,$A12,FALSE),RISICOAFSTANDEN!$N$18*RISICOAFSTANDEN!$O$18/8760*HLOOKUP(RISICOAFSTANDEN!$M$18,'DATA PMR - ANTWERPEN'!$B$1:$GI$203,$A12,FALSE)),"") ->  | P12: =IFERROR(IF(ISNUMBER(SEARCH("KOPPEL",RISICOAFSTANDEN!$M$19,1)),RISICOAFSTANDEN!$N$19*HLOOKUP(SUBSTITUTE(RISICOAFSTANDEN!$M$19,"SLANG","LEIDING"),'DATA PMR - ANTWERPEN'!$B$1:$GI$203,$A12,FALSE)+RISICOAFSTANDEN!$N$19*RISICOAFSTANDEN!$O$19/8760*HLOOKUP(SUBSTITUTE(RISICOAFSTANDEN!$M$19,"KOPPEL","LOS"),'DATA PMR - ANTWERPEN'!$B$1:$GI$203,$A12,FALSE),RISICOAFSTANDEN!$N$19*RISICOAFSTANDEN!$O$19/8760*HLOOKUP(RISICOAFSTANDEN!$M$19,'DATA PMR - ANTWERPEN'!$B$1:$GI$203,$A12,FALSE)),"") ->  | Q12: =IFERROR(IF(ISNUMBER(SEARCH("KOPPEL",RISICOAFSTANDEN!$M$20,1)),RISICOAFSTANDEN!$N$20*HLOOKUP(SUBSTITUTE(RISICOAFSTANDEN!$M$20,"SLANG","LEIDING"),'DATA PMR - ANTWERPEN'!$B$1:$GI$203,$A12,FALSE)+RISICOAFSTANDEN!$N$20*RISICOAFSTANDEN!$O$20/8760*HLOOKUP(SUBSTITUTE(RISICOAFSTANDEN!$M$20,"KOPPEL","LOS"),'DATA PMR - ANTWERPEN'!$B$1:$GI$203,$A12,FALSE),RISICOAFSTANDEN!$N$20*RISICOAFSTANDEN!$O$20/8760*HLOOKUP(RISICOAFSTANDEN!$M$20,'DATA PMR - ANTWERPEN'!$B$1:$GI$203,$A12,FALSE)),"") ->  | R12: =IFERROR(IF(ISNUMBER(SEARCH("KOPPEL",RISICOAFSTANDEN!$M$21,1)),RISICOAFSTANDEN!$N$21*HLOOKUP(SUBSTITUTE(RISICOAFSTANDEN!$M$21,"SLANG","LEIDING"),'DATA PMR - ANTWERPEN'!$B$1:$GI$203,$A12,FALSE)+RISICOAFSTANDEN!$N$21*RISICOAFSTANDEN!$O$21/8760*HLOOKUP(SUBSTITUTE(RISICOAFSTANDEN!$M$21,"KOPPEL","LOS"),'DATA PMR - ANTWERPEN'!$B$1:$GI$203,$A12,FALSE),RISICOAFSTANDEN!$N$21*RISICOAFSTANDEN!$O$21/8760*HLOOKUP(RISICOAFSTANDEN!$M$21,'DATA PMR - ANTWERPEN'!$B$1:$GI$203,$A12,FALSE)),"") ->  | S12: =IFERROR(IF(ISNUMBER(SEARCH("KOPPEL",RISICOAFSTANDEN!$M$22,1)),RISICOAFSTANDEN!$N$22*HLOOKUP(SUBSTITUTE(RISICOAFSTANDEN!$M$22,"SLANG","LEIDING"),'DATA PMR - ANTWERPEN'!$B$1:$GI$203,$A12,FALSE)+RISICOAFSTANDEN!$N$22*RISICOAFSTANDEN!$O$22/8760*HLOOKUP(SUBSTITUTE(RISICOAFSTANDEN!$M$22,"KOPPEL","LOS"),'DATA PMR - ANTWERPEN'!$B$1:$GI$203,$A12,FALSE),RISICOAFSTANDEN!$N$22*RISICOAFSTANDEN!$O$22/8760*HLOOKUP(RISICOAFSTANDEN!$M$22,'DATA PMR - ANTWERPEN'!$B$1:$GI$203,$A12,FALSE)),"") ->  | T12: =IFERROR(IF(ISNUMBER(SEARCH("KOPPEL",RISICOAFSTANDEN!$M$23,1)),RISICOAFSTANDEN!$N$23*HLOOKUP(SUBSTITUTE(RISICOAFSTANDEN!$M$23,"SLANG","LEIDING"),'DATA PMR - ANTWERPEN'!$B$1:$GI$203,$A12,FALSE)+RISICOAFSTANDEN!$N$23*RISICOAFSTANDEN!$O$23/8760*HLOOKUP(SUBSTITUTE(RISICOAFSTANDEN!$M$23,"KOPPEL","LOS"),'DATA PMR - ANTWERPEN'!$B$1:$GI$203,$A12,FALSE),RISICOAFSTANDEN!$N$23*RISICOAFSTANDEN!$O$23/8760*HLOOKUP(RISICOAFSTANDEN!$M$23,'DATA PMR - ANTWERPEN'!$B$1:$GI$203,$A12,FALSE)),"") ->  | U12: =IFERROR(IF(ISNUMBER(SEARCH("KOPPEL",RISICOAFSTANDEN!$M$24,1)),RISICOAFSTANDEN!$N$24*HLOOKUP(SUBSTITUTE(RISICOAFSTANDEN!$M$24,"SLANG","LEIDING"),'DATA PMR - ANTWERPEN'!$B$1:$GI$203,$A12,FALSE)+RISICOAFSTANDEN!$N$24*RISICOAFSTANDEN!$O$24/8760*HLOOKUP(SUBSTITUTE(RISICOAFSTANDEN!$M$24,"KOPPEL","LOS"),'DATA PMR - ANTWERPEN'!$B$1:$GI$203,$A12,FALSE),RISICOAFSTANDEN!$N$24*RISICOAFSTANDEN!$O$24/8760*HLOOKUP(RISICOAFSTANDEN!$M$24,'DATA PMR - ANTWERPEN'!$B$1:$GI$203,$A12,FALSE)),"") ->  | V12: =IFERROR(IF(ISNUMBER(SEARCH("KOPPEL",RISICOAFSTANDEN!$M$25,1)),RISICOAFSTANDEN!$N$25*HLOOKUP(SUBSTITUTE(RISICOAFSTANDEN!$M$25,"SLANG","LEIDING"),'DATA PMR - ANTWERPEN'!$B$1:$GI$203,$A12,FALSE)+RISICOAFSTANDEN!$N$25*RISICOAFSTANDEN!$O$25/8760*HLOOKUP(SUBSTITUTE(RISICOAFSTANDEN!$M$25,"KOPPEL","LOS"),'DATA PMR - ANTWERPEN'!$B$1:$GI$203,$A12,FALSE),RISICOAFSTANDEN!$N$25*RISICOAFSTANDEN!$O$25/8760*HLOOKUP(RISICOAFSTANDEN!$M$25,'DATA PMR - ANTWERPEN'!$B$1:$GI$203,$A12,FALSE)),"") ->  | W12: =IFERROR(IF(ISNUMBER(SEARCH("KOPPEL",RISICOAFSTANDEN!$M$26,1)),RISICOAFSTANDEN!$N$26*HLOOKUP(SUBSTITUTE(RISICOAFSTANDEN!$M$26,"SLANG","LEIDING"),'DATA PMR - ANTWERPEN'!$B$1:$GI$203,$A12,FALSE)+RISICOAFSTANDEN!$N$26*RISICOAFSTANDEN!$O$26/8760*HLOOKUP(SUBSTITUTE(RISICOAFSTANDEN!$M$26,"KOPPEL","LOS"),'DATA PMR - ANTWERPEN'!$B$1:$GI$203,$A12,FALSE),RISICOAFSTANDEN!$N$26*RISICOAFSTANDEN!$O$26/8760*HLOOKUP(RISICOAFSTANDEN!$M$26,'DATA PMR - ANTWERPEN'!$B$1:$GI$203,$A12,FALSE)),"") ->  | X12: =IFERROR(IF(ISNUMBER(SEARCH("KOPPEL",RISICOAFSTANDEN!$M$27,1)),RISICOAFSTANDEN!$N$27*HLOOKUP(SUBSTITUTE(RISICOAFSTANDEN!$M$27,"SLANG","LEIDING"),'DATA PMR - ANTWERPEN'!$B$1:$GI$203,$A12,FALSE)+RISICOAFSTANDEN!$N$27*RISICOAFSTANDEN!$O$27/8760*HLOOKUP(SUBSTITUTE(RISICOAFSTANDEN!$M$27,"KOPPEL","LOS"),'DATA PMR - ANTWERPEN'!$B$1:$GI$203,$A12,FALSE),RISICOAFSTANDEN!$N$27*RISICOAFSTANDEN!$O$27/8760*HLOOKUP(RISICOAFSTANDEN!$M$27,'DATA PMR - ANTWERPEN'!$B$1:$GI$203,$A12,FALSE)),"") ->  | Y12: =IFERROR(IF(ISNUMBER(SEARCH("KOPPEL",RISICOAFSTANDEN!$M$28,1)),RISICOAFSTANDEN!$N$28*HLOOKUP(SUBSTITUTE(RISICOAFSTANDEN!$M$28,"SLANG","LEIDING"),'DATA PMR - ANTWERPEN'!$B$1:$GI$203,$A12,FALSE)+RISICOAFSTANDEN!$N$28*RISICOAFSTANDEN!$O$28/8760*HLOOKUP(SUBSTITUTE(RISICOAFSTANDEN!$M$28,"KOPPEL","LOS"),'DATA PMR - ANTWERPEN'!$B$1:$GI$203,$A12,FALSE),RISICOAFSTANDEN!$N$28*RISICOAFSTANDEN!$O$28/8760*HLOOKUP(RISICOAFSTANDEN!$M$28,'DATA PMR - ANTWERPEN'!$B$1:$GI$203,$A12,FALSE)),"") ->  | Z12: =IFERROR(IF(ISNUMBER(SEARCH("KOPPEL",RISICOAFSTANDEN!$M$29,1)),RISICOAFSTANDEN!$N$29*HLOOKUP(SUBSTITUTE(RISICOAFSTANDEN!$M$29,"SLANG","LEIDING"),'DATA PMR - ANTWERPEN'!$B$1:$GI$203,$A12,FALSE)+RISICOAFSTANDEN!$N$29*RISICOAFSTANDEN!$O$29/8760*HLOOKUP(SUBSTITUTE(RISICOAFSTANDEN!$M$29,"KOPPEL","LOS"),'DATA PMR - ANTWERPEN'!$B$1:$GI$203,$A12,FALSE),RISICOAFSTANDEN!$N$29*RISICOAFSTANDEN!$O$29/8760*HLOOKUP(RISICOAFSTANDEN!$M$29,'DATA PMR - ANTWERPEN'!$B$1:$GI$203,$A12,FALSE)),"") ->  | AA12: -6 | AB12: -6 | AC12: -8 | AD12: -5 | AE12: -7 | AF12: -8 | AG12: -6 | AH12: -7 | AI12: -8 | AJ12: -6 | AK12: -8 | AL12: -6 | AM12: n.b. | AN12: n.b. | AO12: n.b. | AP12: n.b. | AQ12: n.b. | AR12: n.b. | AS12: n.b. | AT12: n.b. | AU12: n.b. | AV12: n.b. | AW12: n.b. | AX12: n.b. | AY12: n.b. | AZ12: 10 | BB12: 2.514488888e-05 | BC12: -5 | BD12: 10
A13: 14 | B13: =IFERROR(IF(ISNUMBER(SEARCH("KOPPEL",RISICOAFSTANDEN!$M$5,1)),RISICOAFSTANDEN!$N$5*HLOOKUP(SUBSTITUTE(RISICOAFSTANDEN!$M$5,"SLANG","LEIDING"),'DATA PMR - ANTWERPEN'!$B$1:$GI$203,$A13,FALSE)+RISICOAFSTANDEN!$N$5*RISICOAFSTANDEN!$O$5/8760*HLOOKUP(SUBSTITUTE(RISICOAFSTANDEN!$M$5,"KOPPEL","LOS"),'DATA PMR - ANTWERPEN'!$B$1:$GI$203,$A13,FALSE),RISICOAFSTANDEN!$N$5*RISICOAFSTANDEN!$O$5/8760*HLOOKUP(RISICOAFSTANDEN!$M$5,'DATA PMR - ANTWERPEN'!$B$1:$GI$203,$A13,FALSE)),"") -> 1.506563828e-06 | C13: =IFERROR(IF(ISNUMBER(SEARCH("KOPPEL",RISICOAFSTANDEN!$M$6,1)),RISICOAFSTANDEN!$N$6*HLOOKUP(SUBSTITUTE(RISICOAFSTANDEN!$M$6,"SLANG","LEIDING"),'DATA PMR - ANTWERPEN'!$B$1:$GI$203,$A13,FALSE)+RISICOAFSTANDEN!$N$6*RISICOAFSTANDEN!$O$6/8760*HLOOKUP(SUBSTITUTE(RISICOAFSTANDEN!$M$6,"KOPPEL","LOS"),'DATA PMR - ANTWERPEN'!$B$1:$GI$203,$A13,FALSE),RISICOAFSTANDEN!$N$6*RISICOAFSTANDEN!$O$6/8760*HLOOKUP(RISICOAFSTANDEN!$M$6,'DATA PMR - ANTWERPEN'!$B$1:$GI$203,$A13,FALSE)),"") -> 2.966301621e-06 | D13: =IFERROR(IF(ISNUMBER(SEARCH("KOPPEL",RISICOAFSTANDEN!$M$7,1)),RISICOAFSTANDEN!$N$7*HLOOKUP(SUBSTITUTE(RISICOAFSTANDEN!$M$7,"SLANG","LEIDING"),'DATA PMR - ANTWERPEN'!$B$1:$GI$203,$A13,FALSE)+RISICOAFSTANDEN!$N$7*RISICOAFSTANDEN!$O$7/8760*HLOOKUP(SUBSTITUTE(RISICOAFSTANDEN!$M$7,"KOPPEL","LOS"),'DATA PMR - ANTWERPEN'!$B$1:$GI$203,$A13,FALSE),RISICOAFSTANDEN!$N$7*RISICOAFSTANDEN!$O$7/8760*HLOOKUP(RISICOAFSTANDEN!$M$7,'DATA PMR - ANTWERPEN'!$B$1:$GI$203,$A13,FALSE)),"") -> 1.709157217e-08 | E13: =IFERROR(IF(ISNUMBER(SEARCH("KOPPEL",RISICOAFSTANDEN!$M$8,1)),RISICOAFSTANDEN!$N$8*HLOOKUP(SUBSTITUTE(RISICOAFSTANDEN!$M$8,"SLANG","LEIDING"),'DATA PMR - ANTWERPEN'!$B$1:$GI$203,$A13,FALSE)+RISICOAFSTANDEN!$N$8*RISICOAFSTANDEN!$O$8/8760*HLOOKUP(SUBSTITUTE(RISICOAFSTANDEN!$M$8,"KOPPEL","LOS"),'DATA PMR - ANTWERPEN'!$B$1:$GI$203,$A13,FALSE),RISICOAFSTANDEN!$N$8*RISICOAFSTANDEN!$O$8/8760*HLOOKUP(RISICOAFSTANDEN!$M$8,'DATA PMR - ANTWERPEN'!$B$1:$GI$203,$A13,FALSE)),"") -> 9.988037359e-06 | F13: =IFERROR(IF(ISNUMBER(SEARCH("KOPPEL",RISICOAFSTANDEN!$M$9,1)),RISICOAFSTANDEN!$N$9*HLOOKUP(SUBSTITUTE(RISICOAFSTANDEN!$M$9,"SLANG","LEIDING"),'DATA PMR - ANTWERPEN'!$B$1:$GI$203,$A13,FALSE)+RISICOAFSTANDEN!$N$9*RISICOAFSTANDEN!$O$9/8760*HLOOKUP(SUBSTITUTE(RISICOAFSTANDEN!$M$9,"KOPPEL","LOS"),'DATA PMR - ANTWERPEN'!$B$1:$GI$203,$A13,FALSE),RISICOAFSTANDEN!$N$9*RISICOAFSTANDEN!$O$9/8760*HLOOKUP(RISICOAFSTANDEN!$M$9,'DATA PMR - ANTWERPEN'!$B$1:$GI$203,$A13,FALSE)),"") -> 5.532039038e-07 | G13: =IFERROR(IF(ISNUMBER(SEARCH("KOPPEL",RISICOAFSTANDEN!$M$10,1)),RISICOAFSTANDEN!$N$10*HLOOKUP(SUBSTITUTE(RISICOAFSTANDEN!$M$10,"SLANG","LEIDING"),'DATA PMR - ANTWERPEN'!$B$1:$GI$203,$A13,FALSE)+RISICOAFSTANDEN!$N$10*RISICOAFSTANDEN!$O$10/8760*HLOOKUP(SUBSTITUTE(RISICOAFSTANDEN!$M$10,"KOPPEL","LOS"),'DATA PMR - ANTWERPEN'!$B$1:$GI$203,$A13,FALSE),RISICOAFSTANDEN!$N$10*RISICOAFSTANDEN!$O$10/8760*HLOOKUP(RISICOAFSTANDEN!$M$10,'DATA PMR - ANTWERPEN'!$B$1:$GI$203,$A13,FALSE)),"") -> 8.243863401e-08 | H13: =IFERROR(IF(ISNUMBER(SEARCH("KOPPEL",RISICOAFSTANDEN!$M$11,1)),RISICOAFSTANDEN!$N$11*HLOOKUP(SUBSTITUTE(RISICOAFSTANDEN!$M$11,"SLANG","LEIDING"),'DATA PMR - ANTWERPEN'!$B$1:$GI$203,$A13,FALSE)+RISICOAFSTANDEN!$N$11*RISICOAFSTANDEN!$O$11/8760*HLOOKUP(SUBSTITUTE(RISICOAFSTANDEN!$M$11,"KOPPEL","LOS"),'DATA PMR - ANTWERPEN'!$B$1:$GI$203,$A13,FALSE),RISICOAFSTANDEN!$N$11*RISICOAFSTANDEN!$O$11/8760*HLOOKUP(RISICOAFSTANDEN!$M$11,'DATA PMR - ANTWERPEN'!$B$1:$GI$203,$A13,FALSE)),"") -> 9.922264146e-07 | I13: =IFERROR(IF(ISNUMBER(SEARCH("KOPPEL",RISICOAFSTANDEN!$M$12,1)),RISICOAFSTANDEN!$N$12*HLOOKUP(SUBSTITUTE(RISICOAFSTANDEN!$M$12,"SLANG","LEIDING"),'DATA PMR - ANTWERPEN'!$B$1:$GI$203,$A13,FALSE)+RISICOAFSTANDEN!$N$12*RISICOAFSTANDEN!$O$12/8760*HLOOKUP(SUBSTITUTE(RISICOAFSTANDEN!$M$12,"KOPPEL","LOS"),'DATA PMR - ANTWERPEN'!$B$1:$GI$203,$A13,FALSE),RISICOAFSTANDEN!$N$12*RISICOAFSTANDEN!$O$12/8760*HLOOKUP(RISICOAFSTANDEN!$M$12,'DATA PMR - ANTWERPEN'!$B$1:$GI$203,$A13,FALSE)),"") -> 1.106407808e-07 | J13: =IFERROR(IF(ISNUMBER(SEARCH("KOPPEL",RISICOAFSTANDEN!$M$13,1)),RISICOAFSTANDEN!$N$13*HLOOKUP(SUBSTITUTE(RISICOAFSTANDEN!$M$13,"SLANG","LEIDING"),'DATA PMR - ANTWERPEN'!$B$1:$GI$203,$A13,FALSE)+RISICOAFSTANDEN!$N$13*RISICOAFSTANDEN!$O$13/8760*HLOOKUP(SUBSTITUTE(RISICOAFSTANDEN!$M$13,"KOPPEL","LOS"),'DATA PMR - ANTWERPEN'!$B$1:$GI$203,$A13,FALSE),RISICOAFSTANDEN!$N$13*RISICOAFSTANDEN!$O$13/8760*HLOOKUP(RISICOAFSTANDEN!$M$13,'DATA PMR - ANTWERPEN'!$B$1:$GI$203,$A13,FALSE)),"") -> 1.595015762e-08 | K13: =IFERROR(IF(ISNUMBER(SEARCH("KOPPEL",RISICOAFSTANDEN!$M$14,1)),RISICOAFSTANDEN!$N$14*HLOOKUP(SUBSTITUTE(RISICOAFSTANDEN!$M$14,"SLANG","LEIDING"),'DATA PMR - ANTWERPEN'!$B$1:$GI$203,$A13,FALSE)+RISICOAFSTANDEN!$N$14*RISICOAFSTANDEN!$O$14/8760*HLOOKUP(SUBSTITUTE(RISICOAFSTANDEN!$M$14,"KOPPEL","LOS"),'DATA PMR - ANTWERPEN'!$B$1:$GI$203,$A13,FALSE),RISICOAFSTANDEN!$N$14*RISICOAFSTANDEN!$O$14/8760*HLOOKUP(RISICOAFSTANDEN!$M$14,'DATA PMR - ANTWERPEN'!$B$1:$GI$203,$A13,FALSE)),"") -> 1.298751111e-06 | L13: =IFERROR(IF(ISNUMBER(SEARCH("KOPPEL",RISICOAFSTANDEN!$M$15,1)),RISICOAFSTANDEN!$N$15*HLOOKUP(SUBSTITUTE(RISICOAFSTANDEN!$M$15,"SLANG","LEIDING"),'DATA PMR - ANTWERPEN'!$B$1:$GI$203,$A13,FALSE)+RISICOAFSTANDEN!$N$15*RISICOAFSTANDEN!$O$15/8760*HLOOKUP(SUBSTITUTE(RISICOAFSTANDEN!$M$15,"KOPPEL","LOS"),'DATA PMR - ANTWERPEN'!$B$1:$GI$203,$A13,FALSE),RISICOAFSTANDEN!$N$15*RISICOAFSTANDEN!$O$15/8760*HLOOKUP(RISICOAFSTANDEN!$M$15,'DATA PMR - ANTWERPEN'!$B$1:$GI$203,$A13,FALSE)),"") -> 2.392523643e-08 | M13: =IFERROR(IF(ISNUMBER(SEARCH("KOPPEL",RISICOAFSTANDEN!$M$16,1)),RISICOAFSTANDEN!$N$16*HLOOKUP(SUBSTITUTE(RISICOAFSTANDEN!$M$16,"SLANG","LEIDING"),'DATA PMR - ANTWERPEN'!$B$1:$GI$203,$A13,FALSE)+RISICOAFSTANDEN!$N$16*RISICOAFSTANDEN!$O$16/8760*HLOOKUP(SUBSTITUTE(RISICOAFSTANDEN!$M$16,"KOPPEL","LOS"),'DATA PMR - ANTWERPEN'!$B$1:$GI$203,$A13,FALSE),RISICOAFSTANDEN!$N$16*RISICOAFSTANDEN!$O$16/8760*HLOOKUP(RISICOAFSTANDEN!$M$16,'DATA PMR - ANTWERPEN'!$B$1:$GI$203,$A13,FALSE)),"") -> 2.531433805e-06 | N13: =IFERROR(IF(ISNUMBER(SEARCH("KOPPEL",RISICOAFSTANDEN!$M$17,1)),RISICOAFSTANDEN!$N$17*HLOOKUP(SUBSTITUTE(RISICOAFSTANDEN!$M$17,"SLANG","LEIDING"),'DATA PMR - ANTWERPEN'!$B$1:$GI$203,$A13,FALSE)+RISICOAFSTANDEN!$N$17*RISICOAFSTANDEN!$O$17/8760*HLOOKUP(SUBSTITUTE(RISICOAFSTANDEN!$M$17,"KOPPEL","LOS"),'DATA PMR - ANTWERPEN'!$B$1:$GI$203,$A13,FALSE),RISICOAFSTANDEN!$N$17*RISICOAFSTANDEN!$O$17/8760*HLOOKUP(RISICOAFSTANDEN!$M$17,'DATA PMR - ANTWERPEN'!$B$1:$GI$203,$A13,FALSE)),"") ->  | O13: =IFERROR(IF(ISNUMBER(SEARCH("KOPPEL",RISICOAFSTANDEN!$M$18,1)),RISICOAFSTANDEN!$N$18*HLOOKUP(SUBSTITUTE(RISICOAFSTANDEN!$M$18,"SLANG","LEIDING"),'DATA PMR - ANTWERPEN'!$B$1:$GI$203,$A13,FALSE)+RISICOAFSTANDEN!$N$18*RISICOAFSTANDEN!$O$18/8760*HLOOKUP(SUBSTITUTE(RISICOAFSTANDEN!$M$18,"KOPPEL","LOS"),'DATA PMR - ANTWERPEN'!$B$1:$GI$203,$A13,FALSE),RISICOAFSTANDEN!$N$18*RISICOAFSTANDEN!$O$18/8760*HLOOKUP(RISICOAFSTANDEN!$M$18,'DATA PMR - ANTWERPEN'!$B$1:$GI$203,$A13,FALSE)),"") ->  | P13: =IFERROR(IF(ISNUMBER(SEARCH("KOPPEL",RISICOAFSTANDEN!$M$19,1)),RISICOAFSTANDEN!$N$19*HLOOKUP(SUBSTITUTE(RISICOAFSTANDEN!$M$19,"SLANG","LEIDING"),'DATA PMR - ANTWERPEN'!$B$1:$GI$203,$A13,FALSE)+RISICOAFSTANDEN!$N$19*RISICOAFSTANDEN!$O$19/8760*HLOOKUP(SUBSTITUTE(RISICOAFSTANDEN!$M$19,"KOPPEL","LOS"),'DATA PMR - ANTWERPEN'!$B$1:$GI$203,$A13,FALSE),RISICOAFSTANDEN!$N$19*RISICOAFSTANDEN!$O$19/8760*HLOOKUP(RISICOAFSTANDEN!$M$19,'DATA PMR - ANTWERPEN'!$B$1:$GI$203,$A13,FALSE)),"") ->  | Q13: =IFERROR(IF(ISNUMBER(SEARCH("KOPPEL",RISICOAFSTANDEN!$M$20,1)),RISICOAFSTANDEN!$N$20*HLOOKUP(SUBSTITUTE(RISICOAFSTANDEN!$M$20,"SLANG","LEIDING"),'DATA PMR - ANTWERPEN'!$B$1:$GI$203,$A13,FALSE)+RISICOAFSTANDEN!$N$20*RISICOAFSTANDEN!$O$20/8760*HLOOKUP(SUBSTITUTE(RISICOAFSTANDEN!$M$20,"KOPPEL","LOS"),'DATA PMR - ANTWERPEN'!$B$1:$GI$203,$A13,FALSE),RISICOAFSTANDEN!$N$20*RISICOAFSTANDEN!$O$20/8760*HLOOKUP(RISICOAFSTANDEN!$M$20,'DATA PMR - ANTWERPEN'!$B$1:$GI$203,$A13,FALSE)),"") ->  | R13: =IFERROR(IF(ISNUMBER(SEARCH("KOPPEL",RISICOAFSTANDEN!$M$21,1)),RISICOAFSTANDEN!$N$21*HLOOKUP(SUBSTITUTE(RISICOAFSTANDEN!$M$21,"SLANG","LEIDING"),'DATA PMR - ANTWERPEN'!$B$1:$GI$203,$A13,FALSE)+RISICOAFSTANDEN!$N$21*RISICOAFSTANDEN!$O$21/8760*HLOOKUP(SUBSTITUTE(RISICOAFSTANDEN!$M$21,"KOPPEL","LOS"),'DATA PMR - ANTWERPEN'!$B$1:$GI$203,$A13,FALSE),RISICOAFSTANDEN!$N$21*RISICOAFSTANDEN!$O$21/8760*HLOOKUP(RISICOAFSTANDEN!$M$21,'DATA PMR - ANTWERPEN'!$B$1:$GI$203,$A13,FALSE)),"") ->  | S13: =IFERROR(IF(ISNUMBER(SEARCH("KOPPEL",RISICOAFSTANDEN!$M$22,1)),RISICOAFSTANDEN!$N$22*HLOOKUP(SUBSTITUTE(RISICOAFSTANDEN!$M$22,"SLANG","LEIDING"),'DATA PMR - ANTWERPEN'!$B$1:$GI$203,$A13,FALSE)+RISICOAFSTANDEN!$N$22*RISICOAFSTANDEN!$O$22/8760*HLOOKUP(SUBSTITUTE(RISICOAFSTANDEN!$M$22,"KOPPEL","LOS"),'DATA PMR - ANTWERPEN'!$B$1:$GI$203,$A13,FALSE),RISICOAFSTANDEN!$N$22*RISICOAFSTANDEN!$O$22/8760*HLOOKUP(RISICOAFSTANDEN!$M$22,'DATA PMR - ANTWERPEN'!$B$1:$GI$203,$A13,FALSE)),"") ->  | T13: =IFERROR(IF(ISNUMBER(SEARCH("KOPPEL",RISICOAFSTANDEN!$M$23,1)),RISICOAFSTANDEN!$N$23*HLOOKUP(SUBSTITUTE(RISICOAFSTANDEN!$M$23,"SLANG","LEIDING"),'DATA PMR - ANTWERPEN'!$B$1:$GI$203,$A13,FALSE)+RISICOAFSTANDEN!$N$23*RISICOAFSTANDEN!$O$23/8760*HLOOKUP(SUBSTITUTE(RISICOAFSTANDEN!$M$23,"KOPPEL","LOS"),'DATA PMR - ANTWERPEN'!$B$1:$GI$203,$A13,FALSE),RISICOAFSTANDEN!$N$23*RISICOAFSTANDEN!$O$23/8760*HLOOKUP(RISICOAFSTANDEN!$M$23,'DATA PMR - ANTWERPEN'!$B$1:$GI$203,$A13,FALSE)),"") ->  | U13: =IFERROR(IF(ISNUMBER(SEARCH("KOPPEL",RISICOAFSTANDEN!$M$24,1)),RISICOAFSTANDEN!$N$24*HLOOKUP(SUBSTITUTE(RISICOAFSTANDEN!$M$24,"SLANG","LEIDING"),'DATA PMR - ANTWERPEN'!$B$1:$GI$203,$A13,FALSE)+RISICOAFSTANDEN!$N$24*RISICOAFSTANDEN!$O$24/8760*HLOOKUP(SUBSTITUTE(RISICOAFSTANDEN!$M$24,"KOPPEL","LOS"),'DATA PMR - ANTWERPEN'!$B$1:$GI$203,$A13,FALSE),RISICOAFSTANDEN!$N$24*RISICOAFSTANDEN!$O$24/8760*HLOOKUP(RISICOAFSTANDEN!$M$24,'DATA PMR - ANTWERPEN'!$B$1:$GI$203,$A13,FALSE)),"") ->  | V13: =IFERROR(IF(ISNUMBER(SEARCH("KOPPEL",RISICOAFSTANDEN!$M$25,1)),RISICOAFSTANDEN!$N$25*HLOOKUP(SUBSTITUTE(RISICOAFSTANDEN!$M$25,"SLANG","LEIDING"),'DATA PMR - ANTWERPEN'!$B$1:$GI$203,$A13,FALSE)+RISICOAFSTANDEN!$N$25*RISICOAFSTANDEN!$O$25/8760*HLOOKUP(SUBSTITUTE(RISICOAFSTANDEN!$M$25,"KOPPEL","LOS"),'DATA PMR - ANTWERPEN'!$B$1:$GI$203,$A13,FALSE),RISICOAFSTANDEN!$N$25*RISICOAFSTANDEN!$O$25/8760*HLOOKUP(RISICOAFSTANDEN!$M$25,'DATA PMR - ANTWERPEN'!$B$1:$GI$203,$A13,FALSE)),"") ->  | W13: =IFERROR(IF(ISNUMBER(SEARCH("KOPPEL",RISICOAFSTANDEN!$M$26,1)),RISICOAFSTANDEN!$N$26*HLOOKUP(SUBSTITUTE(RISICOAFSTANDEN!$M$26,"SLANG","LEIDING"),'DATA PMR - ANTWERPEN'!$B$1:$GI$203,$A13,FALSE)+RISICOAFSTANDEN!$N$26*RISICOAFSTANDEN!$O$26/8760*HLOOKUP(SUBSTITUTE(RISICOAFSTANDEN!$M$26,"KOPPEL","LOS"),'DATA PMR - ANTWERPEN'!$B$1:$GI$203,$A13,FALSE),RISICOAFSTANDEN!$N$26*RISICOAFSTANDEN!$O$26/8760*HLOOKUP(RISICOAFSTANDEN!$M$26,'DATA PMR - ANTWERPEN'!$B$1:$GI$203,$A13,FALSE)),"") ->  | X13: =IFERROR(IF(ISNUMBER(SEARCH("KOPPEL",RISICOAFSTANDEN!$M$27,1)),RISICOAFSTANDEN!$N$27*HLOOKUP(SUBSTITUTE(RISICOAFSTANDEN!$M$27,"SLANG","LEIDING"),'DATA PMR - ANTWERPEN'!$B$1:$GI$203,$A13,FALSE)+RISICOAFSTANDEN!$N$27*RISICOAFSTANDEN!$O$27/8760*HLOOKUP(SUBSTITUTE(RISICOAFSTANDEN!$M$27,"KOPPEL","LOS"),'DATA PMR - ANTWERPEN'!$B$1:$GI$203,$A13,FALSE),RISICOAFSTANDEN!$N$27*RISICOAFSTANDEN!$O$27/8760*HLOOKUP(RISICOAFSTANDEN!$M$27,'DATA PMR - ANTWERPEN'!$B$1:$GI$203,$A13,FALSE)),"") ->  | Y13: =IFERROR(IF(ISNUMBER(SEARCH("KOPPEL",RISICOAFSTANDEN!$M$28,1)),RISICOAFSTANDEN!$N$28*HLOOKUP(SUBSTITUTE(RISICOAFSTANDEN!$M$28,"SLANG","LEIDING"),'DATA PMR - ANTWERPEN'!$B$1:$GI$203,$A13,FALSE)+RISICOAFSTANDEN!$N$28*RISICOAFSTANDEN!$O$28/8760*HLOOKUP(SUBSTITUTE(RISICOAFSTANDEN!$M$28,"KOPPEL","LOS"),'DATA PMR - ANTWERPEN'!$B$1:$GI$203,$A13,FALSE),RISICOAFSTANDEN!$N$28*RISICOAFSTANDEN!$O$28/8760*HLOOKUP(RISICOAFSTANDEN!$M$28,'DATA PMR - ANTWERPEN'!$B$1:$GI$203,$A13,FALSE)),"") ->  | Z13: =IFERROR(IF(ISNUMBER(SEARCH("KOPPEL",RISICOAFSTANDEN!$M$29,1)),RISICOAFSTANDEN!$N$29*HLOOKUP(SUBSTITUTE(RISICOAFSTANDEN!$M$29,"SLANG","LEIDING"),'DATA PMR - ANTWERPEN'!$B$1:$GI$203,$A13,FALSE)+RISICOAFSTANDEN!$N$29*RISICOAFSTANDEN!$O$29/8760*HLOOKUP(SUBSTITUTE(RISICOAFSTANDEN!$M$29,"KOPPEL","LOS"),'DATA PMR - ANTWERPEN'!$B$1:$GI$203,$A13,FALSE),RISICOAFSTANDEN!$N$29*RISICOAFSTANDEN!$O$29/8760*HLOOKUP(RISICOAFSTANDEN!$M$29,'DATA PMR - ANTWERPEN'!$B$1:$GI$203,$A13,FALSE)),"") ->  | AA13: -6 | AB13: -6 | AC13: -8 | AD13: -6 | AE13: -7 | AF13: -8 | AG13: -7 | AH13: -7 | AI13: -8 | AJ13: -6 | AK13: -8 | AL13: -6 | AM13: n.b. | AN13: n.b. | AO13: n.b. | AP13: n.b. | AQ13: n.b. | AR13: n.b. | AS13: n.b. | AT13: n.b. | AU13: n.b. | AV13: n.b. | AW13: n.b. | AX13: n.b. | AY13: n.b. | AZ13: 11 | BB13: 2.008656442e-05 | BC13: -5 | BD13: 11
A14: 15 | B14: =IFERROR(IF(ISNUMBER(SEARCH("KOPPEL",RISICOAFSTANDEN!$M$5,1)),RISICOAFSTANDEN!$N$5*HLOOKUP(SUBSTITUTE(RISICOAFSTANDEN!$M$5,"SLANG","LEIDING"),'DATA PMR - ANTWERPEN'!$B$1:$GI$203,$A14,FALSE)+RISICOAFSTANDEN!$N$5*RISICOAFSTANDEN!$O$5/8760*HLOOKUP(SUBSTITUTE(RISICOAFSTANDEN!$M$5,"KOPPEL","LOS"),'DATA PMR - ANTWERPEN'!$B$1:$GI$203,$A14,FALSE),RISICOAFSTANDEN!$N$5*RISICOAFSTANDEN!$O$5/8760*HLOOKUP(RISICOAFSTANDEN!$M$5,'DATA PMR - ANTWERPEN'!$B$1:$GI$203,$A14,FALSE)),"") -> 1.067994422e-06 | C14: =IFERROR(IF(ISNUMBER(SEARCH("KOPPEL",RISICOAFSTANDEN!$M$6,1)),RISICOAFSTANDEN!$N$6*HLOOKUP(SUBSTITUTE(RISICOAFSTANDEN!$M$6,"SLANG","LEIDING"),'DATA PMR - ANTWERPEN'!$B$1:$GI$203,$A14,FALSE)+RISICOAFSTANDEN!$N$6*RISICOAFSTANDEN!$O$6/8760*HLOOKUP(SUBSTITUTE(RISICOAFSTANDEN!$M$6,"KOPPEL","LOS"),'DATA PMR - ANTWERPEN'!$B$1:$GI$203,$A14,FALSE),RISICOAFSTANDEN!$N$6*RISICOAFSTANDEN!$O$6/8760*HLOOKUP(RISICOAFSTANDEN!$M$6,'DATA PMR - ANTWERPEN'!$B$1:$GI$203,$A14,FALSE)),"") -> 2.739642301e-06 | D14: =IFERROR(IF(ISNUMBER(SEARCH("KOPPEL",RISICOAFSTANDEN!$M$7,1)),RISICOAFSTANDEN!$N$7*HLOOKUP(SUBSTITUTE(RISICOAFSTANDEN!$M$7,"SLANG","LEIDING"),'DATA PMR - ANTWERPEN'!$B$1:$GI$203,$A14,FALSE)+RISICOAFSTANDEN!$N$7*RISICOAFSTANDEN!$O$7/8760*HLOOKUP(SUBSTITUTE(RISICOAFSTANDEN!$M$7,"KOPPEL","LOS"),'DATA PMR - ANTWERPEN'!$B$1:$GI$203,$A14,FALSE),RISICOAFSTANDEN!$N$7*RISICOAFSTANDEN!$O$7/8760*HLOOKUP(RISICOAFSTANDEN!$M$7,'DATA PMR - ANTWERPEN'!$B$1:$GI$203,$A14,FALSE)),"") -> 1.436613243e-08 | E14: =IFERROR(IF(ISNUMBER(SEARCH("KOPPEL",RISICOAFSTANDEN!$M$8,1)),RISICOAFSTANDEN!$N$8*HLOOKUP(SUBSTITUTE(RISICOAFSTANDEN!$M$8,"SLANG","LEIDING"),'DATA PMR - ANTWERPEN'!$B$1:$GI$203,$A14,FALSE)+RISICOAFSTANDEN!$N$8*RISICOAFSTANDEN!$O$8/8760*HLOOKUP(SUBSTITUTE(RISICOAFSTANDEN!$M$8,"KOPPEL","LOS"),'DATA PMR - ANTWERPEN'!$B$1:$GI$203,$A14,FALSE),RISICOAFSTANDEN!$N$8*RISICOAFSTANDEN!$O$8/8760*HLOOKUP(RISICOAFSTANDEN!$M$8,'DATA PMR - ANTWERPEN'!$B$1:$GI$203,$A14,FALSE)),"") -> 8.013590765e-06 | F14: =IFERROR(IF(ISNUMBER(SEARCH("KOPPEL",RISICOAFSTANDEN!$M$9,1)),RISICOAFSTANDEN!$N$9*HLOOKUP(SUBSTITUTE(RISICOAFSTANDEN!$M$9,"SLANG","LEIDING"),'DATA PMR - ANTWERPEN'!$B$1:$GI$203,$A14,FALSE)+RISICOAFSTANDEN!$N$9*RISICOAFSTANDEN!$O$9/8760*HLOOKUP(SUBSTITUTE(RISICOAFSTANDEN!$M$9,"KOPPEL","LOS"),'DATA PMR - ANTWERPEN'!$B$1:$GI$203,$A14,FALSE),RISICOAFSTANDEN!$N$9*RISICOAFSTANDEN!$O$9/8760*HLOOKUP(RISICOAFSTANDEN!$M$9,'DATA PMR - ANTWERPEN'!$B$1:$GI$203,$A14,FALSE)),"") -> 4.593853425e-07 | G14: =IFERROR(IF(ISNUMBER(SEARCH("KOPPEL",RISICOAFSTANDEN!$M$10,1)),RISICOAFSTANDEN!$N$10*HLOOKUP(SUBSTITUTE(RISICOAFSTANDEN!$M$10,"SLANG","LEIDING"),'DATA PMR - ANTWERPEN'!$B$1:$GI$203,$A14,FALSE)+RISICOAFSTANDEN!$N$10*RISICOAFSTANDEN!$O$10/8760*HLOOKUP(SUBSTITUTE(RISICOAFSTANDEN!$M$10,"KOPPEL","LOS"),'DATA PMR - ANTWERPEN'!$B$1:$GI$203,$A14,FALSE),RISICOAFSTANDEN!$N$10*RISICOAFSTANDEN!$O$10/8760*HLOOKUP(RISICOAFSTANDEN!$M$10,'DATA PMR - ANTWERPEN'!$B$1:$GI$203,$A14,FALSE)),"") -> 7.054901584e-08 | H14: =IFERROR(IF(ISNUMBER(SEARCH("KOPPEL",RISICOAFSTANDEN!$M$11,1)),RISICOAFSTANDEN!$N$11*HLOOKUP(SUBSTITUTE(RISICOAFSTANDEN!$M$11,"SLANG","LEIDING"),'DATA PMR - ANTWERPEN'!$B$1:$GI$203,$A14,FALSE)+RISICOAFSTANDEN!$N$11*RISICOAFSTANDEN!$O$11/8760*HLOOKUP(SUBSTITUTE(RISICOAFSTANDEN!$M$11,"KOPPEL","LOS"),'DATA PMR - ANTWERPEN'!$B$1:$GI$203,$A14,FALSE),RISICOAFSTANDEN!$N$11*RISICOAFSTANDEN!$O$11/8760*HLOOKUP(RISICOAFSTANDEN!$M$11,'DATA PMR - ANTWERPEN'!$B$1:$GI$203,$A14,FALSE)),"") -> 8.37236112e-07 | I14: =IFERROR(IF(ISNUMBER(SEARCH("KOPPEL",RISICOAFSTANDEN!$M$12,1)),RISICOAFSTANDEN!$N$12*HLOOKUP(SUBSTITUTE(RISICOAFSTANDEN!$M$12,"SLANG","LEIDING"),'DATA PMR - ANTWERPEN'!$B$1:$GI$203,$A14,FALSE)+RISICOAFSTANDEN!$N$12*RISICOAFSTANDEN!$O$12/8760*HLOOKUP(SUBSTITUTE(RISICOAFSTANDEN!$M$12,"KOPPEL","LOS"),'DATA PMR - ANTWERPEN'!$B$1:$GI$203,$A14,FALSE),RISICOAFSTANDEN!$N$12*RISICOAFSTANDEN!$O$12/8760*HLOOKUP(RISICOAFSTANDEN!$M$12,'DATA PMR - ANTWERPEN'!$B$1:$GI$203,$A14,FALSE)),"") -> 9.187706849e-08 | J14: =IFERROR(IF(ISNUMBER(SEARCH("KOPPEL",RISICOAFSTANDEN!$M$13,1)),RISICOAFSTANDEN!$N$13*HLOOKUP(SUBSTITUTE(RISICOAFSTANDEN!$M$13,"SLANG","LEIDING"),'DATA PMR - ANTWERPEN'!$B$1:$GI$203,$A14,FALSE)+RISICOAFSTANDEN!$N$13*RISICOAFSTANDEN!$O$13/8760*HLOOKUP(SUBSTITUTE(RISICOAFSTANDEN!$M$13,"KOPPEL","LOS"),'DATA PMR - ANTWERPEN'!$B$1:$GI$203,$A14,FALSE),RISICOAFSTANDEN!$N$13*RISICOAFSTANDEN!$O$13/8760*HLOOKUP(RISICOAFSTANDEN!$M$13,'DATA PMR - ANTWERPEN'!$B$1:$GI$203,$A14,FALSE)),"") -> 1.311232642e-08 | K14: =IFERROR(IF(ISNUMBER(SEARCH("KOPPEL",RISICOAFSTANDEN!$M$14,1)),RISICOAFSTANDEN!$N$14*HLOOKUP(SUBSTITUTE(RISICOAFSTANDEN!$M$14,"SLANG","LEIDING"),'DATA PMR - ANTWERPEN'!$B$1:$GI$203,$A14,FALSE)+RISICOAFSTANDEN!$N$14*RISICOAFSTANDEN!$O$14/8760*HLOOKUP(SUBSTITUTE(RISICOAFSTANDEN!$M$14,"KOPPEL","LOS"),'DATA PMR - ANTWERPEN'!$B$1:$GI$203,$A14,FALSE),RISICOAFSTANDEN!$N$14*RISICOAFSTANDEN!$O$14/8760*HLOOKUP(RISICOAFSTANDEN!$M$14,'DATA PMR - ANTWERPEN'!$B$1:$GI$203,$A14,FALSE)),"") -> 1.119257954e-06 | L14: =IFERROR(IF(ISNUMBER(SEARCH("KOPPEL",RISICOAFSTANDEN!$M$15,1)),RISICOAFSTANDEN!$N$15*HLOOKUP(SUBSTITUTE(RISICOAFSTANDEN!$M$15,"SLANG","LEIDING"),'DATA PMR - ANTWERPEN'!$B$1:$GI$203,$A14,FALSE)+RISICOAFSTANDEN!$N$15*RISICOAFSTANDEN!$O$15/8760*HLOOKUP(SUBSTITUTE(RISICOAFSTANDEN!$M$15,"KOPPEL","LOS"),'DATA PMR - ANTWERPEN'!$B$1:$GI$203,$A14,FALSE),RISICOAFSTANDEN!$N$15*RISICOAFSTANDEN!$O$15/8760*HLOOKUP(RISICOAFSTANDEN!$M$15,'DATA PMR - ANTWERPEN'!$B$1:$GI$203,$A14,FALSE)),"") -> 1.966848963e-08 | M14: =IFERROR(IF(ISNUMBER(SEARCH("KOPPEL",RISICOAFSTANDEN!$M$16,1)),RISICOAFSTANDEN!$N$16*HLOOKUP(SUBSTITUTE(RISICOAFSTANDEN!$M$16,"SLANG","LEIDING"),'DATA PMR - ANTWERPEN'!$B$1:$GI$203,$A14,FALSE)+RISICOAFSTANDEN!$N$16*RISICOAFSTANDEN!$O$16/8760*HLOOKUP(SUBSTITUTE(RISICOAFSTANDEN!$M$16,"KOPPEL","LOS"),'DATA PMR - ANTWERPEN'!$B$1:$GI$203,$A14,FALSE),RISICOAFSTANDEN!$N$16*RISICOAFSTANDEN!$O$16/8760*HLOOKUP(RISICOAFSTANDEN!$M$16,'DATA PMR - ANTWERPEN'!$B$1:$GI$203,$A14,FALSE)),"") -> 1.460097284e-06 | N14: =IFERROR(IF(ISNUMBER(SEARCH("KOPPEL",RISICOAFSTANDEN!$M$17,1)),RISICOAFSTANDEN!$N$17*HLOOKUP(SUBSTITUTE(RISICOAFSTANDEN!$M$17,"SLANG","LEIDING"),'DATA PMR - ANTWERPEN'!$B$1:$GI$203,$A14,FALSE)+RISICOAFSTANDEN!$N$17*RISICOAFSTANDEN!$O$17/8760*HLOOKUP(SUBSTITUTE(RISICOAFSTANDEN!$M$17,"KOPPEL","LOS"),'DATA PMR - ANTWERPEN'!$B$1:$GI$203,$A14,FALSE),RISICOAFSTANDEN!$N$17*RISICOAFSTANDEN!$O$17/8760*HLOOKUP(RISICOAFSTANDEN!$M$17,'DATA PMR - ANTWERPEN'!$B$1:$GI$203,$A14,FALSE)),"") ->  | O14: =IFERROR(IF(ISNUMBER(SEARCH("KOPPEL",RISICOAFSTANDEN!$M$18,1)),RISICOAFSTANDEN!$N$18*HLOOKUP(SUBSTITUTE(RISICOAFSTANDEN!$M$18,"SLANG","LEIDING"),'DATA PMR - ANTWERPEN'!$B$1:$GI$203,$A14,FALSE)+RISICOAFSTANDEN!$N$18*RISICOAFSTANDEN!$O$18/8760*HLOOKUP(SUBSTITUTE(RISICOAFSTANDEN!$M$18,"KOPPEL","LOS"),'DATA PMR - ANTWERPEN'!$B$1:$GI$203,$A14,FALSE),RISICOAFSTANDEN!$N$18*RISICOAFSTANDEN!$O$18/8760*HLOOKUP(RISICOAFSTANDEN!$M$18,'DATA PMR - ANTWERPEN'!$B$1:$GI$203,$A14,FALSE)),"") ->  | P14: =IFERROR(IF(ISNUMBER(SEARCH("KOPPEL",RISICOAFSTANDEN!$M$19,1)),RISICOAFSTANDEN!$N$19*HLOOKUP(SUBSTITUTE(RISICOAFSTANDEN!$M$19,"SLANG","LEIDING"),'DATA PMR - ANTWERPEN'!$B$1:$GI$203,$A14,FALSE)+RISICOAFSTANDEN!$N$19*RISICOAFSTANDEN!$O$19/8760*HLOOKUP(SUBSTITUTE(RISICOAFSTANDEN!$M$19,"KOPPEL","LOS"),'DATA PMR - ANTWERPEN'!$B$1:$GI$203,$A14,FALSE),RISICOAFSTANDEN!$N$19*RISICOAFSTANDEN!$O$19/8760*HLOOKUP(RISICOAFSTANDEN!$M$19,'DATA PMR - ANTWERPEN'!$B$1:$GI$203,$A14,FALSE)),"") ->  | Q14: =IFERROR(IF(ISNUMBER(SEARCH("KOPPEL",RISICOAFSTANDEN!$M$20,1)),RISICOAFSTANDEN!$N$20*HLOOKUP(SUBSTITUTE(RISICOAFSTANDEN!$M$20,"SLANG","LEIDING"),'DATA PMR - ANTWERPEN'!$B$1:$GI$203,$A14,FALSE)+RISICOAFSTANDEN!$N$20*RISICOAFSTANDEN!$O$20/8760*HLOOKUP(SUBSTITUTE(RISICOAFSTANDEN!$M$20,"KOPPEL","LOS"),'DATA PMR - ANTWERPEN'!$B$1:$GI$203,$A14,FALSE),RISICOAFSTANDEN!$N$20*RISICOAFSTANDEN!$O$20/8760*HLOOKUP(RISICOAFSTANDEN!$M$20,'DATA PMR - ANTWERPEN'!$B$1:$GI$203,$A14,FALSE)),"") ->  | R14: =IFERROR(IF(ISNUMBER(SEARCH("KOPPEL",RISICOAFSTANDEN!$M$21,1)),RISICOAFSTANDEN!$N$21*HLOOKUP(SUBSTITUTE(RISICOAFSTANDEN!$M$21,"SLANG","LEIDING"),'DATA PMR - ANTWERPEN'!$B$1:$GI$203,$A14,FALSE)+RISICOAFSTANDEN!$N$21*RISICOAFSTANDEN!$O$21/8760*HLOOKUP(SUBSTITUTE(RISICOAFSTANDEN!$M$21,"KOPPEL","LOS"),'DATA PMR - ANTWERPEN'!$B$1:$GI$203,$A14,FALSE),RISICOAFSTANDEN!$N$21*RISICOAFSTANDEN!$O$21/8760*HLOOKUP(RISICOAFSTANDEN!$M$21,'DATA PMR - ANTWERPEN'!$B$1:$GI$203,$A14,FALSE)),"") ->  | S14: =IFERROR(IF(ISNUMBER(SEARCH("KOPPEL",RISICOAFSTANDEN!$M$22,1)),RISICOAFSTANDEN!$N$22*HLOOKUP(SUBSTITUTE(RISICOAFSTANDEN!$M$22,"SLANG","LEIDING"),'DATA PMR - ANTWERPEN'!$B$1:$GI$203,$A14,FALSE)+RISICOAFSTANDEN!$N$22*RISICOAFSTANDEN!$O$22/8760*HLOOKUP(SUBSTITUTE(RISICOAFSTANDEN!$M$22,"KOPPEL","LOS"),'DATA PMR - ANTWERPEN'!$B$1:$GI$203,$A14,FALSE),RISICOAFSTANDEN!$N$22*RISICOAFSTANDEN!$O$22/8760*HLOOKUP(RISICOAFSTANDEN!$M$22,'DATA PMR - ANTWERPEN'!$B$1:$GI$203,$A14,FALSE)),"") ->  | T14: =IFERROR(IF(ISNUMBER(SEARCH("KOPPEL",RISICOAFSTANDEN!$M$23,1)),RISICOAFSTANDEN!$N$23*HLOOKUP(SUBSTITUTE(RISICOAFSTANDEN!$M$23,"SLANG","LEIDING"),'DATA PMR - ANTWERPEN'!$B$1:$GI$203,$A14,FALSE)+RISICOAFSTANDEN!$N$23*RISICOAFSTANDEN!$O$23/8760*HLOOKUP(SUBSTITUTE(RISICOAFSTANDEN!$M$23,"KOPPEL","LOS"),'DATA PMR - ANTWERPEN'!$B$1:$GI$203,$A14,FALSE),RISICOAFSTANDEN!$N$23*RISICOAFSTANDEN!$O$23/8760*HLOOKUP(RISICOAFSTANDEN!$M$23,'DATA PMR - ANTWERPEN'!$B$1:$GI$203,$A14,FALSE)),"") ->  | U14: =IFERROR(IF(ISNUMBER(SEARCH("KOPPEL",RISICOAFSTANDEN!$M$24,1)),RISICOAFSTANDEN!$N$24*HLOOKUP(SUBSTITUTE(RISICOAFSTANDEN!$M$24,"SLANG","LEIDING"),'DATA PMR - ANTWERPEN'!$B$1:$GI$203,$A14,FALSE)+RISICOAFSTANDEN!$N$24*RISICOAFSTANDEN!$O$24/8760*HLOOKUP(SUBSTITUTE(RISICOAFSTANDEN!$M$24,"KOPPEL","LOS"),'DATA PMR - ANTWERPEN'!$B$1:$GI$203,$A14,FALSE),RISICOAFSTANDEN!$N$24*RISICOAFSTANDEN!$O$24/8760*HLOOKUP(RISICOAFSTANDEN!$M$24,'DATA PMR - ANTWERPEN'!$B$1:$GI$203,$A14,FALSE)),"") ->  | V14: =IFERROR(IF(ISNUMBER(SEARCH("KOPPEL",RISICOAFSTANDEN!$M$25,1)),RISICOAFSTANDEN!$N$25*HLOOKUP(SUBSTITUTE(RISICOAFSTANDEN!$M$25,"SLANG","LEIDING"),'DATA PMR - ANTWERPEN'!$B$1:$GI$203,$A14,FALSE)+RISICOAFSTANDEN!$N$25*RISICOAFSTANDEN!$O$25/8760*HLOOKUP(SUBSTITUTE(RISICOAFSTANDEN!$M$25,"KOPPEL","LOS"),'DATA PMR - ANTWERPEN'!$B$1:$GI$203,$A14,FALSE),RISICOAFSTANDEN!$N$25*RISICOAFSTANDEN!$O$25/8760*HLOOKUP(RISICOAFSTANDEN!$M$25,'DATA PMR - ANTWERPEN'!$B$1:$GI$203,$A14,FALSE)),"") ->  | W14: =IFERROR(IF(ISNUMBER(SEARCH("KOPPEL",RISICOAFSTANDEN!$M$26,1)),RISICOAFSTANDEN!$N$26*HLOOKUP(SUBSTITUTE(RISICOAFSTANDEN!$M$26,"SLANG","LEIDING"),'DATA PMR - ANTWERPEN'!$B$1:$GI$203,$A14,FALSE)+RISICOAFSTANDEN!$N$26*RISICOAFSTANDEN!$O$26/8760*HLOOKUP(SUBSTITUTE(RISICOAFSTANDEN!$M$26,"KOPPEL","LOS"),'DATA PMR - ANTWERPEN'!$B$1:$GI$203,$A14,FALSE),RISICOAFSTANDEN!$N$26*RISICOAFSTANDEN!$O$26/8760*HLOOKUP(RISICOAFSTANDEN!$M$26,'DATA PMR - ANTWERPEN'!$B$1:$GI$203,$A14,FALSE)),"") ->  | X14: =IFERROR(IF(ISNUMBER(SEARCH("KOPPEL",RISICOAFSTANDEN!$M$27,1)),RISICOAFSTANDEN!$N$27*HLOOKUP(SUBSTITUTE(RISICOAFSTANDEN!$M$27,"SLANG","LEIDING"),'DATA PMR - ANTWERPEN'!$B$1:$GI$203,$A14,FALSE)+RISICOAFSTANDEN!$N$27*RISICOAFSTANDEN!$O$27/8760*HLOOKUP(SUBSTITUTE(RISICOAFSTANDEN!$M$27,"KOPPEL","LOS"),'DATA PMR - ANTWERPEN'!$B$1:$GI$203,$A14,FALSE),RISICOAFSTANDEN!$N$27*RISICOAFSTANDEN!$O$27/8760*HLOOKUP(RISICOAFSTANDEN!$M$27,'DATA PMR - ANTWERPEN'!$B$1:$GI$203,$A14,FALSE)),"") ->  | Y14: =IFERROR(IF(ISNUMBER(SEARCH("KOPPEL",RISICOAFSTANDEN!$M$28,1)),RISICOAFSTANDEN!$N$28*HLOOKUP(SUBSTITUTE(RISICOAFSTANDEN!$M$28,"SLANG","LEIDING"),'DATA PMR - ANTWERPEN'!$B$1:$GI$203,$A14,FALSE)+RISICOAFSTANDEN!$N$28*RISICOAFSTANDEN!$O$28/8760*HLOOKUP(SUBSTITUTE(RISICOAFSTANDEN!$M$28,"KOPPEL","LOS"),'DATA PMR - ANTWERPEN'!$B$1:$GI$203,$A14,FALSE),RISICOAFSTANDEN!$N$28*RISICOAFSTANDEN!$O$28/8760*HLOOKUP(RISICOAFSTANDEN!$M$28,'DATA PMR - ANTWERPEN'!$B$1:$GI$203,$A14,FALSE)),"") ->  | Z14: =IFERROR(IF(ISNUMBER(SEARCH("KOPPEL",RISICOAFSTANDEN!$M$29,1)),RISICOAFSTANDEN!$N$29*HLOOKUP(SUBSTITUTE(RISICOAFSTANDEN!$M$29,"SLANG","LEIDING"),'DATA PMR - ANTWERPEN'!$B$1:$GI$203,$A14,FALSE)+RISICOAFSTANDEN!$N$29*RISICOAFSTANDEN!$O$29/8760*HLOOKUP(SUBSTITUTE(RISICOAFSTANDEN!$M$29,"KOPPEL","LOS"),'DATA PMR - ANTWERPEN'!$B$1:$GI$203,$A14,FALSE),RISICOAFSTANDEN!$N$29*RISICOAFSTANDEN!$O$29/8760*HLOOKUP(RISICOAFSTANDEN!$M$29,'DATA PMR - ANTWERPEN'!$B$1:$GI$203,$A14,FALSE)),"") ->  | AA14: -6 | AB14: -6 | AC14: -8 | AD14: -6 | AE14: -7 | AF14: -8 | AG14: -7 | AH14: -8 | AI14: -8 | AJ14: -6 | AK14: -8 | AL14: -6 | AM14: n.b. | AN14: n.b. | AO14: n.b. | AP14: n.b. | AQ14: n.b. | AR14: n.b. | AS14: n.b. | AT14: n.b. | AU14: n.b. | AV14: n.b. | AW14: n.b. | AX14: n.b. | AY14: n.b. | AZ14: 12 | BB14: 1.590677721e-05 | BC14: -5 | BD14: 12
A15: 16 | B15: =IFERROR(IF(ISNUMBER(SEARCH("KOPPEL",RISICOAFSTANDEN!$M$5,1)),RISICOAFSTANDEN!$N$5*HLOOKUP(SUBSTITUTE(RISICOAFSTANDEN!$M$5,"SLANG","LEIDING"),'DATA PMR - ANTWERPEN'!$B$1:$GI$203,$A15,FALSE)+RISICOAFSTANDEN!$N$5*RISICOAFSTANDEN!$O$5/8760*HLOOKUP(SUBSTITUTE(RISICOAFSTANDEN!$M$5,"KOPPEL","LOS"),'DATA PMR - ANTWERPEN'!$B$1:$GI$203,$A15,FALSE),RISICOAFSTANDEN!$N$5*RISICOAFSTANDEN!$O$5/8760*HLOOKUP(RISICOAFSTANDEN!$M$5,'DATA PMR - ANTWERPEN'!$B$1:$GI$203,$A15,FALSE)),"") -> 8.179487161e-07 | C15: =IFERROR(IF(ISNUMBER(SEARCH("KOPPEL",RISICOAFSTANDEN!$M$6,1)),RISICOAFSTANDEN!$N$6*HLOOKUP(SUBSTITUTE(RISICOAFSTANDEN!$M$6,"SLANG","LEIDING"),'DATA PMR - ANTWERPEN'!$B$1:$GI$203,$A15,FALSE)+RISICOAFSTANDEN!$N$6*RISICOAFSTANDEN!$O$6/8760*HLOOKUP(SUBSTITUTE(RISICOAFSTANDEN!$M$6,"KOPPEL","LOS"),'DATA PMR - ANTWERPEN'!$B$1:$GI$203,$A15,FALSE),RISICOAFSTANDEN!$N$6*RISICOAFSTANDEN!$O$6/8760*HLOOKUP(RISICOAFSTANDEN!$M$6,'DATA PMR - ANTWERPEN'!$B$1:$GI$203,$A15,FALSE)),"") -> 2.50086264e-06 | D15: =IFERROR(IF(ISNUMBER(SEARCH("KOPPEL",RISICOAFSTANDEN!$M$7,1)),RISICOAFSTANDEN!$N$7*HLOOKUP(SUBSTITUTE(RISICOAFSTANDEN!$M$7,"SLANG","LEIDING"),'DATA PMR - ANTWERPEN'!$B$1:$GI$203,$A15,FALSE)+RISICOAFSTANDEN!$N$7*RISICOAFSTANDEN!$O$7/8760*HLOOKUP(SUBSTITUTE(RISICOAFSTANDEN!$M$7,"KOPPEL","LOS"),'DATA PMR - ANTWERPEN'!$B$1:$GI$203,$A15,FALSE),RISICOAFSTANDEN!$N$7*RISICOAFSTANDEN!$O$7/8760*HLOOKUP(RISICOAFSTANDEN!$M$7,'DATA PMR - ANTWERPEN'!$B$1:$GI$203,$A15,FALSE)),"") -> 1.259290524e-08 | E15: =IFERROR(IF(ISNUMBER(SEARCH("KOPPEL",RISICOAFSTANDEN!$M$8,1)),RISICOAFSTANDEN!$N$8*HLOOKUP(SUBSTITUTE(RISICOAFSTANDEN!$M$8,"SLANG","LEIDING"),'DATA PMR - ANTWERPEN'!$B$1:$GI$203,$A15,FALSE)+RISICOAFSTANDEN!$N$8*RISICOAFSTANDEN!$O$8/8760*HLOOKUP(SUBSTITUTE(RISICOAFSTANDEN!$M$8,"KOPPEL","LOS"),'DATA PMR - ANTWERPEN'!$B$1:$GI$203,$A15,FALSE),RISICOAFSTANDEN!$N$8*RISICOAFSTANDEN!$O$8/8760*HLOOKUP(RISICOAFSTANDEN!$M$8,'DATA PMR - ANTWERPEN'!$B$1:$GI$203,$A15,FALSE)),"") -> 6.327540628e-06 | F15: =IFERROR(IF(ISNUMBER(SEARCH("KOPPEL",RISICOAFSTANDEN!$M$9,1)),RISICOAFSTANDEN!$N$9*HLOOKUP(SUBSTITUTE(RISICOAFSTANDEN!$M$9,"SLANG","LEIDING"),'DATA PMR - ANTWERPEN'!$B$1:$GI$203,$A15,FALSE)+RISICOAFSTANDEN!$N$9*RISICOAFSTANDEN!$O$9/8760*HLOOKUP(SUBSTITUTE(RISICOAFSTANDEN!$M$9,"KOPPEL","LOS"),'DATA PMR - ANTWERPEN'!$B$1:$GI$203,$A15,FALSE),RISICOAFSTANDEN!$N$9*RISICOAFSTANDEN!$O$9/8760*HLOOKUP(RISICOAFSTANDEN!$M$9,'DATA PMR - ANTWERPEN'!$B$1:$GI$203,$A15,FALSE)),"") -> 3.876921475e-07 | G15: =IFERROR(IF(ISNUMBER(SEARCH("KOPPEL",RISICOAFSTANDEN!$M$10,1)),RISICOAFSTANDEN!$N$10*HLOOKUP(SUBSTITUTE(RISICOAFSTANDEN!$M$10,"SLANG","LEIDING"),'DATA PMR - ANTWERPEN'!$B$1:$GI$203,$A15,FALSE)+RISICOAFSTANDEN!$N$10*RISICOAFSTANDEN!$O$10/8760*HLOOKUP(SUBSTITUTE(RISICOAFSTANDEN!$M$10,"KOPPEL","LOS"),'DATA PMR - ANTWERPEN'!$B$1:$GI$203,$A15,FALSE),RISICOAFSTANDEN!$N$10*RISICOAFSTANDEN!$O$10/8760*HLOOKUP(RISICOAFSTANDEN!$M$10,'DATA PMR - ANTWERPEN'!$B$1:$GI$203,$A15,FALSE)),"") -> 5.907135556e-08 | H15: =IFERROR(IF(ISNUMBER(SEARCH("KOPPEL",RISICOAFSTANDEN!$M$11,1)),RISICOAFSTANDEN!$N$11*HLOOKUP(SUBSTITUTE(RISICOAFSTANDEN!$M$11,"SLANG","LEIDING"),'DATA PMR - ANTWERPEN'!$B$1:$GI$203,$A15,FALSE)+RISICOAFSTANDEN!$N$11*RISICOAFSTANDEN!$O$11/8760*HLOOKUP(SUBSTITUTE(RISICOAFSTANDEN!$M$11,"KOPPEL","LOS"),'DATA PMR - ANTWERPEN'!$B$1:$GI$203,$A15,FALSE),RISICOAFSTANDEN!$N$11*RISICOAFSTANDEN!$O$11/8760*HLOOKUP(RISICOAFSTANDEN!$M$11,'DATA PMR - ANTWERPEN'!$B$1:$GI$203,$A15,FALSE)),"") -> 7.084442412e-07 | I15: =IFERROR(IF(ISNUMBER(SEARCH("KOPPEL",RISICOAFSTANDEN!$M$12,1)),RISICOAFSTANDEN!$N$12*HLOOKUP(SUBSTITUTE(RISICOAFSTANDEN!$M$12,"SLANG","LEIDING"),'DATA PMR - ANTWERPEN'!$B$1:$GI$203,$A15,FALSE)+RISICOAFSTANDEN!$N$12*RISICOAFSTANDEN!$O$12/8760*HLOOKUP(SUBSTITUTE(RISICOAFSTANDEN!$M$12,"KOPPEL","LOS"),'DATA PMR - ANTWERPEN'!$B$1:$GI$203,$A15,FALSE),RISICOAFSTANDEN!$N$12*RISICOAFSTANDEN!$O$12/8760*HLOOKUP(RISICOAFSTANDEN!$M$12,'DATA PMR - ANTWERPEN'!$B$1:$GI$203,$A15,FALSE)),"") -> 7.75384295e-08 | J15: =IFERROR(IF(ISNUMBER(SEARCH("KOPPEL",RISICOAFSTANDEN!$M$13,1)),RISICOAFSTANDEN!$N$13*HLOOKUP(SUBSTITUTE(RISICOAFSTANDEN!$M$13,"SLANG","LEIDING"),'DATA PMR - ANTWERPEN'!$B$1:$GI$203,$A15,FALSE)+RISICOAFSTANDEN!$N$13*RISICOAFSTANDEN!$O$13/8760*HLOOKUP(SUBSTITUTE(RISICOAFSTANDEN!$M$13,"KOPPEL","LOS"),'DATA PMR - ANTWERPEN'!$B$1:$GI$203,$A15,FALSE),RISICOAFSTANDEN!$N$13*RISICOAFSTANDEN!$O$13/8760*HLOOKUP(RISICOAFSTANDEN!$M$13,'DATA PMR - ANTWERPEN'!$B$1:$GI$203,$A15,FALSE)),"") -> 1.120169557e-08 | K15: =IFERROR(IF(ISNUMBER(SEARCH("KOPPEL",RISICOAFSTANDEN!$M$14,1)),RISICOAFSTANDEN!$N$14*HLOOKUP(SUBSTITUTE(RISICOAFSTANDEN!$M$14,"SLANG","LEIDING"),'DATA PMR - ANTWERPEN'!$B$1:$GI$203,$A15,FALSE)+RISICOAFSTANDEN!$N$14*RISICOAFSTANDEN!$O$14/8760*HLOOKUP(SUBSTITUTE(RISICOAFSTANDEN!$M$14,"KOPPEL","LOS"),'DATA PMR - ANTWERPEN'!$B$1:$GI$203,$A15,FALSE),RISICOAFSTANDEN!$N$14*RISICOAFSTANDEN!$O$14/8760*HLOOKUP(RISICOAFSTANDEN!$M$14,'DATA PMR - ANTWERPEN'!$B$1:$GI$203,$A15,FALSE)),"") -> 9.640155071e-07 | L15: =IFERROR(IF(ISNUMBER(SEARCH("KOPPEL",RISICOAFSTANDEN!$M$15,1)),RISICOAFSTANDEN!$N$15*HLOOKUP(SUBSTITUTE(RISICOAFSTANDEN!$M$15,"SLANG","LEIDING"),'DATA PMR - ANTWERPEN'!$B$1:$GI$203,$A15,FALSE)+RISICOAFSTANDEN!$N$15*RISICOAFSTANDEN!$O$15/8760*HLOOKUP(SUBSTITUTE(RISICOAFSTANDEN!$M$15,"KOPPEL","LOS"),'DATA PMR - ANTWERPEN'!$B$1:$GI$203,$A15,FALSE),RISICOAFSTANDEN!$N$15*RISICOAFSTANDEN!$O$15/8760*HLOOKUP(RISICOAFSTANDEN!$M$15,'DATA PMR - ANTWERPEN'!$B$1:$GI$203,$A15,FALSE)),"") -> 1.680254335e-08 | M15: =IFERROR(IF(ISNUMBER(SEARCH("KOPPEL",RISICOAFSTANDEN!$M$16,1)),RISICOAFSTANDEN!$N$16*HLOOKUP(SUBSTITUTE(RISICOAFSTANDEN!$M$16,"SLANG","LEIDING"),'DATA PMR - ANTWERPEN'!$B$1:$GI$203,$A15,FALSE)+RISICOAFSTANDEN!$N$16*RISICOAFSTANDEN!$O$16/8760*HLOOKUP(SUBSTITUTE(RISICOAFSTANDEN!$M$16,"KOPPEL","LOS"),'DATA PMR - ANTWERPEN'!$B$1:$GI$203,$A15,FALSE),RISICOAFSTANDEN!$N$16*RISICOAFSTANDEN!$O$16/8760*HLOOKUP(RISICOAFSTANDEN!$M$16,'DATA PMR - ANTWERPEN'!$B$1:$GI$203,$A15,FALSE)),"") -> 7.902186674e-07 | N15: =IFERROR(IF(ISNUMBER(SEARCH("KOPPEL",RISICOAFSTANDEN!$M$17,1)),RISICOAFSTANDEN!$N$17*HLOOKUP(SUBSTITUTE(RISICOAFSTANDEN!$M$17,"SLANG","LEIDING"),'DATA PMR - ANTWERPEN'!$B$1:$GI$203,$A15,FALSE)+RISICOAFSTANDEN!$N$17*RISICOAFSTANDEN!$O$17/8760*HLOOKUP(SUBSTITUTE(RISICOAFSTANDEN!$M$17,"KOPPEL","LOS"),'DATA PMR - ANTWERPEN'!$B$1:$GI$203,$A15,FALSE),RISICOAFSTANDEN!$N$17*RISICOAFSTANDEN!$O$17/8760*HLOOKUP(RISICOAFSTANDEN!$M$17,'DATA PMR - ANTWERPEN'!$B$1:$GI$203,$A15,FALSE)),"") ->  | O15: =IFERROR(IF(ISNUMBER(SEARCH("KOPPEL",RISICOAFSTANDEN!$M$18,1)),RISICOAFSTANDEN!$N$18*HLOOKUP(SUBSTITUTE(RISICOAFSTANDEN!$M$18,"SLANG","LEIDING"),'DATA PMR - ANTWERPEN'!$B$1:$GI$203,$A15,FALSE)+RISICOAFSTANDEN!$N$18*RISICOAFSTANDEN!$O$18/8760*HLOOKUP(SUBSTITUTE(RISICOAFSTANDEN!$M$18,"KOPPEL","LOS"),'DATA PMR - ANTWERPEN'!$B$1:$GI$203,$A15,FALSE),RISICOAFSTANDEN!$N$18*RISICOAFSTANDEN!$O$18/8760*HLOOKUP(RISICOAFSTANDEN!$M$18,'DATA PMR - ANTWERPEN'!$B$1:$GI$203,$A15,FALSE)),"") ->  | P15: =IFERROR(IF(ISNUMBER(SEARCH("KOPPEL",RISICOAFSTANDEN!$M$19,1)),RISICOAFSTANDEN!$N$19*HLOOKUP(SUBSTITUTE(RISICOAFSTANDEN!$M$19,"SLANG","LEIDING"),'DATA PMR - ANTWERPEN'!$B$1:$GI$203,$A15,FALSE)+RISICOAFSTANDEN!$N$19*RISICOAFSTANDEN!$O$19/8760*HLOOKUP(SUBSTITUTE(RISICOAFSTANDEN!$M$19,"KOPPEL","LOS"),'DATA PMR - ANTWERPEN'!$B$1:$GI$203,$A15,FALSE),RISICOAFSTANDEN!$N$19*RISICOAFSTANDEN!$O$19/8760*HLOOKUP(RISICOAFSTANDEN!$M$19,'DATA PMR - ANTWERPEN'!$B$1:$GI$203,$A15,FALSE)),"") ->  | Q15: =IFERROR(IF(ISNUMBER(SEARCH("KOPPEL",RISICOAFSTANDEN!$M$20,1)),RISICOAFSTANDEN!$N$20*HLOOKUP(SUBSTITUTE(RISICOAFSTANDEN!$M$20,"SLANG","LEIDING"),'DATA PMR - ANTWERPEN'!$B$1:$GI$203,$A15,FALSE)+RISICOAFSTANDEN!$N$20*RISICOAFSTANDEN!$O$20/8760*HLOOKUP(SUBSTITUTE(RISICOAFSTANDEN!$M$20,"KOPPEL","LOS"),'DATA PMR - ANTWERPEN'!$B$1:$GI$203,$A15,FALSE),RISICOAFSTANDEN!$N$20*RISICOAFSTANDEN!$O$20/8760*HLOOKUP(RISICOAFSTANDEN!$M$20,'DATA PMR - ANTWERPEN'!$B$1:$GI$203,$A15,FALSE)),"") ->  | R15: =IFERROR(IF(ISNUMBER(SEARCH("KOPPEL",RISICOAFSTANDEN!$M$21,1)),RISICOAFSTANDEN!$N$21*HLOOKUP(SUBSTITUTE(RISICOAFSTANDEN!$M$21,"SLANG","LEIDING"),'DATA PMR - ANTWERPEN'!$B$1:$GI$203,$A15,FALSE)+RISICOAFSTANDEN!$N$21*RISICOAFSTANDEN!$O$21/8760*HLOOKUP(SUBSTITUTE(RISICOAFSTANDEN!$M$21,"KOPPEL","LOS"),'DATA PMR - ANTWERPEN'!$B$1:$GI$203,$A15,FALSE),RISICOAFSTANDEN!$N$21*RISICOAFSTANDEN!$O$21/8760*HLOOKUP(RISICOAFSTANDEN!$M$21,'DATA PMR - ANTWERPEN'!$B$1:$GI$203,$A15,FALSE)),"") ->  | S15: =IFERROR(IF(ISNUMBER(SEARCH("KOPPEL",RISICOAFSTANDEN!$M$22,1)),RISICOAFSTANDEN!$N$22*HLOOKUP(SUBSTITUTE(RISICOAFSTANDEN!$M$22,"SLANG","LEIDING"),'DATA PMR - ANTWERPEN'!$B$1:$GI$203,$A15,FALSE)+RISICOAFSTANDEN!$N$22*RISICOAFSTANDEN!$O$22/8760*HLOOKUP(SUBSTITUTE(RISICOAFSTANDEN!$M$22,"KOPPEL","LOS"),'DATA PMR - ANTWERPEN'!$B$1:$GI$203,$A15,FALSE),RISICOAFSTANDEN!$N$22*RISICOAFSTANDEN!$O$22/8760*HLOOKUP(RISICOAFSTANDEN!$M$22,'DATA PMR - ANTWERPEN'!$B$1:$GI$203,$A15,FALSE)),"") ->  | T15: =IFERROR(IF(ISNUMBER(SEARCH("KOPPEL",RISICOAFSTANDEN!$M$23,1)),RISICOAFSTANDEN!$N$23*HLOOKUP(SUBSTITUTE(RISICOAFSTANDEN!$M$23,"SLANG","LEIDING"),'DATA PMR - ANTWERPEN'!$B$1:$GI$203,$A15,FALSE)+RISICOAFSTANDEN!$N$23*RISICOAFSTANDEN!$O$23/8760*HLOOKUP(SUBSTITUTE(RISICOAFSTANDEN!$M$23,"KOPPEL","LOS"),'DATA PMR - ANTWERPEN'!$B$1:$GI$203,$A15,FALSE),RISICOAFSTANDEN!$N$23*RISICOAFSTANDEN!$O$23/8760*HLOOKUP(RISICOAFSTANDEN!$M$23,'DATA PMR - ANTWERPEN'!$B$1:$GI$203,$A15,FALSE)),"") ->  | U15: =IFERROR(IF(ISNUMBER(SEARCH("KOPPEL",RISICOAFSTANDEN!$M$24,1)),RISICOAFSTANDEN!$N$24*HLOOKUP(SUBSTITUTE(RISICOAFSTANDEN!$M$24,"SLANG","LEIDING"),'DATA PMR - ANTWERPEN'!$B$1:$GI$203,$A15,FALSE)+RISICOAFSTANDEN!$N$24*RISICOAFSTANDEN!$O$24/8760*HLOOKUP(SUBSTITUTE(RISICOAFSTANDEN!$M$24,"KOPPEL","LOS"),'DATA PMR - ANTWERPEN'!$B$1:$GI$203,$A15,FALSE),RISICOAFSTANDEN!$N$24*RISICOAFSTANDEN!$O$24/8760*HLOOKUP(RISICOAFSTANDEN!$M$24,'DATA PMR - ANTWERPEN'!$B$1:$GI$203,$A15,FALSE)),"") ->  | V15: =IFERROR(IF(ISNUMBER(SEARCH("KOPPEL",RISICOAFSTANDEN!$M$25,1)),RISICOAFSTANDEN!$N$25*HLOOKUP(SUBSTITUTE(RISICOAFSTANDEN!$M$25,"SLANG","LEIDING"),'DATA PMR - ANTWERPEN'!$B$1:$GI$203,$A15,FALSE)+RISICOAFSTANDEN!$N$25*RISICOAFSTANDEN!$O$25/8760*HLOOKUP(SUBSTITUTE(RISICOAFSTANDEN!$M$25,"KOPPEL","LOS"),'DATA PMR - ANTWERPEN'!$B$1:$GI$203,$A15,FALSE),RISICOAFSTANDEN!$N$25*RISICOAFSTANDEN!$O$25/8760*HLOOKUP(RISICOAFSTANDEN!$M$25,'DATA PMR - ANTWERPEN'!$B$1:$GI$203,$A15,FALSE)),"") ->  | W15: =IFERROR(IF(ISNUMBER(SEARCH("KOPPEL",RISICOAFSTANDEN!$M$26,1)),RISICOAFSTANDEN!$N$26*HLOOKUP(SUBSTITUTE(RISICOAFSTANDEN!$M$26,"SLANG","LEIDING"),'DATA PMR - ANTWERPEN'!$B$1:$GI$203,$A15,FALSE)+RISICOAFSTANDEN!$N$26*RISICOAFSTANDEN!$O$26/8760*HLOOKUP(SUBSTITUTE(RISICOAFSTANDEN!$M$26,"KOPPEL","LOS"),'DATA PMR - ANTWERPEN'!$B$1:$GI$203,$A15,FALSE),RISICOAFSTANDEN!$N$26*RISICOAFSTANDEN!$O$26/8760*HLOOKUP(RISICOAFSTANDEN!$M$26,'DATA PMR - ANTWERPEN'!$B$1:$GI$203,$A15,FALSE)),"") ->  | X15: =IFERROR(IF(ISNUMBER(SEARCH("KOPPEL",RISICOAFSTANDEN!$M$27,1)),RISICOAFSTANDEN!$N$27*HLOOKUP(SUBSTITUTE(RISICOAFSTANDEN!$M$27,"SLANG","LEIDING"),'DATA PMR - ANTWERPEN'!$B$1:$GI$203,$A15,FALSE)+RISICOAFSTANDEN!$N$27*RISICOAFSTANDEN!$O$27/8760*HLOOKUP(SUBSTITUTE(RISICOAFSTANDEN!$M$27,"KOPPEL","LOS"),'DATA PMR - ANTWERPEN'!$B$1:$GI$203,$A15,FALSE),RISICOAFSTANDEN!$N$27*RISICOAFSTANDEN!$O$27/8760*HLOOKUP(RISICOAFSTANDEN!$M$27,'DATA PMR - ANTWERPEN'!$B$1:$GI$203,$A15,FALSE)),"") ->  | Y15: =IFERROR(IF(ISNUMBER(SEARCH("KOPPEL",RISICOAFSTANDEN!$M$28,1)),RISICOAFSTANDEN!$N$28*HLOOKUP(SUBSTITUTE(RISICOAFSTANDEN!$M$28,"SLANG","LEIDING"),'DATA PMR - ANTWERPEN'!$B$1:$GI$203,$A15,FALSE)+RISICOAFSTANDEN!$N$28*RISICOAFSTANDEN!$O$28/8760*HLOOKUP(SUBSTITUTE(RISICOAFSTANDEN!$M$28,"KOPPEL","LOS"),'DATA PMR - ANTWERPEN'!$B$1:$GI$203,$A15,FALSE),RISICOAFSTANDEN!$N$28*RISICOAFSTANDEN!$O$28/8760*HLOOKUP(RISICOAFSTANDEN!$M$28,'DATA PMR - ANTWERPEN'!$B$1:$GI$203,$A15,FALSE)),"") ->  | Z15: =IFERROR(IF(ISNUMBER(SEARCH("KOPPEL",RISICOAFSTANDEN!$M$29,1)),RISICOAFSTANDEN!$N$29*HLOOKUP(SUBSTITUTE(RISICOAFSTANDEN!$M$29,"SLANG","LEIDING"),'DATA PMR - ANTWERPEN'!$B$1:$GI$203,$A15,FALSE)+RISICOAFSTANDEN!$N$29*RISICOAFSTANDEN!$O$29/8760*HLOOKUP(SUBSTITUTE(RISICOAFSTANDEN!$M$29,"KOPPEL","LOS"),'DATA PMR - ANTWERPEN'!$B$1:$GI$203,$A15,FALSE),RISICOAFSTANDEN!$N$29*RISICOAFSTANDEN!$O$29/8760*HLOOKUP(RISICOAFSTANDEN!$M$29,'DATA PMR - ANTWERPEN'!$B$1:$GI$203,$A15,FALSE)),"") ->  | AA15: -7 | AB15: -6 | AC15: -8 | AD15: -6 | AE15: -7 | AF15: -8 | AG15: -7 | AH15: -8 | AI15: -8 | AJ15: -7 | AK15: -8 | AL15: -7 | AM15: n.b. | AN15: n.b. | AO15: n.b. | AP15: n.b. | AQ15: n.b. | AR15: n.b. | AS15: n.b. | AT15: n.b. | AU15: n.b. | AV15: n.b. | AW15: n.b. | AX15: n.b. | AY15: n.b. | AZ15: 13 | BB15: 1.267392948e-05 | BC15: -5 | BD15: 13
A16: 17 | B16: =IFERROR(IF(ISNUMBER(SEARCH("KOPPEL",RISICOAFSTANDEN!$M$5,1)),RISICOAFSTANDEN!$N$5*HLOOKUP(SUBSTITUTE(RISICOAFSTANDEN!$M$5,"SLANG","LEIDING"),'DATA PMR - ANTWERPEN'!$B$1:$GI$203,$A16,FALSE)+RISICOAFSTANDEN!$N$5*RISICOAFSTANDEN!$O$5/8760*HLOOKUP(SUBSTITUTE(RISICOAFSTANDEN!$M$5,"KOPPEL","LOS"),'DATA PMR - ANTWERPEN'!$B$1:$GI$203,$A16,FALSE),RISICOAFSTANDEN!$N$5*RISICOAFSTANDEN!$O$5/8760*HLOOKUP(RISICOAFSTANDEN!$M$5,'DATA PMR - ANTWERPEN'!$B$1:$GI$203,$A16,FALSE)),"") -> 6.499631248e-07 | C16: =IFERROR(IF(ISNUMBER(SEARCH("KOPPEL",RISICOAFSTANDEN!$M$6,1)),RISICOAFSTANDEN!$N$6*HLOOKUP(SUBSTITUTE(RISICOAFSTANDEN!$M$6,"SLANG","LEIDING"),'DATA PMR - ANTWERPEN'!$B$1:$GI$203,$A16,FALSE)+RISICOAFSTANDEN!$N$6*RISICOAFSTANDEN!$O$6/8760*HLOOKUP(SUBSTITUTE(RISICOAFSTANDEN!$M$6,"KOPPEL","LOS"),'DATA PMR - ANTWERPEN'!$B$1:$GI$203,$A16,FALSE),RISICOAFSTANDEN!$N$6*RISICOAFSTANDEN!$O$6/8760*HLOOKUP(RISICOAFSTANDEN!$M$6,'DATA PMR - ANTWERPEN'!$B$1:$GI$203,$A16,FALSE)),"") -> 2.202211192e-06 | D16: =IFERROR(IF(ISNUMBER(SEARCH("KOPPEL",RISICOAFSTANDEN!$M$7,1)),RISICOAFSTANDEN!$N$7*HLOOKUP(SUBSTITUTE(RISICOAFSTANDEN!$M$7,"SLANG","LEIDING"),'DATA PMR - ANTWERPEN'!$B$1:$GI$203,$A16,FALSE)+RISICOAFSTANDEN!$N$7*RISICOAFSTANDEN!$O$7/8760*HLOOKUP(SUBSTITUTE(RISICOAFSTANDEN!$M$7,"KOPPEL","LOS"),'DATA PMR - ANTWERPEN'!$B$1:$GI$203,$A16,FALSE),RISICOAFSTANDEN!$N$7*RISICOAFSTANDEN!$O$7/8760*HLOOKUP(RISICOAFSTANDEN!$M$7,'DATA PMR - ANTWERPEN'!$B$1:$GI$203,$A16,FALSE)),"") -> 1.137261124e-08 | E16: =IFERROR(IF(ISNUMBER(SEARCH("KOPPEL",RISICOAFSTANDEN!$M$8,1)),RISICOAFSTANDEN!$N$8*HLOOKUP(SUBSTITUTE(RISICOAFSTANDEN!$M$8,"SLANG","LEIDING"),'DATA PMR - ANTWERPEN'!$B$1:$GI$203,$A16,FALSE)+RISICOAFSTANDEN!$N$8*RISICOAFSTANDEN!$O$8/8760*HLOOKUP(SUBSTITUTE(RISICOAFSTANDEN!$M$8,"KOPPEL","LOS"),'DATA PMR - ANTWERPEN'!$B$1:$GI$203,$A16,FALSE),RISICOAFSTANDEN!$N$8*RISICOAFSTANDEN!$O$8/8760*HLOOKUP(RISICOAFSTANDEN!$M$8,'DATA PMR - ANTWERPEN'!$B$1:$GI$203,$A16,FALSE)),"") -> 4.903208708e-06 | F16: =IFERROR(IF(ISNUMBER(SEARCH("KOPPEL",RISICOAFSTANDEN!$M$9,1)),RISICOAFSTANDEN!$N$9*HLOOKUP(SUBSTITUTE(RISICOAFSTANDEN!$M$9,"SLANG","LEIDING"),'DATA PMR - ANTWERPEN'!$B$1:$GI$203,$A16,FALSE)+RISICOAFSTANDEN!$N$9*RISICOAFSTANDEN!$O$9/8760*HLOOKUP(SUBSTITUTE(RISICOAFSTANDEN!$M$9,"KOPPEL","LOS"),'DATA PMR - ANTWERPEN'!$B$1:$GI$203,$A16,FALSE),RISICOAFSTANDEN!$N$9*RISICOAFSTANDEN!$O$9/8760*HLOOKUP(RISICOAFSTANDEN!$M$9,'DATA PMR - ANTWERPEN'!$B$1:$GI$203,$A16,FALSE)),"") -> 3.262334316e-07 | G16: =IFERROR(IF(ISNUMBER(SEARCH("KOPPEL",RISICOAFSTANDEN!$M$10,1)),RISICOAFSTANDEN!$N$10*HLOOKUP(SUBSTITUTE(RISICOAFSTANDEN!$M$10,"SLANG","LEIDING"),'DATA PMR - ANTWERPEN'!$B$1:$GI$203,$A16,FALSE)+RISICOAFSTANDEN!$N$10*RISICOAFSTANDEN!$O$10/8760*HLOOKUP(SUBSTITUTE(RISICOAFSTANDEN!$M$10,"KOPPEL","LOS"),'DATA PMR - ANTWERPEN'!$B$1:$GI$203,$A16,FALSE),RISICOAFSTANDEN!$N$10*RISICOAFSTANDEN!$O$10/8760*HLOOKUP(RISICOAFSTANDEN!$M$10,'DATA PMR - ANTWERPEN'!$B$1:$GI$203,$A16,FALSE)),"") -> 4.642917878e-08 | H16: =IFERROR(IF(ISNUMBER(SEARCH("KOPPEL",RISICOAFSTANDEN!$M$11,1)),RISICOAFSTANDEN!$N$11*HLOOKUP(SUBSTITUTE(RISICOAFSTANDEN!$M$11,"SLANG","LEIDING"),'DATA PMR - ANTWERPEN'!$B$1:$GI$203,$A16,FALSE)+RISICOAFSTANDEN!$N$11*RISICOAFSTANDEN!$O$11/8760*HLOOKUP(SUBSTITUTE(RISICOAFSTANDEN!$M$11,"KOPPEL","LOS"),'DATA PMR - ANTWERPEN'!$B$1:$GI$203,$A16,FALSE),RISICOAFSTANDEN!$N$11*RISICOAFSTANDEN!$O$11/8760*HLOOKUP(RISICOAFSTANDEN!$M$11,'DATA PMR - ANTWERPEN'!$B$1:$GI$203,$A16,FALSE)),"") -> 5.990644738e-07 | I16: =IFERROR(IF(ISNUMBER(SEARCH("KOPPEL",RISICOAFSTANDEN!$M$12,1)),RISICOAFSTANDEN!$N$12*HLOOKUP(SUBSTITUTE(RISICOAFSTANDEN!$M$12,"SLANG","LEIDING"),'DATA PMR - ANTWERPEN'!$B$1:$GI$203,$A16,FALSE)+RISICOAFSTANDEN!$N$12*RISICOAFSTANDEN!$O$12/8760*HLOOKUP(SUBSTITUTE(RISICOAFSTANDEN!$M$12,"KOPPEL","LOS"),'DATA PMR - ANTWERPEN'!$B$1:$GI$203,$A16,FALSE),RISICOAFSTANDEN!$N$12*RISICOAFSTANDEN!$O$12/8760*HLOOKUP(RISICOAFSTANDEN!$M$12,'DATA PMR - ANTWERPEN'!$B$1:$GI$203,$A16,FALSE)),"") -> 6.524668631e-08 | J16: =IFERROR(IF(ISNUMBER(SEARCH("KOPPEL",RISICOAFSTANDEN!$M$13,1)),RISICOAFSTANDEN!$N$13*HLOOKUP(SUBSTITUTE(RISICOAFSTANDEN!$M$13,"SLANG","LEIDING"),'DATA PMR - ANTWERPEN'!$B$1:$GI$203,$A16,FALSE)+RISICOAFSTANDEN!$N$13*RISICOAFSTANDEN!$O$13/8760*HLOOKUP(SUBSTITUTE(RISICOAFSTANDEN!$M$13,"KOPPEL","LOS"),'DATA PMR - ANTWERPEN'!$B$1:$GI$203,$A16,FALSE),RISICOAFSTANDEN!$N$13*RISICOAFSTANDEN!$O$13/8760*HLOOKUP(RISICOAFSTANDEN!$M$13,'DATA PMR - ANTWERPEN'!$B$1:$GI$203,$A16,FALSE)),"") -> 9.876355906e-09 | K16: =IFERROR(IF(ISNUMBER(SEARCH("KOPPEL",RISICOAFSTANDEN!$M$14,1)),RISICOAFSTANDEN!$N$14*HLOOKUP(SUBSTITUTE(RISICOAFSTANDEN!$M$14,"SLANG","LEIDING"),'DATA PMR - ANTWERPEN'!$B$1:$GI$203,$A16,FALSE)+RISICOAFSTANDEN!$N$14*RISICOAFSTANDEN!$O$14/8760*HLOOKUP(SUBSTITUTE(RISICOAFSTANDEN!$M$14,"KOPPEL","LOS"),'DATA PMR - ANTWERPEN'!$B$1:$GI$203,$A16,FALSE),RISICOAFSTANDEN!$N$14*RISICOAFSTANDEN!$O$14/8760*HLOOKUP(RISICOAFSTANDEN!$M$14,'DATA PMR - ANTWERPEN'!$B$1:$GI$203,$A16,FALSE)),"") -> 8.314667851e-07 | L16: =IFERROR(IF(ISNUMBER(SEARCH("KOPPEL",RISICOAFSTANDEN!$M$15,1)),RISICOAFSTANDEN!$N$15*HLOOKUP(SUBSTITUTE(RISICOAFSTANDEN!$M$15,"SLANG","LEIDING"),'DATA PMR - ANTWERPEN'!$B$1:$GI$203,$A16,FALSE)+RISICOAFSTANDEN!$N$15*RISICOAFSTANDEN!$O$15/8760*HLOOKUP(SUBSTITUTE(RISICOAFSTANDEN!$M$15,"KOPPEL","LOS"),'DATA PMR - ANTWERPEN'!$B$1:$GI$203,$A16,FALSE),RISICOAFSTANDEN!$N$15*RISICOAFSTANDEN!$O$15/8760*HLOOKUP(RISICOAFSTANDEN!$M$15,'DATA PMR - ANTWERPEN'!$B$1:$GI$203,$A16,FALSE)),"") -> 1.481453386e-08 | M16: =IFERROR(IF(ISNUMBER(SEARCH("KOPPEL",RISICOAFSTANDEN!$M$16,1)),RISICOAFSTANDEN!$N$16*HLOOKUP(SUBSTITUTE(RISICOAFSTANDEN!$M$16,"SLANG","LEIDING"),'DATA PMR - ANTWERPEN'!$B$1:$GI$203,$A16,FALSE)+RISICOAFSTANDEN!$N$16*RISICOAFSTANDEN!$O$16/8760*HLOOKUP(SUBSTITUTE(RISICOAFSTANDEN!$M$16,"KOPPEL","LOS"),'DATA PMR - ANTWERPEN'!$B$1:$GI$203,$A16,FALSE),RISICOAFSTANDEN!$N$16*RISICOAFSTANDEN!$O$16/8760*HLOOKUP(RISICOAFSTANDEN!$M$16,'DATA PMR - ANTWERPEN'!$B$1:$GI$203,$A16,FALSE)),"") -> 4.5966964e-07 | N16: =IFERROR(IF(ISNUMBER(SEARCH("KOPPEL",RISICOAFSTANDEN!$M$17,1)),RISICOAFSTANDEN!$N$17*HLOOKUP(SUBSTITUTE(RISICOAFSTANDEN!$M$17,"SLANG","LEIDING"),'DATA PMR - ANTWERPEN'!$B$1:$GI$203,$A16,FALSE)+RISICOAFSTANDEN!$N$17*RISICOAFSTANDEN!$O$17/8760*HLOOKUP(SUBSTITUTE(RISICOAFSTANDEN!$M$17,"KOPPEL","LOS"),'DATA PMR - ANTWERPEN'!$B$1:$GI$203,$A16,FALSE),RISICOAFSTANDEN!$N$17*RISICOAFSTANDEN!$O$17/8760*HLOOKUP(RISICOAFSTANDEN!$M$17,'DATA PMR - ANTWERPEN'!$B$1:$GI$203,$A16,FALSE)),"") ->  | O16: =IFERROR(IF(ISNUMBER(SEARCH("KOPPEL",RISICOAFSTANDEN!$M$18,1)),RISICOAFSTANDEN!$N$18*HLOOKUP(SUBSTITUTE(RISICOAFSTANDEN!$M$18,"SLANG","LEIDING"),'DATA PMR - ANTWERPEN'!$B$1:$GI$203,$A16,FALSE)+RISICOAFSTANDEN!$N$18*RISICOAFSTANDEN!$O$18/8760*HLOOKUP(SUBSTITUTE(RISICOAFSTANDEN!$M$18,"KOPPEL","LOS"),'DATA PMR - ANTWERPEN'!$B$1:$GI$203,$A16,FALSE),RISICOAFSTANDEN!$N$18*RISICOAFSTANDEN!$O$18/8760*HLOOKUP(RISICOAFSTANDEN!$M$18,'DATA PMR - ANTWERPEN'!$B$1:$GI$203,$A16,FALSE)),"") ->  | P16: =IFERROR(IF(ISNUMBER(SEARCH("KOPPEL",RISICOAFSTANDEN!$M$19,1)),RISICOAFSTANDEN!$N$19*HLOOKUP(SUBSTITUTE(RISICOAFSTANDEN!$M$19,"SLANG","LEIDING"),'DATA PMR - ANTWERPEN'!$B$1:$GI$203,$A16,FALSE)+RISICOAFSTANDEN!$N$19*RISICOAFSTANDEN!$O$19/8760*HLOOKUP(SUBSTITUTE(RISICOAFSTANDEN!$M$19,"KOPPEL","LOS"),'DATA PMR - ANTWERPEN'!$B$1:$GI$203,$A16,FALSE),RISICOAFSTANDEN!$N$19*RISICOAFSTANDEN!$O$19/8760*HLOOKUP(RISICOAFSTANDEN!$M$19,'DATA PMR - ANTWERPEN'!$B$1:$GI$203,$A16,FALSE)),"") ->  | Q16: =IFERROR(IF(ISNUMBER(SEARCH("KOPPEL",RISICOAFSTANDEN!$M$20,1)),RISICOAFSTANDEN!$N$20*HLOOKUP(SUBSTITUTE(RISICOAFSTANDEN!$M$20,"SLANG","LEIDING"),'DATA PMR - ANTWERPEN'!$B$1:$GI$203,$A16,FALSE)+RISICOAFSTANDEN!$N$20*RISICOAFSTANDEN!$O$20/8760*HLOOKUP(SUBSTITUTE(RISICOAFSTANDEN!$M$20,"KOPPEL","LOS"),'DATA PMR - ANTWERPEN'!$B$1:$GI$203,$A16,FALSE),RISICOAFSTANDEN!$N$20*RISICOAFSTANDEN!$O$20/8760*HLOOKUP(RISICOAFSTANDEN!$M$20,'DATA PMR - ANTWERPEN'!$B$1:$GI$203,$A16,FALSE)),"") ->  | R16: =IFERROR(IF(ISNUMBER(SEARCH("KOPPEL",RISICOAFSTANDEN!$M$21,1)),RISICOAFSTANDEN!$N$21*HLOOKUP(SUBSTITUTE(RISICOAFSTANDEN!$M$21,"SLANG","LEIDING"),'DATA PMR - ANTWERPEN'!$B$1:$GI$203,$A16,FALSE)+RISICOAFSTANDEN!$N$21*RISICOAFSTANDEN!$O$21/8760*HLOOKUP(SUBSTITUTE(RISICOAFSTANDEN!$M$21,"KOPPEL","LOS"),'DATA PMR - ANTWERPEN'!$B$1:$GI$203,$A16,FALSE),RISICOAFSTANDEN!$N$21*RISICOAFSTANDEN!$O$21/8760*HLOOKUP(RISICOAFSTANDEN!$M$21,'DATA PMR - ANTWERPEN'!$B$1:$GI$203,$A16,FALSE)),"") ->  | S16: =IFERROR(IF(ISNUMBER(SEARCH("KOPPEL",RISICOAFSTANDEN!$M$22,1)),RISICOAFSTANDEN!$N$22*HLOOKUP(SUBSTITUTE(RISICOAFSTANDEN!$M$22,"SLANG","LEIDING"),'DATA PMR - ANTWERPEN'!$B$1:$GI$203,$A16,FALSE)+RISICOAFSTANDEN!$N$22*RISICOAFSTANDEN!$O$22/8760*HLOOKUP(SUBSTITUTE(RISICOAFSTANDEN!$M$22,"KOPPEL","LOS"),'DATA PMR - ANTWERPEN'!$B$1:$GI$203,$A16,FALSE),RISICOAFSTANDEN!$N$22*RISICOAFSTANDEN!$O$22/8760*HLOOKUP(RISICOAFSTANDEN!$M$22,'DATA PMR - ANTWERPEN'!$B$1:$GI$203,$A16,FALSE)),"") ->  | T16: =IFERROR(IF(ISNUMBER(SEARCH("KOPPEL",RISICOAFSTANDEN!$M$23,1)),RISICOAFSTANDEN!$N$23*HLOOKUP(SUBSTITUTE(RISICOAFSTANDEN!$M$23,"SLANG","LEIDING"),'DATA PMR - ANTWERPEN'!$B$1:$GI$203,$A16,FALSE)+RISICOAFSTANDEN!$N$23*RISICOAFSTANDEN!$O$23/8760*HLOOKUP(SUBSTITUTE(RISICOAFSTANDEN!$M$23,"KOPPEL","LOS"),'DATA PMR - ANTWERPEN'!$B$1:$GI$203,$A16,FALSE),RISICOAFSTANDEN!$N$23*RISICOAFSTANDEN!$O$23/8760*HLOOKUP(RISICOAFSTANDEN!$M$23,'DATA PMR - ANTWERPEN'!$B$1:$GI$203,$A16,FALSE)),"") ->  | U16: =IFERROR(IF(ISNUMBER(SEARCH("KOPPEL",RISICOAFSTANDEN!$M$24,1)),RISICOAFSTANDEN!$N$24*HLOOKUP(SUBSTITUTE(RISICOAFSTANDEN!$M$24,"SLANG","LEIDING"),'DATA PMR - ANTWERPEN'!$B$1:$GI$203,$A16,FALSE)+RISICOAFSTANDEN!$N$24*RISICOAFSTANDEN!$O$24/8760*HLOOKUP(SUBSTITUTE(RISICOAFSTANDEN!$M$24,"KOPPEL","LOS"),'DATA PMR - ANTWERPEN'!$B$1:$GI$203,$A16,FALSE),RISICOAFSTANDEN!$N$24*RISICOAFSTANDEN!$O$24/8760*HLOOKUP(RISICOAFSTANDEN!$M$24,'DATA PMR - ANTWERPEN'!$B$1:$GI$203,$A16,FALSE)),"") ->  | V16: =IFERROR(IF(ISNUMBER(SEARCH("KOPPEL",RISICOAFSTANDEN!$M$25,1)),RISICOAFSTANDEN!$N$25*HLOOKUP(SUBSTITUTE(RISICOAFSTANDEN!$M$25,"SLANG","LEIDING"),'DATA PMR - ANTWERPEN'!$B$1:$GI$203,$A16,FALSE)+RISICOAFSTANDEN!$N$25*RISICOAFSTANDEN!$O$25/8760*HLOOKUP(SUBSTITUTE(RISICOAFSTANDEN!$M$25,"KOPPEL","LOS"),'DATA PMR - ANTWERPEN'!$B$1:$GI$203,$A16,FALSE),RISICOAFSTANDEN!$N$25*RISICOAFSTANDEN!$O$25/8760*HLOOKUP(RISICOAFSTANDEN!$M$25,'DATA PMR - ANTWERPEN'!$B$1:$GI$203,$A16,FALSE)),"") ->  | W16: =IFERROR(IF(ISNUMBER(SEARCH("KOPPEL",RISICOAFSTANDEN!$M$26,1)),RISICOAFSTANDEN!$N$26*HLOOKUP(SUBSTITUTE(RISICOAFSTANDEN!$M$26,"SLANG","LEIDING"),'DATA PMR - ANTWERPEN'!$B$1:$GI$203,$A16,FALSE)+RISICOAFSTANDEN!$N$26*RISICOAFSTANDEN!$O$26/8760*HLOOKUP(SUBSTITUTE(RISICOAFSTANDEN!$M$26,"KOPPEL","LOS"),'DATA PMR - ANTWERPEN'!$B$1:$GI$203,$A16,FALSE),RISICOAFSTANDEN!$N$26*RISICOAFSTANDEN!$O$26/8760*HLOOKUP(RISICOAFSTANDEN!$M$26,'DATA PMR - ANTWERPEN'!$B$1:$GI$203,$A16,FALSE)),"") ->  | X16: =IFERROR(IF(ISNUMBER(SEARCH("KOPPEL",RISICOAFSTANDEN!$M$27,1)),RISICOAFSTANDEN!$N$27*HLOOKUP(SUBSTITUTE(RISICOAFSTANDEN!$M$27,"SLANG","LEIDING"),'DATA PMR - ANTWERPEN'!$B$1:$GI$203,$A16,FALSE)+RISICOAFSTANDEN!$N$27*RISICOAFSTANDEN!$O$27/8760*HLOOKUP(SUBSTITUTE(RISICOAFSTANDEN!$M$27,"KOPPEL","LOS"),'DATA PMR - ANTWERPEN'!$B$1:$GI$203,$A16,FALSE),RISICOAFSTANDEN!$N$27*RISICOAFSTANDEN!$O$27/8760*HLOOKUP(RISICOAFSTANDEN!$M$27,'DATA PMR - ANTWERPEN'!$B$1:$GI$203,$A16,FALSE)),"") ->  | Y16: =IFERROR(IF(ISNUMBER(SEARCH("KOPPEL",RISICOAFSTANDEN!$M$28,1)),RISICOAFSTANDEN!$N$28*HLOOKUP(SUBSTITUTE(RISICOAFSTANDEN!$M$28,"SLANG","LEIDING"),'DATA PMR - ANTWERPEN'!$B$1:$GI$203,$A16,FALSE)+RISICOAFSTANDEN!$N$28*RISICOAFSTANDEN!$O$28/8760*HLOOKUP(SUBSTITUTE(RISICOAFSTANDEN!$M$28,"KOPPEL","LOS"),'DATA PMR - ANTWERPEN'!$B$1:$GI$203,$A16,FALSE),RISICOAFSTANDEN!$N$28*RISICOAFSTANDEN!$O$28/8760*HLOOKUP(RISICOAFSTANDEN!$M$28,'DATA PMR - ANTWERPEN'!$B$1:$GI$203,$A16,FALSE)),"") ->  | Z16: =IFERROR(IF(ISNUMBER(SEARCH("KOPPEL",RISICOAFSTANDEN!$M$29,1)),RISICOAFSTANDEN!$N$29*HLOOKUP(SUBSTITUTE(RISICOAFSTANDEN!$M$29,"SLANG","LEIDING"),'DATA PMR - ANTWERPEN'!$B$1:$GI$203,$A16,FALSE)+RISICOAFSTANDEN!$N$29*RISICOAFSTANDEN!$O$29/8760*HLOOKUP(SUBSTITUTE(RISICOAFSTANDEN!$M$29,"KOPPEL","LOS"),'DATA PMR - ANTWERPEN'!$B$1:$GI$203,$A16,FALSE),RISICOAFSTANDEN!$N$29*RISICOAFSTANDEN!$O$29/8760*HLOOKUP(RISICOAFSTANDEN!$M$29,'DATA PMR - ANTWERPEN'!$B$1:$GI$203,$A16,FALSE)),"") ->  | AA16: -7 | AB16: -6 | AC16: -8 | AD16: -6 | AE16: -7 | AF16: -8 | AG16: -7 | AH16: -8 | AI16: -9 | AJ16: -7 | AK16: -8 | AL16: -7 | AM16: n.b. | AN16: n.b. | AO16: n.b. | AP16: n.b. | AQ16: n.b. | AR16: n.b. | AS16: n.b. | AT16: n.b. | AU16: n.b. | AV16: n.b. | AW16: n.b. | AX16: n.b. | AY16: n.b. | AZ16: 14 | BB16: 1.011955672e-05 | BC16: -5 | BD16: 14
A17: 18 | B17: =IFERROR(IF(ISNUMBER(SEARCH("KOPPEL",RISICOAFSTANDEN!$M$5,1)),RISICOAFSTANDEN!$N$5*HLOOKUP(SUBSTITUTE(RISICOAFSTANDEN!$M$5,"SLANG","LEIDING"),'DATA PMR - ANTWERPEN'!$B$1:$GI$203,$A17,FALSE)+RISICOAFSTANDEN!$N$5*RISICOAFSTANDEN!$O$5/8760*HLOOKUP(SUBSTITUTE(RISICOAFSTANDEN!$M$5,"KOPPEL","LOS"),'DATA PMR - ANTWERPEN'!$B$1:$GI$203,$A17,FALSE),RISICOAFSTANDEN!$N$5*RISICOAFSTANDEN!$O$5/8760*HLOOKUP(RISICOAFSTANDEN!$M$5,'DATA PMR - ANTWERPEN'!$B$1:$GI$203,$A17,FALSE)),"") -> 5.418325875e-07 | C17: =IFERROR(IF(ISNUMBER(SEARCH("KOPPEL",RISICOAFSTANDEN!$M$6,1)),RISICOAFSTANDEN!$N$6*HLOOKUP(SUBSTITUTE(RISICOAFSTANDEN!$M$6,"SLANG","LEIDING"),'DATA PMR - ANTWERPEN'!$B$1:$GI$203,$A17,FALSE)+RISICOAFSTANDEN!$N$6*RISICOAFSTANDEN!$O$6/8760*HLOOKUP(SUBSTITUTE(RISICOAFSTANDEN!$M$6,"KOPPEL","LOS"),'DATA PMR - ANTWERPEN'!$B$1:$GI$203,$A17,FALSE),RISICOAFSTANDEN!$N$6*RISICOAFSTANDEN!$O$6/8760*HLOOKUP(RISICOAFSTANDEN!$M$6,'DATA PMR - ANTWERPEN'!$B$1:$GI$203,$A17,FALSE)),"") -> 1.923595967e-06 | D17: =IFERROR(IF(ISNUMBER(SEARCH("KOPPEL",RISICOAFSTANDEN!$M$7,1)),RISICOAFSTANDEN!$N$7*HLOOKUP(SUBSTITUTE(RISICOAFSTANDEN!$M$7,"SLANG","LEIDING"),'DATA PMR - ANTWERPEN'!$B$1:$GI$203,$A17,FALSE)+RISICOAFSTANDEN!$N$7*RISICOAFSTANDEN!$O$7/8760*HLOOKUP(SUBSTITUTE(RISICOAFSTANDEN!$M$7,"KOPPEL","LOS"),'DATA PMR - ANTWERPEN'!$B$1:$GI$203,$A17,FALSE),RISICOAFSTANDEN!$N$7*RISICOAFSTANDEN!$O$7/8760*HLOOKUP(RISICOAFSTANDEN!$M$7,'DATA PMR - ANTWERPEN'!$B$1:$GI$203,$A17,FALSE)),"") -> 1.057770044e-08 | E17: =IFERROR(IF(ISNUMBER(SEARCH("KOPPEL",RISICOAFSTANDEN!$M$8,1)),RISICOAFSTANDEN!$N$8*HLOOKUP(SUBSTITUTE(RISICOAFSTANDEN!$M$8,"SLANG","LEIDING"),'DATA PMR - ANTWERPEN'!$B$1:$GI$203,$A17,FALSE)+RISICOAFSTANDEN!$N$8*RISICOAFSTANDEN!$O$8/8760*HLOOKUP(SUBSTITUTE(RISICOAFSTANDEN!$M$8,"KOPPEL","LOS"),'DATA PMR - ANTWERPEN'!$B$1:$GI$203,$A17,FALSE),RISICOAFSTANDEN!$N$8*RISICOAFSTANDEN!$O$8/8760*HLOOKUP(RISICOAFSTANDEN!$M$8,'DATA PMR - ANTWERPEN'!$B$1:$GI$203,$A17,FALSE)),"") -> 3.273828521e-06 | F17: =IFERROR(IF(ISNUMBER(SEARCH("KOPPEL",RISICOAFSTANDEN!$M$9,1)),RISICOAFSTANDEN!$N$9*HLOOKUP(SUBSTITUTE(RISICOAFSTANDEN!$M$9,"SLANG","LEIDING"),'DATA PMR - ANTWERPEN'!$B$1:$GI$203,$A17,FALSE)+RISICOAFSTANDEN!$N$9*RISICOAFSTANDEN!$O$9/8760*HLOOKUP(SUBSTITUTE(RISICOAFSTANDEN!$M$9,"KOPPEL","LOS"),'DATA PMR - ANTWERPEN'!$B$1:$GI$203,$A17,FALSE),RISICOAFSTANDEN!$N$9*RISICOAFSTANDEN!$O$9/8760*HLOOKUP(RISICOAFSTANDEN!$M$9,'DATA PMR - ANTWERPEN'!$B$1:$GI$203,$A17,FALSE)),"") -> 2.785646e-07 | G17: =IFERROR(IF(ISNUMBER(SEARCH("KOPPEL",RISICOAFSTANDEN!$M$10,1)),RISICOAFSTANDEN!$N$10*HLOOKUP(SUBSTITUTE(RISICOAFSTANDEN!$M$10,"SLANG","LEIDING"),'DATA PMR - ANTWERPEN'!$B$1:$GI$203,$A17,FALSE)+RISICOAFSTANDEN!$N$10*RISICOAFSTANDEN!$O$10/8760*HLOOKUP(SUBSTITUTE(RISICOAFSTANDEN!$M$10,"KOPPEL","LOS"),'DATA PMR - ANTWERPEN'!$B$1:$GI$203,$A17,FALSE),RISICOAFSTANDEN!$N$10*RISICOAFSTANDEN!$O$10/8760*HLOOKUP(RISICOAFSTANDEN!$M$10,'DATA PMR - ANTWERPEN'!$B$1:$GI$203,$A17,FALSE)),"") -> 3.532539215e-08 | H17: =IFERROR(IF(ISNUMBER(SEARCH("KOPPEL",RISICOAFSTANDEN!$M$11,1)),RISICOAFSTANDEN!$N$11*HLOOKUP(SUBSTITUTE(RISICOAFSTANDEN!$M$11,"SLANG","LEIDING"),'DATA PMR - ANTWERPEN'!$B$1:$GI$203,$A17,FALSE)+RISICOAFSTANDEN!$N$11*RISICOAFSTANDEN!$O$11/8760*HLOOKUP(SUBSTITUTE(RISICOAFSTANDEN!$M$11,"KOPPEL","LOS"),'DATA PMR - ANTWERPEN'!$B$1:$GI$203,$A17,FALSE),RISICOAFSTANDEN!$N$11*RISICOAFSTANDEN!$O$11/8760*HLOOKUP(RISICOAFSTANDEN!$M$11,'DATA PMR - ANTWERPEN'!$B$1:$GI$203,$A17,FALSE)),"") -> 5.052338782e-07 | I17: =IFERROR(IF(ISNUMBER(SEARCH("KOPPEL",RISICOAFSTANDEN!$M$12,1)),RISICOAFSTANDEN!$N$12*HLOOKUP(SUBSTITUTE(RISICOAFSTANDEN!$M$12,"SLANG","LEIDING"),'DATA PMR - ANTWERPEN'!$B$1:$GI$203,$A17,FALSE)+RISICOAFSTANDEN!$N$12*RISICOAFSTANDEN!$O$12/8760*HLOOKUP(SUBSTITUTE(RISICOAFSTANDEN!$M$12,"KOPPEL","LOS"),'DATA PMR - ANTWERPEN'!$B$1:$GI$203,$A17,FALSE),RISICOAFSTANDEN!$N$12*RISICOAFSTANDEN!$O$12/8760*HLOOKUP(RISICOAFSTANDEN!$M$12,'DATA PMR - ANTWERPEN'!$B$1:$GI$203,$A17,FALSE)),"") -> 5.571292001e-08 | J17: =IFERROR(IF(ISNUMBER(SEARCH("KOPPEL",RISICOAFSTANDEN!$M$13,1)),RISICOAFSTANDEN!$N$13*HLOOKUP(SUBSTITUTE(RISICOAFSTANDEN!$M$13,"SLANG","LEIDING"),'DATA PMR - ANTWERPEN'!$B$1:$GI$203,$A17,FALSE)+RISICOAFSTANDEN!$N$13*RISICOAFSTANDEN!$O$13/8760*HLOOKUP(SUBSTITUTE(RISICOAFSTANDEN!$M$13,"KOPPEL","LOS"),'DATA PMR - ANTWERPEN'!$B$1:$GI$203,$A17,FALSE),RISICOAFSTANDEN!$N$13*RISICOAFSTANDEN!$O$13/8760*HLOOKUP(RISICOAFSTANDEN!$M$13,'DATA PMR - ANTWERPEN'!$B$1:$GI$203,$A17,FALSE)),"") -> 8.98352644e-09 | K17: =IFERROR(IF(ISNUMBER(SEARCH("KOPPEL",RISICOAFSTANDEN!$M$14,1)),RISICOAFSTANDEN!$N$14*HLOOKUP(SUBSTITUTE(RISICOAFSTANDEN!$M$14,"SLANG","LEIDING"),'DATA PMR - ANTWERPEN'!$B$1:$GI$203,$A17,FALSE)+RISICOAFSTANDEN!$N$14*RISICOAFSTANDEN!$O$14/8760*HLOOKUP(SUBSTITUTE(RISICOAFSTANDEN!$M$14,"KOPPEL","LOS"),'DATA PMR - ANTWERPEN'!$B$1:$GI$203,$A17,FALSE),RISICOAFSTANDEN!$N$14*RISICOAFSTANDEN!$O$14/8760*HLOOKUP(RISICOAFSTANDEN!$M$14,'DATA PMR - ANTWERPEN'!$B$1:$GI$203,$A17,FALSE)),"") -> 7.181246641e-07 | L17: =IFERROR(IF(ISNUMBER(SEARCH("KOPPEL",RISICOAFSTANDEN!$M$15,1)),RISICOAFSTANDEN!$N$15*HLOOKUP(SUBSTITUTE(RISICOAFSTANDEN!$M$15,"SLANG","LEIDING"),'DATA PMR - ANTWERPEN'!$B$1:$GI$203,$A17,FALSE)+RISICOAFSTANDEN!$N$15*RISICOAFSTANDEN!$O$15/8760*HLOOKUP(SUBSTITUTE(RISICOAFSTANDEN!$M$15,"KOPPEL","LOS"),'DATA PMR - ANTWERPEN'!$B$1:$GI$203,$A17,FALSE),RISICOAFSTANDEN!$N$15*RISICOAFSTANDEN!$O$15/8760*HLOOKUP(RISICOAFSTANDEN!$M$15,'DATA PMR - ANTWERPEN'!$B$1:$GI$203,$A17,FALSE)),"") -> 1.347528966e-08 | M17: =IFERROR(IF(ISNUMBER(SEARCH("KOPPEL",RISICOAFSTANDEN!$M$16,1)),RISICOAFSTANDEN!$N$16*HLOOKUP(SUBSTITUTE(RISICOAFSTANDEN!$M$16,"SLANG","LEIDING"),'DATA PMR - ANTWERPEN'!$B$1:$GI$203,$A17,FALSE)+RISICOAFSTANDEN!$N$16*RISICOAFSTANDEN!$O$16/8760*HLOOKUP(SUBSTITUTE(RISICOAFSTANDEN!$M$16,"KOPPEL","LOS"),'DATA PMR - ANTWERPEN'!$B$1:$GI$203,$A17,FALSE),RISICOAFSTANDEN!$N$16*RISICOAFSTANDEN!$O$16/8760*HLOOKUP(RISICOAFSTANDEN!$M$16,'DATA PMR - ANTWERPEN'!$B$1:$GI$203,$A17,FALSE)),"") -> 3.587569216e-07 | N17: =IFERROR(IF(ISNUMBER(SEARCH("KOPPEL",RISICOAFSTANDEN!$M$17,1)),RISICOAFSTANDEN!$N$17*HLOOKUP(SUBSTITUTE(RISICOAFSTANDEN!$M$17,"SLANG","LEIDING"),'DATA PMR - ANTWERPEN'!$B$1:$GI$203,$A17,FALSE)+RISICOAFSTANDEN!$N$17*RISICOAFSTANDEN!$O$17/8760*HLOOKUP(SUBSTITUTE(RISICOAFSTANDEN!$M$17,"KOPPEL","LOS"),'DATA PMR - ANTWERPEN'!$B$1:$GI$203,$A17,FALSE),RISICOAFSTANDEN!$N$17*RISICOAFSTANDEN!$O$17/8760*HLOOKUP(RISICOAFSTANDEN!$M$17,'DATA PMR - ANTWERPEN'!$B$1:$GI$203,$A17,FALSE)),"") ->  | O17: =IFERROR(IF(ISNUMBER(SEARCH("KOPPEL",RISICOAFSTANDEN!$M$18,1)),RISICOAFSTANDEN!$N$18*HLOOKUP(SUBSTITUTE(RISICOAFSTANDEN!$M$18,"SLANG","LEIDING"),'DATA PMR - ANTWERPEN'!$B$1:$GI$203,$A17,FALSE)+RISICOAFSTANDEN!$N$18*RISICOAFSTANDEN!$O$18/8760*HLOOKUP(SUBSTITUTE(RISICOAFSTANDEN!$M$18,"KOPPEL","LOS"),'DATA PMR - ANTWERPEN'!$B$1:$GI$203,$A17,FALSE),RISICOAFSTANDEN!$N$18*RISICOAFSTANDEN!$O$18/8760*HLOOKUP(RISICOAFSTANDEN!$M$18,'DATA PMR - ANTWERPEN'!$B$1:$GI$203,$A17,FALSE)),"") ->  | P17: =IFERROR(IF(ISNUMBER(SEARCH("KOPPEL",RISICOAFSTANDEN!$M$19,1)),RISICOAFSTANDEN!$N$19*HLOOKUP(SUBSTITUTE(RISICOAFSTANDEN!$M$19,"SLANG","LEIDING"),'DATA PMR - ANTWERPEN'!$B$1:$GI$203,$A17,FALSE)+RISICOAFSTANDEN!$N$19*RISICOAFSTANDEN!$O$19/8760*HLOOKUP(SUBSTITUTE(RISICOAFSTANDEN!$M$19,"KOPPEL","LOS"),'DATA PMR - ANTWERPEN'!$B$1:$GI$203,$A17,FALSE),RISICOAFSTANDEN!$N$19*RISICOAFSTANDEN!$O$19/8760*HLOOKUP(RISICOAFSTANDEN!$M$19,'DATA PMR - ANTWERPEN'!$B$1:$GI$203,$A17,FALSE)),"") ->  | Q17: =IFERROR(IF(ISNUMBER(SEARCH("KOPPEL",RISICOAFSTANDEN!$M$20,1)),RISICOAFSTANDEN!$N$20*HLOOKUP(SUBSTITUTE(RISICOAFSTANDEN!$M$20,"SLANG","LEIDING"),'DATA PMR - ANTWERPEN'!$B$1:$GI$203,$A17,FALSE)+RISICOAFSTANDEN!$N$20*RISICOAFSTANDEN!$O$20/8760*HLOOKUP(SUBSTITUTE(RISICOAFSTANDEN!$M$20,"KOPPEL","LOS"),'DATA PMR - ANTWERPEN'!$B$1:$GI$203,$A17,FALSE),RISICOAFSTANDEN!$N$20*RISICOAFSTANDEN!$O$20/8760*HLOOKUP(RISICOAFSTANDEN!$M$20,'DATA PMR - ANTWERPEN'!$B$1:$GI$203,$A17,FALSE)),"") ->  | R17: =IFERROR(IF(ISNUMBER(SEARCH("KOPPEL",RISICOAFSTANDEN!$M$21,1)),RISICOAFSTANDEN!$N$21*HLOOKUP(SUBSTITUTE(RISICOAFSTANDEN!$M$21,"SLANG","LEIDING"),'DATA PMR - ANTWERPEN'!$B$1:$GI$203,$A17,FALSE)+RISICOAFSTANDEN!$N$21*RISICOAFSTANDEN!$O$21/8760*HLOOKUP(SUBSTITUTE(RISICOAFSTANDEN!$M$21,"KOPPEL","LOS"),'DATA PMR - ANTWERPEN'!$B$1:$GI$203,$A17,FALSE),RISICOAFSTANDEN!$N$21*RISICOAFSTANDEN!$O$21/8760*HLOOKUP(RISICOAFSTANDEN!$M$21,'DATA PMR - ANTWERPEN'!$B$1:$GI$203,$A17,FALSE)),"") ->  | S17: =IFERROR(IF(ISNUMBER(SEARCH("KOPPEL",RISICOAFSTANDEN!$M$22,1)),RISICOAFSTANDEN!$N$22*HLOOKUP(SUBSTITUTE(RISICOAFSTANDEN!$M$22,"SLANG","LEIDING"),'DATA PMR - ANTWERPEN'!$B$1:$GI$203,$A17,FALSE)+RISICOAFSTANDEN!$N$22*RISICOAFSTANDEN!$O$22/8760*HLOOKUP(SUBSTITUTE(RISICOAFSTANDEN!$M$22,"KOPPEL","LOS"),'DATA PMR - ANTWERPEN'!$B$1:$GI$203,$A17,FALSE),RISICOAFSTANDEN!$N$22*RISICOAFSTANDEN!$O$22/8760*HLOOKUP(RISICOAFSTANDEN!$M$22,'DATA PMR - ANTWERPEN'!$B$1:$GI$203,$A17,FALSE)),"") ->  | T17: =IFERROR(IF(ISNUMBER(SEARCH("KOPPEL",RISICOAFSTANDEN!$M$23,1)),RISICOAFSTANDEN!$N$23*HLOOKUP(SUBSTITUTE(RISICOAFSTANDEN!$M$23,"SLANG","LEIDING"),'DATA PMR - ANTWERPEN'!$B$1:$GI$203,$A17,FALSE)+RISICOAFSTANDEN!$N$23*RISICOAFSTANDEN!$O$23/8760*HLOOKUP(SUBSTITUTE(RISICOAFSTANDEN!$M$23,"KOPPEL","LOS"),'DATA PMR - ANTWERPEN'!$B$1:$GI$203,$A17,FALSE),RISICOAFSTANDEN!$N$23*RISICOAFSTANDEN!$O$23/8760*HLOOKUP(RISICOAFSTANDEN!$M$23,'DATA PMR - ANTWERPEN'!$B$1:$GI$203,$A17,FALSE)),"") ->  | U17: =IFERROR(IF(ISNUMBER(SEARCH("KOPPEL",RISICOAFSTANDEN!$M$24,1)),RISICOAFSTANDEN!$N$24*HLOOKUP(SUBSTITUTE(RISICOAFSTANDEN!$M$24,"SLANG","LEIDING"),'DATA PMR - ANTWERPEN'!$B$1:$GI$203,$A17,FALSE)+RISICOAFSTANDEN!$N$24*RISICOAFSTANDEN!$O$24/8760*HLOOKUP(SUBSTITUTE(RISICOAFSTANDEN!$M$24,"KOPPEL","LOS"),'DATA PMR - ANTWERPEN'!$B$1:$GI$203,$A17,FALSE),RISICOAFSTANDEN!$N$24*RISICOAFSTANDEN!$O$24/8760*HLOOKUP(RISICOAFSTANDEN!$M$24,'DATA PMR - ANTWERPEN'!$B$1:$GI$203,$A17,FALSE)),"") ->  | V17: =IFERROR(IF(ISNUMBER(SEARCH("KOPPEL",RISICOAFSTANDEN!$M$25,1)),RISICOAFSTANDEN!$N$25*HLOOKUP(SUBSTITUTE(RISICOAFSTANDEN!$M$25,"SLANG","LEIDING"),'DATA PMR - ANTWERPEN'!$B$1:$GI$203,$A17,FALSE)+RISICOAFSTANDEN!$N$25*RISICOAFSTANDEN!$O$25/8760*HLOOKUP(SUBSTITUTE(RISICOAFSTANDEN!$M$25,"KOPPEL","LOS"),'DATA PMR - ANTWERPEN'!$B$1:$GI$203,$A17,FALSE),RISICOAFSTANDEN!$N$25*RISICOAFSTANDEN!$O$25/8760*HLOOKUP(RISICOAFSTANDEN!$M$25,'DATA PMR - ANTWERPEN'!$B$1:$GI$203,$A17,FALSE)),"") ->  | W17: =IFERROR(IF(ISNUMBER(SEARCH("KOPPEL",RISICOAFSTANDEN!$M$26,1)),RISICOAFSTANDEN!$N$26*HLOOKUP(SUBSTITUTE(RISICOAFSTANDEN!$M$26,"SLANG","LEIDING"),'DATA PMR - ANTWERPEN'!$B$1:$GI$203,$A17,FALSE)+RISICOAFSTANDEN!$N$26*RISICOAFSTANDEN!$O$26/8760*HLOOKUP(SUBSTITUTE(RISICOAFSTANDEN!$M$26,"KOPPEL","LOS"),'DATA PMR - ANTWERPEN'!$B$1:$GI$203,$A17,FALSE),RISICOAFSTANDEN!$N$26*RISICOAFSTANDEN!$O$26/8760*HLOOKUP(RISICOAFSTANDEN!$M$26,'DATA PMR - ANTWERPEN'!$B$1:$GI$203,$A17,FALSE)),"") ->  | X17: =IFERROR(IF(ISNUMBER(SEARCH("KOPPEL",RISICOAFSTANDEN!$M$27,1)),RISICOAFSTANDEN!$N$27*HLOOKUP(SUBSTITUTE(RISICOAFSTANDEN!$M$27,"SLANG","LEIDING"),'DATA PMR - ANTWERPEN'!$B$1:$GI$203,$A17,FALSE)+RISICOAFSTANDEN!$N$27*RISICOAFSTANDEN!$O$27/8760*HLOOKUP(SUBSTITUTE(RISICOAFSTANDEN!$M$27,"KOPPEL","LOS"),'DATA PMR - ANTWERPEN'!$B$1:$GI$203,$A17,FALSE),RISICOAFSTANDEN!$N$27*RISICOAFSTANDEN!$O$27/8760*HLOOKUP(RISICOAFSTANDEN!$M$27,'DATA PMR - ANTWERPEN'!$B$1:$GI$203,$A17,FALSE)),"") ->  | Y17: =IFERROR(IF(ISNUMBER(SEARCH("KOPPEL",RISICOAFSTANDEN!$M$28,1)),RISICOAFSTANDEN!$N$28*HLOOKUP(SUBSTITUTE(RISICOAFSTANDEN!$M$28,"SLANG","LEIDING"),'DATA PMR - ANTWERPEN'!$B$1:$GI$203,$A17,FALSE)+RISICOAFSTANDEN!$N$28*RISICOAFSTANDEN!$O$28/8760*HLOOKUP(SUBSTITUTE(RISICOAFSTANDEN!$M$28,"KOPPEL","LOS"),'DATA PMR - ANTWERPEN'!$B$1:$GI$203,$A17,FALSE),RISICOAFSTANDEN!$N$28*RISICOAFSTANDEN!$O$28/8760*HLOOKUP(RISICOAFSTANDEN!$M$28,'DATA PMR - ANTWERPEN'!$B$1:$GI$203,$A17,FALSE)),"") ->  | Z17: =IFERROR(IF(ISNUMBER(SEARCH("KOPPEL",RISICOAFSTANDEN!$M$29,1)),RISICOAFSTANDEN!$N$29*HLOOKUP(SUBSTITUTE(RISICOAFSTANDEN!$M$29,"SLANG","LEIDING"),'DATA PMR - ANTWERPEN'!$B$1:$GI$203,$A17,FALSE)+RISICOAFSTANDEN!$N$29*RISICOAFSTANDEN!$O$29/8760*HLOOKUP(SUBSTITUTE(RISICOAFSTANDEN!$M$29,"KOPPEL","LOS"),'DATA PMR - ANTWERPEN'!$B$1:$GI$203,$A17,FALSE),RISICOAFSTANDEN!$N$29*RISICOAFSTANDEN!$O$29/8760*HLOOKUP(RISICOAFSTANDEN!$M$29,'DATA PMR - ANTWERPEN'!$B$1:$GI$203,$A17,FALSE)),"") ->  | AA17: -7 | AB17: -6 | AC17: -8 | AD17: -6 | AE17: -7 | AF17: -8 | AG17: -7 | AH17: -8 | AI17: -9 | AJ17: -7 | AK17: -8 | AL17: -7 | AM17: n.b. | AN17: n.b. | AO17: n.b. | AP17: n.b. | AQ17: n.b. | AR17: n.b. | AS17: n.b. | AT17: n.b. | AU17: n.b. | AV17: n.b. | AW17: n.b. | AX17: n.b. | AY17: n.b. | AZ17: 15 | BB17: 7.724011968e-06 | BC17: -6 | BD17: 15
A18: 19 | B18: =IFERROR(IF(ISNUMBER(SEARCH("KOPPEL",RISICOAFSTANDEN!$M$5,1)),RISICOAFSTANDEN!$N$5*HLOOKUP(SUBSTITUTE(RISICOAFSTANDEN!$M$5,"SLANG","LEIDING"),'DATA PMR - ANTWERPEN'!$B$1:$GI$203,$A18,FALSE)+RISICOAFSTANDEN!$N$5*RISICOAFSTANDEN!$O$5/8760*HLOOKUP(SUBSTITUTE(RISICOAFSTANDEN!$M$5,"KOPPEL","LOS"),'DATA PMR - ANTWERPEN'!$B$1:$GI$203,$A18,FALSE),RISICOAFSTANDEN!$N$5*RISICOAFSTANDEN!$O$5/8760*HLOOKUP(RISICOAFSTANDEN!$M$5,'DATA PMR - ANTWERPEN'!$B$1:$GI$203,$A18,FALSE)),"") -> 4.507351997e-07 | C18: =IFERROR(IF(ISNUMBER(SEARCH("KOPPEL",RISICOAFSTANDEN!$M$6,1)),RISICOAFSTANDEN!$N$6*HLOOKUP(SUBSTITUTE(RISICOAFSTANDEN!$M$6,"SLANG","LEIDING"),'DATA PMR - ANTWERPEN'!$B$1:$GI$203,$A18,FALSE)+RISICOAFSTANDEN!$N$6*RISICOAFSTANDEN!$O$6/8760*HLOOKUP(SUBSTITUTE(RISICOAFSTANDEN!$M$6,"KOPPEL","LOS"),'DATA PMR - ANTWERPEN'!$B$1:$GI$203,$A18,FALSE),RISICOAFSTANDEN!$N$6*RISICOAFSTANDEN!$O$6/8760*HLOOKUP(RISICOAFSTANDEN!$M$6,'DATA PMR - ANTWERPEN'!$B$1:$GI$203,$A18,FALSE)),"") -> 1.679034156e-06 | D18: =IFERROR(IF(ISNUMBER(SEARCH("KOPPEL",RISICOAFSTANDEN!$M$7,1)),RISICOAFSTANDEN!$N$7*HLOOKUP(SUBSTITUTE(RISICOAFSTANDEN!$M$7,"SLANG","LEIDING"),'DATA PMR - ANTWERPEN'!$B$1:$GI$203,$A18,FALSE)+RISICOAFSTANDEN!$N$7*RISICOAFSTANDEN!$O$7/8760*HLOOKUP(SUBSTITUTE(RISICOAFSTANDEN!$M$7,"KOPPEL","LOS"),'DATA PMR - ANTWERPEN'!$B$1:$GI$203,$A18,FALSE),RISICOAFSTANDEN!$N$7*RISICOAFSTANDEN!$O$7/8760*HLOOKUP(RISICOAFSTANDEN!$M$7,'DATA PMR - ANTWERPEN'!$B$1:$GI$203,$A18,FALSE)),"") -> 9.916590201e-09 | E18: =IFERROR(IF(ISNUMBER(SEARCH("KOPPEL",RISICOAFSTANDEN!$M$8,1)),RISICOAFSTANDEN!$N$8*HLOOKUP(SUBSTITUTE(RISICOAFSTANDEN!$M$8,"SLANG","LEIDING"),'DATA PMR - ANTWERPEN'!$B$1:$GI$203,$A18,FALSE)+RISICOAFSTANDEN!$N$8*RISICOAFSTANDEN!$O$8/8760*HLOOKUP(SUBSTITUTE(RISICOAFSTANDEN!$M$8,"KOPPEL","LOS"),'DATA PMR - ANTWERPEN'!$B$1:$GI$203,$A18,FALSE),RISICOAFSTANDEN!$N$8*RISICOAFSTANDEN!$O$8/8760*HLOOKUP(RISICOAFSTANDEN!$M$8,'DATA PMR - ANTWERPEN'!$B$1:$GI$203,$A18,FALSE)),"") -> 1.589527481e-06 | F18: =IFERROR(IF(ISNUMBER(SEARCH("KOPPEL",RISICOAFSTANDEN!$M$9,1)),RISICOAFSTANDEN!$N$9*HLOOKUP(SUBSTITUTE(RISICOAFSTANDEN!$M$9,"SLANG","LEIDING"),'DATA PMR - ANTWERPEN'!$B$1:$GI$203,$A18,FALSE)+RISICOAFSTANDEN!$N$9*RISICOAFSTANDEN!$O$9/8760*HLOOKUP(SUBSTITUTE(RISICOAFSTANDEN!$M$9,"KOPPEL","LOS"),'DATA PMR - ANTWERPEN'!$B$1:$GI$203,$A18,FALSE),RISICOAFSTANDEN!$N$9*RISICOAFSTANDEN!$O$9/8760*HLOOKUP(RISICOAFSTANDEN!$M$9,'DATA PMR - ANTWERPEN'!$B$1:$GI$203,$A18,FALSE)),"") -> 2.374186602e-07 | G18: =IFERROR(IF(ISNUMBER(SEARCH("KOPPEL",RISICOAFSTANDEN!$M$10,1)),RISICOAFSTANDEN!$N$10*HLOOKUP(SUBSTITUTE(RISICOAFSTANDEN!$M$10,"SLANG","LEIDING"),'DATA PMR - ANTWERPEN'!$B$1:$GI$203,$A18,FALSE)+RISICOAFSTANDEN!$N$10*RISICOAFSTANDEN!$O$10/8760*HLOOKUP(SUBSTITUTE(RISICOAFSTANDEN!$M$10,"KOPPEL","LOS"),'DATA PMR - ANTWERPEN'!$B$1:$GI$203,$A18,FALSE),RISICOAFSTANDEN!$N$10*RISICOAFSTANDEN!$O$10/8760*HLOOKUP(RISICOAFSTANDEN!$M$10,'DATA PMR - ANTWERPEN'!$B$1:$GI$203,$A18,FALSE)),"") -> 2.55713364e-08 | H18: =IFERROR(IF(ISNUMBER(SEARCH("KOPPEL",RISICOAFSTANDEN!$M$11,1)),RISICOAFSTANDEN!$N$11*HLOOKUP(SUBSTITUTE(RISICOAFSTANDEN!$M$11,"SLANG","LEIDING"),'DATA PMR - ANTWERPEN'!$B$1:$GI$203,$A18,FALSE)+RISICOAFSTANDEN!$N$11*RISICOAFSTANDEN!$O$11/8760*HLOOKUP(SUBSTITUTE(RISICOAFSTANDEN!$M$11,"KOPPEL","LOS"),'DATA PMR - ANTWERPEN'!$B$1:$GI$203,$A18,FALSE),RISICOAFSTANDEN!$N$11*RISICOAFSTANDEN!$O$11/8760*HLOOKUP(RISICOAFSTANDEN!$M$11,'DATA PMR - ANTWERPEN'!$B$1:$GI$203,$A18,FALSE)),"") -> 4.232577277e-07 | I18: =IFERROR(IF(ISNUMBER(SEARCH("KOPPEL",RISICOAFSTANDEN!$M$12,1)),RISICOAFSTANDEN!$N$12*HLOOKUP(SUBSTITUTE(RISICOAFSTANDEN!$M$12,"SLANG","LEIDING"),'DATA PMR - ANTWERPEN'!$B$1:$GI$203,$A18,FALSE)+RISICOAFSTANDEN!$N$12*RISICOAFSTANDEN!$O$12/8760*HLOOKUP(SUBSTITUTE(RISICOAFSTANDEN!$M$12,"KOPPEL","LOS"),'DATA PMR - ANTWERPEN'!$B$1:$GI$203,$A18,FALSE),RISICOAFSTANDEN!$N$12*RISICOAFSTANDEN!$O$12/8760*HLOOKUP(RISICOAFSTANDEN!$M$12,'DATA PMR - ANTWERPEN'!$B$1:$GI$203,$A18,FALSE)),"") -> 4.748373205e-08 | J18: =IFERROR(IF(ISNUMBER(SEARCH("KOPPEL",RISICOAFSTANDEN!$M$13,1)),RISICOAFSTANDEN!$N$13*HLOOKUP(SUBSTITUTE(RISICOAFSTANDEN!$M$13,"SLANG","LEIDING"),'DATA PMR - ANTWERPEN'!$B$1:$GI$203,$A18,FALSE)+RISICOAFSTANDEN!$N$13*RISICOAFSTANDEN!$O$13/8760*HLOOKUP(SUBSTITUTE(RISICOAFSTANDEN!$M$13,"KOPPEL","LOS"),'DATA PMR - ANTWERPEN'!$B$1:$GI$203,$A18,FALSE),RISICOAFSTANDEN!$N$13*RISICOAFSTANDEN!$O$13/8760*HLOOKUP(RISICOAFSTANDEN!$M$13,'DATA PMR - ANTWERPEN'!$B$1:$GI$203,$A18,FALSE)),"") -> 8.202093231e-09 | K18: =IFERROR(IF(ISNUMBER(SEARCH("KOPPEL",RISICOAFSTANDEN!$M$14,1)),RISICOAFSTANDEN!$N$14*HLOOKUP(SUBSTITUTE(RISICOAFSTANDEN!$M$14,"SLANG","LEIDING"),'DATA PMR - ANTWERPEN'!$B$1:$GI$203,$A18,FALSE)+RISICOAFSTANDEN!$N$14*RISICOAFSTANDEN!$O$14/8760*HLOOKUP(SUBSTITUTE(RISICOAFSTANDEN!$M$14,"KOPPEL","LOS"),'DATA PMR - ANTWERPEN'!$B$1:$GI$203,$A18,FALSE),RISICOAFSTANDEN!$N$14*RISICOAFSTANDEN!$O$14/8760*HLOOKUP(RISICOAFSTANDEN!$M$14,'DATA PMR - ANTWERPEN'!$B$1:$GI$203,$A18,FALSE)),"") -> 6.213487659e-07 | L18: =IFERROR(IF(ISNUMBER(SEARCH("KOPPEL",RISICOAFSTANDEN!$M$15,1)),RISICOAFSTANDEN!$N$15*HLOOKUP(SUBSTITUTE(RISICOAFSTANDEN!$M$15,"SLANG","LEIDING"),'DATA PMR - ANTWERPEN'!$B$1:$GI$203,$A18,FALSE)+RISICOAFSTANDEN!$N$15*RISICOAFSTANDEN!$O$15/8760*HLOOKUP(SUBSTITUTE(RISICOAFSTANDEN!$M$15,"KOPPEL","LOS"),'DATA PMR - ANTWERPEN'!$B$1:$GI$203,$A18,FALSE),RISICOAFSTANDEN!$N$15*RISICOAFSTANDEN!$O$15/8760*HLOOKUP(RISICOAFSTANDEN!$M$15,'DATA PMR - ANTWERPEN'!$B$1:$GI$203,$A18,FALSE)),"") -> 1.230313985e-08 | M18: =IFERROR(IF(ISNUMBER(SEARCH("KOPPEL",RISICOAFSTANDEN!$M$16,1)),RISICOAFSTANDEN!$N$16*HLOOKUP(SUBSTITUTE(RISICOAFSTANDEN!$M$16,"SLANG","LEIDING"),'DATA PMR - ANTWERPEN'!$B$1:$GI$203,$A18,FALSE)+RISICOAFSTANDEN!$N$16*RISICOAFSTANDEN!$O$16/8760*HLOOKUP(SUBSTITUTE(RISICOAFSTANDEN!$M$16,"KOPPEL","LOS"),'DATA PMR - ANTWERPEN'!$B$1:$GI$203,$A18,FALSE),RISICOAFSTANDEN!$N$16*RISICOAFSTANDEN!$O$16/8760*HLOOKUP(RISICOAFSTANDEN!$M$16,'DATA PMR - ANTWERPEN'!$B$1:$GI$203,$A18,FALSE)),"") -> 2.911867805e-07 | N18: =IFERROR(IF(ISNUMBER(SEARCH("KOPPEL",RISICOAFSTANDEN!$M$17,1)),RISICOAFSTANDEN!$N$17*HLOOKUP(SUBSTITUTE(RISICOAFSTANDEN!$M$17,"SLANG","LEIDING"),'DATA PMR - ANTWERPEN'!$B$1:$GI$203,$A18,FALSE)+RISICOAFSTANDEN!$N$17*RISICOAFSTANDEN!$O$17/8760*HLOOKUP(SUBSTITUTE(RISICOAFSTANDEN!$M$17,"KOPPEL","LOS"),'DATA PMR - ANTWERPEN'!$B$1:$GI$203,$A18,FALSE),RISICOAFSTANDEN!$N$17*RISICOAFSTANDEN!$O$17/8760*HLOOKUP(RISICOAFSTANDEN!$M$17,'DATA PMR - ANTWERPEN'!$B$1:$GI$203,$A18,FALSE)),"") ->  | O18: =IFERROR(IF(ISNUMBER(SEARCH("KOPPEL",RISICOAFSTANDEN!$M$18,1)),RISICOAFSTANDEN!$N$18*HLOOKUP(SUBSTITUTE(RISICOAFSTANDEN!$M$18,"SLANG","LEIDING"),'DATA PMR - ANTWERPEN'!$B$1:$GI$203,$A18,FALSE)+RISICOAFSTANDEN!$N$18*RISICOAFSTANDEN!$O$18/8760*HLOOKUP(SUBSTITUTE(RISICOAFSTANDEN!$M$18,"KOPPEL","LOS"),'DATA PMR - ANTWERPEN'!$B$1:$GI$203,$A18,FALSE),RISICOAFSTANDEN!$N$18*RISICOAFSTANDEN!$O$18/8760*HLOOKUP(RISICOAFSTANDEN!$M$18,'DATA PMR - ANTWERPEN'!$B$1:$GI$203,$A18,FALSE)),"") ->  | P18: =IFERROR(IF(ISNUMBER(SEARCH("KOPPEL",RISICOAFSTANDEN!$M$19,1)),RISICOAFSTANDEN!$N$19*HLOOKUP(SUBSTITUTE(RISICOAFSTANDEN!$M$19,"SLANG","LEIDING"),'DATA PMR - ANTWERPEN'!$B$1:$GI$203,$A18,FALSE)+RISICOAFSTANDEN!$N$19*RISICOAFSTANDEN!$O$19/8760*HLOOKUP(SUBSTITUTE(RISICOAFSTANDEN!$M$19,"KOPPEL","LOS"),'DATA PMR - ANTWERPEN'!$B$1:$GI$203,$A18,FALSE),RISICOAFSTANDEN!$N$19*RISICOAFSTANDEN!$O$19/8760*HLOOKUP(RISICOAFSTANDEN!$M$19,'DATA PMR - ANTWERPEN'!$B$1:$GI$203,$A18,FALSE)),"") ->  | Q18: =IFERROR(IF(ISNUMBER(SEARCH("KOPPEL",RISICOAFSTANDEN!$M$20,1)),RISICOAFSTANDEN!$N$20*HLOOKUP(SUBSTITUTE(RISICOAFSTANDEN!$M$20,"SLANG","LEIDING"),'DATA PMR - ANTWERPEN'!$B$1:$GI$203,$A18,FALSE)+RISICOAFSTANDEN!$N$20*RISICOAFSTANDEN!$O$20/8760*HLOOKUP(SUBSTITUTE(RISICOAFSTANDEN!$M$20,"KOPPEL","LOS"),'DATA PMR - ANTWERPEN'!$B$1:$GI$203,$A18,FALSE),RISICOAFSTANDEN!$N$20*RISICOAFSTANDEN!$O$20/8760*HLOOKUP(RISICOAFSTANDEN!$M$20,'DATA PMR - ANTWERPEN'!$B$1:$GI$203,$A18,FALSE)),"") ->  | R18: =IFERROR(IF(ISNUMBER(SEARCH("KOPPEL",RISICOAFSTANDEN!$M$21,1)),RISICOAFSTANDEN!$N$21*HLOOKUP(SUBSTITUTE(RISICOAFSTANDEN!$M$21,"SLANG","LEIDING"),'DATA PMR - ANTWERPEN'!$B$1:$GI$203,$A18,FALSE)+RISICOAFSTANDEN!$N$21*RISICOAFSTANDEN!$O$21/8760*HLOOKUP(SUBSTITUTE(RISICOAFSTANDEN!$M$21,"KOPPEL","LOS"),'DATA PMR - ANTWERPEN'!$B$1:$GI$203,$A18,FALSE),RISICOAFSTANDEN!$N$21*RISICOAFSTANDEN!$O$21/8760*HLOOKUP(RISICOAFSTANDEN!$M$21,'DATA PMR - ANTWERPEN'!$B$1:$GI$203,$A18,FALSE)),"") ->  | S18: =IFERROR(IF(ISNUMBER(SEARCH("KOPPEL",RISICOAFSTANDEN!$M$22,1)),RISICOAFSTANDEN!$N$22*HLOOKUP(SUBSTITUTE(RISICOAFSTANDEN!$M$22,"SLANG","LEIDING"),'DATA PMR - ANTWERPEN'!$B$1:$GI$203,$A18,FALSE)+RISICOAFSTANDEN!$N$22*RISICOAFSTANDEN!$O$22/8760*HLOOKUP(SUBSTITUTE(RISICOAFSTANDEN!$M$22,"KOPPEL","LOS"),'DATA PMR - ANTWERPEN'!$B$1:$GI$203,$A18,FALSE),RISICOAFSTANDEN!$N$22*RISICOAFSTANDEN!$O$22/8760*HLOOKUP(RISICOAFSTANDEN!$M$22,'DATA PMR - ANTWERPEN'!$B$1:$GI$203,$A18,FALSE)),"") ->  | T18: =IFERROR(IF(ISNUMBER(SEARCH("KOPPEL",RISICOAFSTANDEN!$M$23,1)),RISICOAFSTANDEN!$N$23*HLOOKUP(SUBSTITUTE(RISICOAFSTANDEN!$M$23,"SLANG","LEIDING"),'DATA PMR - ANTWERPEN'!$B$1:$GI$203,$A18,FALSE)+RISICOAFSTANDEN!$N$23*RISICOAFSTANDEN!$O$23/8760*HLOOKUP(SUBSTITUTE(RISICOAFSTANDEN!$M$23,"KOPPEL","LOS"),'DATA PMR - ANTWERPEN'!$B$1:$GI$203,$A18,FALSE),RISICOAFSTANDEN!$N$23*RISICOAFSTANDEN!$O$23/8760*HLOOKUP(RISICOAFSTANDEN!$M$23,'DATA PMR - ANTWERPEN'!$B$1:$GI$203,$A18,FALSE)),"") ->  | U18: =IFERROR(IF(ISNUMBER(SEARCH("KOPPEL",RISICOAFSTANDEN!$M$24,1)),RISICOAFSTANDEN!$N$24*HLOOKUP(SUBSTITUTE(RISICOAFSTANDEN!$M$24,"SLANG","LEIDING"),'DATA PMR - ANTWERPEN'!$B$1:$GI$203,$A18,FALSE)+RISICOAFSTANDEN!$N$24*RISICOAFSTANDEN!$O$24/8760*HLOOKUP(SUBSTITUTE(RISICOAFSTANDEN!$M$24,"KOPPEL","LOS"),'DATA PMR - ANTWERPEN'!$B$1:$GI$203,$A18,FALSE),RISICOAFSTANDEN!$N$24*RISICOAFSTANDEN!$O$24/8760*HLOOKUP(RISICOAFSTANDEN!$M$24,'DATA PMR - ANTWERPEN'!$B$1:$GI$203,$A18,FALSE)),"") ->  | V18: =IFERROR(IF(ISNUMBER(SEARCH("KOPPEL",RISICOAFSTANDEN!$M$25,1)),RISICOAFSTANDEN!$N$25*HLOOKUP(SUBSTITUTE(RISICOAFSTANDEN!$M$25,"SLANG","LEIDING"),'DATA PMR - ANTWERPEN'!$B$1:$GI$203,$A18,FALSE)+RISICOAFSTANDEN!$N$25*RISICOAFSTANDEN!$O$25/8760*HLOOKUP(SUBSTITUTE(RISICOAFSTANDEN!$M$25,"KOPPEL","LOS"),'DATA PMR - ANTWERPEN'!$B$1:$GI$203,$A18,FALSE),RISICOAFSTANDEN!$N$25*RISICOAFSTANDEN!$O$25/8760*HLOOKUP(RISICOAFSTANDEN!$M$25,'DATA PMR - ANTWERPEN'!$B$1:$GI$203,$A18,FALSE)),"") ->  | W18: =IFERROR(IF(ISNUMBER(SEARCH("KOPPEL",RISICOAFSTANDEN!$M$26,1)),RISICOAFSTANDEN!$N$26*HLOOKUP(SUBSTITUTE(RISICOAFSTANDEN!$M$26,"SLANG","LEIDING"),'DATA PMR - ANTWERPEN'!$B$1:$GI$203,$A18,FALSE)+RISICOAFSTANDEN!$N$26*RISICOAFSTANDEN!$O$26/8760*HLOOKUP(SUBSTITUTE(RISICOAFSTANDEN!$M$26,"KOPPEL","LOS"),'DATA PMR - ANTWERPEN'!$B$1:$GI$203,$A18,FALSE),RISICOAFSTANDEN!$N$26*RISICOAFSTANDEN!$O$26/8760*HLOOKUP(RISICOAFSTANDEN!$M$26,'DATA PMR - ANTWERPEN'!$B$1:$GI$203,$A18,FALSE)),"") ->  | X18: =IFERROR(IF(ISNUMBER(SEARCH("KOPPEL",RISICOAFSTANDEN!$M$27,1)),RISICOAFSTANDEN!$N$27*HLOOKUP(SUBSTITUTE(RISICOAFSTANDEN!$M$27,"SLANG","LEIDING"),'DATA PMR - ANTWERPEN'!$B$1:$GI$203,$A18,FALSE)+RISICOAFSTANDEN!$N$27*RISICOAFSTANDEN!$O$27/8760*HLOOKUP(SUBSTITUTE(RISICOAFSTANDEN!$M$27,"KOPPEL","LOS"),'DATA PMR - ANTWERPEN'!$B$1:$GI$203,$A18,FALSE),RISICOAFSTANDEN!$N$27*RISICOAFSTANDEN!$O$27/8760*HLOOKUP(RISICOAFSTANDEN!$M$27,'DATA PMR - ANTWERPEN'!$B$1:$GI$203,$A18,FALSE)),"") ->  | Y18: =IFERROR(IF(ISNUMBER(SEARCH("KOPPEL",RISICOAFSTANDEN!$M$28,1)),RISICOAFSTANDEN!$N$28*HLOOKUP(SUBSTITUTE(RISICOAFSTANDEN!$M$28,"SLANG","LEIDING"),'DATA PMR - ANTWERPEN'!$B$1:$GI$203,$A18,FALSE)+RISICOAFSTANDEN!$N$28*RISICOAFSTANDEN!$O$28/8760*HLOOKUP(SUBSTITUTE(RISICOAFSTANDEN!$M$28,"KOPPEL","LOS"),'DATA PMR - ANTWERPEN'!$B$1:$GI$203,$A18,FALSE),RISICOAFSTANDEN!$N$28*RISICOAFSTANDEN!$O$28/8760*HLOOKUP(RISICOAFSTANDEN!$M$28,'DATA PMR - ANTWERPEN'!$B$1:$GI$203,$A18,FALSE)),"") ->  | Z18: =IFERROR(IF(ISNUMBER(SEARCH("KOPPEL",RISICOAFSTANDEN!$M$29,1)),RISICOAFSTANDEN!$N$29*HLOOKUP(SUBSTITUTE(RISICOAFSTANDEN!$M$29,"SLANG","LEIDING"),'DATA PMR - ANTWERPEN'!$B$1:$GI$203,$A18,FALSE)+RISICOAFSTANDEN!$N$29*RISICOAFSTANDEN!$O$29/8760*HLOOKUP(SUBSTITUTE(RISICOAFSTANDEN!$M$29,"KOPPEL","LOS"),'DATA PMR - ANTWERPEN'!$B$1:$GI$203,$A18,FALSE),RISICOAFSTANDEN!$N$29*RISICOAFSTANDEN!$O$29/8760*HLOOKUP(RISICOAFSTANDEN!$M$29,'DATA PMR - ANTWERPEN'!$B$1:$GI$203,$A18,FALSE)),"") ->  | AA18: -7 | AB18: -6 | AC18: -9 | AD18: -6 | AE18: -7 | AF18: -8 | AG18: -7 | AH18: -8 | AI18: -9 | AJ18: -7 | AK18: -8 | AL18: -7 | AM18: n.b. | AN18: n.b. | AO18: n.b. | AP18: n.b. | AQ18: n.b. | AR18: n.b. | AS18: n.b. | AT18: n.b. | AU18: n.b. | AV18: n.b. | AW18: n.b. | AX18: n.b. | AY18: n.b. | AZ18: 16 | BB18: 5.395985662e-06 | BC18: -6 | BD18: 16
A19: 20 | B19: =IFERROR(IF(ISNUMBER(SEARCH("KOPPEL",RISICOAFSTANDEN!$M$5,1)),RISICOAFSTANDEN!$N$5*HLOOKUP(SUBSTITUTE(RISICOAFSTANDEN!$M$5,"SLANG","LEIDING"),'DATA PMR - ANTWERPEN'!$B$1:$GI$203,$A19,FALSE)+RISICOAFSTANDEN!$N$5*RISICOAFSTANDEN!$O$5/8760*HLOOKUP(SUBSTITUTE(RISICOAFSTANDEN!$M$5,"KOPPEL","LOS"),'DATA PMR - ANTWERPEN'!$B$1:$GI$203,$A19,FALSE),RISICOAFSTANDEN!$N$5*RISICOAFSTANDEN!$O$5/8760*HLOOKUP(RISICOAFSTANDEN!$M$5,'DATA PMR - ANTWERPEN'!$B$1:$GI$203,$A19,FALSE)),"") -> 3.857940982e-07 | C19: =IFERROR(IF(ISNUMBER(SEARCH("KOPPEL",RISICOAFSTANDEN!$M$6,1)),RISICOAFSTANDEN!$N$6*HLOOKUP(SUBSTITUTE(RISICOAFSTANDEN!$M$6,"SLANG","LEIDING"),'DATA PMR - ANTWERPEN'!$B$1:$GI$203,$A19,FALSE)+RISICOAFSTANDEN!$N$6*RISICOAFSTANDEN!$O$6/8760*HLOOKUP(SUBSTITUTE(RISICOAFSTANDEN!$M$6,"KOPPEL","LOS"),'DATA PMR - ANTWERPEN'!$B$1:$GI$203,$A19,FALSE),RISICOAFSTANDEN!$N$6*RISICOAFSTANDEN!$O$6/8760*HLOOKUP(RISICOAFSTANDEN!$M$6,'DATA PMR - ANTWERPEN'!$B$1:$GI$203,$A19,FALSE)),"") -> 1.485174283e-06 | D19: =IFERROR(IF(ISNUMBER(SEARCH("KOPPEL",RISICOAFSTANDEN!$M$7,1)),RISICOAFSTANDEN!$N$7*HLOOKUP(SUBSTITUTE(RISICOAFSTANDEN!$M$7,"SLANG","LEIDING"),'DATA PMR - ANTWERPEN'!$B$1:$GI$203,$A19,FALSE)+RISICOAFSTANDEN!$N$7*RISICOAFSTANDEN!$O$7/8760*HLOOKUP(SUBSTITUTE(RISICOAFSTANDEN!$M$7,"KOPPEL","LOS"),'DATA PMR - ANTWERPEN'!$B$1:$GI$203,$A19,FALSE),RISICOAFSTANDEN!$N$7*RISICOAFSTANDEN!$O$7/8760*HLOOKUP(RISICOAFSTANDEN!$M$7,'DATA PMR - ANTWERPEN'!$B$1:$GI$203,$A19,FALSE)),"") -> 9.264645135e-09 | E19: =IFERROR(IF(ISNUMBER(SEARCH("KOPPEL",RISICOAFSTANDEN!$M$8,1)),RISICOAFSTANDEN!$N$8*HLOOKUP(SUBSTITUTE(RISICOAFSTANDEN!$M$8,"SLANG","LEIDING"),'DATA PMR - ANTWERPEN'!$B$1:$GI$203,$A19,FALSE)+RISICOAFSTANDEN!$N$8*RISICOAFSTANDEN!$O$8/8760*HLOOKUP(SUBSTITUTE(RISICOAFSTANDEN!$M$8,"KOPPEL","LOS"),'DATA PMR - ANTWERPEN'!$B$1:$GI$203,$A19,FALSE),RISICOAFSTANDEN!$N$8*RISICOAFSTANDEN!$O$8/8760*HLOOKUP(RISICOAFSTANDEN!$M$8,'DATA PMR - ANTWERPEN'!$B$1:$GI$203,$A19,FALSE)),"") -> 4.363598173e-07 | F19: =IFERROR(IF(ISNUMBER(SEARCH("KOPPEL",RISICOAFSTANDEN!$M$9,1)),RISICOAFSTANDEN!$N$9*HLOOKUP(SUBSTITUTE(RISICOAFSTANDEN!$M$9,"SLANG","LEIDING"),'DATA PMR - ANTWERPEN'!$B$1:$GI$203,$A19,FALSE)+RISICOAFSTANDEN!$N$9*RISICOAFSTANDEN!$O$9/8760*HLOOKUP(SUBSTITUTE(RISICOAFSTANDEN!$M$9,"KOPPEL","LOS"),'DATA PMR - ANTWERPEN'!$B$1:$GI$203,$A19,FALSE),RISICOAFSTANDEN!$N$9*RISICOAFSTANDEN!$O$9/8760*HLOOKUP(RISICOAFSTANDEN!$M$9,'DATA PMR - ANTWERPEN'!$B$1:$GI$203,$A19,FALSE)),"") -> 2.019221781e-07 | G19: =IFERROR(IF(ISNUMBER(SEARCH("KOPPEL",RISICOAFSTANDEN!$M$10,1)),RISICOAFSTANDEN!$N$10*HLOOKUP(SUBSTITUTE(RISICOAFSTANDEN!$M$10,"SLANG","LEIDING"),'DATA PMR - ANTWERPEN'!$B$1:$GI$203,$A19,FALSE)+RISICOAFSTANDEN!$N$10*RISICOAFSTANDEN!$O$10/8760*HLOOKUP(SUBSTITUTE(RISICOAFSTANDEN!$M$10,"KOPPEL","LOS"),'DATA PMR - ANTWERPEN'!$B$1:$GI$203,$A19,FALSE),RISICOAFSTANDEN!$N$10*RISICOAFSTANDEN!$O$10/8760*HLOOKUP(RISICOAFSTANDEN!$M$10,'DATA PMR - ANTWERPEN'!$B$1:$GI$203,$A19,FALSE)),"") -> 1.746161053e-08 | H19: =IFERROR(IF(ISNUMBER(SEARCH("KOPPEL",RISICOAFSTANDEN!$M$11,1)),RISICOAFSTANDEN!$N$11*HLOOKUP(SUBSTITUTE(RISICOAFSTANDEN!$M$11,"SLANG","LEIDING"),'DATA PMR - ANTWERPEN'!$B$1:$GI$203,$A19,FALSE)+RISICOAFSTANDEN!$N$11*RISICOAFSTANDEN!$O$11/8760*HLOOKUP(SUBSTITUTE(RISICOAFSTANDEN!$M$11,"KOPPEL","LOS"),'DATA PMR - ANTWERPEN'!$B$1:$GI$203,$A19,FALSE),RISICOAFSTANDEN!$N$11*RISICOAFSTANDEN!$O$11/8760*HLOOKUP(RISICOAFSTANDEN!$M$11,'DATA PMR - ANTWERPEN'!$B$1:$GI$203,$A19,FALSE)),"") -> 3.513045114e-07 | I19: =IFERROR(IF(ISNUMBER(SEARCH("KOPPEL",RISICOAFSTANDEN!$M$12,1)),RISICOAFSTANDEN!$N$12*HLOOKUP(SUBSTITUTE(RISICOAFSTANDEN!$M$12,"SLANG","LEIDING"),'DATA PMR - ANTWERPEN'!$B$1:$GI$203,$A19,FALSE)+RISICOAFSTANDEN!$N$12*RISICOAFSTANDEN!$O$12/8760*HLOOKUP(SUBSTITUTE(RISICOAFSTANDEN!$M$12,"KOPPEL","LOS"),'DATA PMR - ANTWERPEN'!$B$1:$GI$203,$A19,FALSE),RISICOAFSTANDEN!$N$12*RISICOAFSTANDEN!$O$12/8760*HLOOKUP(RISICOAFSTANDEN!$M$12,'DATA PMR - ANTWERPEN'!$B$1:$GI$203,$A19,FALSE)),"") -> 4.038443563e-08 | J19: =IFERROR(IF(ISNUMBER(SEARCH("KOPPEL",RISICOAFSTANDEN!$M$13,1)),RISICOAFSTANDEN!$N$13*HLOOKUP(SUBSTITUTE(RISICOAFSTANDEN!$M$13,"SLANG","LEIDING"),'DATA PMR - ANTWERPEN'!$B$1:$GI$203,$A19,FALSE)+RISICOAFSTANDEN!$N$13*RISICOAFSTANDEN!$O$13/8760*HLOOKUP(SUBSTITUTE(RISICOAFSTANDEN!$M$13,"KOPPEL","LOS"),'DATA PMR - ANTWERPEN'!$B$1:$GI$203,$A19,FALSE),RISICOAFSTANDEN!$N$13*RISICOAFSTANDEN!$O$13/8760*HLOOKUP(RISICOAFSTANDEN!$M$13,'DATA PMR - ANTWERPEN'!$B$1:$GI$203,$A19,FALSE)),"") -> 7.422597877e-09 | K19: =IFERROR(IF(ISNUMBER(SEARCH("KOPPEL",RISICOAFSTANDEN!$M$14,1)),RISICOAFSTANDEN!$N$14*HLOOKUP(SUBSTITUTE(RISICOAFSTANDEN!$M$14,"SLANG","LEIDING"),'DATA PMR - ANTWERPEN'!$B$1:$GI$203,$A19,FALSE)+RISICOAFSTANDEN!$N$14*RISICOAFSTANDEN!$O$14/8760*HLOOKUP(SUBSTITUTE(RISICOAFSTANDEN!$M$14,"KOPPEL","LOS"),'DATA PMR - ANTWERPEN'!$B$1:$GI$203,$A19,FALSE),RISICOAFSTANDEN!$N$14*RISICOAFSTANDEN!$O$14/8760*HLOOKUP(RISICOAFSTANDEN!$M$14,'DATA PMR - ANTWERPEN'!$B$1:$GI$203,$A19,FALSE)),"") -> 5.3682423e-07 | L19: =IFERROR(IF(ISNUMBER(SEARCH("KOPPEL",RISICOAFSTANDEN!$M$15,1)),RISICOAFSTANDEN!$N$15*HLOOKUP(SUBSTITUTE(RISICOAFSTANDEN!$M$15,"SLANG","LEIDING"),'DATA PMR - ANTWERPEN'!$B$1:$GI$203,$A19,FALSE)+RISICOAFSTANDEN!$N$15*RISICOAFSTANDEN!$O$15/8760*HLOOKUP(SUBSTITUTE(RISICOAFSTANDEN!$M$15,"KOPPEL","LOS"),'DATA PMR - ANTWERPEN'!$B$1:$GI$203,$A19,FALSE),RISICOAFSTANDEN!$N$15*RISICOAFSTANDEN!$O$15/8760*HLOOKUP(RISICOAFSTANDEN!$M$15,'DATA PMR - ANTWERPEN'!$B$1:$GI$203,$A19,FALSE)),"") -> 1.113389681e-08 | M19: =IFERROR(IF(ISNUMBER(SEARCH("KOPPEL",RISICOAFSTANDEN!$M$16,1)),RISICOAFSTANDEN!$N$16*HLOOKUP(SUBSTITUTE(RISICOAFSTANDEN!$M$16,"SLANG","LEIDING"),'DATA PMR - ANTWERPEN'!$B$1:$GI$203,$A19,FALSE)+RISICOAFSTANDEN!$N$16*RISICOAFSTANDEN!$O$16/8760*HLOOKUP(SUBSTITUTE(RISICOAFSTANDEN!$M$16,"KOPPEL","LOS"),'DATA PMR - ANTWERPEN'!$B$1:$GI$203,$A19,FALSE),RISICOAFSTANDEN!$N$16*RISICOAFSTANDEN!$O$16/8760*HLOOKUP(RISICOAFSTANDEN!$M$16,'DATA PMR - ANTWERPEN'!$B$1:$GI$203,$A19,FALSE)),"") -> 2.418388713e-07 | N19: =IFERROR(IF(ISNUMBER(SEARCH("KOPPEL",RISICOAFSTANDEN!$M$17,1)),RISICOAFSTANDEN!$N$17*HLOOKUP(SUBSTITUTE(RISICOAFSTANDEN!$M$17,"SLANG","LEIDING"),'DATA PMR - ANTWERPEN'!$B$1:$GI$203,$A19,FALSE)+RISICOAFSTANDEN!$N$17*RISICOAFSTANDEN!$O$17/8760*HLOOKUP(SUBSTITUTE(RISICOAFSTANDEN!$M$17,"KOPPEL","LOS"),'DATA PMR - ANTWERPEN'!$B$1:$GI$203,$A19,FALSE),RISICOAFSTANDEN!$N$17*RISICOAFSTANDEN!$O$17/8760*HLOOKUP(RISICOAFSTANDEN!$M$17,'DATA PMR - ANTWERPEN'!$B$1:$GI$203,$A19,FALSE)),"") ->  | O19: =IFERROR(IF(ISNUMBER(SEARCH("KOPPEL",RISICOAFSTANDEN!$M$18,1)),RISICOAFSTANDEN!$N$18*HLOOKUP(SUBSTITUTE(RISICOAFSTANDEN!$M$18,"SLANG","LEIDING"),'DATA PMR - ANTWERPEN'!$B$1:$GI$203,$A19,FALSE)+RISICOAFSTANDEN!$N$18*RISICOAFSTANDEN!$O$18/8760*HLOOKUP(SUBSTITUTE(RISICOAFSTANDEN!$M$18,"KOPPEL","LOS"),'DATA PMR - ANTWERPEN'!$B$1:$GI$203,$A19,FALSE),RISICOAFSTANDEN!$N$18*RISICOAFSTANDEN!$O$18/8760*HLOOKUP(RISICOAFSTANDEN!$M$18,'DATA PMR - ANTWERPEN'!$B$1:$GI$203,$A19,FALSE)),"") ->  | P19: =IFERROR(IF(ISNUMBER(SEARCH("KOPPEL",RISICOAFSTANDEN!$M$19,1)),RISICOAFSTANDEN!$N$19*HLOOKUP(SUBSTITUTE(RISICOAFSTANDEN!$M$19,"SLANG","LEIDING"),'DATA PMR - ANTWERPEN'!$B$1:$GI$203,$A19,FALSE)+RISICOAFSTANDEN!$N$19*RISICOAFSTANDEN!$O$19/8760*HLOOKUP(SUBSTITUTE(RISICOAFSTANDEN!$M$19,"KOPPEL","LOS"),'DATA PMR - ANTWERPEN'!$B$1:$GI$203,$A19,FALSE),RISICOAFSTANDEN!$N$19*RISICOAFSTANDEN!$O$19/8760*HLOOKUP(RISICOAFSTANDEN!$M$19,'DATA PMR - ANTWERPEN'!$B$1:$GI$203,$A19,FALSE)),"") ->  | Q19: =IFERROR(IF(ISNUMBER(SEARCH("KOPPEL",RISICOAFSTANDEN!$M$20,1)),RISICOAFSTANDEN!$N$20*HLOOKUP(SUBSTITUTE(RISICOAFSTANDEN!$M$20,"SLANG","LEIDING"),'DATA PMR - ANTWERPEN'!$B$1:$GI$203,$A19,FALSE)+RISICOAFSTANDEN!$N$20*RISICOAFSTANDEN!$O$20/8760*HLOOKUP(SUBSTITUTE(RISICOAFSTANDEN!$M$20,"KOPPEL","LOS"),'DATA PMR - ANTWERPEN'!$B$1:$GI$203,$A19,FALSE),RISICOAFSTANDEN!$N$20*RISICOAFSTANDEN!$O$20/8760*HLOOKUP(RISICOAFSTANDEN!$M$20,'DATA PMR - ANTWERPEN'!$B$1:$GI$203,$A19,FALSE)),"") ->  | R19: =IFERROR(IF(ISNUMBER(SEARCH("KOPPEL",RISICOAFSTANDEN!$M$21,1)),RISICOAFSTANDEN!$N$21*HLOOKUP(SUBSTITUTE(RISICOAFSTANDEN!$M$21,"SLANG","LEIDING"),'DATA PMR - ANTWERPEN'!$B$1:$GI$203,$A19,FALSE)+RISICOAFSTANDEN!$N$21*RISICOAFSTANDEN!$O$21/8760*HLOOKUP(SUBSTITUTE(RISICOAFSTANDEN!$M$21,"KOPPEL","LOS"),'DATA PMR - ANTWERPEN'!$B$1:$GI$203,$A19,FALSE),RISICOAFSTANDEN!$N$21*RISICOAFSTANDEN!$O$21/8760*HLOOKUP(RISICOAFSTANDEN!$M$21,'DATA PMR - ANTWERPEN'!$B$1:$GI$203,$A19,FALSE)),"") ->  | S19: =IFERROR(IF(ISNUMBER(SEARCH("KOPPEL",RISICOAFSTANDEN!$M$22,1)),RISICOAFSTANDEN!$N$22*HLOOKUP(SUBSTITUTE(RISICOAFSTANDEN!$M$22,"SLANG","LEIDING"),'DATA PMR - ANTWERPEN'!$B$1:$GI$203,$A19,FALSE)+RISICOAFSTANDEN!$N$22*RISICOAFSTANDEN!$O$22/8760*HLOOKUP(SUBSTITUTE(RISICOAFSTANDEN!$M$22,"KOPPEL","LOS"),'DATA PMR - ANTWERPEN'!$B$1:$GI$203,$A19,FALSE),RISICOAFSTANDEN!$N$22*RISICOAFSTANDEN!$O$22/8760*HLOOKUP(RISICOAFSTANDEN!$M$22,'DATA PMR - ANTWERPEN'!$B$1:$GI$203,$A19,FALSE)),"") ->  | T19: =IFERROR(IF(ISNUMBER(SEARCH("KOPPEL",RISICOAFSTANDEN!$M$23,1)),RISICOAFSTANDEN!$N$23*HLOOKUP(SUBSTITUTE(RISICOAFSTANDEN!$M$23,"SLANG","LEIDING"),'DATA PMR - ANTWERPEN'!$B$1:$GI$203,$A19,FALSE)+RISICOAFSTANDEN!$N$23*RISICOAFSTANDEN!$O$23/8760*HLOOKUP(SUBSTITUTE(RISICOAFSTANDEN!$M$23,"KOPPEL","LOS"),'DATA PMR - ANTWERPEN'!$B$1:$GI$203,$A19,FALSE),RISICOAFSTANDEN!$N$23*RISICOAFSTANDEN!$O$23/8760*HLOOKUP(RISICOAFSTANDEN!$M$23,'DATA PMR - ANTWERPEN'!$B$1:$GI$203,$A19,FALSE)),"") ->  | U19: =IFERROR(IF(ISNUMBER(SEARCH("KOPPEL",RISICOAFSTANDEN!$M$24,1)),RISICOAFSTANDEN!$N$24*HLOOKUP(SUBSTITUTE(RISICOAFSTANDEN!$M$24,"SLANG","LEIDING"),'DATA PMR - ANTWERPEN'!$B$1:$GI$203,$A19,FALSE)+RISICOAFSTANDEN!$N$24*RISICOAFSTANDEN!$O$24/8760*HLOOKUP(SUBSTITUTE(RISICOAFSTANDEN!$M$24,"KOPPEL","LOS"),'DATA PMR - ANTWERPEN'!$B$1:$GI$203,$A19,FALSE),RISICOAFSTANDEN!$N$24*RISICOAFSTANDEN!$O$24/8760*HLOOKUP(RISICOAFSTANDEN!$M$24,'DATA PMR - ANTWERPEN'!$B$1:$GI$203,$A19,FALSE)),"") ->  | V19: =IFERROR(IF(ISNUMBER(SEARCH("KOPPEL",RISICOAFSTANDEN!$M$25,1)),RISICOAFSTANDEN!$N$25*HLOOKUP(SUBSTITUTE(RISICOAFSTANDEN!$M$25,"SLANG","LEIDING"),'DATA PMR - ANTWERPEN'!$B$1:$GI$203,$A19,FALSE)+RISICOAFSTANDEN!$N$25*RISICOAFSTANDEN!$O$25/8760*HLOOKUP(SUBSTITUTE(RISICOAFSTANDEN!$M$25,"KOPPEL","LOS"),'DATA PMR - ANTWERPEN'!$B$1:$GI$203,$A19,FALSE),RISICOAFSTANDEN!$N$25*RISICOAFSTANDEN!$O$25/8760*HLOOKUP(RISICOAFSTANDEN!$M$25,'DATA PMR - ANTWERPEN'!$B$1:$GI$203,$A19,FALSE)),"") ->  | W19: =IFERROR(IF(ISNUMBER(SEARCH("KOPPEL",RISICOAFSTANDEN!$M$26,1)),RISICOAFSTANDEN!$N$26*HLOOKUP(SUBSTITUTE(RISICOAFSTANDEN!$M$26,"SLANG","LEIDING"),'DATA PMR - ANTWERPEN'!$B$1:$GI$203,$A19,FALSE)+RISICOAFSTANDEN!$N$26*RISICOAFSTANDEN!$O$26/8760*HLOOKUP(SUBSTITUTE(RISICOAFSTANDEN!$M$26,"KOPPEL","LOS"),'DATA PMR - ANTWERPEN'!$B$1:$GI$203,$A19,FALSE),RISICOAFSTANDEN!$N$26*RISICOAFSTANDEN!$O$26/8760*HLOOKUP(RISICOAFSTANDEN!$M$26,'DATA PMR - ANTWERPEN'!$B$1:$GI$203,$A19,FALSE)),"") ->  | X19: =IFERROR(IF(ISNUMBER(SEARCH("KOPPEL",RISICOAFSTANDEN!$M$27,1)),RISICOAFSTANDEN!$N$27*HLOOKUP(SUBSTITUTE(RISICOAFSTANDEN!$M$27,"SLANG","LEIDING"),'DATA PMR - ANTWERPEN'!$B$1:$GI$203,$A19,FALSE)+RISICOAFSTANDEN!$N$27*RISICOAFSTANDEN!$O$27/8760*HLOOKUP(SUBSTITUTE(RISICOAFSTANDEN!$M$27,"KOPPEL","LOS"),'DATA PMR - ANTWERPEN'!$B$1:$GI$203,$A19,FALSE),RISICOAFSTANDEN!$N$27*RISICOAFSTANDEN!$O$27/8760*HLOOKUP(RISICOAFSTANDEN!$M$27,'DATA PMR - ANTWERPEN'!$B$1:$GI$203,$A19,FALSE)),"") ->  | Y19: =IFERROR(IF(ISNUMBER(SEARCH("KOPPEL",RISICOAFSTANDEN!$M$28,1)),RISICOAFSTANDEN!$N$28*HLOOKUP(SUBSTITUTE(RISICOAFSTANDEN!$M$28,"SLANG","LEIDING"),'DATA PMR - ANTWERPEN'!$B$1:$GI$203,$A19,FALSE)+RISICOAFSTANDEN!$N$28*RISICOAFSTANDEN!$O$28/8760*HLOOKUP(SUBSTITUTE(RISICOAFSTANDEN!$M$28,"KOPPEL","LOS"),'DATA PMR - ANTWERPEN'!$B$1:$GI$203,$A19,FALSE),RISICOAFSTANDEN!$N$28*RISICOAFSTANDEN!$O$28/8760*HLOOKUP(RISICOAFSTANDEN!$M$28,'DATA PMR - ANTWERPEN'!$B$1:$GI$203,$A19,FALSE)),"") ->  | Z19: =IFERROR(IF(ISNUMBER(SEARCH("KOPPEL",RISICOAFSTANDEN!$M$29,1)),RISICOAFSTANDEN!$N$29*HLOOKUP(SUBSTITUTE(RISICOAFSTANDEN!$M$29,"SLANG","LEIDING"),'DATA PMR - ANTWERPEN'!$B$1:$GI$203,$A19,FALSE)+RISICOAFSTANDEN!$N$29*RISICOAFSTANDEN!$O$29/8760*HLOOKUP(SUBSTITUTE(RISICOAFSTANDEN!$M$29,"KOPPEL","LOS"),'DATA PMR - ANTWERPEN'!$B$1:$GI$203,$A19,FALSE),RISICOAFSTANDEN!$N$29*RISICOAFSTANDEN!$O$29/8760*HLOOKUP(RISICOAFSTANDEN!$M$29,'DATA PMR - ANTWERPEN'!$B$1:$GI$203,$A19,FALSE)),"") ->  | AA19: -7 | AB19: -6 | AC19: -9 | AD19: -7 | AE19: -7 | AF19: -8 | AG19: -7 | AH19: -8 | AI19: -9 | AJ19: -7 | AK19: -8 | AL19: -7 | AM19: n.b. | AN19: n.b. | AO19: n.b. | AP19: n.b. | AQ19: n.b. | AR19: n.b. | AS19: n.b. | AT19: n.b. | AU19: n.b. | AV19: n.b. | AW19: n.b. | AX19: n.b. | AY19: n.b. | AZ19: 17 | BB19: 3.724885176e-06 | BC19: -6 | BD19: 17
A20: 21 | B20: =IFERROR(IF(ISNUMBER(SEARCH("KOPPEL",RISICOAFSTANDEN!$M$5,1)),RISICOAFSTANDEN!$N$5*HLOOKUP(SUBSTITUTE(RISICOAFSTANDEN!$M$5,"SLANG","LEIDING"),'DATA PMR - ANTWERPEN'!$B$1:$GI$203,$A20,FALSE)+RISICOAFSTANDEN!$N$5*RISICOAFSTANDEN!$O$5/8760*HLOOKUP(SUBSTITUTE(RISICOAFSTANDEN!$M$5,"KOPPEL","LOS"),'DATA PMR - ANTWERPEN'!$B$1:$GI$203,$A20,FALSE),RISICOAFSTANDEN!$N$5*RISICOAFSTANDEN!$O$5/8760*HLOOKUP(RISICOAFSTANDEN!$M$5,'DATA PMR - ANTWERPEN'!$B$1:$GI$203,$A20,FALSE)),"") -> 3.366560815e-07 | C20: =IFERROR(IF(ISNUMBER(SEARCH("KOPPEL",RISICOAFSTANDEN!$M$6,1)),RISICOAFSTANDEN!$N$6*HLOOKUP(SUBSTITUTE(RISICOAFSTANDEN!$M$6,"SLANG","LEIDING"),'DATA PMR - ANTWERPEN'!$B$1:$GI$203,$A20,FALSE)+RISICOAFSTANDEN!$N$6*RISICOAFSTANDEN!$O$6/8760*HLOOKUP(SUBSTITUTE(RISICOAFSTANDEN!$M$6,"KOPPEL","LOS"),'DATA PMR - ANTWERPEN'!$B$1:$GI$203,$A20,FALSE),RISICOAFSTANDEN!$N$6*RISICOAFSTANDEN!$O$6/8760*HLOOKUP(RISICOAFSTANDEN!$M$6,'DATA PMR - ANTWERPEN'!$B$1:$GI$203,$A20,FALSE)),"") -> 1.31811813e-06 | D20: =IFERROR(IF(ISNUMBER(SEARCH("KOPPEL",RISICOAFSTANDEN!$M$7,1)),RISICOAFSTANDEN!$N$7*HLOOKUP(SUBSTITUTE(RISICOAFSTANDEN!$M$7,"SLANG","LEIDING"),'DATA PMR - ANTWERPEN'!$B$1:$GI$203,$A20,FALSE)+RISICOAFSTANDEN!$N$7*RISICOAFSTANDEN!$O$7/8760*HLOOKUP(SUBSTITUTE(RISICOAFSTANDEN!$M$7,"KOPPEL","LOS"),'DATA PMR - ANTWERPEN'!$B$1:$GI$203,$A20,FALSE),RISICOAFSTANDEN!$N$7*RISICOAFSTANDEN!$O$7/8760*HLOOKUP(RISICOAFSTANDEN!$M$7,'DATA PMR - ANTWERPEN'!$B$1:$GI$203,$A20,FALSE)),"") -> 8.313073951e-09 | E20: =IFERROR(IF(ISNUMBER(SEARCH("KOPPEL",RISICOAFSTANDEN!$M$8,1)),RISICOAFSTANDEN!$N$8*HLOOKUP(SUBSTITUTE(RISICOAFSTANDEN!$M$8,"SLANG","LEIDING"),'DATA PMR - ANTWERPEN'!$B$1:$GI$203,$A20,FALSE)+RISICOAFSTANDEN!$N$8*RISICOAFSTANDEN!$O$8/8760*HLOOKUP(SUBSTITUTE(RISICOAFSTANDEN!$M$8,"KOPPEL","LOS"),'DATA PMR - ANTWERPEN'!$B$1:$GI$203,$A20,FALSE),RISICOAFSTANDEN!$N$8*RISICOAFSTANDEN!$O$8/8760*HLOOKUP(RISICOAFSTANDEN!$M$8,'DATA PMR - ANTWERPEN'!$B$1:$GI$203,$A20,FALSE)),"") -> 9.843117778e-08 | F20: =IFERROR(IF(ISNUMBER(SEARCH("KOPPEL",RISICOAFSTANDEN!$M$9,1)),RISICOAFSTANDEN!$N$9*HLOOKUP(SUBSTITUTE(RISICOAFSTANDEN!$M$9,"SLANG","LEIDING"),'DATA PMR - ANTWERPEN'!$B$1:$GI$203,$A20,FALSE)+RISICOAFSTANDEN!$N$9*RISICOAFSTANDEN!$O$9/8760*HLOOKUP(SUBSTITUTE(RISICOAFSTANDEN!$M$9,"KOPPEL","LOS"),'DATA PMR - ANTWERPEN'!$B$1:$GI$203,$A20,FALSE),RISICOAFSTANDEN!$N$9*RISICOAFSTANDEN!$O$9/8760*HLOOKUP(RISICOAFSTANDEN!$M$9,'DATA PMR - ANTWERPEN'!$B$1:$GI$203,$A20,FALSE)),"") -> 1.701451993e-07 | G20: =IFERROR(IF(ISNUMBER(SEARCH("KOPPEL",RISICOAFSTANDEN!$M$10,1)),RISICOAFSTANDEN!$N$10*HLOOKUP(SUBSTITUTE(RISICOAFSTANDEN!$M$10,"SLANG","LEIDING"),'DATA PMR - ANTWERPEN'!$B$1:$GI$203,$A20,FALSE)+RISICOAFSTANDEN!$N$10*RISICOAFSTANDEN!$O$10/8760*HLOOKUP(SUBSTITUTE(RISICOAFSTANDEN!$M$10,"KOPPEL","LOS"),'DATA PMR - ANTWERPEN'!$B$1:$GI$203,$A20,FALSE),RISICOAFSTANDEN!$N$10*RISICOAFSTANDEN!$O$10/8760*HLOOKUP(RISICOAFSTANDEN!$M$10,'DATA PMR - ANTWERPEN'!$B$1:$GI$203,$A20,FALSE)),"") -> 1.184132991e-08 | H20: =IFERROR(IF(ISNUMBER(SEARCH("KOPPEL",RISICOAFSTANDEN!$M$11,1)),RISICOAFSTANDEN!$N$11*HLOOKUP(SUBSTITUTE(RISICOAFSTANDEN!$M$11,"SLANG","LEIDING"),'DATA PMR - ANTWERPEN'!$B$1:$GI$203,$A20,FALSE)+RISICOAFSTANDEN!$N$11*RISICOAFSTANDEN!$O$11/8760*HLOOKUP(SUBSTITUTE(RISICOAFSTANDEN!$M$11,"KOPPEL","LOS"),'DATA PMR - ANTWERPEN'!$B$1:$GI$203,$A20,FALSE),RISICOAFSTANDEN!$N$11*RISICOAFSTANDEN!$O$11/8760*HLOOKUP(RISICOAFSTANDEN!$M$11,'DATA PMR - ANTWERPEN'!$B$1:$GI$203,$A20,FALSE)),"") -> 2.877708892e-07 | I20: =IFERROR(IF(ISNUMBER(SEARCH("KOPPEL",RISICOAFSTANDEN!$M$12,1)),RISICOAFSTANDEN!$N$12*HLOOKUP(SUBSTITUTE(RISICOAFSTANDEN!$M$12,"SLANG","LEIDING"),'DATA PMR - ANTWERPEN'!$B$1:$GI$203,$A20,FALSE)+RISICOAFSTANDEN!$N$12*RISICOAFSTANDEN!$O$12/8760*HLOOKUP(SUBSTITUTE(RISICOAFSTANDEN!$M$12,"KOPPEL","LOS"),'DATA PMR - ANTWERPEN'!$B$1:$GI$203,$A20,FALSE),RISICOAFSTANDEN!$N$12*RISICOAFSTANDEN!$O$12/8760*HLOOKUP(RISICOAFSTANDEN!$M$12,'DATA PMR - ANTWERPEN'!$B$1:$GI$203,$A20,FALSE)),"") -> 3.402903985e-08 | J20: =IFERROR(IF(ISNUMBER(SEARCH("KOPPEL",RISICOAFSTANDEN!$M$13,1)),RISICOAFSTANDEN!$N$13*HLOOKUP(SUBSTITUTE(RISICOAFSTANDEN!$M$13,"SLANG","LEIDING"),'DATA PMR - ANTWERPEN'!$B$1:$GI$203,$A20,FALSE)+RISICOAFSTANDEN!$N$13*RISICOAFSTANDEN!$O$13/8760*HLOOKUP(SUBSTITUTE(RISICOAFSTANDEN!$M$13,"KOPPEL","LOS"),'DATA PMR - ANTWERPEN'!$B$1:$GI$203,$A20,FALSE),RISICOAFSTANDEN!$N$13*RISICOAFSTANDEN!$O$13/8760*HLOOKUP(RISICOAFSTANDEN!$M$13,'DATA PMR - ANTWERPEN'!$B$1:$GI$203,$A20,FALSE)),"") -> 6.418826944e-09 | K20: =IFERROR(IF(ISNUMBER(SEARCH("KOPPEL",RISICOAFSTANDEN!$M$14,1)),RISICOAFSTANDEN!$N$14*HLOOKUP(SUBSTITUTE(RISICOAFSTANDEN!$M$14,"SLANG","LEIDING"),'DATA PMR - ANTWERPEN'!$B$1:$GI$203,$A20,FALSE)+RISICOAFSTANDEN!$N$14*RISICOAFSTANDEN!$O$14/8760*HLOOKUP(SUBSTITUTE(RISICOAFSTANDEN!$M$14,"KOPPEL","LOS"),'DATA PMR - ANTWERPEN'!$B$1:$GI$203,$A20,FALSE),RISICOAFSTANDEN!$N$14*RISICOAFSTANDEN!$O$14/8760*HLOOKUP(RISICOAFSTANDEN!$M$14,'DATA PMR - ANTWERPEN'!$B$1:$GI$203,$A20,FALSE)),"") -> 4.617587531e-07 | L20: =IFERROR(IF(ISNUMBER(SEARCH("KOPPEL",RISICOAFSTANDEN!$M$15,1)),RISICOAFSTANDEN!$N$15*HLOOKUP(SUBSTITUTE(RISICOAFSTANDEN!$M$15,"SLANG","LEIDING"),'DATA PMR - ANTWERPEN'!$B$1:$GI$203,$A20,FALSE)+RISICOAFSTANDEN!$N$15*RISICOAFSTANDEN!$O$15/8760*HLOOKUP(SUBSTITUTE(RISICOAFSTANDEN!$M$15,"KOPPEL","LOS"),'DATA PMR - ANTWERPEN'!$B$1:$GI$203,$A20,FALSE),RISICOAFSTANDEN!$N$15*RISICOAFSTANDEN!$O$15/8760*HLOOKUP(RISICOAFSTANDEN!$M$15,'DATA PMR - ANTWERPEN'!$B$1:$GI$203,$A20,FALSE)),"") -> 9.628240416e-09 | M20: =IFERROR(IF(ISNUMBER(SEARCH("KOPPEL",RISICOAFSTANDEN!$M$16,1)),RISICOAFSTANDEN!$N$16*HLOOKUP(SUBSTITUTE(RISICOAFSTANDEN!$M$16,"SLANG","LEIDING"),'DATA PMR - ANTWERPEN'!$B$1:$GI$203,$A20,FALSE)+RISICOAFSTANDEN!$N$16*RISICOAFSTANDEN!$O$16/8760*HLOOKUP(SUBSTITUTE(RISICOAFSTANDEN!$M$16,"KOPPEL","LOS"),'DATA PMR - ANTWERPEN'!$B$1:$GI$203,$A20,FALSE),RISICOAFSTANDEN!$N$16*RISICOAFSTANDEN!$O$16/8760*HLOOKUP(RISICOAFSTANDEN!$M$16,'DATA PMR - ANTWERPEN'!$B$1:$GI$203,$A20,FALSE)),"") -> 1.994959785e-07 | N20: =IFERROR(IF(ISNUMBER(SEARCH("KOPPEL",RISICOAFSTANDEN!$M$17,1)),RISICOAFSTANDEN!$N$17*HLOOKUP(SUBSTITUTE(RISICOAFSTANDEN!$M$17,"SLANG","LEIDING"),'DATA PMR - ANTWERPEN'!$B$1:$GI$203,$A20,FALSE)+RISICOAFSTANDEN!$N$17*RISICOAFSTANDEN!$O$17/8760*HLOOKUP(SUBSTITUTE(RISICOAFSTANDEN!$M$17,"KOPPEL","LOS"),'DATA PMR - ANTWERPEN'!$B$1:$GI$203,$A20,FALSE),RISICOAFSTANDEN!$N$17*RISICOAFSTANDEN!$O$17/8760*HLOOKUP(RISICOAFSTANDEN!$M$17,'DATA PMR - ANTWERPEN'!$B$1:$GI$203,$A20,FALSE)),"") ->  | O20: =IFERROR(IF(ISNUMBER(SEARCH("KOPPEL",RISICOAFSTANDEN!$M$18,1)),RISICOAFSTANDEN!$N$18*HLOOKUP(SUBSTITUTE(RISICOAFSTANDEN!$M$18,"SLANG","LEIDING"),'DATA PMR - ANTWERPEN'!$B$1:$GI$203,$A20,FALSE)+RISICOAFSTANDEN!$N$18*RISICOAFSTANDEN!$O$18/8760*HLOOKUP(SUBSTITUTE(RISICOAFSTANDEN!$M$18,"KOPPEL","LOS"),'DATA PMR - ANTWERPEN'!$B$1:$GI$203,$A20,FALSE),RISICOAFSTANDEN!$N$18*RISICOAFSTANDEN!$O$18/8760*HLOOKUP(RISICOAFSTANDEN!$M$18,'DATA PMR - ANTWERPEN'!$B$1:$GI$203,$A20,FALSE)),"") ->  | P20: =IFERROR(IF(ISNUMBER(SEARCH("KOPPEL",RISICOAFSTANDEN!$M$19,1)),RISICOAFSTANDEN!$N$19*HLOOKUP(SUBSTITUTE(RISICOAFSTANDEN!$M$19,"SLANG","LEIDING"),'DATA PMR - ANTWERPEN'!$B$1:$GI$203,$A20,FALSE)+RISICOAFSTANDEN!$N$19*RISICOAFSTANDEN!$O$19/8760*HLOOKUP(SUBSTITUTE(RISICOAFSTANDEN!$M$19,"KOPPEL","LOS"),'DATA PMR - ANTWERPEN'!$B$1:$GI$203,$A20,FALSE),RISICOAFSTANDEN!$N$19*RISICOAFSTANDEN!$O$19/8760*HLOOKUP(RISICOAFSTANDEN!$M$19,'DATA PMR - ANTWERPEN'!$B$1:$GI$203,$A20,FALSE)),"") ->  | Q20: =IFERROR(IF(ISNUMBER(SEARCH("KOPPEL",RISICOAFSTANDEN!$M$20,1)),RISICOAFSTANDEN!$N$20*HLOOKUP(SUBSTITUTE(RISICOAFSTANDEN!$M$20,"SLANG","LEIDING"),'DATA PMR - ANTWERPEN'!$B$1:$GI$203,$A20,FALSE)+RISICOAFSTANDEN!$N$20*RISICOAFSTANDEN!$O$20/8760*HLOOKUP(SUBSTITUTE(RISICOAFSTANDEN!$M$20,"KOPPEL","LOS"),'DATA PMR - ANTWERPEN'!$B$1:$GI$203,$A20,FALSE),RISICOAFSTANDEN!$N$20*RISICOAFSTANDEN!$O$20/8760*HLOOKUP(RISICOAFSTANDEN!$M$20,'DATA PMR - ANTWERPEN'!$B$1:$GI$203,$A20,FALSE)),"") ->  | R20: =IFERROR(IF(ISNUMBER(SEARCH("KOPPEL",RISICOAFSTANDEN!$M$21,1)),RISICOAFSTANDEN!$N$21*HLOOKUP(SUBSTITUTE(RISICOAFSTANDEN!$M$21,"SLANG","LEIDING"),'DATA PMR - ANTWERPEN'!$B$1:$GI$203,$A20,FALSE)+RISICOAFSTANDEN!$N$21*RISICOAFSTANDEN!$O$21/8760*HLOOKUP(SUBSTITUTE(RISICOAFSTANDEN!$M$21,"KOPPEL","LOS"),'DATA PMR - ANTWERPEN'!$B$1:$GI$203,$A20,FALSE),RISICOAFSTANDEN!$N$21*RISICOAFSTANDEN!$O$21/8760*HLOOKUP(RISICOAFSTANDEN!$M$21,'DATA PMR - ANTWERPEN'!$B$1:$GI$203,$A20,FALSE)),"") ->  | S20: =IFERROR(IF(ISNUMBER(SEARCH("KOPPEL",RISICOAFSTANDEN!$M$22,1)),RISICOAFSTANDEN!$N$22*HLOOKUP(SUBSTITUTE(RISICOAFSTANDEN!$M$22,"SLANG","LEIDING"),'DATA PMR - ANTWERPEN'!$B$1:$GI$203,$A20,FALSE)+RISICOAFSTANDEN!$N$22*RISICOAFSTANDEN!$O$22/8760*HLOOKUP(SUBSTITUTE(RISICOAFSTANDEN!$M$22,"KOPPEL","LOS"),'DATA PMR - ANTWERPEN'!$B$1:$GI$203,$A20,FALSE),RISICOAFSTANDEN!$N$22*RISICOAFSTANDEN!$O$22/8760*HLOOKUP(RISICOAFSTANDEN!$M$22,'DATA PMR - ANTWERPEN'!$B$1:$GI$203,$A20,FALSE)),"") ->  | T20: =IFERROR(IF(ISNUMBER(SEARCH("KOPPEL",RISICOAFSTANDEN!$M$23,1)),RISICOAFSTANDEN!$N$23*HLOOKUP(SUBSTITUTE(RISICOAFSTANDEN!$M$23,"SLANG","LEIDING"),'DATA PMR - ANTWERPEN'!$B$1:$GI$203,$A20,FALSE)+RISICOAFSTANDEN!$N$23*RISICOAFSTANDEN!$O$23/8760*HLOOKUP(SUBSTITUTE(RISICOAFSTANDEN!$M$23,"KOPPEL","LOS"),'DATA PMR - ANTWERPEN'!$B$1:$GI$203,$A20,FALSE),RISICOAFSTANDEN!$N$23*RISICOAFSTANDEN!$O$23/8760*HLOOKUP(RISICOAFSTANDEN!$M$23,'DATA PMR - ANTWERPEN'!$B$1:$GI$203,$A20,FALSE)),"") ->  | U20: =IFERROR(IF(ISNUMBER(SEARCH("KOPPEL",RISICOAFSTANDEN!$M$24,1)),RISICOAFSTANDEN!$N$24*HLOOKUP(SUBSTITUTE(RISICOAFSTANDEN!$M$24,"SLANG","LEIDING"),'DATA PMR - ANTWERPEN'!$B$1:$GI$203,$A20,FALSE)+RISICOAFSTANDEN!$N$24*RISICOAFSTANDEN!$O$24/8760*HLOOKUP(SUBSTITUTE(RISICOAFSTANDEN!$M$24,"KOPPEL","LOS"),'DATA PMR - ANTWERPEN'!$B$1:$GI$203,$A20,FALSE),RISICOAFSTANDEN!$N$24*RISICOAFSTANDEN!$O$24/8760*HLOOKUP(RISICOAFSTANDEN!$M$24,'DATA PMR - ANTWERPEN'!$B$1:$GI$203,$A20,FALSE)),"") ->  | V20: =IFERROR(IF(ISNUMBER(SEARCH("KOPPEL",RISICOAFSTANDEN!$M$25,1)),RISICOAFSTANDEN!$N$25*HLOOKUP(SUBSTITUTE(RISICOAFSTANDEN!$M$25,"SLANG","LEIDING"),'DATA PMR - ANTWERPEN'!$B$1:$GI$203,$A20,FALSE)+RISICOAFSTANDEN!$N$25*RISICOAFSTANDEN!$O$25/8760*HLOOKUP(SUBSTITUTE(RISICOAFSTANDEN!$M$25,"KOPPEL","LOS"),'DATA PMR - ANTWERPEN'!$B$1:$GI$203,$A20,FALSE),RISICOAFSTANDEN!$N$25*RISICOAFSTANDEN!$O$25/8760*HLOOKUP(RISICOAFSTANDEN!$M$25,'DATA PMR - ANTWERPEN'!$B$1:$GI$203,$A20,FALSE)),"") ->  | W20: =IFERROR(IF(ISNUMBER(SEARCH("KOPPEL",RISICOAFSTANDEN!$M$26,1)),RISICOAFSTANDEN!$N$26*HLOOKUP(SUBSTITUTE(RISICOAFSTANDEN!$M$26,"SLANG","LEIDING"),'DATA PMR - ANTWERPEN'!$B$1:$GI$203,$A20,FALSE)+RISICOAFSTANDEN!$N$26*RISICOAFSTANDEN!$O$26/8760*HLOOKUP(SUBSTITUTE(RISICOAFSTANDEN!$M$26,"KOPPEL","LOS"),'DATA PMR - ANTWERPEN'!$B$1:$GI$203,$A20,FALSE),RISICOAFSTANDEN!$N$26*RISICOAFSTANDEN!$O$26/8760*HLOOKUP(RISICOAFSTANDEN!$M$26,'DATA PMR - ANTWERPEN'!$B$1:$GI$203,$A20,FALSE)),"") ->  | X20: =IFERROR(IF(ISNUMBER(SEARCH("KOPPEL",RISICOAFSTANDEN!$M$27,1)),RISICOAFSTANDEN!$N$27*HLOOKUP(SUBSTITUTE(RISICOAFSTANDEN!$M$27,"SLANG","LEIDING"),'DATA PMR - ANTWERPEN'!$B$1:$GI$203,$A20,FALSE)+RISICOAFSTANDEN!$N$27*RISICOAFSTANDEN!$O$27/8760*HLOOKUP(SUBSTITUTE(RISICOAFSTANDEN!$M$27,"KOPPEL","LOS"),'DATA PMR - ANTWERPEN'!$B$1:$GI$203,$A20,FALSE),RISICOAFSTANDEN!$N$27*RISICOAFSTANDEN!$O$27/8760*HLOOKUP(RISICOAFSTANDEN!$M$27,'DATA PMR - ANTWERPEN'!$B$1:$GI$203,$A20,FALSE)),"") ->  | Y20: =IFERROR(IF(ISNUMBER(SEARCH("KOPPEL",RISICOAFSTANDEN!$M$28,1)),RISICOAFSTANDEN!$N$28*HLOOKUP(SUBSTITUTE(RISICOAFSTANDEN!$M$28,"SLANG","LEIDING"),'DATA PMR - ANTWERPEN'!$B$1:$GI$203,$A20,FALSE)+RISICOAFSTANDEN!$N$28*RISICOAFSTANDEN!$O$28/8760*HLOOKUP(SUBSTITUTE(RISICOAFSTANDEN!$M$28,"KOPPEL","LOS"),'DATA PMR - ANTWERPEN'!$B$1:$GI$203,$A20,FALSE),RISICOAFSTANDEN!$N$28*RISICOAFSTANDEN!$O$28/8760*HLOOKUP(RISICOAFSTANDEN!$M$28,'DATA PMR - ANTWERPEN'!$B$1:$GI$203,$A20,FALSE)),"") ->  | Z20: =IFERROR(IF(ISNUMBER(SEARCH("KOPPEL",RISICOAFSTANDEN!$M$29,1)),RISICOAFSTANDEN!$N$29*HLOOKUP(SUBSTITUTE(RISICOAFSTANDEN!$M$29,"SLANG","LEIDING"),'DATA PMR - ANTWERPEN'!$B$1:$GI$203,$A20,FALSE)+RISICOAFSTANDEN!$N$29*RISICOAFSTANDEN!$O$29/8760*HLOOKUP(SUBSTITUTE(RISICOAFSTANDEN!$M$29,"KOPPEL","LOS"),'DATA PMR - ANTWERPEN'!$B$1:$GI$203,$A20,FALSE),RISICOAFSTANDEN!$N$29*RISICOAFSTANDEN!$O$29/8760*HLOOKUP(RISICOAFSTANDEN!$M$29,'DATA PMR - ANTWERPEN'!$B$1:$GI$203,$A20,FALSE)),"") ->  | AA20: -7 | AB20: -6 | AC20: -9 | AD20: -8 | AE20: -7 | AF20: -8 | AG20: -7 | AH20: -8 | AI20: -9 | AJ20: -7 | AK20: -9 | AL20: -7 | AM20: n.b. | AN20: n.b. | AO20: n.b. | AP20: n.b. | AQ20: n.b. | AR20: n.b. | AS20: n.b. | AT20: n.b. | AU20: n.b. | AV20: n.b. | AW20: n.b. | AX20: n.b. | AY20: n.b. | AZ20: 18 | BB20: 2.94260672e-06 | BC20: -6 | BD20: 18
A21: 22 | B21: =IFERROR(IF(ISNUMBER(SEARCH("KOPPEL",RISICOAFSTANDEN!$M$5,1)),RISICOAFSTANDEN!$N$5*HLOOKUP(SUBSTITUTE(RISICOAFSTANDEN!$M$5,"SLANG","LEIDING"),'DATA PMR - ANTWERPEN'!$B$1:$GI$203,$A21,FALSE)+RISICOAFSTANDEN!$N$5*RISICOAFSTANDEN!$O$5/8760*HLOOKUP(SUBSTITUTE(RISICOAFSTANDEN!$M$5,"KOPPEL","LOS"),'DATA PMR - ANTWERPEN'!$B$1:$GI$203,$A21,FALSE),RISICOAFSTANDEN!$N$5*RISICOAFSTANDEN!$O$5/8760*HLOOKUP(RISICOAFSTANDEN!$M$5,'DATA PMR - ANTWERPEN'!$B$1:$GI$203,$A21,FALSE)),"") -> 3.027561424e-07 | C21: =IFERROR(IF(ISNUMBER(SEARCH("KOPPEL",RISICOAFSTANDEN!$M$6,1)),RISICOAFSTANDEN!$N$6*HLOOKUP(SUBSTITUTE(RISICOAFSTANDEN!$M$6,"SLANG","LEIDING"),'DATA PMR - ANTWERPEN'!$B$1:$GI$203,$A21,FALSE)+RISICOAFSTANDEN!$N$6*RISICOAFSTANDEN!$O$6/8760*HLOOKUP(SUBSTITUTE(RISICOAFSTANDEN!$M$6,"KOPPEL","LOS"),'DATA PMR - ANTWERPEN'!$B$1:$GI$203,$A21,FALSE),RISICOAFSTANDEN!$N$6*RISICOAFSTANDEN!$O$6/8760*HLOOKUP(RISICOAFSTANDEN!$M$6,'DATA PMR - ANTWERPEN'!$B$1:$GI$203,$A21,FALSE)),"") -> 1.1242828e-06 | D21: =IFERROR(IF(ISNUMBER(SEARCH("KOPPEL",RISICOAFSTANDEN!$M$7,1)),RISICOAFSTANDEN!$N$7*HLOOKUP(SUBSTITUTE(RISICOAFSTANDEN!$M$7,"SLANG","LEIDING"),'DATA PMR - ANTWERPEN'!$B$1:$GI$203,$A21,FALSE)+RISICOAFSTANDEN!$N$7*RISICOAFSTANDEN!$O$7/8760*HLOOKUP(SUBSTITUTE(RISICOAFSTANDEN!$M$7,"KOPPEL","LOS"),'DATA PMR - ANTWERPEN'!$B$1:$GI$203,$A21,FALSE),RISICOAFSTANDEN!$N$7*RISICOAFSTANDEN!$O$7/8760*HLOOKUP(RISICOAFSTANDEN!$M$7,'DATA PMR - ANTWERPEN'!$B$1:$GI$203,$A21,FALSE)),"") -> 7.488194724e-09 | E21: =IFERROR(IF(ISNUMBER(SEARCH("KOPPEL",RISICOAFSTANDEN!$M$8,1)),RISICOAFSTANDEN!$N$8*HLOOKUP(SUBSTITUTE(RISICOAFSTANDEN!$M$8,"SLANG","LEIDING"),'DATA PMR - ANTWERPEN'!$B$1:$GI$203,$A21,FALSE)+RISICOAFSTANDEN!$N$8*RISICOAFSTANDEN!$O$8/8760*HLOOKUP(SUBSTITUTE(RISICOAFSTANDEN!$M$8,"KOPPEL","LOS"),'DATA PMR - ANTWERPEN'!$B$1:$GI$203,$A21,FALSE),RISICOAFSTANDEN!$N$8*RISICOAFSTANDEN!$O$8/8760*HLOOKUP(RISICOAFSTANDEN!$M$8,'DATA PMR - ANTWERPEN'!$B$1:$GI$203,$A21,FALSE)),"") -> 5.628476588e-08 | F21: =IFERROR(IF(ISNUMBER(SEARCH("KOPPEL",RISICOAFSTANDEN!$M$9,1)),RISICOAFSTANDEN!$N$9*HLOOKUP(SUBSTITUTE(RISICOAFSTANDEN!$M$9,"SLANG","LEIDING"),'DATA PMR - ANTWERPEN'!$B$1:$GI$203,$A21,FALSE)+RISICOAFSTANDEN!$N$9*RISICOAFSTANDEN!$O$9/8760*HLOOKUP(SUBSTITUTE(RISICOAFSTANDEN!$M$9,"KOPPEL","LOS"),'DATA PMR - ANTWERPEN'!$B$1:$GI$203,$A21,FALSE),RISICOAFSTANDEN!$N$9*RISICOAFSTANDEN!$O$9/8760*HLOOKUP(RISICOAFSTANDEN!$M$9,'DATA PMR - ANTWERPEN'!$B$1:$GI$203,$A21,FALSE)),"") -> 1.426136566e-07 | G21: =IFERROR(IF(ISNUMBER(SEARCH("KOPPEL",RISICOAFSTANDEN!$M$10,1)),RISICOAFSTANDEN!$N$10*HLOOKUP(SUBSTITUTE(RISICOAFSTANDEN!$M$10,"SLANG","LEIDING"),'DATA PMR - ANTWERPEN'!$B$1:$GI$203,$A21,FALSE)+RISICOAFSTANDEN!$N$10*RISICOAFSTANDEN!$O$10/8760*HLOOKUP(SUBSTITUTE(RISICOAFSTANDEN!$M$10,"KOPPEL","LOS"),'DATA PMR - ANTWERPEN'!$B$1:$GI$203,$A21,FALSE),RISICOAFSTANDEN!$N$10*RISICOAFSTANDEN!$O$10/8760*HLOOKUP(RISICOAFSTANDEN!$M$10,'DATA PMR - ANTWERPEN'!$B$1:$GI$203,$A21,FALSE)),"") -> 8.598386383e-09 | H21: =IFERROR(IF(ISNUMBER(SEARCH("KOPPEL",RISICOAFSTANDEN!$M$11,1)),RISICOAFSTANDEN!$N$11*HLOOKUP(SUBSTITUTE(RISICOAFSTANDEN!$M$11,"SLANG","LEIDING"),'DATA PMR - ANTWERPEN'!$B$1:$GI$203,$A21,FALSE)+RISICOAFSTANDEN!$N$11*RISICOAFSTANDEN!$O$11/8760*HLOOKUP(SUBSTITUTE(RISICOAFSTANDEN!$M$11,"KOPPEL","LOS"),'DATA PMR - ANTWERPEN'!$B$1:$GI$203,$A21,FALSE),RISICOAFSTANDEN!$N$11*RISICOAFSTANDEN!$O$11/8760*HLOOKUP(RISICOAFSTANDEN!$M$11,'DATA PMR - ANTWERPEN'!$B$1:$GI$203,$A21,FALSE)),"") -> 2.323807538e-07 | I21: =IFERROR(IF(ISNUMBER(SEARCH("KOPPEL",RISICOAFSTANDEN!$M$12,1)),RISICOAFSTANDEN!$N$12*HLOOKUP(SUBSTITUTE(RISICOAFSTANDEN!$M$12,"SLANG","LEIDING"),'DATA PMR - ANTWERPEN'!$B$1:$GI$203,$A21,FALSE)+RISICOAFSTANDEN!$N$12*RISICOAFSTANDEN!$O$12/8760*HLOOKUP(SUBSTITUTE(RISICOAFSTANDEN!$M$12,"KOPPEL","LOS"),'DATA PMR - ANTWERPEN'!$B$1:$GI$203,$A21,FALSE),RISICOAFSTANDEN!$N$12*RISICOAFSTANDEN!$O$12/8760*HLOOKUP(RISICOAFSTANDEN!$M$12,'DATA PMR - ANTWERPEN'!$B$1:$GI$203,$A21,FALSE)),"") -> 2.852273132e-08 | J21: =IFERROR(IF(ISNUMBER(SEARCH("KOPPEL",RISICOAFSTANDEN!$M$13,1)),RISICOAFSTANDEN!$N$13*HLOOKUP(SUBSTITUTE(RISICOAFSTANDEN!$M$13,"SLANG","LEIDING"),'DATA PMR - ANTWERPEN'!$B$1:$GI$203,$A21,FALSE)+RISICOAFSTANDEN!$N$13*RISICOAFSTANDEN!$O$13/8760*HLOOKUP(SUBSTITUTE(RISICOAFSTANDEN!$M$13,"KOPPEL","LOS"),'DATA PMR - ANTWERPEN'!$B$1:$GI$203,$A21,FALSE),RISICOAFSTANDEN!$N$13*RISICOAFSTANDEN!$O$13/8760*HLOOKUP(RISICOAFSTANDEN!$M$13,'DATA PMR - ANTWERPEN'!$B$1:$GI$203,$A21,FALSE)),"") -> 5.53946726e-09 | K21: =IFERROR(IF(ISNUMBER(SEARCH("KOPPEL",RISICOAFSTANDEN!$M$14,1)),RISICOAFSTANDEN!$N$14*HLOOKUP(SUBSTITUTE(RISICOAFSTANDEN!$M$14,"SLANG","LEIDING"),'DATA PMR - ANTWERPEN'!$B$1:$GI$203,$A21,FALSE)+RISICOAFSTANDEN!$N$14*RISICOAFSTANDEN!$O$14/8760*HLOOKUP(SUBSTITUTE(RISICOAFSTANDEN!$M$14,"KOPPEL","LOS"),'DATA PMR - ANTWERPEN'!$B$1:$GI$203,$A21,FALSE),RISICOAFSTANDEN!$N$14*RISICOAFSTANDEN!$O$14/8760*HLOOKUP(RISICOAFSTANDEN!$M$14,'DATA PMR - ANTWERPEN'!$B$1:$GI$203,$A21,FALSE)),"") -> 3.96562271e-07 | L21: =IFERROR(IF(ISNUMBER(SEARCH("KOPPEL",RISICOAFSTANDEN!$M$15,1)),RISICOAFSTANDEN!$N$15*HLOOKUP(SUBSTITUTE(RISICOAFSTANDEN!$M$15,"SLANG","LEIDING"),'DATA PMR - ANTWERPEN'!$B$1:$GI$203,$A21,FALSE)+RISICOAFSTANDEN!$N$15*RISICOAFSTANDEN!$O$15/8760*HLOOKUP(SUBSTITUTE(RISICOAFSTANDEN!$M$15,"KOPPEL","LOS"),'DATA PMR - ANTWERPEN'!$B$1:$GI$203,$A21,FALSE),RISICOAFSTANDEN!$N$15*RISICOAFSTANDEN!$O$15/8760*HLOOKUP(RISICOAFSTANDEN!$M$15,'DATA PMR - ANTWERPEN'!$B$1:$GI$203,$A21,FALSE)),"") -> 8.309200889e-09 | M21: =IFERROR(IF(ISNUMBER(SEARCH("KOPPEL",RISICOAFSTANDEN!$M$16,1)),RISICOAFSTANDEN!$N$16*HLOOKUP(SUBSTITUTE(RISICOAFSTANDEN!$M$16,"SLANG","LEIDING"),'DATA PMR - ANTWERPEN'!$B$1:$GI$203,$A21,FALSE)+RISICOAFSTANDEN!$N$16*RISICOAFSTANDEN!$O$16/8760*HLOOKUP(SUBSTITUTE(RISICOAFSTANDEN!$M$16,"KOPPEL","LOS"),'DATA PMR - ANTWERPEN'!$B$1:$GI$203,$A21,FALSE),RISICOAFSTANDEN!$N$16*RISICOAFSTANDEN!$O$16/8760*HLOOKUP(RISICOAFSTANDEN!$M$16,'DATA PMR - ANTWERPEN'!$B$1:$GI$203,$A21,FALSE)),"") -> 1.611120644e-07 | N21: =IFERROR(IF(ISNUMBER(SEARCH("KOPPEL",RISICOAFSTANDEN!$M$17,1)),RISICOAFSTANDEN!$N$17*HLOOKUP(SUBSTITUTE(RISICOAFSTANDEN!$M$17,"SLANG","LEIDING"),'DATA PMR - ANTWERPEN'!$B$1:$GI$203,$A21,FALSE)+RISICOAFSTANDEN!$N$17*RISICOAFSTANDEN!$O$17/8760*HLOOKUP(SUBSTITUTE(RISICOAFSTANDEN!$M$17,"KOPPEL","LOS"),'DATA PMR - ANTWERPEN'!$B$1:$GI$203,$A21,FALSE),RISICOAFSTANDEN!$N$17*RISICOAFSTANDEN!$O$17/8760*HLOOKUP(RISICOAFSTANDEN!$M$17,'DATA PMR - ANTWERPEN'!$B$1:$GI$203,$A21,FALSE)),"") ->  | O21: =IFERROR(IF(ISNUMBER(SEARCH("KOPPEL",RISICOAFSTANDEN!$M$18,1)),RISICOAFSTANDEN!$N$18*HLOOKUP(SUBSTITUTE(RISICOAFSTANDEN!$M$18,"SLANG","LEIDING"),'DATA PMR - ANTWERPEN'!$B$1:$GI$203,$A21,FALSE)+RISICOAFSTANDEN!$N$18*RISICOAFSTANDEN!$O$18/8760*HLOOKUP(SUBSTITUTE(RISICOAFSTANDEN!$M$18,"KOPPEL","LOS"),'DATA PMR - ANTWERPEN'!$B$1:$GI$203,$A21,FALSE),RISICOAFSTANDEN!$N$18*RISICOAFSTANDEN!$O$18/8760*HLOOKUP(RISICOAFSTANDEN!$M$18,'DATA PMR - ANTWERPEN'!$B$1:$GI$203,$A21,FALSE)),"") ->  | P21: =IFERROR(IF(ISNUMBER(SEARCH("KOPPEL",RISICOAFSTANDEN!$M$19,1)),RISICOAFSTANDEN!$N$19*HLOOKUP(SUBSTITUTE(RISICOAFSTANDEN!$M$19,"SLANG","LEIDING"),'DATA PMR - ANTWERPEN'!$B$1:$GI$203,$A21,FALSE)+RISICOAFSTANDEN!$N$19*RISICOAFSTANDEN!$O$19/8760*HLOOKUP(SUBSTITUTE(RISICOAFSTANDEN!$M$19,"KOPPEL","LOS"),'DATA PMR - ANTWERPEN'!$B$1:$GI$203,$A21,FALSE),RISICOAFSTANDEN!$N$19*RISICOAFSTANDEN!$O$19/8760*HLOOKUP(RISICOAFSTANDEN!$M$19,'DATA PMR - ANTWERPEN'!$B$1:$GI$203,$A21,FALSE)),"") ->  | Q21: =IFERROR(IF(ISNUMBER(SEARCH("KOPPEL",RISICOAFSTANDEN!$M$20,1)),RISICOAFSTANDEN!$N$20*HLOOKUP(SUBSTITUTE(RISICOAFSTANDEN!$M$20,"SLANG","LEIDING"),'DATA PMR - ANTWERPEN'!$B$1:$GI$203,$A21,FALSE)+RISICOAFSTANDEN!$N$20*RISICOAFSTANDEN!$O$20/8760*HLOOKUP(SUBSTITUTE(RISICOAFSTANDEN!$M$20,"KOPPEL","LOS"),'DATA PMR - ANTWERPEN'!$B$1:$GI$203,$A21,FALSE),RISICOAFSTANDEN!$N$20*RISICOAFSTANDEN!$O$20/8760*HLOOKUP(RISICOAFSTANDEN!$M$20,'DATA PMR - ANTWERPEN'!$B$1:$GI$203,$A21,FALSE)),"") ->  | R21: =IFERROR(IF(ISNUMBER(SEARCH("KOPPEL",RISICOAFSTANDEN!$M$21,1)),RISICOAFSTANDEN!$N$21*HLOOKUP(SUBSTITUTE(RISICOAFSTANDEN!$M$21,"SLANG","LEIDING"),'DATA PMR - ANTWERPEN'!$B$1:$GI$203,$A21,FALSE)+RISICOAFSTANDEN!$N$21*RISICOAFSTANDEN!$O$21/8760*HLOOKUP(SUBSTITUTE(RISICOAFSTANDEN!$M$21,"KOPPEL","LOS"),'DATA PMR - ANTWERPEN'!$B$1:$GI$203,$A21,FALSE),RISICOAFSTANDEN!$N$21*RISICOAFSTANDEN!$O$21/8760*HLOOKUP(RISICOAFSTANDEN!$M$21,'DATA PMR - ANTWERPEN'!$B$1:$GI$203,$A21,FALSE)),"") ->  | S21: =IFERROR(IF(ISNUMBER(SEARCH("KOPPEL",RISICOAFSTANDEN!$M$22,1)),RISICOAFSTANDEN!$N$22*HLOOKUP(SUBSTITUTE(RISICOAFSTANDEN!$M$22,"SLANG","LEIDING"),'DATA PMR - ANTWERPEN'!$B$1:$GI$203,$A21,FALSE)+RISICOAFSTANDEN!$N$22*RISICOAFSTANDEN!$O$22/8760*HLOOKUP(SUBSTITUTE(RISICOAFSTANDEN!$M$22,"KOPPEL","LOS"),'DATA PMR - ANTWERPEN'!$B$1:$GI$203,$A21,FALSE),RISICOAFSTANDEN!$N$22*RISICOAFSTANDEN!$O$22/8760*HLOOKUP(RISICOAFSTANDEN!$M$22,'DATA PMR - ANTWERPEN'!$B$1:$GI$203,$A21,FALSE)),"") ->  | T21: =IFERROR(IF(ISNUMBER(SEARCH("KOPPEL",RISICOAFSTANDEN!$M$23,1)),RISICOAFSTANDEN!$N$23*HLOOKUP(SUBSTITUTE(RISICOAFSTANDEN!$M$23,"SLANG","LEIDING"),'DATA PMR - ANTWERPEN'!$B$1:$GI$203,$A21,FALSE)+RISICOAFSTANDEN!$N$23*RISICOAFSTANDEN!$O$23/8760*HLOOKUP(SUBSTITUTE(RISICOAFSTANDEN!$M$23,"KOPPEL","LOS"),'DATA PMR - ANTWERPEN'!$B$1:$GI$203,$A21,FALSE),RISICOAFSTANDEN!$N$23*RISICOAFSTANDEN!$O$23/8760*HLOOKUP(RISICOAFSTANDEN!$M$23,'DATA PMR - ANTWERPEN'!$B$1:$GI$203,$A21,FALSE)),"") ->  | U21: =IFERROR(IF(ISNUMBER(SEARCH("KOPPEL",RISICOAFSTANDEN!$M$24,1)),RISICOAFSTANDEN!$N$24*HLOOKUP(SUBSTITUTE(RISICOAFSTANDEN!$M$24,"SLANG","LEIDING"),'DATA PMR - ANTWERPEN'!$B$1:$GI$203,$A21,FALSE)+RISICOAFSTANDEN!$N$24*RISICOAFSTANDEN!$O$24/8760*HLOOKUP(SUBSTITUTE(RISICOAFSTANDEN!$M$24,"KOPPEL","LOS"),'DATA PMR - ANTWERPEN'!$B$1:$GI$203,$A21,FALSE),RISICOAFSTANDEN!$N$24*RISICOAFSTANDEN!$O$24/8760*HLOOKUP(RISICOAFSTANDEN!$M$24,'DATA PMR - ANTWERPEN'!$B$1:$GI$203,$A21,FALSE)),"") ->  | V21: =IFERROR(IF(ISNUMBER(SEARCH("KOPPEL",RISICOAFSTANDEN!$M$25,1)),RISICOAFSTANDEN!$N$25*HLOOKUP(SUBSTITUTE(RISICOAFSTANDEN!$M$25,"SLANG","LEIDING"),'DATA PMR - ANTWERPEN'!$B$1:$GI$203,$A21,FALSE)+RISICOAFSTANDEN!$N$25*RISICOAFSTANDEN!$O$25/8760*HLOOKUP(SUBSTITUTE(RISICOAFSTANDEN!$M$25,"KOPPEL","LOS"),'DATA PMR - ANTWERPEN'!$B$1:$GI$203,$A21,FALSE),RISICOAFSTANDEN!$N$25*RISICOAFSTANDEN!$O$25/8760*HLOOKUP(RISICOAFSTANDEN!$M$25,'DATA PMR - ANTWERPEN'!$B$1:$GI$203,$A21,FALSE)),"") ->  | W21: =IFERROR(IF(ISNUMBER(SEARCH("KOPPEL",RISICOAFSTANDEN!$M$26,1)),RISICOAFSTANDEN!$N$26*HLOOKUP(SUBSTITUTE(RISICOAFSTANDEN!$M$26,"SLANG","LEIDING"),'DATA PMR - ANTWERPEN'!$B$1:$GI$203,$A21,FALSE)+RISICOAFSTANDEN!$N$26*RISICOAFSTANDEN!$O$26/8760*HLOOKUP(SUBSTITUTE(RISICOAFSTANDEN!$M$26,"KOPPEL","LOS"),'DATA PMR - ANTWERPEN'!$B$1:$GI$203,$A21,FALSE),RISICOAFSTANDEN!$N$26*RISICOAFSTANDEN!$O$26/8760*HLOOKUP(RISICOAFSTANDEN!$M$26,'DATA PMR - ANTWERPEN'!$B$1:$GI$203,$A21,FALSE)),"") ->  | X21: =IFERROR(IF(ISNUMBER(SEARCH("KOPPEL",RISICOAFSTANDEN!$M$27,1)),RISICOAFSTANDEN!$N$27*HLOOKUP(SUBSTITUTE(RISICOAFSTANDEN!$M$27,"SLANG","LEIDING"),'DATA PMR - ANTWERPEN'!$B$1:$GI$203,$A21,FALSE)+RISICOAFSTANDEN!$N$27*RISICOAFSTANDEN!$O$27/8760*HLOOKUP(SUBSTITUTE(RISICOAFSTANDEN!$M$27,"KOPPEL","LOS"),'DATA PMR - ANTWERPEN'!$B$1:$GI$203,$A21,FALSE),RISICOAFSTANDEN!$N$27*RISICOAFSTANDEN!$O$27/8760*HLOOKUP(RISICOAFSTANDEN!$M$27,'DATA PMR - ANTWERPEN'!$B$1:$GI$203,$A21,FALSE)),"") ->  | Y21: =IFERROR(IF(ISNUMBER(SEARCH("KOPPEL",RISICOAFSTANDEN!$M$28,1)),RISICOAFSTANDEN!$N$28*HLOOKUP(SUBSTITUTE(RISICOAFSTANDEN!$M$28,"SLANG","LEIDING"),'DATA PMR - ANTWERPEN'!$B$1:$GI$203,$A21,FALSE)+RISICOAFSTANDEN!$N$28*RISICOAFSTANDEN!$O$28/8760*HLOOKUP(SUBSTITUTE(RISICOAFSTANDEN!$M$28,"KOPPEL","LOS"),'DATA PMR - ANTWERPEN'!$B$1:$GI$203,$A21,FALSE),RISICOAFSTANDEN!$N$28*RISICOAFSTANDEN!$O$28/8760*HLOOKUP(RISICOAFSTANDEN!$M$28,'DATA PMR - ANTWERPEN'!$B$1:$GI$203,$A21,FALSE)),"") ->  | Z21: =IFERROR(IF(ISNUMBER(SEARCH("KOPPEL",RISICOAFSTANDEN!$M$29,1)),RISICOAFSTANDEN!$N$29*HLOOKUP(SUBSTITUTE(RISICOAFSTANDEN!$M$29,"SLANG","LEIDING"),'DATA PMR - ANTWERPEN'!$B$1:$GI$203,$A21,FALSE)+RISICOAFSTANDEN!$N$29*RISICOAFSTANDEN!$O$29/8760*HLOOKUP(SUBSTITUTE(RISICOAFSTANDEN!$M$29,"KOPPEL","LOS"),'DATA PMR - ANTWERPEN'!$B$1:$GI$203,$A21,FALSE),RISICOAFSTANDEN!$N$29*RISICOAFSTANDEN!$O$29/8760*HLOOKUP(RISICOAFSTANDEN!$M$29,'DATA PMR - ANTWERPEN'!$B$1:$GI$203,$A21,FALSE)),"") ->  | AA21: -7 | AB21: -6 | AC21: -9 | AD21: -8 | AE21: -7 | AF21: -9 | AG21: -7 | AH21: -8 | AI21: -9 | AJ21: -7 | AK21: -9 | AL21: -7 | AM21: n.b. | AN21: n.b. | AO21: n.b. | AP21: n.b. | AQ21: n.b. | AR21: n.b. | AS21: n.b. | AT21: n.b. | AU21: n.b. | AV21: n.b. | AW21: n.b. | AX21: n.b. | AY21: n.b. | AZ21: 19 | BB21: 2.474450435e-06 | BC21: -6 | BD21: 19
A22: 23 | B22: =IFERROR(IF(ISNUMBER(SEARCH("KOPPEL",RISICOAFSTANDEN!$M$5,1)),RISICOAFSTANDEN!$N$5*HLOOKUP(SUBSTITUTE(RISICOAFSTANDEN!$M$5,"SLANG","LEIDING"),'DATA PMR - ANTWERPEN'!$B$1:$GI$203,$A22,FALSE)+RISICOAFSTANDEN!$N$5*RISICOAFSTANDEN!$O$5/8760*HLOOKUP(SUBSTITUTE(RISICOAFSTANDEN!$M$5,"KOPPEL","LOS"),'DATA PMR - ANTWERPEN'!$B$1:$GI$203,$A22,FALSE),RISICOAFSTANDEN!$N$5*RISICOAFSTANDEN!$O$5/8760*HLOOKUP(RISICOAFSTANDEN!$M$5,'DATA PMR - ANTWERPEN'!$B$1:$GI$203,$A22,FALSE)),"") -> 2.737879839e-07 | C22: =IFERROR(IF(ISNUMBER(SEARCH("KOPPEL",RISICOAFSTANDEN!$M$6,1)),RISICOAFSTANDEN!$N$6*HLOOKUP(SUBSTITUTE(RISICOAFSTANDEN!$M$6,"SLANG","LEIDING"),'DATA PMR - ANTWERPEN'!$B$1:$GI$203,$A22,FALSE)+RISICOAFSTANDEN!$N$6*RISICOAFSTANDEN!$O$6/8760*HLOOKUP(SUBSTITUTE(RISICOAFSTANDEN!$M$6,"KOPPEL","LOS"),'DATA PMR - ANTWERPEN'!$B$1:$GI$203,$A22,FALSE),RISICOAFSTANDEN!$N$6*RISICOAFSTANDEN!$O$6/8760*HLOOKUP(RISICOAFSTANDEN!$M$6,'DATA PMR - ANTWERPEN'!$B$1:$GI$203,$A22,FALSE)),"") -> 9.309359153e-07 | D22: =IFERROR(IF(ISNUMBER(SEARCH("KOPPEL",RISICOAFSTANDEN!$M$7,1)),RISICOAFSTANDEN!$N$7*HLOOKUP(SUBSTITUTE(RISICOAFSTANDEN!$M$7,"SLANG","LEIDING"),'DATA PMR - ANTWERPEN'!$B$1:$GI$203,$A22,FALSE)+RISICOAFSTANDEN!$N$7*RISICOAFSTANDEN!$O$7/8760*HLOOKUP(SUBSTITUTE(RISICOAFSTANDEN!$M$7,"KOPPEL","LOS"),'DATA PMR - ANTWERPEN'!$B$1:$GI$203,$A22,FALSE),RISICOAFSTANDEN!$N$7*RISICOAFSTANDEN!$O$7/8760*HLOOKUP(RISICOAFSTANDEN!$M$7,'DATA PMR - ANTWERPEN'!$B$1:$GI$203,$A22,FALSE)),"") -> 6.780387478e-09 | E22: =IFERROR(IF(ISNUMBER(SEARCH("KOPPEL",RISICOAFSTANDEN!$M$8,1)),RISICOAFSTANDEN!$N$8*HLOOKUP(SUBSTITUTE(RISICOAFSTANDEN!$M$8,"SLANG","LEIDING"),'DATA PMR - ANTWERPEN'!$B$1:$GI$203,$A22,FALSE)+RISICOAFSTANDEN!$N$8*RISICOAFSTANDEN!$O$8/8760*HLOOKUP(SUBSTITUTE(RISICOAFSTANDEN!$M$8,"KOPPEL","LOS"),'DATA PMR - ANTWERPEN'!$B$1:$GI$203,$A22,FALSE),RISICOAFSTANDEN!$N$8*RISICOAFSTANDEN!$O$8/8760*HLOOKUP(RISICOAFSTANDEN!$M$8,'DATA PMR - ANTWERPEN'!$B$1:$GI$203,$A22,FALSE)),"") -> 4.509249166e-08 | F22: =IFERROR(IF(ISNUMBER(SEARCH("KOPPEL",RISICOAFSTANDEN!$M$9,1)),RISICOAFSTANDEN!$N$9*HLOOKUP(SUBSTITUTE(RISICOAFSTANDEN!$M$9,"SLANG","LEIDING"),'DATA PMR - ANTWERPEN'!$B$1:$GI$203,$A22,FALSE)+RISICOAFSTANDEN!$N$9*RISICOAFSTANDEN!$O$9/8760*HLOOKUP(SUBSTITUTE(RISICOAFSTANDEN!$M$9,"KOPPEL","LOS"),'DATA PMR - ANTWERPEN'!$B$1:$GI$203,$A22,FALSE),RISICOAFSTANDEN!$N$9*RISICOAFSTANDEN!$O$9/8760*HLOOKUP(RISICOAFSTANDEN!$M$9,'DATA PMR - ANTWERPEN'!$B$1:$GI$203,$A22,FALSE)),"") -> 1.164890505e-07 | G22: =IFERROR(IF(ISNUMBER(SEARCH("KOPPEL",RISICOAFSTANDEN!$M$10,1)),RISICOAFSTANDEN!$N$10*HLOOKUP(SUBSTITUTE(RISICOAFSTANDEN!$M$10,"SLANG","LEIDING"),'DATA PMR - ANTWERPEN'!$B$1:$GI$203,$A22,FALSE)+RISICOAFSTANDEN!$N$10*RISICOAFSTANDEN!$O$10/8760*HLOOKUP(SUBSTITUTE(RISICOAFSTANDEN!$M$10,"KOPPEL","LOS"),'DATA PMR - ANTWERPEN'!$B$1:$GI$203,$A22,FALSE),RISICOAFSTANDEN!$N$10*RISICOAFSTANDEN!$O$10/8760*HLOOKUP(RISICOAFSTANDEN!$M$10,'DATA PMR - ANTWERPEN'!$B$1:$GI$203,$A22,FALSE)),"") -> 6.362426932e-09 | H22: =IFERROR(IF(ISNUMBER(SEARCH("KOPPEL",RISICOAFSTANDEN!$M$11,1)),RISICOAFSTANDEN!$N$11*HLOOKUP(SUBSTITUTE(RISICOAFSTANDEN!$M$11,"SLANG","LEIDING"),'DATA PMR - ANTWERPEN'!$B$1:$GI$203,$A22,FALSE)+RISICOAFSTANDEN!$N$11*RISICOAFSTANDEN!$O$11/8760*HLOOKUP(SUBSTITUTE(RISICOAFSTANDEN!$M$11,"KOPPEL","LOS"),'DATA PMR - ANTWERPEN'!$B$1:$GI$203,$A22,FALSE),RISICOAFSTANDEN!$N$11*RISICOAFSTANDEN!$O$11/8760*HLOOKUP(RISICOAFSTANDEN!$M$11,'DATA PMR - ANTWERPEN'!$B$1:$GI$203,$A22,FALSE)),"") -> 1.832149038e-07 | I22: =IFERROR(IF(ISNUMBER(SEARCH("KOPPEL",RISICOAFSTANDEN!$M$12,1)),RISICOAFSTANDEN!$N$12*HLOOKUP(SUBSTITUTE(RISICOAFSTANDEN!$M$12,"SLANG","LEIDING"),'DATA PMR - ANTWERPEN'!$B$1:$GI$203,$A22,FALSE)+RISICOAFSTANDEN!$N$12*RISICOAFSTANDEN!$O$12/8760*HLOOKUP(SUBSTITUTE(RISICOAFSTANDEN!$M$12,"KOPPEL","LOS"),'DATA PMR - ANTWERPEN'!$B$1:$GI$203,$A22,FALSE),RISICOAFSTANDEN!$N$12*RISICOAFSTANDEN!$O$12/8760*HLOOKUP(RISICOAFSTANDEN!$M$12,'DATA PMR - ANTWERPEN'!$B$1:$GI$203,$A22,FALSE)),"") -> 2.32978101e-08 | J22: =IFERROR(IF(ISNUMBER(SEARCH("KOPPEL",RISICOAFSTANDEN!$M$13,1)),RISICOAFSTANDEN!$N$13*HLOOKUP(SUBSTITUTE(RISICOAFSTANDEN!$M$13,"SLANG","LEIDING"),'DATA PMR - ANTWERPEN'!$B$1:$GI$203,$A22,FALSE)+RISICOAFSTANDEN!$N$13*RISICOAFSTANDEN!$O$13/8760*HLOOKUP(SUBSTITUTE(RISICOAFSTANDEN!$M$13,"KOPPEL","LOS"),'DATA PMR - ANTWERPEN'!$B$1:$GI$203,$A22,FALSE),RISICOAFSTANDEN!$N$13*RISICOAFSTANDEN!$O$13/8760*HLOOKUP(RISICOAFSTANDEN!$M$13,'DATA PMR - ANTWERPEN'!$B$1:$GI$203,$A22,FALSE)),"") -> 4.824305961e-09 | K22: =IFERROR(IF(ISNUMBER(SEARCH("KOPPEL",RISICOAFSTANDEN!$M$14,1)),RISICOAFSTANDEN!$N$14*HLOOKUP(SUBSTITUTE(RISICOAFSTANDEN!$M$14,"SLANG","LEIDING"),'DATA PMR - ANTWERPEN'!$B$1:$GI$203,$A22,FALSE)+RISICOAFSTANDEN!$N$14*RISICOAFSTANDEN!$O$14/8760*HLOOKUP(SUBSTITUTE(RISICOAFSTANDEN!$M$14,"KOPPEL","LOS"),'DATA PMR - ANTWERPEN'!$B$1:$GI$203,$A22,FALSE),RISICOAFSTANDEN!$N$14*RISICOAFSTANDEN!$O$14/8760*HLOOKUP(RISICOAFSTANDEN!$M$14,'DATA PMR - ANTWERPEN'!$B$1:$GI$203,$A22,FALSE)),"") -> 3.387123877e-07 | L22: =IFERROR(IF(ISNUMBER(SEARCH("KOPPEL",RISICOAFSTANDEN!$M$15,1)),RISICOAFSTANDEN!$N$15*HLOOKUP(SUBSTITUTE(RISICOAFSTANDEN!$M$15,"SLANG","LEIDING"),'DATA PMR - ANTWERPEN'!$B$1:$GI$203,$A22,FALSE)+RISICOAFSTANDEN!$N$15*RISICOAFSTANDEN!$O$15/8760*HLOOKUP(SUBSTITUTE(RISICOAFSTANDEN!$M$15,"KOPPEL","LOS"),'DATA PMR - ANTWERPEN'!$B$1:$GI$203,$A22,FALSE),RISICOAFSTANDEN!$N$15*RISICOAFSTANDEN!$O$15/8760*HLOOKUP(RISICOAFSTANDEN!$M$15,'DATA PMR - ANTWERPEN'!$B$1:$GI$203,$A22,FALSE)),"") -> 7.236458941e-09 | M22: =IFERROR(IF(ISNUMBER(SEARCH("KOPPEL",RISICOAFSTANDEN!$M$16,1)),RISICOAFSTANDEN!$N$16*HLOOKUP(SUBSTITUTE(RISICOAFSTANDEN!$M$16,"SLANG","LEIDING"),'DATA PMR - ANTWERPEN'!$B$1:$GI$203,$A22,FALSE)+RISICOAFSTANDEN!$N$16*RISICOAFSTANDEN!$O$16/8760*HLOOKUP(SUBSTITUTE(RISICOAFSTANDEN!$M$16,"KOPPEL","LOS"),'DATA PMR - ANTWERPEN'!$B$1:$GI$203,$A22,FALSE),RISICOAFSTANDEN!$N$16*RISICOAFSTANDEN!$O$16/8760*HLOOKUP(RISICOAFSTANDEN!$M$16,'DATA PMR - ANTWERPEN'!$B$1:$GI$203,$A22,FALSE)),"") -> 1.244538841e-07 | N22: =IFERROR(IF(ISNUMBER(SEARCH("KOPPEL",RISICOAFSTANDEN!$M$17,1)),RISICOAFSTANDEN!$N$17*HLOOKUP(SUBSTITUTE(RISICOAFSTANDEN!$M$17,"SLANG","LEIDING"),'DATA PMR - ANTWERPEN'!$B$1:$GI$203,$A22,FALSE)+RISICOAFSTANDEN!$N$17*RISICOAFSTANDEN!$O$17/8760*HLOOKUP(SUBSTITUTE(RISICOAFSTANDEN!$M$17,"KOPPEL","LOS"),'DATA PMR - ANTWERPEN'!$B$1:$GI$203,$A22,FALSE),RISICOAFSTANDEN!$N$17*RISICOAFSTANDEN!$O$17/8760*HLOOKUP(RISICOAFSTANDEN!$M$17,'DATA PMR - ANTWERPEN'!$B$1:$GI$203,$A22,FALSE)),"") ->  | O22: =IFERROR(IF(ISNUMBER(SEARCH("KOPPEL",RISICOAFSTANDEN!$M$18,1)),RISICOAFSTANDEN!$N$18*HLOOKUP(SUBSTITUTE(RISICOAFSTANDEN!$M$18,"SLANG","LEIDING"),'DATA PMR - ANTWERPEN'!$B$1:$GI$203,$A22,FALSE)+RISICOAFSTANDEN!$N$18*RISICOAFSTANDEN!$O$18/8760*HLOOKUP(SUBSTITUTE(RISICOAFSTANDEN!$M$18,"KOPPEL","LOS"),'DATA PMR - ANTWERPEN'!$B$1:$GI$203,$A22,FALSE),RISICOAFSTANDEN!$N$18*RISICOAFSTANDEN!$O$18/8760*HLOOKUP(RISICOAFSTANDEN!$M$18,'DATA PMR - ANTWERPEN'!$B$1:$GI$203,$A22,FALSE)),"") ->  | P22: =IFERROR(IF(ISNUMBER(SEARCH("KOPPEL",RISICOAFSTANDEN!$M$19,1)),RISICOAFSTANDEN!$N$19*HLOOKUP(SUBSTITUTE(RISICOAFSTANDEN!$M$19,"SLANG","LEIDING"),'DATA PMR - ANTWERPEN'!$B$1:$GI$203,$A22,FALSE)+RISICOAFSTANDEN!$N$19*RISICOAFSTANDEN!$O$19/8760*HLOOKUP(SUBSTITUTE(RISICOAFSTANDEN!$M$19,"KOPPEL","LOS"),'DATA PMR - ANTWERPEN'!$B$1:$GI$203,$A22,FALSE),RISICOAFSTANDEN!$N$19*RISICOAFSTANDEN!$O$19/8760*HLOOKUP(RISICOAFSTANDEN!$M$19,'DATA PMR - ANTWERPEN'!$B$1:$GI$203,$A22,FALSE)),"") ->  | Q22: =IFERROR(IF(ISNUMBER(SEARCH("KOPPEL",RISICOAFSTANDEN!$M$20,1)),RISICOAFSTANDEN!$N$20*HLOOKUP(SUBSTITUTE(RISICOAFSTANDEN!$M$20,"SLANG","LEIDING"),'DATA PMR - ANTWERPEN'!$B$1:$GI$203,$A22,FALSE)+RISICOAFSTANDEN!$N$20*RISICOAFSTANDEN!$O$20/8760*HLOOKUP(SUBSTITUTE(RISICOAFSTANDEN!$M$20,"KOPPEL","LOS"),'DATA PMR - ANTWERPEN'!$B$1:$GI$203,$A22,FALSE),RISICOAFSTANDEN!$N$20*RISICOAFSTANDEN!$O$20/8760*HLOOKUP(RISICOAFSTANDEN!$M$20,'DATA PMR - ANTWERPEN'!$B$1:$GI$203,$A22,FALSE)),"") ->  | R22: =IFERROR(IF(ISNUMBER(SEARCH("KOPPEL",RISICOAFSTANDEN!$M$21,1)),RISICOAFSTANDEN!$N$21*HLOOKUP(SUBSTITUTE(RISICOAFSTANDEN!$M$21,"SLANG","LEIDING"),'DATA PMR - ANTWERPEN'!$B$1:$GI$203,$A22,FALSE)+RISICOAFSTANDEN!$N$21*RISICOAFSTANDEN!$O$21/8760*HLOOKUP(SUBSTITUTE(RISICOAFSTANDEN!$M$21,"KOPPEL","LOS"),'DATA PMR - ANTWERPEN'!$B$1:$GI$203,$A22,FALSE),RISICOAFSTANDEN!$N$21*RISICOAFSTANDEN!$O$21/8760*HLOOKUP(RISICOAFSTANDEN!$M$21,'DATA PMR - ANTWERPEN'!$B$1:$GI$203,$A22,FALSE)),"") ->  | S22: =IFERROR(IF(ISNUMBER(SEARCH("KOPPEL",RISICOAFSTANDEN!$M$22,1)),RISICOAFSTANDEN!$N$22*HLOOKUP(SUBSTITUTE(RISICOAFSTANDEN!$M$22,"SLANG","LEIDING"),'DATA PMR - ANTWERPEN'!$B$1:$GI$203,$A22,FALSE)+RISICOAFSTANDEN!$N$22*RISICOAFSTANDEN!$O$22/8760*HLOOKUP(SUBSTITUTE(RISICOAFSTANDEN!$M$22,"KOPPEL","LOS"),'DATA PMR - ANTWERPEN'!$B$1:$GI$203,$A22,FALSE),RISICOAFSTANDEN!$N$22*RISICOAFSTANDEN!$O$22/8760*HLOOKUP(RISICOAFSTANDEN!$M$22,'DATA PMR - ANTWERPEN'!$B$1:$GI$203,$A22,FALSE)),"") ->  | T22: =IFERROR(IF(ISNUMBER(SEARCH("KOPPEL",RISICOAFSTANDEN!$M$23,1)),RISICOAFSTANDEN!$N$23*HLOOKUP(SUBSTITUTE(RISICOAFSTANDEN!$M$23,"SLANG","LEIDING"),'DATA PMR - ANTWERPEN'!$B$1:$GI$203,$A22,FALSE)+RISICOAFSTANDEN!$N$23*RISICOAFSTANDEN!$O$23/8760*HLOOKUP(SUBSTITUTE(RISICOAFSTANDEN!$M$23,"KOPPEL","LOS"),'DATA PMR - ANTWERPEN'!$B$1:$GI$203,$A22,FALSE),RISICOAFSTANDEN!$N$23*RISICOAFSTANDEN!$O$23/8760*HLOOKUP(RISICOAFSTANDEN!$M$23,'DATA PMR - ANTWERPEN'!$B$1:$GI$203,$A22,FALSE)),"") ->  | U22: =IFERROR(IF(ISNUMBER(SEARCH("KOPPEL",RISICOAFSTANDEN!$M$24,1)),RISICOAFSTANDEN!$N$24*HLOOKUP(SUBSTITUTE(RISICOAFSTANDEN!$M$24,"SLANG","LEIDING"),'DATA PMR - ANTWERPEN'!$B$1:$GI$203,$A22,FALSE)+RISICOAFSTANDEN!$N$24*RISICOAFSTANDEN!$O$24/8760*HLOOKUP(SUBSTITUTE(RISICOAFSTANDEN!$M$24,"KOPPEL","LOS"),'DATA PMR - ANTWERPEN'!$B$1:$GI$203,$A22,FALSE),RISICOAFSTANDEN!$N$24*RISICOAFSTANDEN!$O$24/8760*HLOOKUP(RISICOAFSTANDEN!$M$24,'DATA PMR - ANTWERPEN'!$B$1:$GI$203,$A22,FALSE)),"") ->  | V22: =IFERROR(IF(ISNUMBER(SEARCH("KOPPEL",RISICOAFSTANDEN!$M$25,1)),RISICOAFSTANDEN!$N$25*HLOOKUP(SUBSTITUTE(RISICOAFSTANDEN!$M$25,"SLANG","LEIDING"),'DATA PMR - ANTWERPEN'!$B$1:$GI$203,$A22,FALSE)+RISICOAFSTANDEN!$N$25*RISICOAFSTANDEN!$O$25/8760*HLOOKUP(SUBSTITUTE(RISICOAFSTANDEN!$M$25,"KOPPEL","LOS"),'DATA PMR - ANTWERPEN'!$B$1:$GI$203,$A22,FALSE),RISICOAFSTANDEN!$N$25*RISICOAFSTANDEN!$O$25/8760*HLOOKUP(RISICOAFSTANDEN!$M$25,'DATA PMR - ANTWERPEN'!$B$1:$GI$203,$A22,FALSE)),"") ->  | W22: =IFERROR(IF(ISNUMBER(SEARCH("KOPPEL",RISICOAFSTANDEN!$M$26,1)),RISICOAFSTANDEN!$N$26*HLOOKUP(SUBSTITUTE(RISICOAFSTANDEN!$M$26,"SLANG","LEIDING"),'DATA PMR - ANTWERPEN'!$B$1:$GI$203,$A22,FALSE)+RISICOAFSTANDEN!$N$26*RISICOAFSTANDEN!$O$26/8760*HLOOKUP(SUBSTITUTE(RISICOAFSTANDEN!$M$26,"KOPPEL","LOS"),'DATA PMR - ANTWERPEN'!$B$1:$GI$203,$A22,FALSE),RISICOAFSTANDEN!$N$26*RISICOAFSTANDEN!$O$26/8760*HLOOKUP(RISICOAFSTANDEN!$M$26,'DATA PMR - ANTWERPEN'!$B$1:$GI$203,$A22,FALSE)),"") ->  | X22: =IFERROR(IF(ISNUMBER(SEARCH("KOPPEL",RISICOAFSTANDEN!$M$27,1)),RISICOAFSTANDEN!$N$27*HLOOKUP(SUBSTITUTE(RISICOAFSTANDEN!$M$27,"SLANG","LEIDING"),'DATA PMR - ANTWERPEN'!$B$1:$GI$203,$A22,FALSE)+RISICOAFSTANDEN!$N$27*RISICOAFSTANDEN!$O$27/8760*HLOOKUP(SUBSTITUTE(RISICOAFSTANDEN!$M$27,"KOPPEL","LOS"),'DATA PMR - ANTWERPEN'!$B$1:$GI$203,$A22,FALSE),RISICOAFSTANDEN!$N$27*RISICOAFSTANDEN!$O$27/8760*HLOOKUP(RISICOAFSTANDEN!$M$27,'DATA PMR - ANTWERPEN'!$B$1:$GI$203,$A22,FALSE)),"") ->  | Y22: =IFERROR(IF(ISNUMBER(SEARCH("KOPPEL",RISICOAFSTANDEN!$M$28,1)),RISICOAFSTANDEN!$N$28*HLOOKUP(SUBSTITUTE(RISICOAFSTANDEN!$M$28,"SLANG","LEIDING"),'DATA PMR - ANTWERPEN'!$B$1:$GI$203,$A22,FALSE)+RISICOAFSTANDEN!$N$28*RISICOAFSTANDEN!$O$28/8760*HLOOKUP(SUBSTITUTE(RISICOAFSTANDEN!$M$28,"KOPPEL","LOS"),'DATA PMR - ANTWERPEN'!$B$1:$GI$203,$A22,FALSE),RISICOAFSTANDEN!$N$28*RISICOAFSTANDEN!$O$28/8760*HLOOKUP(RISICOAFSTANDEN!$M$28,'DATA PMR - ANTWERPEN'!$B$1:$GI$203,$A22,FALSE)),"") ->  | Z22: =IFERROR(IF(ISNUMBER(SEARCH("KOPPEL",RISICOAFSTANDEN!$M$29,1)),RISICOAFSTANDEN!$N$29*HLOOKUP(SUBSTITUTE(RISICOAFSTANDEN!$M$29,"SLANG","LEIDING"),'DATA PMR - ANTWERPEN'!$B$1:$GI$203,$A22,FALSE)+RISICOAFSTANDEN!$N$29*RISICOAFSTANDEN!$O$29/8760*HLOOKUP(SUBSTITUTE(RISICOAFSTANDEN!$M$29,"KOPPEL","LOS"),'DATA PMR - ANTWERPEN'!$B$1:$GI$203,$A22,FALSE),RISICOAFSTANDEN!$N$29*RISICOAFSTANDEN!$O$29/8760*HLOOKUP(RISICOAFSTANDEN!$M$29,'DATA PMR - ANTWERPEN'!$B$1:$GI$203,$A22,FALSE)),"") ->  | AA22: -7 | AB22: -7 | AC22: -9 | AD22: -8 | AE22: -7 | AF22: -9 | AG22: -7 | AH22: -8 | AI22: -9 | AJ22: -7 | AK22: -9 | AL22: -7 | AM22: n.b. | AN22: n.b. | AO22: n.b. | AP22: n.b. | AQ22: n.b. | AR22: n.b. | AS22: n.b. | AT22: n.b. | AU22: n.b. | AV22: n.b. | AW22: n.b. | AX22: n.b. | AY22: n.b. | AZ22: 20 | BB22: 2.061188006e-06 | BC22: -6 | BD22: 20
